Workbook

Sheet Input
A1: Decision Making Tool for Island Communities
A2: Coastal Renewable Generation and Storage Devices
A4: Input Cells
A6: Data
A8: Island
A9: Population
A10: Average Daily Demand | C10: kWh
A11: Non-Renewable Generation Capacity
A12: Demand
A13: Average Summer | C13: kW
A14: Average Winter | C14: kW
A15: Generation
A16: Average Summer | C16: kW
A17: Average Winter | C17: kW
A19: Main Grid Connection | B19: No
A20: Generation Excess? | B20: =IF(OR(B17>B14,B16>B13),"Yes", "No") -> No
A21: =IF(B20="No","","Max Excess") ->  | B21: =IF(A21="Max Excess",MAX((B16-B13),(B17-B14)),"") ->  | C21: =IF(B21<>"","kW","") -> 
A23: Required Storage
A24: Rated Capacity | C24: kW
A25: Capacity | C25: kWh
A27: Current Renewable Generation
A29: Device | B29: Resource Type | C29: Rated Power
B30: [Select] | D30: kW
B31: [Select] | D31: kW
B32: [Select] | D32: kW
B33: [Select] | D33: kW
B34: [Select] | D34: kW
B35: [Select] | D35: kW
B36: [Select] | D36: kW
B37: [Select] | D37: kW
B38: [Select] | D38: kW
A40: Potential Generation and Storage
A42: Resource Type: | B42: Tidal Stream | E42: Resource Type: | F42: Tidal Barrage | I42: Resource Type: | J42: Wave
A43: No. of Sites | B43: 0 | E43: No. of Sites | F43: 0 | I43: No. of Sites | J43: 0
A45: Site Name | B45: =IF(A45<>"", "[Enter Name]","") -> [Enter Name] | E45: Site Name | F45: =IF(E45<>"", "[Enter Name]","") -> [Enter Name] | I45: Site Name | J45: =IF(I45<>"", "[Enter Name]","") -> [Enter Name]
A46: Peak Flow (Springs) | B46: =IF(A46<>"", "[Enter Value]","") -> [Enter Value] | C46: =IF(A46<>"","m/s","") -> m/s | E46: Max Tidal Range | F46: =IF(E46<>"", "[Enter Value]","") -> [Enter Value] | G46: =IF(E46<>"","m","") -> m | I46: Position Relevant to Island | J46: =IF(I46<>"", "[Select Value]","") -> [Select Value]
A47: Peak Flow (Neaps) | B47: =IF(A47<>"", "[Enter Value]","") -> [Enter Value] | C47: =IF(A47<>"","m/s","") -> m/s | E47: Mean Tidal Range | F47: =IF(E47<>"", "[Enter Value]","") -> [Enter Value] | G47: =IF(E47<>"","m","") -> m | I47: Relevant Ocean Wave Area | J47: [Select Area]
A48: Lunar Cycle Period | B48: [Enter Value] | C48: =IF(A48<>"","days","") -> days | E48: Lunar Cycle Period | F48: [Enter Value] | G48: =IF(E48<>"","days","") -> days | I48: Average Wave Height | J48: [Enter Value]
A49: Tidal Period | B49: [Enter Value] | C49: =IF(A49<>"","hours","") -> hours | E49: Proposed Lagoon Surface Area | F49: [Enter Value] | G49: =IF(E49<>"","m^2","") -> m^2 | I49: Proximity to Grid Connection | J49: =IF(I49<>"", "[Select Value]","") -> [Select Value]
A50: Proximity to Grid Connection | B50: =IF(A50<>"", "[Select Value]","") -> [Select Value] | E50: Proximity to Grid Connection | F50: =IF(E50<>"", "[Select Value]","") -> [Select Value] | I50: Average Water Depth | J50: =IF(I50<>"", "[Select Value]","") -> [Select Value]
A51: Average Water Depth | B51: =IF(A51<>"", "[Select Value]","") -> [Select Value] | E51: Average Water Depth | F51: =IF(E51<>"", "[Select Value]","") -> [Select Value] | I51: Seabed Topography | J51: =IF(I51<>"", "[Select Value]","") -> [Select Value]
A52: Seabed Topography | B52: =IF(A52<>"", "[Select Value]","") -> [Select Value] | E52: Seabed Topography | F52: =IF(E52<>"", "[Select Value]","") -> [Select Value] | I52: Accessibility | J52: =IF(I52<>"", "[Select Value]","") -> [Select Value]
A53: Accessibility | B53: =IF(A53<>"", "[Select Value]","") -> [Select Value] | E53: Accessibility | F53: =IF(E53<>"", "[Select Value]","") -> [Select Value]
A55: Site Name | B55: =IF(A55<>"", "[Enter Name]","") -> [Enter Name] | E55: Site Name | F55: =IF(E55<>"", "[Enter Name]","") -> [Enter Name] | I55: Site Name | J55: =IF(I55<>"", "[Enter Name]","") -> [Enter Name]
A56: Peak Flow (Springs) | B56: =IF(A56<>"", "[Enter Value]","") -> [Enter Value] | C56: =IF(A56<>"","m/s","") -> m/s | E56: Max Tidal Range | F56: =IF(E56<>"", "[Enter Value]","") -> [Enter Value] | G56: =IF(E56<>"","m","") -> m | I56: Position Relevant to Island | J56: =IF(I56<>"", "[Select Value]","") -> [Select Value]
A57: Peak Flow (Neaps) | B57: =IF(A57<>"", "[Enter Value]","") -> [Enter Value] | C57: =IF(A57<>"","m/s","") -> m/s | E57: Mean Tidal Range | F57: =IF(E57<>"", "[Enter Value]","") -> [Enter Value] | G57: =IF(E57<>"","m","") -> m | I57: Relevant Ocean Wave Area | J57: [Select Area]
A58: Lunar Cycle Period | B58: [Enter Value] | C58: =IF(A58<>"","days","") -> days | E58: Lunar Cycle Period | F58: [Enter Value] | G58: =IF(E58<>"","days","") -> days | I58: Average Wave Height | J58: [Enter Value]
A59: Tidal Period | B59: [Enter Value] | C59: =IF(A59<>"","hours","") -> hours | E59: Proposed Lagoon Surface Area | F59: [Enter Value] | G59: =IF(E59<>"","m^2","") -> m^2 | I59: Proximity to Grid Connection | J59: =IF(I59<>"", "[Select Value]","") -> [Select Value]
A60: Proximity to Grid Connection | B60: =IF(A60<>"", "[Select Value]","") -> [Select Value] | E60: Proximity to Grid Connection | F60: =IF(E60<>"", "[Select Value]","") -> [Select Value] | I60: Average Water Depth | J60: =IF(I60<>"", "[Select Value]","") -> [Select Value]
A61: Average Water Depth | B61: =IF(A61<>"", "[Select Value]","") -> [Select Value] | E61: Average Water Depth | F61: =IF(E61<>"", "[Select Value]","") -> [Select Value] | I61: Seabed Topography | J61: =IF(I61<>"", "[Select Value]","") -> [Select Value]
A62: Seabed Topography | B62: =IF(A62<>"", "[Select Value]","") -> [Select Value] | E62: Seabed Topography | F62: =IF(E62<>"", "[Select Value]","") -> [Select Value] | I62: Accessibility | J62: =IF(I62<>"", "[Select Value]","") -> [Select Value]
A63: Accessibility | B63: =IF(A63<>"", "[Select Value]","") -> [Select Value] | E63: Accessibility | F63: =IF(E63<>"", "[Select Value]","") -> [Select Value]
A65: Site Name | B65: =IF(A65<>"", "[Enter Name]","") -> [Enter Name] | E65: Site Name | F65: =IF(E65<>"", "[Enter Name]","") -> [Enter Name] | I65: Site Name | J65: =IF(I65<>"", "[Enter Name]","") -> [Enter Name]
A66: Peak Flow (Springs) | B66: =IF(A66<>"", "[Enter Value]","") -> [Enter Value] | C66: =IF(A66<>"","m/s","") -> m/s | E66: Max Tidal Range | F66: =IF(E66<>"", "[Enter Value]","") -> [Enter Value] | G66: =IF(E66<>"","m","") -> m | I66: Position Relevant to Island | J66: =IF(I66<>"", "[Select Value]","") -> [Select Value]
A67: Peak Flow (Neaps) | B67: =IF(A67<>"", "[Enter Value]","") -> [Enter Value] | C67: =IF(A67<>"","m/s","") -> m/s | E67: Mean Tidal Range | F67: =IF(E67<>"", "[Enter Value]","") -> [Enter Value] | G67: =IF(E67<>"","m","") -> m | I67: Relevant Ocean Wave Area | J67: [Select Area]
A68: Lunar Cycle Period | B68: [Enter Value] | C68: =IF(A68<>"","days","") -> days | E68: Lunar Cycle Period | F68: [Enter Value] | G68: =IF(E68<>"","days","") -> days | I68: Average Wave Height | J68: [Enter Value]
A69: Tidal Period | B69: [Enter Value] | C69: =IF(A69<>"","hours","") -> hours | E69: Proposed Lagoon Surface Area | F69: [Enter Value] | G69: =IF(E69<>"","m^2","") -> m^2 | I69: Proximity to Grid Connection | J69: =IF(I69<>"", "[Select Value]","") -> [Select Value]
A70: Proximity to Grid Connection | B70: =IF(A70<>"", "[Select Value]","") -> [Select Value] | E70: Proximity to Grid Connection | F70: =IF(E70<>"", "[Select Value]","") -> [Select Value] | I70: Average Water Depth | J70: =IF(I70<>"", "[Select Value]","") -> [Select Value]
A71: Average Water Depth | B71: =IF(A71<>"", "[Select Value]","") -> [Select Value] | E71: Average Water Depth | F71: =IF(E71<>"", "[Select Value]","") -> [Select Value] | I71: Seabed Topography | J71: =IF(I71<>"", "[Select Value]","") -> [Select Value]
A72: Seabed Topography | B72: =IF(A72<>"", "[Select Value]","") -> [Select Value] | E72: Seabed Topography | F72: =IF(E72<>"", "[Select Value]","") -> [Select Value] | I72: Accessibility | J72: =IF(I72<>"", "[Select Value]","") -> [Select Value]
A73: Accessibility | B73: =IF(A73<>"", "[Select Value]","") -> [Select Value] | E73: Accessibility | F73: =IF(E73<>"", "[Select Value]","") -> [Select Value]
A75: Site Name | B75: =IF(A75<>"", "[Enter Name]","") -> [Enter Name] | E75: Site Name | F75: =IF(E75<>"", "[Enter Name]","") -> [Enter Name] | I75: Site Name | J75: =IF(I75<>"", "[Enter Name]","") -> [Enter Name]
A76: Peak Flow (Springs) | B76: =IF(A76<>"", "[Enter Value]","") -> [Enter Value] | C76: =IF(A76<>"","m/s","") -> m/s | E76: Max Tidal Range | F76: =IF(E76<>"", "[Enter Value]","") -> [Enter Value] | G76: =IF(E76<>"","m","") -> m | I76: Position Relevant to Island | J76: =IF(I76<>"", "[Select Value]","") -> [Select Value]
A77: Peak Flow (Neaps) | B77: =IF(A77<>"", "[Enter Value]","") -> [Enter Value] | C77: =IF(A77<>"","m/s","") -> m/s | E77: Mean Tidal Range | F77: =IF(E77<>"", "[Enter Value]","") -> [Enter Value] | G77: =IF(E77<>"","m","") -> m | I77: Relevant Ocean Wave Area | J77: [Select Area]
A78: Lunar Cycle Period | B78: [Enter Value] | C78: =IF(A78<>"","days","") -> days | E78: Lunar Cycle Period | F78: [Enter Value] | G78: =IF(E78<>"","days","") -> days | I78: Average Wave Height | J78: [Enter Value]
A79: Tidal Period | B79: [Enter Value] | C79: =IF(A79<>"","hours","") -> hours | E79: Proposed Lagoon Surface Area | F79: [Enter Value] | G79: =IF(E79<>"","m^2","") -> m^2 | I79: Proximity to Grid Connection | J79: =IF(I79<>"", "[Select Value]","") -> [Select Value]
A80: Proximity to Grid Connection | B80: =IF(A80<>"", "[Select Value]","") -> [Select Value] | E80: Proximity to Grid Connection | F80: =IF(E80<>"", "[Select Value]","") -> [Select Value] | I80: Average Water Depth | J80: =IF(I80<>"", "[Select Value]","") -> [Select Value]
A81: Average Water Depth | B81: =IF(A81<>"", "[Select Value]","") -> [Select Value] | E81: Average Water Depth | F81: =IF(E81<>"", "[Select Value]","") -> [Select Value] | I81: Seabed Topography | J81: =IF(I81<>"", "[Select Value]","") -> [Select Value]
A82: Seabed Topography | B82: =IF(A82<>"", "[Select Value]","") -> [Select Value] | E82: Seabed Topography | F82: =IF(E82<>"", "[Select Value]","") -> [Select Value] | I82: Accessibility | J82: =IF(I82<>"", "[Select Value]","") -> [Select Value]
A83: Accessibility | B83: =IF(A83<>"", "[Select Value]","") -> [Select Value] | E83: Accessibility | F83: =IF(E83<>"", "[Select Value]","") -> [Select Value]
A85: Site Name | B85: =IF(A85<>"", "[Enter Name]","") -> [Enter Name] | E85: Site Name | F85: =IF(E85<>"", "[Enter Name]","") -> [Enter Name] | I85: Site Name | J85: =IF(I85<>"", "[Enter Name]","") -> [Enter Name]
A86: Peak Flow (Springs) | B86: =IF(A86<>"", "[Enter Value]","") -> [Enter Value] | C86: =IF(A86<>"","m/s","") -> m/s | E86: Max Tidal Range | F86: =IF(E86<>"", "[Enter Value]","") -> [Enter Value] | G86: =IF(E86<>"","m","") -> m | I86: Position Relevant to Island | J86: =IF(I86<>"", "[Select Value]","") -> [Select Value]
A87: Peak Flow (Neaps) | B87: =IF(A87<>"", "[Enter Value]","") -> [Enter Value] | C87: =IF(A87<>"","m/s","") -> m/s | E87: Mean Tidal Range | F87: =IF(E87<>"", "[Enter Value]","") -> [Enter Value] | G87: =IF(E87<>"","m","") -> m | I87: Relevant Ocean Wave Area | J87: [Select Area]
A88: Lunar Cycle Period | B88: [Enter Value] | C88: =IF(A88<>"","days","") -> days | E88: Lunar Cycle Period | F88: [Enter Value] | G88: =IF(E88<>"","days","") -> days | I88: Average Wave Height | J88: [Enter Value]
A89: Tidal Period | B89: [Enter Value] | C89: =IF(A89<>"","hours","") -> hours | E89: Proposed Lagoon Surface Area | F89: [Enter Value] | G89: =IF(E89<>"","m^2","") -> m^2 | I89: Proximity to Grid Connection | J89: =IF(I89<>"", "[Select Value]","") -> [Select Value]
A90: Proximity to Grid Connection | B90: =IF(A90<>"", "[Select Value]","") -> [Select Value] | E90: Proximity to Grid Connection | F90: =IF(E90<>"", "[Select Value]","") -> [Select Value] | I90: Average Water Depth | J90: =IF(I90<>"", "[Select Value]","") -> [Select Value]
A91: Average Water Depth | B91: =IF(A91<>"", "[Select Value]","") -> [Select Value] | E91: Average Water Depth | F91: =IF(E91<>"", "[Select Value]","") -> [Select Value] | I91: Seabed Topography | J91: =IF(I91<>"", "[Select Value]","") -> [Select Value]
A92: Seabed Topography | B92: =IF(A92<>"", "[Select Value]","") -> [Select Value] | E92: Seabed Topography | F92: =IF(E92<>"", "[Select Value]","") -> [Select Value] | I92: Accessibility | J92: =IF(I92<>"", "[Select Value]","") -> [Select Value]
A93: Accessibility | B93: =IF(A93<>"", "[Select Value]","") -> [Select Value] | E93: Accessibility | F93: =IF(E93<>"", "[Select Value]","") -> [Select Value]
B469: [Enter Value]

Sheet Resource and Financial Summary
A1: Summary of Assessed Resources
A3: Tidal Stream | F3: Tidal Barrage | K3: Wave | P3: Storage
A5: Site Name | B5: Energy per lunar cycle (kWh/m^2) | C5: Energy per year (kWh/m^2) | D5: Average Power (kW/m^2) | F5: Site Name | G5: Available Energy per lunar cycle (MWh) | H5: Annual Available Energy(MWh) | I5: Required Rated Power (kW) | K5: Site Name | L5: Position | M5: Average Power (kW/m) | N5: Annual Energy (kWh/m) | P5: Name | Q5: Rated Capacity (kW) | R5: Required Capacity (kWh) | S5: Cost (£/kW) | T5: Self Discharge Rate
A6: =IF(Input!B45="[Enter Name]","",Input!B45) ->  | B6: =IF(A6<>"",'Tidal Stream 1'!$H$2780,"") ->  | C6: =IF(A6<>"",'Tidal Stream 1'!$H$2781,"") ->  | D6: =IF(A6<>"",'Tidal Stream 1'!$G$2782,"") ->  | F6: =IF(Input!F45="[Enter Name]","",Input!F45) ->  | G6: =IF(F6<>"",'Tidal Barrage 1'!$B$26,"") ->  | H6: =IF(F6<>"",'Tidal Barrage 1'!$B$27,"") ->  | I6: =IF(F6<>"",'Tidal Barrage 1'!$B$23,"") ->  | K6: =IF(Input!J45="[Enter Name]","",Input!J45) ->  | L6: =IF(Input!J46="[Select Value]","",Input!J46) ->  | M6: =IF(K6<>"",'Wave 1'!$B$12,"") ->  | N6: =IF(K6<>"",M6*365*24,"") ->  | P6: =VLOOKUP(LARGE('Decision Matrices'!$B$69:$B$80,1),'Decision Matrices'!$B$69:$C$80,2,FALSE) -> Pumped Hydro | Q6: =Input!B24 -> 0 | R6: =Input!B25 -> 0 | S6: =0.78*(VLOOKUP(P6,'Storage Device Database'!$B$4:$K$15,10,FALSE)) -> 40000 | T6: =VLOOKUP(P6,'Storage Device Database'!$B$4:$M$15,12,FALSE) -> 0
A7: =IF(Input!B55="[Enter Name]","",Input!B55) ->  | B7: =IF(A7<>"",'Tidal Stream 2'!$H$2780,"") ->  | C7: =IF(A7<>"",'Tidal Stream 2'!$H$2781,"") ->  | D7: =IF(A7<>"",'Tidal Stream 2'!$G$2782,"") ->  | F7: =IF(Input!F55="[Enter Name]","",Input!F55) ->  | G7: =IF(F7<>"",'Tidal Barrage 2'!$B$26,"") ->  | H7: =IF(F7<>"",'Tidal Barrage 2'!$B$27,"") ->  | I7: =IF(F7<>"",'Tidal Barrage 2'!$B$23,"") ->  | K7: =IF(Input!J55="[Enter Name]","",Input!J55) ->  | L7: =IF(Input!J56="[Select Value]","",Input!J56) ->  | M7: =IF(K7<>"",'Wave 2'!$B$12,"") ->  | N7: =IF(K7<>"",M7*365*24,"") ->  | P7: =VLOOKUP(LARGE('Decision Matrices'!$B$69:$B$80,2),'Decision Matrices'!$B$69:$C$80,2,FALSE) -> Compressed Air | S7: =0.78*(VLOOKUP(P7,'Storage Device Database'!$B$4:$K$15,10,FALSE)) -> 506.649 | T7: =VLOOKUP(P7,'Storage Device Database'!$B$4:$M$15,12,FALSE) -> 0
A8: =IF(Input!B65="[Enter Name]","",Input!B65) ->  | B8: =IF(A8<>"",'Tidal Stream 3'!$H$2780,"") ->  | C8: =IF(A8<>"",'Tidal Stream 3'!$H$2781,"") ->  | D8: =IF(A8<>"",'Tidal Stream 3'!$G$2782,"") ->  | F8: =IF(Input!F65="[Enter Name]","",Input!F65) ->  | G8: =IF(F8<>"",'Tidal Barrage 3'!$B$26,"") ->  | H8: =IF(F8<>"",'Tidal Barrage 3'!$B$27,"") ->  | I8: =IF(F8<>"",'Tidal Barrage 3'!$B$23,"") ->  | K8: =IF(Input!J65="[Enter Name]","",Input!J65) ->  | L8: =IF(Input!J66="[Select Value]","",Input!J66) ->  | M8: =IF(K8<>"",'Wave 3'!$B$12,"") ->  | N8: =IF(K8<>"",M8*365*24,"") ->  | P8: =VLOOKUP(LARGE('Decision Matrices'!$B$69:$B$80,3),'Decision Matrices'!$B$69:$C$80,2,FALSE) -> Zinc Air | S8: =0.78*(VLOOKUP(P8,'Storage Device Database'!$B$4:$K$15,10,FALSE)) -> 1195.74 | T8: =VLOOKUP(P8,'Storage Device Database'!$B$4:$M$15,12,FALSE) -> 0.007
A9: =IF(Input!B75="[Enter Name]","",Input!B75) ->  | B9: =IF(A9<>"",'Tidal Stream 4'!$H$2780,"") ->  | C9: =IF(A9<>"",'Tidal Stream 4'!$H$2781,"") ->  | D9: =IF(A9<>"",'Tidal Stream 4'!$G$2782,"") ->  | F9: =IF(Input!F75="[Enter Name]","",Input!F66) ->  | G9: =IF(F9<>"",'Tidal Barrage 3'!$B$26,"") ->  | H9: =IF(F9<>"",'Tidal Barrage 3'!$B$27,"") ->  | I9: =IF(F9<>"",'Tidal Barrage 4'!$B$23,"") ->  | K9: =IF(Input!J75="[Enter Name]","",Input!J75) ->  | L9: =IF(Input!J76="[Select Value]","",Input!J76) ->  | M9: =IF(K9<>"",'Wave 4'!$B$12,"") ->  | N9: =IF(K9<>"",M9*365*24,"") -> 
A10: =IF(Input!B85="[Enter Name]","",Input!B85) ->  | B10: =IF(A10<>"",'Tidal Stream 5'!$H$2780,"") ->  | C10: =IF(A10<>"",'Tidal Stream 5'!$H$2781,"") ->  | D10: =IF(A10<>"",'Tidal Stream 5'!$G$2782,"") ->  | F10: =IF(Input!F85="[Enter Name]","",Input!F67) ->  | G10: =IF(F10<>"",'Tidal Barrage 3'!$B$26,"") ->  | H10: =IF(F10<>"",'Tidal Barrage 3'!$B$27,"") ->  | I10: =IF(F10<>"",'Tidal Barrage 5'!$B$23,"") ->  | K10: =IF(Input!J85="[Enter Name]","",Input!J85) ->  | L10: =IF(Input!J86="[Select Value]","",Input!J86) ->  | M10: =IF(K10<>"",'Wave 5'!$B$12,"") ->  | N10: =IF(K10<>"",M10*365*24,"") -> 
A12: Proposed Location and Devices | K12: Proposed Location and Devices
A14: Site Name | B14: Energy per year (kWh/m^2) | C14: Average Power (kW/m^2) | K14: Site Name | L14: Position | M14: Average Power (kW/m) | N14: Annual Energy (kWh/m)
A15: =VLOOKUP((MAX('Decision Matrices'!B5:B9)),'Decision Matrices'!B5:C9,2,FALSE) -> [Enter Name] | B15: =VLOOKUP(A15,A6:D10,3,FALSE) ->  | C15: =VLOOKUP(A15,A6:D10,4,FALSE) ->  | F15: Site Name | G15: =VLOOKUP((MAX('Decision Matrices'!B10:B14)),'Decision Matrices'!B10:C14,2,FALSE) -> [Enter Name] | H15: =VLOOKUP(LARGE(('Decision Matrices'!B10:B14),2),'Decision Matrices'!B10:C14,2,FALSE) -> [Enter Name] | I15: =VLOOKUP(LARGE(('Decision Matrices'!B10:B14),3),'Decision Matrices'!B10:C14,2,FALSE) -> [Enter Name] | K15: =K6 ->  | L15: =VLOOKUP(K15,K6:L10,2,FALSE) ->  | M15: =VLOOKUP(K15,K6:N10,2,FALSE) ->  | N15: =VLOOKUP(K15,K6:N10,3,FALSE) -> 
B17: Name | C17: Rated Power (kW) | D17: Capture Area | F17: Available Energy (MWh) | G17: =VLOOKUP(G15,$F$6:$H$10,3,FALSE) ->  | H17: =VLOOKUP(H15,$F$6:$H$10,3,FALSE) ->  | L17: Name | M17: Rated Power (kW) | N17: Availability
A18: Potential Devices | B18: =VLOOKUP((MAX('Decision Matrices'!B25:B63)),'Decision Matrices'!B25:C63,2,FALSE) -> Oryon Watermill | C18: =VLOOKUP(B18,'Tidal Device Database'!$B$4:$D$42,3,FALSE) -> 50 | D18: =VLOOKUP(B18,'Tidal Device Database'!$B$4:$G$42,5,FALSE) -> 3 | F18: Rated Power (kW) | G18: =VLOOKUP(G15,$F$6:$I$10,4,FALSE) ->  | H18: =VLOOKUP(H15,$F$6:$I$10,4,FALSE) ->  | K18: Potential Devices | L18: =VLOOKUP(LARGE('Decision Matrices'!$B$86:$B$89,1),'Decision Matrices'!$B$86:$C$89,2,FALSE) -> Yam Pro Energy | M18: =VLOOKUP(L18,'Wave Device Database'!$B$3:$G$8,6,FALSE) -> 100 | N18: =VLOOKUP(L18,'Wave Device Database'!$B$3:$D$8,3,FALSE) -> FALSE
B19: =VLOOKUP((LARGE('Decision Matrices'!B25:B63,2)),'Decision Matrices'!B25:C63,2,FALSE) -> ENC-025L | C19: =VLOOKUP(B19,'Tidal Device Database'!$B$4:$D$42,3,FALSE) -> 25 | D19: =VLOOKUP(B19,'Tidal Device Database'!$B$4:$G$42,5,FALSE) -> 2.4 | L19: =VLOOKUP(LARGE('Decision Matrices'!$B$86:$B$89,2),'Decision Matrices'!$B$86:$C$89,2,FALSE) -> Rotary Wave | M19: =VLOOKUP(L19,'Wave Device Database'!$B$3:$G$8,6,FALSE) -> 200 | N19: =VLOOKUP(L19,'Wave Device Database'!$B$3:$D$8,3,FALSE) -> 0
B20: =VLOOKUP((LARGE('Decision Matrices'!B25:B63,3)),'Decision Matrices'!B25:C63,2,FALSE) -> EVG-005H | C20: =VLOOKUP(B20,'Tidal Device Database'!$B$4:$D$42,3,FALSE) -> 5 | D20: =VLOOKUP(B20,'Tidal Device Database'!$B$4:$G$42,5,FALSE) -> 0.75 | L20: =VLOOKUP(LARGE('Decision Matrices'!$B$86:$B$89,3),'Decision Matrices'!$B$86:$C$89,2,FALSE) -> Wave El Buoy | M20: =VLOOKUP(L20,'Wave Device Database'!$B$3:$G$8,6,FALSE) -> 150 | N20: =VLOOKUP(L20,'Wave Device Database'!$B$3:$D$8,3,FALSE) -> 0
T22: .
A24: Financial Comparison | K24: Financial Comparison | P24: Financial Comparison
A26: Tidal Power Option | F26: Tidal Barrage Option | K26: Wave Options | P26: Storage Options
A28: Device | B28: =B18 -> Oryon Watermill | C28: =B19 -> ENC-025L | D28: =B20 -> EVG-005H | K28: Device | L28: =L18 -> Yam Pro Energy | M28: =L19 -> Rotary Wave | N28: =L20 -> Wave El Buoy | P28: Device | Q28: =P6 -> Pumped Hydro | R28: =P7 -> Compressed Air | S28: =P8 -> Zinc Air
A30: Capital Expenditure | F30: Capital Expenditure | K30: Capital Expenditure | P30: Capital Expenditure
A31: Average Cost per kW Installed | B31: =4400*0.85 -> 3740 | F31: Average Cost per kW Installed | G31: 20000 | K31: Average Cost per kW Installed | L31: =0.85*5790 -> 4921.5 | P31: Average Cost per kW Installed | Q31: =S6 -> 40000 | R31: =S7 -> 506.649 | S31: =S8 -> 1195.74
A32: Major Equipment Cost | B32: =0.46*B36 -> 86020 | C32: =0.46*C36 -> 43010 | D32: 8602 | F32: Capital Cost | G32: =(G31*G18)+500000 ->  | H32: =(G31*H18)+500000 ->  | I32: =(G31*I18)+500000 ->  | K32: Major Equipment Cost | L32: =0.46*L36 -> 226389 | M32: =0.46*M36 -> 452778 | N32: 339583.5 | P32: Total Capital Cost | Q32: =$Q$6*Q31 -> 0 | R32: =$Q$6*R31 -> 0 | S32: 0
A33: Civil and Structural Cost | B33: =0.31*B36 -> 57970 | C33: =0.31*C36 -> 28985 | D33: 5797 | F33: Total | G33: =G32 ->  | H33: =SUM(H32:H32) ->  | I33: =SUM(I32:I32) ->  | K33: Civil and Structural Cost | L33: =0.31*L36 -> 152566.5 | M33: =0.31*M36 -> 305133 | N33: 228849.75 | P33: Operating Expenditure
A34: Electrical and Installation | B34: =0.07*B36 -> 13090 | C34: =0.07*C36 -> 6545 | D34: 1309 | K34: Electrical and Installation | L34: =0.07*L36 -> 34450.5 | M34: =0.07*M36 -> 68901 | N34: 51675.75 | P34: Maintenance Cost (@5% Capital) | Q34: =0.05*Q32 -> 0 | R34: =0.05*R32 -> 0 | S34: 0
A35: Indirect Project Costs | B35: =0.16*B36 -> 29920 | C35: =0.16*C36 -> 14960 | D35: 2992 | F35: Maintenance Cost (@1% Capital) | G35: =0.01*G33 ->  | H35: =0.01*H33 ->  | I35: =0.01*I33 ->  | K35: Indirect Project Costs | L35: =0.16*L36 -> 78744 | M35: =0.16*M36 -> 157488 | N35: =0.16*N36 -> 118116 | P35: Lifespan | Q35: =VLOOKUP(Q28,'Storage Device Database'!$B$4:$H$15,7,FALSE) -> 49.2 | R35: =VLOOKUP(R28,'Storage Device Database'!$B$4:$H$15,7,FALSE) -> 30 | S35: =VLOOKUP(S28,'Storage Device Database'!$B$4:$H$15,7,FALSE) -> 8.08
A36: Total | B36: =C18*B31 -> 187000 | C36: =C19*B31 -> 93500 | D36: =C20*B31 -> 18700 | F36: Lifespan | G36: 25 | H36: 25 | I36: 25 | K36: Total | L36: =M18*L31 -> 492150 | M36: =M19*L31 -> 984300 | N36: =M20*L31 -> 738225 | P36: Efficiency | Q36: =(VLOOKUP(Q28,'Storage Device Database'!$B$4:$G$15,6,FALSE))/100 -> 0.7659 | R36: =(VLOOKUP(R28,'Storage Device Database'!$B$4:$G$15,6,FALSE))/100 -> 0.683 | S36: =(VLOOKUP(S28,'Storage Device Database'!$B$4:$G$15,6,FALSE))/100 -> 0.4425
A37: Operating Expenditure | F37: Annual Energy Production (kWh) | G37: =G17*1000 ->  | H37: =H17*1000 ->  | I37: =I17*1000 ->  | K37: Operating Expenditure | P37: Annual Capacity (kWh) | Q37: =R6 -> 0 | R37: =R6 -> 0 | S37: =R6 -> 0
A38: Maintenance Cost (@7% Capital) | B38: =0.07*B32 -> 6021.4 | C38: =0.07*C32 -> 3010.7 | D38: =0.07*D32 -> 602.14 | K38: Maintenance Cost (@5% Capital) | L38: =0.05*L32 -> 11319.45 | M38: =0.05*M32 -> 22638.9 | N38: =0.05*N32 -> 16979.175
A39: Lifespan | B39: =VLOOKUP(B18,'Tidal Device Database'!$B$4:$H$43,7,FALSE) -> 25 | C39: =VLOOKUP(B19,'Tidal Device Database'!$B$4:$H$43,7,FALSE) -> 25 | D39: =VLOOKUP(B20,'Tidal Device Database'!$B$4:$H$43,7,FALSE) -> 25 | F39: Levelised Cost of Energy (£/kWh) | G39: =IF(ISERROR(G37),0,(G33+(G35*G36))/(G37*G36)) -> 0 | H39: =IF(ISERROR(H37),0,(H33+(H35*H36))/(H37*H36)) -> 0 | I39: =IF(ISERROR(I37),0,(I33+(I35*I36))/(I37*I36)) -> 0 | K39: Lifespan | L39: =VLOOKUP(L28,'Wave Device Database'!$B$3:$F$7,5,FALSE) -> 25 | M39: =VLOOKUP(M28,'Wave Device Database'!$B$3:$F$7,5,FALSE) -> 20 | N39: =VLOOKUP(N28,'Wave Device Database'!$B$3:$F$7,5,FALSE) -> 25 | P39: Levelised Cost of Energy (£/kWh) | Q39: =IF(Q37=0,0,(Q32+(Q35*Q34))/(Q35*Q37)) -> 0 | R39: =IF(Q37=0,0,(R32+(R35*R34))/(R35*R37)) -> 0 | S39: =IF(Q37=0,0,(S32+(S35*S34))/(S35*S37)) -> 0
A40: Annual Energy Production (kWh) | B40: =0.3*$B$15*D18 ->  | C40: =0.3*$B$15*D19 ->  | D40: =0.3*$B$15*D20 ->  | K40: Annual Energy Production (kWh) | L40: =(M18*365*24)*N18 -> 0 | M40: =(M19*365*24)*N19 -> 0 | N40: =(M20*365*24)*N20 -> 0
A42: Levelised Cost of Energy (£/kWh) | B42: =IF(ISERROR(B40),0,(B36+(B39*B38))/(B39*B40)) -> 0 | C42: =IF(ISERROR(C40),0,(C36+(C39*C38))/(C39*C40)) -> 0 | D42: 0 | K42: Levelised Cost of Energy (£/kWh) | L42: =IF(L40=0,0,(L35+(L38*L37))/(L38*L40)) -> 0 | M42: =IF(L40=0,0,(M35+(M38*M37))/(M38*M40)) -> 0 | N42: =IF(L40=0,0,(N35+(N38*N37))/(N38*N40)) -> 0
A46: Summary
A48: Levelised Cost of Energy | B48: Method/Location | C48: Type
A49: =B42 -> 0 | B49: =B28 -> Oryon Watermill | C49: Tidal Strean
A50: =C42 -> 0 | B50: =C28 -> ENC-025L
A51: =D42 -> 0 | B51: =D28 -> EVG-005H
A52: =G39 -> 0 | B52: =G15 -> [Enter Name] | C52: Tidal Range
A53: =H39 -> 0 | B53: =H15 -> [Enter Name]
A54: =I39 -> 0 | B54: =I15 -> [Enter Name]
A55: =L42 -> 0 | B55: =L28 -> Yam Pro Energy | C55: Wave
A56: =M42 -> 0 | B56: =M28 -> Rotary Wave
A57: =N42 -> 0 | B57: =N28 -> Wave El Buoy
A58: =Q39 -> 0 | B58: =Q28 -> Pumped Hydro | C58: Storage
A59: =R39 -> 0 | B59: =R28 -> Compressed Air
A60: =S39 -> 0 | B60: =S28 -> Zinc Air
A62: Recommeded Options
A64: Generation Method | B64: Levelised Cost of Energy (£/kWh)
A65: =VLOOKUP((IF(MIN(A49:A57)=0,SMALL(A49:A57,2),MIN(A49:A57))),A49:B60,2,FALSE) -> Oryon Watermill | B65: =VLOOKUP((IF(MIN(A49:A57)=0,SMALL(A49:A57,2),MIN(A49:A57))),A49:B60,1,FALSE) -> 0
A67: Storage Method | B67: Levelised Cost of Energy
A68: =VLOOKUP(MIN(A58:A60),A58:B60,2,FALSE) -> Pumped Hydro | B68: =VLOOKUP(MIN(A58:A60),A58:B60,1,FALSE) -> 0

Sheet Decision Matrices
A3: No. | B3: =M3 -> Score | D3: Criteria | E3: ='Location Database'!D2 -> Assessed Resource | F3: ='Location Database'!E2 -> Proximity to Load (Shore) | G3: ='Location Database'!F2 -> Wave Height | H3: ='Location Database'!G2 -> Average Water Depth | I3: ='Location Database'!H2 -> Peak Flow Rate | J3: ='Location Database'!I2 -> Tidal Range | K3: ='Location Database'!J2 -> Seabed Topography | L3: ='Location Database'!K2 -> Accessibility | M3: Score
C4: Location | D4: Type | E4: 4 | F4: 3 | G4: 4 | H4: 3 | I4: 4 | J4: 4 | K4: 2 | L4: 3
A5: ='Location Database'!A4 -> 1 | B5: =M5 -> 0 | C5: ='Location Database'!B4 -> [Enter Name] | D5: ='Location Database'!C4 -> Tidal Stream | E5: =IF('Location Database'!D4="",0,(VLOOKUP('Location Database'!D4,'Location Database'!$F$30:$G$34,2,FALSE))) -> 0 | F5: =IF((AND('Location Database'!E4<>"",'Location Database'!E4<>"[Select Value]")),(VLOOKUP('Location Database'!E4,'Location Database'!$D$36:$E$40,2,FALSE)),0) -> 0 | G5: =IF((AND('Location Database'!F4<>"",'Location Database'!F4<>"[Select Value]")),(VLOOKUP('Location Database'!F4,'Location Database'!$D$42:$E$47,2,FALSE)),0) -> 0 | H5: =IF((AND('Location Database'!G4<>"",'Location Database'!G4<>"[Select Value]")),(VLOOKUP('Location Database'!G4,'Location Database'!$D$49:$E$53,2,FALSE)),0) -> 0 | I5: =IF((AND('Location Database'!H4<>"",'Location Database'!H4<>"[Select Value]")),(VLOOKUP('Location Database'!H4,'Location Database'!$D$55:$E$60,2,FALSE)),0) -> 0 | J5: =IF((AND('Location Database'!I4<>"",'Location Database'!I4<>"[Select Value]")),(VLOOKUP('Location Database'!I4,'Location Database'!$D$62:$E$67,2,FALSE)),0) -> 0 | K5: =IF((AND('Location Database'!J4<>"",'Location Database'!J4<>"[Select Value]")),(VLOOKUP('Location Database'!J4,'Location Database'!$A$30:$B$34,2,FALSE)),0) -> 0 | L5: =IF((AND('Location Database'!K4<>"",'Location Database'!K4<>"[Select Value]")),(VLOOKUP('Location Database'!K4,'Location Database'!$A$36:$B$40,2,FALSE)),0) -> 0 | M5: =SUMPRODUCT(E5:L5,$E$4:$L$4) -> 0
A6: ='Location Database'!A5 -> 2 | B6: =M6 -> 0 | C6: ='Location Database'!B5 -> [Enter Name] | E6: =IF('Location Database'!D5="",0,(VLOOKUP('Location Database'!D5,'Location Database'!$F$30:$G$34,2,FALSE))) -> 0 | F6: =IF((AND('Location Database'!E5<>"",'Location Database'!E5<>"[Select Value]")),(VLOOKUP('Location Database'!E5,'Location Database'!$D$36:$E$40,2,FALSE)),0) -> 0 | G6: =IF((AND('Location Database'!F5<>"",'Location Database'!F5<>"[Select Value]")),(VLOOKUP('Location Database'!F5,'Location Database'!$D$42:$E$47,2,FALSE)),0) -> 0 | H6: =IF((AND('Location Database'!G5<>"",'Location Database'!G5<>"[Select Value]")),(VLOOKUP('Location Database'!G5,'Location Database'!$D$49:$E$53,2,FALSE)),0) -> 0 | I6: =IF((AND('Location Database'!H5<>"",'Location Database'!H5<>"[Select Value]")),(VLOOKUP('Location Database'!H5,'Location Database'!$D$55:$E$60,2,FALSE)),0) -> 0 | J6: =IF((AND('Location Database'!I5<>"",'Location Database'!I5<>"[Select Value]")),(VLOOKUP('Location Database'!I5,'Location Database'!$D$62:$E$67,2,FALSE)),0) -> 0 | K6: =IF((AND('Location Database'!J5<>"",'Location Database'!J5<>"[Select Value]")),(VLOOKUP('Location Database'!J5,'Location Database'!$A$30:$B$34,2,FALSE)),0) -> 0 | L6: =IF((AND('Location Database'!K5<>"",'Location Database'!K5<>"[Select Value]")),(VLOOKUP('Location Database'!K5,'Location Database'!$A$36:$B$40,2,FALSE)),0) -> 0 | M6: =SUMPRODUCT(E6:L6,$E$4:$L$4) -> 0
A7: ='Location Database'!A6 -> 3 | B7: 0 | C7: ='Location Database'!B6 -> [Enter Name] | E7: =IF('Location Database'!D6="",0,(VLOOKUP('Location Database'!D6,'Location Database'!$F$30:$G$34,2,FALSE))) -> 0 | F7: =IF((AND('Location Database'!E6<>"",'Location Database'!E6<>"[Select Value]")),(VLOOKUP('Location Database'!E6,'Location Database'!$D$36:$E$40,2,FALSE)),0) -> 0 | G7: =IF((AND('Location Database'!F6<>"",'Location Database'!F6<>"[Select Value]")),(VLOOKUP('Location Database'!F6,'Location Database'!$D$42:$E$47,2,FALSE)),0) -> 0 | H7: =IF((AND('Location Database'!G6<>"",'Location Database'!G6<>"[Select Value]")),(VLOOKUP('Location Database'!G6,'Location Database'!$D$49:$E$53,2,FALSE)),0) -> 0 | I7: =IF((AND('Location Database'!H6<>"",'Location Database'!H6<>"[Select Value]")),(VLOOKUP('Location Database'!H6,'Location Database'!$D$55:$E$60,2,FALSE)),0) -> 0 | J7: =IF((AND('Location Database'!I6<>"",'Location Database'!I6<>"[Select Value]")),(VLOOKUP('Location Database'!I6,'Location Database'!$D$62:$E$67,2,FALSE)),0) -> 0 | K7: =IF((AND('Location Database'!J6<>"",'Location Database'!J6<>"[Select Value]")),(VLOOKUP('Location Database'!J6,'Location Database'!$A$30:$B$34,2,FALSE)),0) -> 0 | L7: =IF((AND('Location Database'!K6<>"",'Location Database'!K6<>"[Select Value]")),(VLOOKUP('Location Database'!K6,'Location Database'!$A$36:$B$40,2,FALSE)),0) -> 0 | M7: 0
A8: ='Location Database'!A7 -> 4 | B8: 0 | C8: ='Location Database'!B7 -> [Enter Name] | E8: =IF('Location Database'!D7="",0,(VLOOKUP('Location Database'!D7,'Location Database'!$F$30:$G$34,2,FALSE))) -> 0 | F8: =IF((AND('Location Database'!E7<>"",'Location Database'!E7<>"[Select Value]")),(VLOOKUP('Location Database'!E7,'Location Database'!$D$36:$E$40,2,FALSE)),0) -> 0 | G8: =IF((AND('Location Database'!F7<>"",'Location Database'!F7<>"[Select Value]")),(VLOOKUP('Location Database'!F7,'Location Database'!$D$42:$E$47,2,FALSE)),0) -> 0 | H8: =IF((AND('Location Database'!G7<>"",'Location Database'!G7<>"[Select Value]")),(VLOOKUP('Location Database'!G7,'Location Database'!$D$49:$E$53,2,FALSE)),0) -> 0 | I8: =IF((AND('Location Database'!H7<>"",'Location Database'!H7<>"[Select Value]")),(VLOOKUP('Location Database'!H7,'Location Database'!$D$55:$E$60,2,FALSE)),0) -> 0 | J8: =IF((AND('Location Database'!I7<>"",'Location Database'!I7<>"[Select Value]")),(VLOOKUP('Location Database'!I7,'Location Database'!$D$62:$E$67,2,FALSE)),0) -> 0 | K8: =IF((AND('Location Database'!J7<>"",'Location Database'!J7<>"[Select Value]")),(VLOOKUP('Location Database'!J7,'Location Database'!$A$30:$B$34,2,FALSE)),0) -> 0 | L8: =IF((AND('Location Database'!K7<>"",'Location Database'!K7<>"[Select Value]")),(VLOOKUP('Location Database'!K7,'Location Database'!$A$36:$B$40,2,FALSE)),0) -> 0 | M8: 0
A9: ='Location Database'!A8 -> 5 | B9: 0 | C9: ='Location Database'!B8 -> [Enter Name] | E9: =IF('Location Database'!D8="",0,(VLOOKUP('Location Database'!D8,'Location Database'!$F$30:$G$34,2,FALSE))) -> 0 | F9: =IF((AND('Location Database'!E8<>"",'Location Database'!E8<>"[Select Value]")),(VLOOKUP('Location Database'!E8,'Location Database'!$D$36:$E$40,2,FALSE)),0) -> 0 | G9: =IF((AND('Location Database'!F8<>"",'Location Database'!F8<>"[Select Value]")),(VLOOKUP('Location Database'!F8,'Location Database'!$D$42:$E$47,2,FALSE)),0) -> 0 | H9: =IF((AND('Location Database'!G8<>"",'Location Database'!G8<>"[Select Value]")),(VLOOKUP('Location Database'!G8,'Location Database'!$D$49:$E$53,2,FALSE)),0) -> 0 | I9: =IF((AND('Location Database'!H8<>"",'Location Database'!H8<>"[Select Value]")),(VLOOKUP('Location Database'!H8,'Location Database'!$D$55:$E$60,2,FALSE)),0) -> 0 | J9: =IF((AND('Location Database'!I8<>"",'Location Database'!I8<>"[Select Value]")),(VLOOKUP('Location Database'!I8,'Location Database'!$D$62:$E$67,2,FALSE)),0) -> 0 | K9: =IF((AND('Location Database'!J8<>"",'Location Database'!J8<>"[Select Value]")),(VLOOKUP('Location Database'!J8,'Location Database'!$A$30:$B$34,2,FALSE)),0) -> 0 | L9: =IF((AND('Location Database'!K8<>"",'Location Database'!K8<>"[Select Value]")),(VLOOKUP('Location Database'!K8,'Location Database'!$A$36:$B$40,2,FALSE)),0) -> 0 | M9: 0
A10: ='Location Database'!A9 -> 6 | B10: 0 | C10: ='Location Database'!B9 -> [Enter Name] | D10: ='Location Database'!C9 -> Tidal Barrage | E10: =IF('Location Database'!D9="",0,(VLOOKUP('Location Database'!D9,'Location Database'!$H$30:$I$34,2,FALSE))) -> 0 | F10: =IF((AND('Location Database'!E9<>"",'Location Database'!E9<>"[Select Value]")),(VLOOKUP('Location Database'!E9,'Location Database'!$D$36:$E$40,2,FALSE)),0) -> 0 | G10: =IF((AND('Location Database'!F9<>"",'Location Database'!F9<>"[Select Value]")),(VLOOKUP('Location Database'!F9,'Location Database'!$D$42:$E$47,2,FALSE)),0) -> 0 | H10: =IF((AND('Location Database'!G9<>"",'Location Database'!G9<>"[Select Value]")),(VLOOKUP('Location Database'!G9,'Location Database'!$D$49:$E$53,2,FALSE)),0) -> 0 | I10: =IF((AND('Location Database'!H9<>"",'Location Database'!H9<>"[Select Value]")),(VLOOKUP('Location Database'!H9,'Location Database'!$D$55:$E$60,2,FALSE)),0) -> 0 | J10: =IF((AND('Location Database'!I9<>"",'Location Database'!I9<>"[Select Value]")),(VLOOKUP('Location Database'!I9,'Location Database'!$D$62:$E$67,2,FALSE)),0) -> 0 | K10: =IF((AND('Location Database'!J9<>"",'Location Database'!J9<>"[Select Value]")),(VLOOKUP('Location Database'!J9,'Location Database'!$A$30:$B$34,2,FALSE)),0) -> 0 | L10: =IF((AND('Location Database'!K9<>"",'Location Database'!K9<>"[Select Value]")),(VLOOKUP('Location Database'!K9,'Location Database'!$A$36:$B$40,2,FALSE)),0) -> 0 | M10: 0
A11: ='Location Database'!A10 -> 7 | B11: 0 | C11: ='Location Database'!B10 -> [Enter Name] | E11: =IF('Location Database'!D10="",0,(VLOOKUP('Location Database'!D10,'Location Database'!$H$30:$I$34,2,FALSE))) -> 0 | F11: =IF((AND('Location Database'!E10<>"",'Location Database'!E10<>"[Select Value]")),(VLOOKUP('Location Database'!E10,'Location Database'!$D$36:$E$40,2,FALSE)),0) -> 0 | G11: =IF((AND('Location Database'!F10<>"",'Location Database'!F10<>"[Select Value]")),(VLOOKUP('Location Database'!F10,'Location Database'!$D$42:$E$47,2,FALSE)),0) -> 0 | H11: =IF((AND('Location Database'!G10<>"",'Location Database'!G10<>"[Select Value]")),(VLOOKUP('Location Database'!G10,'Location Database'!$D$49:$E$53,2,FALSE)),0) -> 0 | I11: =IF((AND('Location Database'!H10<>"",'Location Database'!H10<>"[Select Value]")),(VLOOKUP('Location Database'!H10,'Location Database'!$D$55:$E$60,2,FALSE)),0) -> 0 | J11: =IF((AND('Location Database'!I10<>"",'Location Database'!I10<>"[Select Value]")),(VLOOKUP('Location Database'!I10,'Location Database'!$D$62:$E$67,2,FALSE)),0) -> 0 | K11: =IF((AND('Location Database'!J10<>"",'Location Database'!J10<>"[Select Value]")),(VLOOKUP('Location Database'!J10,'Location Database'!$A$30:$B$34,2,FALSE)),0) -> 0 | L11: =IF((AND('Location Database'!K10<>"",'Location Database'!K10<>"[Select Value]")),(VLOOKUP('Location Database'!K10,'Location Database'!$A$36:$B$40,2,FALSE)),0) -> 0 | M11: 0
A12: ='Location Database'!A11 -> 8 | B12: 0 | C12: ='Location Database'!B11 -> [Enter Name] | E12: =IF('Location Database'!D11="",0,(VLOOKUP('Location Database'!D11,'Location Database'!$H$30:$I$34,2,FALSE))) -> 0 | F12: =IF((AND('Location Database'!E11<>"",'Location Database'!E11<>"[Select Value]")),(VLOOKUP('Location Database'!E11,'Location Database'!$D$36:$E$40,2,FALSE)),0) -> 0 | G12: =IF((AND('Location Database'!F11<>"",'Location Database'!F11<>"[Select Value]")),(VLOOKUP('Location Database'!F11,'Location Database'!$D$42:$E$47,2,FALSE)),0) -> 0 | H12: =IF((AND('Location Database'!G11<>"",'Location Database'!G11<>"[Select Value]")),(VLOOKUP('Location Database'!G11,'Location Database'!$D$49:$E$53,2,FALSE)),0) -> 0 | I12: =IF((AND('Location Database'!H11<>"",'Location Database'!H11<>"[Select Value]")),(VLOOKUP('Location Database'!H11,'Location Database'!$D$55:$E$60,2,FALSE)),0) -> 0 | J12: =IF((AND('Location Database'!I11<>"",'Location Database'!I11<>"[Select Value]")),(VLOOKUP('Location Database'!I11,'Location Database'!$D$62:$E$67,2,FALSE)),0) -> 0 | K12: =IF((AND('Location Database'!J11<>"",'Location Database'!J11<>"[Select Value]")),(VLOOKUP('Location Database'!J11,'Location Database'!$A$30:$B$34,2,FALSE)),0) -> 0 | L12: =IF((AND('Location Database'!K11<>"",'Location Database'!K11<>"[Select Value]")),(VLOOKUP('Location Database'!K11,'Location Database'!$A$36:$B$40,2,FALSE)),0) -> 0 | M12: 0
A13: ='Location Database'!A12 -> 9 | B13: 0 | C13: ='Location Database'!B12 -> [Enter Name] | E13: =IF('Location Database'!D12="",0,(VLOOKUP('Location Database'!D12,'Location Database'!$H$30:$I$34,2,FALSE))) -> 0 | F13: =IF((AND('Location Database'!E12<>"",'Location Database'!E12<>"[Select Value]")),(VLOOKUP('Location Database'!E12,'Location Database'!$D$36:$E$40,2,FALSE)),0) -> 0 | G13: =IF((AND('Location Database'!F12<>"",'Location Database'!F12<>"[Select Value]")),(VLOOKUP('Location Database'!F12,'Location Database'!$D$42:$E$47,2,FALSE)),0) -> 0 | H13: =IF((AND('Location Database'!G12<>"",'Location Database'!G12<>"[Select Value]")),(VLOOKUP('Location Database'!G12,'Location Database'!$D$49:$E$53,2,FALSE)),0) -> 0 | I13: =IF((AND('Location Database'!H12<>"",'Location Database'!H12<>"[Select Value]")),(VLOOKUP('Location Database'!H12,'Location Database'!$D$55:$E$60,2,FALSE)),0) -> 0 | J13: =IF((AND('Location Database'!I12<>"",'Location Database'!I12<>"[Select Value]")),(VLOOKUP('Location Database'!I12,'Location Database'!$D$62:$E$67,2,FALSE)),0) -> 0 | K13: =IF((AND('Location Database'!J12<>"",'Location Database'!J12<>"[Select Value]")),(VLOOKUP('Location Database'!J12,'Location Database'!$A$30:$B$34,2,FALSE)),0) -> 0 | L13: =IF((AND('Location Database'!K12<>"",'Location Database'!K12<>"[Select Value]")),(VLOOKUP('Location Database'!K12,'Location Database'!$A$36:$B$40,2,FALSE)),0) -> 0 | M13: 0
A14: ='Location Database'!A13 -> 10 | B14: 0 | C14: ='Location Database'!B13 -> [Enter Name] | E14: =IF('Location Database'!D13="",0,(VLOOKUP('Location Database'!D13,'Location Database'!$H$30:$I$34,2,FALSE))) -> 0 | F14: =IF((AND('Location Database'!E13<>"",'Location Database'!E13<>"[Select Value]")),(VLOOKUP('Location Database'!E13,'Location Database'!$D$36:$E$40,2,FALSE)),0) -> 0 | G14: =IF((AND('Location Database'!F13<>"",'Location Database'!F13<>"[Select Value]")),(VLOOKUP('Location Database'!F13,'Location Database'!$D$42:$E$47,2,FALSE)),0) -> 0 | H14: =IF((AND('Location Database'!G13<>"",'Location Database'!G13<>"[Select Value]")),(VLOOKUP('Location Database'!G13,'Location Database'!$D$49:$E$53,2,FALSE)),0) -> 0 | I14: =IF((AND('Location Database'!H13<>"",'Location Database'!H13<>"[Select Value]")),(VLOOKUP('Location Database'!H13,'Location Database'!$D$55:$E$60,2,FALSE)),0) -> 0 | J14: =IF((AND('Location Database'!I13<>"",'Location Database'!I13<>"[Select Value]")),(VLOOKUP('Location Database'!I13,'Location Database'!$D$62:$E$67,2,FALSE)),0) -> 0 | K14: =IF((AND('Location Database'!J13<>"",'Location Database'!J13<>"[Select Value]")),(VLOOKUP('Location Database'!J13,'Location Database'!$A$30:$B$34,2,FALSE)),0) -> 0 | L14: =IF((AND('Location Database'!K13<>"",'Location Database'!K13<>"[Select Value]")),(VLOOKUP('Location Database'!K13,'Location Database'!$A$36:$B$40,2,FALSE)),0) -> 0 | M14: 0
A15: ='Location Database'!A14 -> 11 | B15: 0 | C15: =Input!J45 -> [Enter Name] | D15: ='Location Database'!C14 -> Wave | E15: =IF('Location Database'!D14="",0,(VLOOKUP('Location Database'!D14,'Location Database'!$D$30:$E$34,2,FALSE))) -> 0 | F15: =IF((AND('Location Database'!E14<>"",'Location Database'!E14<>"[Select Value]")),(VLOOKUP('Location Database'!E14,'Location Database'!$D$36:$E$40,2,FALSE)),0) -> 0 | G15: =IF((AND('Location Database'!F14<>"",'Location Database'!F14<>"[Select Value]")),(VLOOKUP('Location Database'!F14,'Location Database'!$D$42:$E$47,2,FALSE)),0) -> 0 | H15: =IF((AND('Location Database'!G14<>"",'Location Database'!G14<>"[Select Value]")),(VLOOKUP('Location Database'!G14,'Location Database'!$D$49:$E$53,2,FALSE)),0) -> 0 | I15: =IF((AND('Location Database'!H14<>"",'Location Database'!H14<>"[Select Value]")),(VLOOKUP('Location Database'!H14,'Location Database'!$D$55:$E$60,2,FALSE)),0) -> 0 | J15: =IF((AND('Location Database'!I14<>"",'Location Database'!I14<>"[Select Value]")),(VLOOKUP('Location Database'!I14,'Location Database'!$D$62:$E$67,2,FALSE)),0) -> 0 | K15: =IF((AND('Location Database'!J14<>"",'Location Database'!J14<>"[Select Value]")),(VLOOKUP('Location Database'!J14,'Location Database'!$A$30:$B$34,2,FALSE)),0) -> 0 | L15: =IF((AND('Location Database'!K14<>"",'Location Database'!K14<>"[Select Value]")),(VLOOKUP('Location Database'!K14,'Location Database'!$A$36:$B$40,2,FALSE)),0) -> 0 | M15: 0
A16: ='Location Database'!A15 -> 12 | B16: 0 | C16: =Input!J55 -> [Enter Name] | E16: =IF('Location Database'!D15="",0,(VLOOKUP('Location Database'!D15,'Location Database'!$D$30:$E$34,2,FALSE))) -> 0 | F16: =IF((AND('Location Database'!E15<>"",'Location Database'!E15<>"[Select Value]")),(VLOOKUP('Location Database'!E15,'Location Database'!$D$36:$E$40,2,FALSE)),0) -> 0 | G16: =IF((AND('Location Database'!F15<>"",'Location Database'!F15<>"[Select Value]")),(VLOOKUP('Location Database'!F15,'Location Database'!$D$42:$E$47,2,FALSE)),0) -> 0 | H16: =IF((AND('Location Database'!G15<>"",'Location Database'!G15<>"[Select Value]")),(VLOOKUP('Location Database'!G15,'Location Database'!$D$49:$E$53,2,FALSE)),0) -> 0 | I16: =IF((AND('Location Database'!H15<>"",'Location Database'!H15<>"[Select Value]")),(VLOOKUP('Location Database'!H15,'Location Database'!$D$55:$E$60,2,FALSE)),0) -> 0 | J16: =IF((AND('Location Database'!I15<>"",'Location Database'!I15<>"[Select Value]")),(VLOOKUP('Location Database'!I15,'Location Database'!$D$62:$E$67,2,FALSE)),0) -> 0 | K16: =IF((AND('Location Database'!J15<>"",'Location Database'!J15<>"[Select Value]")),(VLOOKUP('Location Database'!J15,'Location Database'!$A$30:$B$34,2,FALSE)),0) -> 0 | L16: =IF((AND('Location Database'!K15<>"",'Location Database'!K15<>"[Select Value]")),(VLOOKUP('Location Database'!K15,'Location Database'!$A$36:$B$40,2,FALSE)),0) -> 0 | M16: =SUMPRODUCT(E16:L16,$E$4:$L$4) -> 0
A17: ='Location Database'!A16 -> 13 | B17: 0 | C17: =Input!J65 -> [Enter Name] | E17: =IF('Location Database'!D16="",0,(VLOOKUP('Location Database'!D16,'Location Database'!$D$30:$E$34,2,FALSE))) -> 0 | F17: =IF((AND('Location Database'!E16<>"",'Location Database'!E16<>"[Select Value]")),(VLOOKUP('Location Database'!E16,'Location Database'!$D$36:$E$40,2,FALSE)),0) -> 0 | G17: =IF((AND('Location Database'!F16<>"",'Location Database'!F16<>"[Select Value]")),(VLOOKUP('Location Database'!F16,'Location Database'!$D$42:$E$47,2,FALSE)),0) -> 0 | H17: =IF((AND('Location Database'!G16<>"",'Location Database'!G16<>"[Select Value]")),(VLOOKUP('Location Database'!G16,'Location Database'!$D$49:$E$53,2,FALSE)),0) -> 0 | I17: =IF((AND('Location Database'!H16<>"",'Location Database'!H16<>"[Select Value]")),(VLOOKUP('Location Database'!H16,'Location Database'!$D$55:$E$60,2,FALSE)),0) -> 0 | J17: =IF((AND('Location Database'!I16<>"",'Location Database'!I16<>"[Select Value]")),(VLOOKUP('Location Database'!I16,'Location Database'!$D$62:$E$67,2,FALSE)),0) -> 0 | K17: =IF((AND('Location Database'!J16<>"",'Location Database'!J16<>"[Select Value]")),(VLOOKUP('Location Database'!J16,'Location Database'!$A$30:$B$34,2,FALSE)),0) -> 0 | L17: =IF((AND('Location Database'!K16<>"",'Location Database'!K16<>"[Select Value]")),(VLOOKUP('Location Database'!K16,'Location Database'!$A$36:$B$40,2,FALSE)),0) -> 0 | M17: 0
A18: ='Location Database'!A17 -> 14 | B18: 0 | C18: =Input!J75 -> [Enter Name] | E18: =IF('Location Database'!D17="",0,(VLOOKUP('Location Database'!D17,'Location Database'!$D$30:$E$34,2,FALSE))) -> 0 | F18: =IF((AND('Location Database'!E17<>"",'Location Database'!E17<>"[Select Value]")),(VLOOKUP('Location Database'!E17,'Location Database'!$D$36:$E$40,2,FALSE)),0) -> 0 | G18: =IF((AND('Location Database'!F17<>"",'Location Database'!F17<>"[Select Value]")),(VLOOKUP('Location Database'!F17,'Location Database'!$D$42:$E$47,2,FALSE)),0) -> 0 | H18: =IF((AND('Location Database'!G17<>"",'Location Database'!G17<>"[Select Value]")),(VLOOKUP('Location Database'!G17,'Location Database'!$D$49:$E$53,2,FALSE)),0) -> 0 | I18: =IF((AND('Location Database'!H17<>"",'Location Database'!H17<>"[Select Value]")),(VLOOKUP('Location Database'!H17,'Location Database'!$D$55:$E$60,2,FALSE)),0) -> 0 | J18: =IF((AND('Location Database'!I17<>"",'Location Database'!I17<>"[Select Value]")),(VLOOKUP('Location Database'!I17,'Location Database'!$D$62:$E$67,2,FALSE)),0) -> 0 | K18: =IF((AND('Location Database'!J17<>"",'Location Database'!J17<>"[Select Value]")),(VLOOKUP('Location Database'!J17,'Location Database'!$A$30:$B$34,2,FALSE)),0) -> 0 | L18: =IF((AND('Location Database'!K17<>"",'Location Database'!K17<>"[Select Value]")),(VLOOKUP('Location Database'!K17,'Location Database'!$A$36:$B$40,2,FALSE)),0) -> 0 | M18: 0
A19: ='Location Database'!A18 -> 15 | B19: 0 | C19: =Input!J85 -> [Enter Name] | E19: =IF('Location Database'!D18="",0,(VLOOKUP('Location Database'!D18,'Location Database'!$D$30:$E$34,2,FALSE))) -> 0 | F19: =IF((AND('Location Database'!E18<>"",'Location Database'!E18<>"[Select Value]")),(VLOOKUP('Location Database'!E18,'Location Database'!$D$36:$E$40,2,FALSE)),0) -> 0 | G19: =IF((AND('Location Database'!F18<>"",'Location Database'!F18<>"[Select Value]")),(VLOOKUP('Location Database'!F18,'Location Database'!$D$42:$E$47,2,FALSE)),0) -> 0 | H19: =IF((AND('Location Database'!G18<>"",'Location Database'!G18<>"[Select Value]")),(VLOOKUP('Location Database'!G18,'Location Database'!$D$49:$E$53,2,FALSE)),0) -> 0 | I19: =IF((AND('Location Database'!H18<>"",'Location Database'!H18<>"[Select Value]")),(VLOOKUP('Location Database'!H18,'Location Database'!$D$55:$E$60,2,FALSE)),0) -> 0 | J19: =IF((AND('Location Database'!I18<>"",'Location Database'!I18<>"[Select Value]")),(VLOOKUP('Location Database'!I18,'Location Database'!$D$62:$E$67,2,FALSE)),0) -> 0 | K19: =IF((AND('Location Database'!J18<>"",'Location Database'!J18<>"[Select Value]")),(VLOOKUP('Location Database'!J18,'Location Database'!$A$30:$B$34,2,FALSE)),0) -> 0 | L19: =IF((AND('Location Database'!K18<>"",'Location Database'!K18<>"[Select Value]")),(VLOOKUP('Location Database'!K18,'Location Database'!$A$36:$B$40,2,FALSE)),0) -> 0 | M19: 0
A21: Tidal Device Decision Matrix
A23: No. | B23: =P23 -> Score | D23: Criteria | E23: ='Tidal Device Database'!I2 -> Rated capacity | F23: ='Tidal Device Database'!J2 -> Required Flow Velocity | G23: ='Tidal Device Database'!K2 -> Operating Water Depth | H23: ='Tidal Device Database'!L2 -> Installation Complexity | I23: ='Tidal Device Database'!M2 -> Lifespan | J23: ='Tidal Device Database'!N2 -> Primary Seabed Attachment | K23: ='Tidal Device Database'!O2 -> Planned Inspection/Maintenance Period | L23: ='Tidal Device Database'!P2 -> Maintenance Complexity | M23: ='Tidal Device Database'!Q2 -> Access Complexity | N23: ='Tidal Device Database'!R2 -> Shore Connection | O23: ='Tidal Device Database'!S2 -> Technology Readiness Level | P23: Score
C24: ='Tidal Device Database'!B2 -> Name | D24: ='Tidal Device Database'!C2 -> Type | E24: 3 | F24: 3 | G24: =IF(Input!B19="YES",2,5) -> 5 | H24: 1 | I24: 4 | J24: 4 | K24: 2 | L24: 3 | M24: 4 | N24: 2 | O24: 5
A25: ='Tidal Device Database'!A4 -> 1 | B25: =P25 -> 103 | C25: ='Tidal Device Database'!B4 -> ANDRITZ HYDRO Hammerfest HS1000 | D25: ='Tidal Device Database'!C4 -> Horizontal Axis | E25: =IF('Tidal Device Database'!I4="",0,(VLOOKUP('Tidal Device Database'!I4,'Tidal Device Database'!$A$131:$B$135,2,FALSE))) -> 2 | F25: =IF('Tidal Device Database'!J4="",0,(VLOOKUP('Tidal Device Database'!J4,'Tidal Device Database'!$A$137:$B$141,2,FALSE))) -> 4 | G25: =IF('Tidal Device Database'!K4="",0,(VLOOKUP('Tidal Device Database'!K4,'Tidal Device Database'!$A$143:$B$147,2,FALSE))) -> 1 | H25: =IF('Tidal Device Database'!L4="",0,(VLOOKUP('Tidal Device Database'!L4,'Tidal Device Database'!$A$69:$B$73,2,FALSE))) -> 2 | I25: =IF('Tidal Device Database'!M4="",0,(VLOOKUP('Tidal Device Database'!M4,'Tidal Device Database'!$A$75:$B$79,2,FALSE))) -> 4 | J25: =IF('Tidal Device Database'!N4="",0,(VLOOKUP('Tidal Device Database'!N4,'Tidal Device Database'!$A$81:$B$85,2,FALSE))) -> 3 | K25: =IF('Tidal Device Database'!O4="",0,(VLOOKUP('Tidal Device Database'!O4,'Tidal Device Database'!$A$87:$B$91,2,FALSE))) -> 5 | L25: =IF('Tidal Device Database'!P4="",0,(VLOOKUP('Tidal Device Database'!P4,'Tidal Device Database'!$A$93:$B$97,2,FALSE))) -> 2 | M25: =IF('Tidal Device Database'!Q4="",0,(VLOOKUP('Tidal Device Database'!Q4,'Tidal Device Database'!$A$99:$B$103,2,FALSE))) -> 3 | N25: =IF('Tidal Device Database'!R4="",0,(VLOOKUP('Tidal Device Database'!R4,'Tidal Device Database'!$A$115:$B$119,2,FALSE))) -> 1 | O25: =IF('Tidal Device Database'!S4="",0,(VLOOKUP('Tidal Device Database'!S4,'Tidal Device Database'!$A$105:$B$109,2,FALSE))) -> 4 | P25: =SUMPRODUCT(E25:O25,$E$24:$O$24) -> 103
A26: ='Tidal Device Database'!A5 -> 2 | B26: 111 | C26: ='Tidal Device Database'!B5 -> ANDRITZ HYDRO Hammerfest HS300 | D26: ='Tidal Device Database'!C5 -> Horizontal Axis | E26: =IF('Tidal Device Database'!I5="",0,(VLOOKUP('Tidal Device Database'!I5,'Tidal Device Database'!$A$131:$B$135,2,FALSE))) -> 3 | F26: =IF('Tidal Device Database'!J5="",0,(VLOOKUP('Tidal Device Database'!J5,'Tidal Device Database'!$A$137:$B$141,2,FALSE))) -> 4 | G26: =IF('Tidal Device Database'!K5="",0,(VLOOKUP('Tidal Device Database'!K5,'Tidal Device Database'!$A$143:$B$147,2,FALSE))) -> 1 | H26: =IF('Tidal Device Database'!L5="",0,(VLOOKUP('Tidal Device Database'!L5,'Tidal Device Database'!$A$69:$B$73,2,FALSE))) -> 2 | I26: =IF('Tidal Device Database'!M5="",0,(VLOOKUP('Tidal Device Database'!M5,'Tidal Device Database'!$A$75:$B$79,2,FALSE))) -> 4 | J26: =IF('Tidal Device Database'!N5="",0,(VLOOKUP('Tidal Device Database'!N5,'Tidal Device Database'!$A$81:$B$85,2,FALSE))) -> 3 | K26: =IF('Tidal Device Database'!O5="",0,(VLOOKUP('Tidal Device Database'!O5,'Tidal Device Database'!$A$87:$B$91,2,FALSE))) -> 5 | L26: =IF('Tidal Device Database'!P5="",0,(VLOOKUP('Tidal Device Database'!P5,'Tidal Device Database'!$A$93:$B$97,2,FALSE))) -> 2 | M26: =IF('Tidal Device Database'!Q5="",0,(VLOOKUP('Tidal Device Database'!Q5,'Tidal Device Database'!$A$99:$B$103,2,FALSE))) -> 3 | N26: =IF('Tidal Device Database'!R5="",0,(VLOOKUP('Tidal Device Database'!R5,'Tidal Device Database'!$A$115:$B$119,2,FALSE))) -> 1 | O26: =IF('Tidal Device Database'!S5="",0,(VLOOKUP('Tidal Device Database'!S5,'Tidal Device Database'!$A$105:$B$109,2,FALSE))) -> 5 | P26: 111
A27: ='Tidal Device Database'!A6 -> 3 | B27: 74 | C27: ='Tidal Device Database'!B6 -> EEL | D27: ='Tidal Device Database'!C6 -> Oscillating Hydrofoil | E27: =IF('Tidal Device Database'!I6="",0,(VLOOKUP('Tidal Device Database'!I6,'Tidal Device Database'!$A$131:$B$135,2,FALSE))) -> 0 | F27: =IF('Tidal Device Database'!J6="",0,(VLOOKUP('Tidal Device Database'!J6,'Tidal Device Database'!$A$137:$B$141,2,FALSE))) -> 5 | G27: =IF('Tidal Device Database'!K6="",0,(VLOOKUP('Tidal Device Database'!K6,'Tidal Device Database'!$A$143:$B$147,2,FALSE))) -> 0 | H27: =IF('Tidal Device Database'!L6="",0,(VLOOKUP('Tidal Device Database'!L6,'Tidal Device Database'!$A$69:$B$73,2,FALSE))) -> 0 | I27: =IF('Tidal Device Database'!M6="",0,(VLOOKUP('Tidal Device Database'!M6,'Tidal Device Database'!$A$75:$B$79,2,FALSE))) -> 4 | J27: =IF('Tidal Device Database'!N6="",0,(VLOOKUP('Tidal Device Database'!N6,'Tidal Device Database'!$A$81:$B$85,2,FALSE))) -> 3 | K27: =IF('Tidal Device Database'!O6="",0,(VLOOKUP('Tidal Device Database'!O6,'Tidal Device Database'!$A$87:$B$91,2,FALSE))) -> 0 | L27: =IF('Tidal Device Database'!P6="",0,(VLOOKUP('Tidal Device Database'!P6,'Tidal Device Database'!$A$93:$B$97,2,FALSE))) -> 1 | M27: =IF('Tidal Device Database'!Q6="",0,(VLOOKUP('Tidal Device Database'!Q6,'Tidal Device Database'!$A$99:$B$103,2,FALSE))) -> 2 | N27: =IF('Tidal Device Database'!R6="",0,(VLOOKUP('Tidal Device Database'!R6,'Tidal Device Database'!$A$115:$B$119,2,FALSE))) -> 0 | O27: =IF('Tidal Device Database'!S6="",0,(VLOOKUP('Tidal Device Database'!S6,'Tidal Device Database'!$A$105:$B$109,2,FALSE))) -> 4 | P27: 74
A28: ='Tidal Device Database'!A7 -> 4 | B28: 85 | C28: ='Tidal Device Database'!B7 -> Atlantis AR-1000 | D28: ='Tidal Device Database'!C7 -> Horizontal Axis | E28: =IF('Tidal Device Database'!I7="",0,(VLOOKUP('Tidal Device Database'!I7,'Tidal Device Database'!$A$131:$B$135,2,FALSE))) -> 1 | F28: =IF('Tidal Device Database'!J7="",0,(VLOOKUP('Tidal Device Database'!J7,'Tidal Device Database'!$A$137:$B$141,2,FALSE))) -> 3 | G28: =IF('Tidal Device Database'!K7="",0,(VLOOKUP('Tidal Device Database'!K7,'Tidal Device Database'!$A$143:$B$147,2,FALSE))) -> 1 | H28: =IF('Tidal Device Database'!L7="",0,(VLOOKUP('Tidal Device Database'!L7,'Tidal Device Database'!$A$69:$B$73,2,FALSE))) -> 2 | I28: =IF('Tidal Device Database'!M7="",0,(VLOOKUP('Tidal Device Database'!M7,'Tidal Device Database'!$A$75:$B$79,2,FALSE))) -> 4 | J28: =IF('Tidal Device Database'!N7="",0,(VLOOKUP('Tidal Device Database'!N7,'Tidal Device Database'!$A$81:$B$85,2,FALSE))) -> 4 | K28: =IF('Tidal Device Database'!O7="",0,(VLOOKUP('Tidal Device Database'!O7,'Tidal Device Database'!$A$87:$B$91,2,FALSE))) -> 0 | L28: =IF('Tidal Device Database'!P7="",0,(VLOOKUP('Tidal Device Database'!P7,'Tidal Device Database'!$A$93:$B$97,2,FALSE))) -> 0 | M28: =IF('Tidal Device Database'!Q7="",0,(VLOOKUP('Tidal Device Database'!Q7,'Tidal Device Database'!$A$99:$B$103,2,FALSE))) -> 3 | N28: =IF('Tidal Device Database'!R7="",0,(VLOOKUP('Tidal Device Database'!R7,'Tidal Device Database'!$A$115:$B$119,2,FALSE))) -> 1 | O28: =IF('Tidal Device Database'!S7="",0,(VLOOKUP('Tidal Device Database'!S7,'Tidal Device Database'!$A$105:$B$109,2,FALSE))) -> 4 | P28: 85
A29: ='Tidal Device Database'!A8 -> 5 | B29: 85 | C29: ='Tidal Device Database'!B8 -> Seagen S | D29: ='Tidal Device Database'!C8 -> Horizontal Axis | E29: =IF('Tidal Device Database'!I8="",0,(VLOOKUP('Tidal Device Database'!I8,'Tidal Device Database'!$A$131:$B$135,2,FALSE))) -> 1 | F29: =IF('Tidal Device Database'!J8="",0,(VLOOKUP('Tidal Device Database'!J8,'Tidal Device Database'!$A$137:$B$141,2,FALSE))) -> 3 | G29: =IF('Tidal Device Database'!K8="",0,(VLOOKUP('Tidal Device Database'!K8,'Tidal Device Database'!$A$143:$B$147,2,FALSE))) -> 2 | H29: =IF('Tidal Device Database'!L8="",0,(VLOOKUP('Tidal Device Database'!L8,'Tidal Device Database'!$A$69:$B$73,2,FALSE))) -> 1 | I29: =IF('Tidal Device Database'!M8="",0,(VLOOKUP('Tidal Device Database'!M8,'Tidal Device Database'!$A$75:$B$79,2,FALSE))) -> 4 | J29: =IF('Tidal Device Database'!N8="",0,(VLOOKUP('Tidal Device Database'!N8,'Tidal Device Database'!$A$81:$B$85,2,FALSE))) -> 2 | K29: =IF('Tidal Device Database'!O8="",0,(VLOOKUP('Tidal Device Database'!O8,'Tidal Device Database'!$A$87:$B$91,2,FALSE))) -> 0 | L29: =IF('Tidal Device Database'!P8="",0,(VLOOKUP('Tidal Device Database'!P8,'Tidal Device Database'!$A$93:$B$97,2,FALSE))) -> 0 | M29: =IF('Tidal Device Database'!Q8="",0,(VLOOKUP('Tidal Device Database'!Q8,'Tidal Device Database'!$A$99:$B$103,2,FALSE))) -> 3 | N29: =IF('Tidal Device Database'!R8="",0,(VLOOKUP('Tidal Device Database'!R8,'Tidal Device Database'!$A$115:$B$119,2,FALSE))) -> 3 | O29: =IF('Tidal Device Database'!S8="",0,(VLOOKUP('Tidal Device Database'!S8,'Tidal Device Database'!$A$105:$B$109,2,FALSE))) -> 4 | P29: 85
A30: ='Tidal Device Database'!A9 -> 7 | B30: 40 | C30: ='Tidal Device Database'!B9 -> BioStream | D30: ='Tidal Device Database'!C9 -> Oscillating Hydrofoil | E30: =IF('Tidal Device Database'!I9="",0,(VLOOKUP('Tidal Device Database'!I9,'Tidal Device Database'!$A$131:$B$135,2,FALSE))) -> 4 | F30: =IF('Tidal Device Database'!J9="",0,(VLOOKUP('Tidal Device Database'!J9,'Tidal Device Database'!$A$137:$B$141,2,FALSE))) -> 0 | G30: =IF('Tidal Device Database'!K9="",0,(VLOOKUP('Tidal Device Database'!K9,'Tidal Device Database'!$A$143:$B$147,2,FALSE))) -> 0 | H30: =IF('Tidal Device Database'!L9="",0,(VLOOKUP('Tidal Device Database'!L9,'Tidal Device Database'!$A$69:$B$73,2,FALSE))) -> 0 | I30: =IF('Tidal Device Database'!M9="",0,(VLOOKUP('Tidal Device Database'!M9,'Tidal Device Database'!$A$75:$B$79,2,FALSE))) -> 4 | J30: =IF('Tidal Device Database'!N9="",0,(VLOOKUP('Tidal Device Database'!N9,'Tidal Device Database'!$A$81:$B$85,2,FALSE))) -> 3 | K30: =IF('Tidal Device Database'!O9="",0,(VLOOKUP('Tidal Device Database'!O9,'Tidal Device Database'!$A$87:$B$91,2,FALSE))) -> 0 | L30: =IF('Tidal Device Database'!P9="",0,(VLOOKUP('Tidal Device Database'!P9,'Tidal Device Database'!$A$93:$B$97,2,FALSE))) -> 0 | M30: =IF('Tidal Device Database'!Q9="",0,(VLOOKUP('Tidal Device Database'!Q9,'Tidal Device Database'!$A$99:$B$103,2,FALSE))) -> 0 | N30: =IF('Tidal Device Database'!R9="",0,(VLOOKUP('Tidal Device Database'!R9,'Tidal Device Database'!$A$115:$B$119,2,FALSE))) -> 0 | O30: =IF('Tidal Device Database'!S9="",0,(VLOOKUP('Tidal Device Database'!S9,'Tidal Device Database'!$A$105:$B$109,2,FALSE))) -> 0 | P30: 40
A31: ='Tidal Device Database'!A10 -> 8 | B31: 66 | C31: ='Tidal Device Database'!B10 -> C2C Tidal turbine | D31: ='Tidal Device Database'!C10 -> Vertical Axis | E31: =IF('Tidal Device Database'!I10="",0,(VLOOKUP('Tidal Device Database'!I10,'Tidal Device Database'!$A$131:$B$135,2,FALSE))) -> 5 | F31: =IF('Tidal Device Database'!J10="",0,(VLOOKUP('Tidal Device Database'!J10,'Tidal Device Database'!$A$137:$B$141,2,FALSE))) -> 5 | G31: =IF('Tidal Device Database'!K10="",0,(VLOOKUP('Tidal Device Database'!K10,'Tidal Device Database'!$A$143:$B$147,2,FALSE))) -> 0 | H31: =IF('Tidal Device Database'!L10="",0,(VLOOKUP('Tidal Device Database'!L10,'Tidal Device Database'!$A$69:$B$73,2,FALSE))) -> 0 | I31: =IF('Tidal Device Database'!M10="",0,(VLOOKUP('Tidal Device Database'!M10,'Tidal Device Database'!$A$75:$B$79,2,FALSE))) -> 4 | J31: =IF('Tidal Device Database'!N10="",0,(VLOOKUP('Tidal Device Database'!N10,'Tidal Device Database'!$A$81:$B$85,2,FALSE))) -> 5 | K31: =IF('Tidal Device Database'!O10="",0,(VLOOKUP('Tidal Device Database'!O10,'Tidal Device Database'!$A$87:$B$91,2,FALSE))) -> 0 | L31: =IF('Tidal Device Database'!P10="",0,(VLOOKUP('Tidal Device Database'!P10,'Tidal Device Database'!$A$93:$B$97,2,FALSE))) -> 0 | M31: =IF('Tidal Device Database'!Q10="",0,(VLOOKUP('Tidal Device Database'!Q10,'Tidal Device Database'!$A$99:$B$103,2,FALSE))) -> 0 | N31: =IF('Tidal Device Database'!R10="",0,(VLOOKUP('Tidal Device Database'!R10,'Tidal Device Database'!$A$115:$B$119,2,FALSE))) -> 0 | O31: =IF('Tidal Device Database'!S10="",0,(VLOOKUP('Tidal Device Database'!S10,'Tidal Device Database'!$A$105:$B$109,2,FALSE))) -> 0 | P31: 66
A32: ='Tidal Device Database'!A11 -> 9 | B32: 147 | C32: ='Tidal Device Database'!B11 -> Oryon Watermill | D32: ='Tidal Device Database'!C11 -> Vertical Axis | E32: =IF('Tidal Device Database'!I11="",0,(VLOOKUP('Tidal Device Database'!I11,'Tidal Device Database'!$A$131:$B$135,2,FALSE))) -> 5 | F32: =IF('Tidal Device Database'!J11="",0,(VLOOKUP('Tidal Device Database'!J11,'Tidal Device Database'!$A$137:$B$141,2,FALSE))) -> 5 | G32: =IF('Tidal Device Database'!K11="",0,(VLOOKUP('Tidal Device Database'!K11,'Tidal Device Database'!$A$143:$B$147,2,FALSE))) -> 5 | H32: =IF('Tidal Device Database'!L11="",0,(VLOOKUP('Tidal Device Database'!L11,'Tidal Device Database'!$A$69:$B$73,2,FALSE))) -> 4 | I32: =IF('Tidal Device Database'!M11="",0,(VLOOKUP('Tidal Device Database'!M11,'Tidal Device Database'!$A$75:$B$79,2,FALSE))) -> 4 | J32: =IF('Tidal Device Database'!N11="",0,(VLOOKUP('Tidal Device Database'!N11,'Tidal Device Database'!$A$81:$B$85,2,FALSE))) -> 5 | K32: =IF('Tidal Device Database'!O11="",0,(VLOOKUP('Tidal Device Database'!O11,'Tidal Device Database'!$A$87:$B$91,2,FALSE))) -> 0 | L32: =IF('Tidal Device Database'!P11="",0,(VLOOKUP('Tidal Device Database'!P11,'Tidal Device Database'!$A$93:$B$97,2,FALSE))) -> 3 | M32: =IF('Tidal Device Database'!Q11="",0,(VLOOKUP('Tidal Device Database'!Q11,'Tidal Device Database'!$A$99:$B$103,2,FALSE))) -> 5 | N32: =IF('Tidal Device Database'!R11="",0,(VLOOKUP('Tidal Device Database'!R11,'Tidal Device Database'!$A$115:$B$119,2,FALSE))) -> 4 | O32: =IF('Tidal Device Database'!S11="",0,(VLOOKUP('Tidal Device Database'!S11,'Tidal Device Database'!$A$105:$B$109,2,FALSE))) -> 3 | P32: 147
A33: ='Tidal Device Database'!A12 -> 11 | B33: 35 | C33: ='Tidal Device Database'!B12 -> MAKO | D33: ='Tidal Device Database'!C12 -> Horizontal Axis | E33: =IF('Tidal Device Database'!I12="",0,(VLOOKUP('Tidal Device Database'!I12,'Tidal Device Database'!$A$131:$B$135,2,FALSE))) -> 0 | F33: =IF('Tidal Device Database'!J12="",0,(VLOOKUP('Tidal Device Database'!J12,'Tidal Device Database'!$A$137:$B$141,2,FALSE))) -> 5 | G33: =IF('Tidal Device Database'!K12="",0,(VLOOKUP('Tidal Device Database'!K12,'Tidal Device Database'!$A$143:$B$147,2,FALSE))) -> 0 | H33: =IF('Tidal Device Database'!L12="",0,(VLOOKUP('Tidal Device Database'!L12,'Tidal Device Database'!$A$69:$B$73,2,FALSE))) -> 0 | I33: =IF('Tidal Device Database'!M12="",0,(VLOOKUP('Tidal Device Database'!M12,'Tidal Device Database'!$A$75:$B$79,2,FALSE))) -> 0 | J33: =IF('Tidal Device Database'!N12="",0,(VLOOKUP('Tidal Device Database'!N12,'Tidal Device Database'!$A$81:$B$85,2,FALSE))) -> 5 | K33: =IF('Tidal Device Database'!O12="",0,(VLOOKUP('Tidal Device Database'!O12,'Tidal Device Database'!$A$87:$B$91,2,FALSE))) -> 0 | L33: =IF('Tidal Device Database'!P12="",0,(VLOOKUP('Tidal Device Database'!P12,'Tidal Device Database'!$A$93:$B$97,2,FALSE))) -> 0 | M33: =IF('Tidal Device Database'!Q12="",0,(VLOOKUP('Tidal Device Database'!Q12,'Tidal Device Database'!$A$99:$B$103,2,FALSE))) -> 0 | N33: =IF('Tidal Device Database'!R12="",0,(VLOOKUP('Tidal Device Database'!R12,'Tidal Device Database'!$A$115:$B$119,2,FALSE))) -> 0 | O33: =IF('Tidal Device Database'!S12="",0,(VLOOKUP('Tidal Device Database'!S12,'Tidal Device Database'!$A$105:$B$109,2,FALSE))) -> 0 | P33: 35
A34: ='Tidal Device Database'!A13 -> 12 | B34: 35 | C34: ='Tidal Device Database'!B13 -> Guinard MegaWattBlue | D34: ='Tidal Device Database'!C13 -> Horizontal Axis | E34: =IF('Tidal Device Database'!I13="",0,(VLOOKUP('Tidal Device Database'!I13,'Tidal Device Database'!$A$131:$B$135,2,FALSE))) -> 5 | F34: =IF('Tidal Device Database'!J13="",0,(VLOOKUP('Tidal Device Database'!J13,'Tidal Device Database'!$A$137:$B$141,2,FALSE))) -> 0 | G34: =IF('Tidal Device Database'!K13="",0,(VLOOKUP('Tidal Device Database'!K13,'Tidal Device Database'!$A$143:$B$147,2,FALSE))) -> 0 | H34: =IF('Tidal Device Database'!L13="",0,(VLOOKUP('Tidal Device Database'!L13,'Tidal Device Database'!$A$69:$B$73,2,FALSE))) -> 0 | I34: =IF('Tidal Device Database'!M13="",0,(VLOOKUP('Tidal Device Database'!M13,'Tidal Device Database'!$A$75:$B$79,2,FALSE))) -> 0 | J34: =IF('Tidal Device Database'!N13="",0,(VLOOKUP('Tidal Device Database'!N13,'Tidal Device Database'!$A$81:$B$85,2,FALSE))) -> 5 | K34: =IF('Tidal Device Database'!O13="",0,(VLOOKUP('Tidal Device Database'!O13,'Tidal Device Database'!$A$87:$B$91,2,FALSE))) -> 0 | L34: =IF('Tidal Device Database'!P13="",0,(VLOOKUP('Tidal Device Database'!P13,'Tidal Device Database'!$A$93:$B$97,2,FALSE))) -> 0 | M34: =IF('Tidal Device Database'!Q13="",0,(VLOOKUP('Tidal Device Database'!Q13,'Tidal Device Database'!$A$99:$B$103,2,FALSE))) -> 0 | N34: =IF('Tidal Device Database'!R13="",0,(VLOOKUP('Tidal Device Database'!R13,'Tidal Device Database'!$A$115:$B$119,2,FALSE))) -> 0 | O34: =IF('Tidal Device Database'!S13="",0,(VLOOKUP('Tidal Device Database'!S13,'Tidal Device Database'!$A$105:$B$109,2,FALSE))) -> 0 | P34: 35
A35: ='Tidal Device Database'!A14 -> 13 | B35: 50 | C35: ='Tidal Device Database'!B14 -> HydroGen | D35: ='Tidal Device Database'!C14 -> Vertical Axis | E35: =IF('Tidal Device Database'!I14="",0,(VLOOKUP('Tidal Device Database'!I14,'Tidal Device Database'!$A$131:$B$135,2,FALSE))) -> 5 | F35: =IF('Tidal Device Database'!J14="",0,(VLOOKUP('Tidal Device Database'!J14,'Tidal Device Database'!$A$137:$B$141,2,FALSE))) -> 5 | G35: =IF('Tidal Device Database'!K14="",0,(VLOOKUP('Tidal Device Database'!K14,'Tidal Device Database'!$A$143:$B$147,2,FALSE))) -> 0 | H35: =IF('Tidal Device Database'!L14="",0,(VLOOKUP('Tidal Device Database'!L14,'Tidal Device Database'!$A$69:$B$73,2,FALSE))) -> 0 | I35: =IF('Tidal Device Database'!M14="",0,(VLOOKUP('Tidal Device Database'!M14,'Tidal Device Database'!$A$75:$B$79,2,FALSE))) -> 0 | J35: =IF('Tidal Device Database'!N14="",0,(VLOOKUP('Tidal Device Database'!N14,'Tidal Device Database'!$A$81:$B$85,2,FALSE))) -> 5 | K35: =IF('Tidal Device Database'!O14="",0,(VLOOKUP('Tidal Device Database'!O14,'Tidal Device Database'!$A$87:$B$91,2,FALSE))) -> 0 | L35: =IF('Tidal Device Database'!P14="",0,(VLOOKUP('Tidal Device Database'!P14,'Tidal Device Database'!$A$93:$B$97,2,FALSE))) -> 0 | M35: =IF('Tidal Device Database'!Q14="",0,(VLOOKUP('Tidal Device Database'!Q14,'Tidal Device Database'!$A$99:$B$103,2,FALSE))) -> 0 | N35: =IF('Tidal Device Database'!R14="",0,(VLOOKUP('Tidal Device Database'!R14,'Tidal Device Database'!$A$115:$B$119,2,FALSE))) -> 0 | O35: =IF('Tidal Device Database'!S14="",0,(VLOOKUP('Tidal Device Database'!S14,'Tidal Device Database'!$A$105:$B$109,2,FALSE))) -> 0 | P35: 50
A36: ='Tidal Device Database'!A15 -> 14 | B36: 28 | C36: ='Tidal Device Database'!B15 -> HydroQuest | D36: ='Tidal Device Database'!C15 -> Vertical Axis | E36: =IF('Tidal Device Database'!I15="",0,(VLOOKUP('Tidal Device Database'!I15,'Tidal Device Database'!$A$131:$B$135,2,FALSE))) -> 0 | F36: =IF('Tidal Device Database'!J15="",0,(VLOOKUP('Tidal Device Database'!J15,'Tidal Device Database'!$A$137:$B$141,2,FALSE))) -> 0 | G36: =IF('Tidal Device Database'!K15="",0,(VLOOKUP('Tidal Device Database'!K15,'Tidal Device Database'!$A$143:$B$147,2,FALSE))) -> 0 | H36: =IF('Tidal Device Database'!L15="",0,(VLOOKUP('Tidal Device Database'!L15,'Tidal Device Database'!$A$69:$B$73,2,FALSE))) -> 0 | I36: =IF('Tidal Device Database'!M15="",0,(VLOOKUP('Tidal Device Database'!M15,'Tidal Device Database'!$A$75:$B$79,2,FALSE))) -> 4 | J36: =IF('Tidal Device Database'!N15="",0,(VLOOKUP('Tidal Device Database'!N15,'Tidal Device Database'!$A$81:$B$85,2,FALSE))) -> 3 | K36: =IF('Tidal Device Database'!O15="",0,(VLOOKUP('Tidal Device Database'!O15,'Tidal Device Database'!$A$87:$B$91,2,FALSE))) -> 0 | L36: =IF('Tidal Device Database'!P15="",0,(VLOOKUP('Tidal Device Database'!P15,'Tidal Device Database'!$A$93:$B$97,2,FALSE))) -> 0 | M36: =IF('Tidal Device Database'!Q15="",0,(VLOOKUP('Tidal Device Database'!Q15,'Tidal Device Database'!$A$99:$B$103,2,FALSE))) -> 0 | N36: =IF('Tidal Device Database'!R15="",0,(VLOOKUP('Tidal Device Database'!R15,'Tidal Device Database'!$A$115:$B$119,2,FALSE))) -> 0 | O36: =IF('Tidal Device Database'!S15="",0,(VLOOKUP('Tidal Device Database'!S15,'Tidal Device Database'!$A$105:$B$109,2,FALSE))) -> 0 | P36: 28
A37: ='Tidal Device Database'!A16 -> 15 | B37: 35 | C37: ='Tidal Device Database'!B16 -> Jupiter Hydro | D37: ='Tidal Device Database'!C16 -> Archimedes Screw | E37: =IF('Tidal Device Database'!I16="",0,(VLOOKUP('Tidal Device Database'!I16,'Tidal Device Database'!$A$131:$B$135,2,FALSE))) -> 0 | F37: =IF('Tidal Device Database'!J16="",0,(VLOOKUP('Tidal Device Database'!J16,'Tidal Device Database'!$A$137:$B$141,2,FALSE))) -> 5 | G37: =IF('Tidal Device Database'!K16="",0,(VLOOKUP('Tidal Device Database'!K16,'Tidal Device Database'!$A$143:$B$147,2,FALSE))) -> 0 | H37: =IF('Tidal Device Database'!L16="",0,(VLOOKUP('Tidal Device Database'!L16,'Tidal Device Database'!$A$69:$B$73,2,FALSE))) -> 0 | I37: =IF('Tidal Device Database'!M16="",0,(VLOOKUP('Tidal Device Database'!M16,'Tidal Device Database'!$A$75:$B$79,2,FALSE))) -> 0 | J37: =IF('Tidal Device Database'!N16="",0,(VLOOKUP('Tidal Device Database'!N16,'Tidal Device Database'!$A$81:$B$85,2,FALSE))) -> 5 | K37: =IF('Tidal Device Database'!O16="",0,(VLOOKUP('Tidal Device Database'!O16,'Tidal Device Database'!$A$87:$B$91,2,FALSE))) -> 0 | L37: =IF('Tidal Device Database'!P16="",0,(VLOOKUP('Tidal Device Database'!P16,'Tidal Device Database'!$A$93:$B$97,2,FALSE))) -> 0 | M37: =IF('Tidal Device Database'!Q16="",0,(VLOOKUP('Tidal Device Database'!Q16,'Tidal Device Database'!$A$99:$B$103,2,FALSE))) -> 0 | N37: =IF('Tidal Device Database'!R16="",0,(VLOOKUP('Tidal Device Database'!R16,'Tidal Device Database'!$A$115:$B$119,2,FALSE))) -> 0 | O37: =IF('Tidal Device Database'!S16="",0,(VLOOKUP('Tidal Device Database'!S16,'Tidal Device Database'!$A$105:$B$109,2,FALSE))) -> 0 | P37: 35
A38: ='Tidal Device Database'!A17 -> 16 | B38: 59 | C38: ='Tidal Device Database'!B17 -> Minesto | D38: ='Tidal Device Database'!C17 -> Tidal Kite | E38: =IF('Tidal Device Database'!I17="",0,(VLOOKUP('Tidal Device Database'!I17,'Tidal Device Database'!$A$131:$B$135,2,FALSE))) -> 3 | F38: =IF('Tidal Device Database'!J17="",0,(VLOOKUP('Tidal Device Database'!J17,'Tidal Device Database'!$A$137:$B$141,2,FALSE))) -> 4 | G38: =IF('Tidal Device Database'!K17="",0,(VLOOKUP('Tidal Device Database'!K17,'Tidal Device Database'!$A$143:$B$147,2,FALSE))) -> 1 | H38: =IF('Tidal Device Database'!L17="",0,(VLOOKUP('Tidal Device Database'!L17,'Tidal Device Database'!$A$69:$B$73,2,FALSE))) -> 3 | I38: =IF('Tidal Device Database'!M17="",0,(VLOOKUP('Tidal Device Database'!M17,'Tidal Device Database'!$A$75:$B$79,2,FALSE))) -> 0 | J38: =IF('Tidal Device Database'!N17="",0,(VLOOKUP('Tidal Device Database'!N17,'Tidal Device Database'!$A$81:$B$85,2,FALSE))) -> 5 | K38: =IF('Tidal Device Database'!O17="",0,(VLOOKUP('Tidal Device Database'!O17,'Tidal Device Database'!$A$87:$B$91,2,FALSE))) -> 0 | L38: =IF('Tidal Device Database'!P17="",0,(VLOOKUP('Tidal Device Database'!P17,'Tidal Device Database'!$A$93:$B$97,2,FALSE))) -> 0 | M38: =IF('Tidal Device Database'!Q17="",0,(VLOOKUP('Tidal Device Database'!Q17,'Tidal Device Database'!$A$99:$B$103,2,FALSE))) -> 2 | N38: =IF('Tidal Device Database'!R17="",0,(VLOOKUP('Tidal Device Database'!R17,'Tidal Device Database'!$A$115:$B$119,2,FALSE))) -> 1 | O38: =IF('Tidal Device Database'!S17="",0,(VLOOKUP('Tidal Device Database'!S17,'Tidal Device Database'!$A$105:$B$109,2,FALSE))) -> 0 | P38: 59
A39: ='Tidal Device Database'!A18 -> 17 | B39: 60 | C39: ='Tidal Device Database'!B18 -> CoRMat | D39: ='Tidal Device Database'!C18 -> Horizontal Contra-Rotating | E39: =IF('Tidal Device Database'!I18="",0,(VLOOKUP('Tidal Device Database'!I18,'Tidal Device Database'!$A$131:$B$135,2,FALSE))) -> 0 | F39: =IF('Tidal Device Database'!J18="",0,(VLOOKUP('Tidal Device Database'!J18,'Tidal Device Database'!$A$137:$B$141,2,FALSE))) -> 0 | G39: =IF('Tidal Device Database'!K18="",0,(VLOOKUP('Tidal Device Database'!K18,'Tidal Device Database'!$A$143:$B$147,2,FALSE))) -> 5 | H39: =IF('Tidal Device Database'!L18="",0,(VLOOKUP('Tidal Device Database'!L18,'Tidal Device Database'!$A$69:$B$73,2,FALSE))) -> 0 | I39: =IF('Tidal Device Database'!M18="",0,(VLOOKUP('Tidal Device Database'!M18,'Tidal Device Database'!$A$75:$B$79,2,FALSE))) -> 0 | J39: =IF('Tidal Device Database'!N18="",0,(VLOOKUP('Tidal Device Database'!N18,'Tidal Device Database'!$A$81:$B$85,2,FALSE))) -> 5 | K39: =IF('Tidal Device Database'!O18="",0,(VLOOKUP('Tidal Device Database'!O18,'Tidal Device Database'!$A$87:$B$91,2,FALSE))) -> 0 | L39: =IF('Tidal Device Database'!P18="",0,(VLOOKUP('Tidal Device Database'!P18,'Tidal Device Database'!$A$93:$B$97,2,FALSE))) -> 0 | M39: =IF('Tidal Device Database'!Q18="",0,(VLOOKUP('Tidal Device Database'!Q18,'Tidal Device Database'!$A$99:$B$103,2,FALSE))) -> 0 | N39: =IF('Tidal Device Database'!R18="",0,(VLOOKUP('Tidal Device Database'!R18,'Tidal Device Database'!$A$115:$B$119,2,FALSE))) -> 0 | O39: =IF('Tidal Device Database'!S18="",0,(VLOOKUP('Tidal Device Database'!S18,'Tidal Device Database'!$A$105:$B$109,2,FALSE))) -> 3 | P39: 60
A40: ='Tidal Device Database'!A19 -> 18 | B40: 68 | C40: ='Tidal Device Database'!B19 -> Nova M100 | D40: ='Tidal Device Database'!C19 -> Horizontal Axis | E40: =IF('Tidal Device Database'!I19="",0,(VLOOKUP('Tidal Device Database'!I19,'Tidal Device Database'!$A$131:$B$135,2,FALSE))) -> 5 | F40: =IF('Tidal Device Database'!J19="",0,(VLOOKUP('Tidal Device Database'!J19,'Tidal Device Database'!$A$137:$B$141,2,FALSE))) -> 0 | G40: =IF('Tidal Device Database'!K19="",0,(VLOOKUP('Tidal Device Database'!K19,'Tidal Device Database'!$A$143:$B$147,2,FALSE))) -> 0 | H40: =IF('Tidal Device Database'!L19="",0,(VLOOKUP('Tidal Device Database'!L19,'Tidal Device Database'!$A$69:$B$73,2,FALSE))) -> 4 | I40: =IF('Tidal Device Database'!M19="",0,(VLOOKUP('Tidal Device Database'!M19,'Tidal Device Database'!$A$75:$B$79,2,FALSE))) -> 0 | J40: =IF('Tidal Device Database'!N19="",0,(VLOOKUP('Tidal Device Database'!N19,'Tidal Device Database'!$A$81:$B$85,2,FALSE))) -> 3 | K40: =IF('Tidal Device Database'!O19="",0,(VLOOKUP('Tidal Device Database'!O19,'Tidal Device Database'!$A$87:$B$91,2,FALSE))) -> 0 | L40: =IF('Tidal Device Database'!P19="",0,(VLOOKUP('Tidal Device Database'!P19,'Tidal Device Database'!$A$93:$B$97,2,FALSE))) -> 0 | M40: =IF('Tidal Device Database'!Q19="",0,(VLOOKUP('Tidal Device Database'!Q19,'Tidal Device Database'!$A$99:$B$103,2,FALSE))) -> 3 | N40: =IF('Tidal Device Database'!R19="",0,(VLOOKUP('Tidal Device Database'!R19,'Tidal Device Database'!$A$115:$B$119,2,FALSE))) -> 0 | O40: =IF('Tidal Device Database'!S19="",0,(VLOOKUP('Tidal Device Database'!S19,'Tidal Device Database'!$A$105:$B$109,2,FALSE))) -> 5 | P40: 68
A41: ='Tidal Device Database'!A20 -> 19 | B41: 16 | C41: ='Tidal Device Database'!B20 -> TidGen | D41: ='Tidal Device Database'!C20 -> Darrieus | E41: =IF('Tidal Device Database'!I20="",0,(VLOOKUP('Tidal Device Database'!I20,'Tidal Device Database'!$A$131:$B$135,2,FALSE))) -> 0 | F41: =IF('Tidal Device Database'!J20="",0,(VLOOKUP('Tidal Device Database'!J20,'Tidal Device Database'!$A$137:$B$141,2,FALSE))) -> 0 | G41: =IF('Tidal Device Database'!K20="",0,(VLOOKUP('Tidal Device Database'!K20,'Tidal Device Database'!$A$143:$B$147,2,FALSE))) -> 0 | H41: =IF('Tidal Device Database'!L20="",0,(VLOOKUP('Tidal Device Database'!L20,'Tidal Device Database'!$A$69:$B$73,2,FALSE))) -> 0 | I41: =IF('Tidal Device Database'!M20="",0,(VLOOKUP('Tidal Device Database'!M20,'Tidal Device Database'!$A$75:$B$79,2,FALSE))) -> 0 | J41: =IF('Tidal Device Database'!N20="",0,(VLOOKUP('Tidal Device Database'!N20,'Tidal Device Database'!$A$81:$B$85,2,FALSE))) -> 4 | K41: =IF('Tidal Device Database'!O20="",0,(VLOOKUP('Tidal Device Database'!O20,'Tidal Device Database'!$A$87:$B$91,2,FALSE))) -> 0 | L41: =IF('Tidal Device Database'!P20="",0,(VLOOKUP('Tidal Device Database'!P20,'Tidal Device Database'!$A$93:$B$97,2,FALSE))) -> 0 | M41: =IF('Tidal Device Database'!Q20="",0,(VLOOKUP('Tidal Device Database'!Q20,'Tidal Device Database'!$A$99:$B$103,2,FALSE))) -> 0 | N41: =IF('Tidal Device Database'!R20="",0,(VLOOKUP('Tidal Device Database'!R20,'Tidal Device Database'!$A$115:$B$119,2,FALSE))) -> 0 | O41: =IF('Tidal Device Database'!S20="",0,(VLOOKUP('Tidal Device Database'!S20,'Tidal Device Database'!$A$105:$B$109,2,FALSE))) -> 0 | P41: 16
A42: ='Tidal Device Database'!A21 -> 20 | B42: 12 | C42: ='Tidal Device Database'!B21 -> Oceana | D42: ='Tidal Device Database'!C21 -> Horizontal Axis | E42: =IF('Tidal Device Database'!I21="",0,(VLOOKUP('Tidal Device Database'!I21,'Tidal Device Database'!$A$131:$B$135,2,FALSE))) -> 0 | F42: =IF('Tidal Device Database'!J21="",0,(VLOOKUP('Tidal Device Database'!J21,'Tidal Device Database'!$A$137:$B$141,2,FALSE))) -> 0 | G42: =IF('Tidal Device Database'!K21="",0,(VLOOKUP('Tidal Device Database'!K21,'Tidal Device Database'!$A$143:$B$147,2,FALSE))) -> 0 | H42: =IF('Tidal Device Database'!L21="",0,(VLOOKUP('Tidal Device Database'!L21,'Tidal Device Database'!$A$69:$B$73,2,FALSE))) -> 0 | I42: =IF('Tidal Device Database'!M21="",0,(VLOOKUP('Tidal Device Database'!M21,'Tidal Device Database'!$A$75:$B$79,2,FALSE))) -> 0 | J42: =IF('Tidal Device Database'!N21="",0,(VLOOKUP('Tidal Device Database'!N21,'Tidal Device Database'!$A$81:$B$85,2,FALSE))) -> 3 | K42: =IF('Tidal Device Database'!O21="",0,(VLOOKUP('Tidal Device Database'!O21,'Tidal Device Database'!$A$87:$B$91,2,FALSE))) -> 0 | L42: =IF('Tidal Device Database'!P21="",0,(VLOOKUP('Tidal Device Database'!P21,'Tidal Device Database'!$A$93:$B$97,2,FALSE))) -> 0 | M42: =IF('Tidal Device Database'!Q21="",0,(VLOOKUP('Tidal Device Database'!Q21,'Tidal Device Database'!$A$99:$B$103,2,FALSE))) -> 0 | N42: =IF('Tidal Device Database'!R21="",0,(VLOOKUP('Tidal Device Database'!R21,'Tidal Device Database'!$A$115:$B$119,2,FALSE))) -> 0 | O42: =IF('Tidal Device Database'!S21="",0,(VLOOKUP('Tidal Device Database'!S21,'Tidal Device Database'!$A$105:$B$109,2,FALSE))) -> 0 | P42: 12
A43: ='Tidal Device Database'!A22 -> 21 | B43: 50 | C43: ='Tidal Device Database'!B22 -> Stream Cube | D43: ='Tidal Device Database'!C22 -> Vertical Axis | E43: =IF('Tidal Device Database'!I22="",0,(VLOOKUP('Tidal Device Database'!I22,'Tidal Device Database'!$A$131:$B$135,2,FALSE))) -> 5 | F43: =IF('Tidal Device Database'!J22="",0,(VLOOKUP('Tidal Device Database'!J22,'Tidal Device Database'!$A$137:$B$141,2,FALSE))) -> 5 | G43: =IF('Tidal Device Database'!K22="",0,(VLOOKUP('Tidal Device Database'!K22,'Tidal Device Database'!$A$143:$B$147,2,FALSE))) -> 0 | H43: =IF('Tidal Device Database'!L22="",0,(VLOOKUP('Tidal Device Database'!L22,'Tidal Device Database'!$A$69:$B$73,2,FALSE))) -> 0 | I43: =IF('Tidal Device Database'!M22="",0,(VLOOKUP('Tidal Device Database'!M22,'Tidal Device Database'!$A$75:$B$79,2,FALSE))) -> 0 | J43: =IF('Tidal Device Database'!N22="",0,(VLOOKUP('Tidal Device Database'!N22,'Tidal Device Database'!$A$81:$B$85,2,FALSE))) -> 5 | K43: =IF('Tidal Device Database'!O22="",0,(VLOOKUP('Tidal Device Database'!O22,'Tidal Device Database'!$A$87:$B$91,2,FALSE))) -> 0 | L43: =IF('Tidal Device Database'!P22="",0,(VLOOKUP('Tidal Device Database'!P22,'Tidal Device Database'!$A$93:$B$97,2,FALSE))) -> 0 | M43: =IF('Tidal Device Database'!Q22="",0,(VLOOKUP('Tidal Device Database'!Q22,'Tidal Device Database'!$A$99:$B$103,2,FALSE))) -> 0 | N43: =IF('Tidal Device Database'!R22="",0,(VLOOKUP('Tidal Device Database'!R22,'Tidal Device Database'!$A$115:$B$119,2,FALSE))) -> 0 | O43: =IF('Tidal Device Database'!S22="",0,(VLOOKUP('Tidal Device Database'!S22,'Tidal Device Database'!$A$105:$B$109,2,FALSE))) -> 0 | P43: 50
A44: ='Tidal Device Database'!A23 -> 22 | B44: 114 | C44: ='Tidal Device Database'!B23 -> Capricorn 5 | D44: ='Tidal Device Database'!C23 -> Horizontal Contra-Rotating | E44: =IF('Tidal Device Database'!I23="",0,(VLOOKUP('Tidal Device Database'!I23,'Tidal Device Database'!$A$131:$B$135,2,FALSE))) -> 5 | F44: =IF('Tidal Device Database'!J23="",0,(VLOOKUP('Tidal Device Database'!J23,'Tidal Device Database'!$A$137:$B$141,2,FALSE))) -> 5 | G44: =IF('Tidal Device Database'!K23="",0,(VLOOKUP('Tidal Device Database'!K23,'Tidal Device Database'!$A$143:$B$147,2,FALSE))) -> 4 | H44: =IF('Tidal Device Database'!L23="",0,(VLOOKUP('Tidal Device Database'!L23,'Tidal Device Database'!$A$69:$B$73,2,FALSE))) -> 4 | I44: =IF('Tidal Device Database'!M23="",0,(VLOOKUP('Tidal Device Database'!M23,'Tidal Device Database'!$A$75:$B$79,2,FALSE))) -> 0 | J44: =IF('Tidal Device Database'!N23="",0,(VLOOKUP('Tidal Device Database'!N23,'Tidal Device Database'!$A$81:$B$85,2,FALSE))) -> 5 | K44: =IF('Tidal Device Database'!O23="",0,(VLOOKUP('Tidal Device Database'!O23,'Tidal Device Database'!$A$87:$B$91,2,FALSE))) -> 0 | L44: =IF('Tidal Device Database'!P23="",0,(VLOOKUP('Tidal Device Database'!P23,'Tidal Device Database'!$A$93:$B$97,2,FALSE))) -> 0 | M44: =IF('Tidal Device Database'!Q23="",0,(VLOOKUP('Tidal Device Database'!Q23,'Tidal Device Database'!$A$99:$B$103,2,FALSE))) -> 3 | N44: =IF('Tidal Device Database'!R23="",0,(VLOOKUP('Tidal Device Database'!R23,'Tidal Device Database'!$A$115:$B$119,2,FALSE))) -> 4 | O44: =IF('Tidal Device Database'!S23="",0,(VLOOKUP('Tidal Device Database'!S23,'Tidal Device Database'!$A$105:$B$109,2,FALSE))) -> 4 | P44: 114
A45: ='Tidal Device Database'!A24 -> 23 | B45: 65 | C45: ='Tidal Device Database'!B24 -> Capricorn 125 | D45: ='Tidal Device Database'!C24 -> Horizontal Contra-Rotating | E45: =IF('Tidal Device Database'!I24="",0,(VLOOKUP('Tidal Device Database'!I24,'Tidal Device Database'!$A$131:$B$135,2,FALSE))) -> 1 | F45: =IF('Tidal Device Database'!J24="",0,(VLOOKUP('Tidal Device Database'!J24,'Tidal Device Database'!$A$137:$B$141,2,FALSE))) -> 5 | G45: =IF('Tidal Device Database'!K24="",0,(VLOOKUP('Tidal Device Database'!K24,'Tidal Device Database'!$A$143:$B$147,2,FALSE))) -> 1 | H45: =IF('Tidal Device Database'!L24="",0,(VLOOKUP('Tidal Device Database'!L24,'Tidal Device Database'!$A$69:$B$73,2,FALSE))) -> 4 | I45: =IF('Tidal Device Database'!M24="",0,(VLOOKUP('Tidal Device Database'!M24,'Tidal Device Database'!$A$75:$B$79,2,FALSE))) -> 0 | J45: =IF('Tidal Device Database'!N24="",0,(VLOOKUP('Tidal Device Database'!N24,'Tidal Device Database'!$A$81:$B$85,2,FALSE))) -> 5 | K45: =IF('Tidal Device Database'!O24="",0,(VLOOKUP('Tidal Device Database'!O24,'Tidal Device Database'!$A$87:$B$91,2,FALSE))) -> 0 | L45: =IF('Tidal Device Database'!P24="",0,(VLOOKUP('Tidal Device Database'!P24,'Tidal Device Database'!$A$93:$B$97,2,FALSE))) -> 0 | M45: =IF('Tidal Device Database'!Q24="",0,(VLOOKUP('Tidal Device Database'!Q24,'Tidal Device Database'!$A$99:$B$103,2,FALSE))) -> 3 | N45: =IF('Tidal Device Database'!R24="",0,(VLOOKUP('Tidal Device Database'!R24,'Tidal Device Database'!$A$115:$B$119,2,FALSE))) -> 3 | O45: =IF('Tidal Device Database'!S24="",0,(VLOOKUP('Tidal Device Database'!S24,'Tidal Device Database'!$A$105:$B$109,2,FALSE))) -> 0 | P45: 65
A46: ='Tidal Device Database'!A25 -> 24 | B46: 34 | C46: ='Tidal Device Database'!B25 -> Sabella D10 | D46: ='Tidal Device Database'!C25 -> Horizontal Axis | E46: =IF('Tidal Device Database'!I25="",0,(VLOOKUP('Tidal Device Database'!I25,'Tidal Device Database'!$A$131:$B$135,2,FALSE))) -> 3 | F46: =IF('Tidal Device Database'!J25="",0,(VLOOKUP('Tidal Device Database'!J25,'Tidal Device Database'!$A$137:$B$141,2,FALSE))) -> 3 | G46: =IF('Tidal Device Database'!K25="",0,(VLOOKUP('Tidal Device Database'!K25,'Tidal Device Database'!$A$143:$B$147,2,FALSE))) -> 0 | H46: =IF('Tidal Device Database'!L25="",0,(VLOOKUP('Tidal Device Database'!L25,'Tidal Device Database'!$A$69:$B$73,2,FALSE))) -> 0 | I46: =IF('Tidal Device Database'!M25="",0,(VLOOKUP('Tidal Device Database'!M25,'Tidal Device Database'!$A$75:$B$79,2,FALSE))) -> 0 | J46: =IF('Tidal Device Database'!N25="",0,(VLOOKUP('Tidal Device Database'!N25,'Tidal Device Database'!$A$81:$B$85,2,FALSE))) -> 4 | K46: =IF('Tidal Device Database'!O25="",0,(VLOOKUP('Tidal Device Database'!O25,'Tidal Device Database'!$A$87:$B$91,2,FALSE))) -> 0 | L46: =IF('Tidal Device Database'!P25="",0,(VLOOKUP('Tidal Device Database'!P25,'Tidal Device Database'!$A$93:$B$97,2,FALSE))) -> 0 | M46: =IF('Tidal Device Database'!Q25="",0,(VLOOKUP('Tidal Device Database'!Q25,'Tidal Device Database'!$A$99:$B$103,2,FALSE))) -> 0 | N46: =IF('Tidal Device Database'!R25="",0,(VLOOKUP('Tidal Device Database'!R25,'Tidal Device Database'!$A$115:$B$119,2,FALSE))) -> 0 | O46: =IF('Tidal Device Database'!S25="",0,(VLOOKUP('Tidal Device Database'!S25,'Tidal Device Database'!$A$105:$B$109,2,FALSE))) -> 0 | P46: 34
A47: ='Tidal Device Database'!A26 -> 25 | B47: 34 | C47: ='Tidal Device Database'!B26 -> Sabella D12 | D47: ='Tidal Device Database'!C26 -> Horizontal Axis | E47: =IF('Tidal Device Database'!I26="",0,(VLOOKUP('Tidal Device Database'!I26,'Tidal Device Database'!$A$131:$B$135,2,FALSE))) -> 3 | F47: =IF('Tidal Device Database'!J26="",0,(VLOOKUP('Tidal Device Database'!J26,'Tidal Device Database'!$A$137:$B$141,2,FALSE))) -> 3 | G47: =IF('Tidal Device Database'!K26="",0,(VLOOKUP('Tidal Device Database'!K26,'Tidal Device Database'!$A$143:$B$147,2,FALSE))) -> 0 | H47: =IF('Tidal Device Database'!L26="",0,(VLOOKUP('Tidal Device Database'!L26,'Tidal Device Database'!$A$69:$B$73,2,FALSE))) -> 0 | I47: =IF('Tidal Device Database'!M26="",0,(VLOOKUP('Tidal Device Database'!M26,'Tidal Device Database'!$A$75:$B$79,2,FALSE))) -> 0 | J47: =IF('Tidal Device Database'!N26="",0,(VLOOKUP('Tidal Device Database'!N26,'Tidal Device Database'!$A$81:$B$85,2,FALSE))) -> 4 | K47: =IF('Tidal Device Database'!O26="",0,(VLOOKUP('Tidal Device Database'!O26,'Tidal Device Database'!$A$87:$B$91,2,FALSE))) -> 0 | L47: =IF('Tidal Device Database'!P26="",0,(VLOOKUP('Tidal Device Database'!P26,'Tidal Device Database'!$A$93:$B$97,2,FALSE))) -> 0 | M47: =IF('Tidal Device Database'!Q26="",0,(VLOOKUP('Tidal Device Database'!Q26,'Tidal Device Database'!$A$99:$B$103,2,FALSE))) -> 0 | N47: =IF('Tidal Device Database'!R26="",0,(VLOOKUP('Tidal Device Database'!R26,'Tidal Device Database'!$A$115:$B$119,2,FALSE))) -> 0 | O47: =IF('Tidal Device Database'!S26="",0,(VLOOKUP('Tidal Device Database'!S26,'Tidal Device Database'!$A$105:$B$109,2,FALSE))) -> 0 | P47: 34
A48: ='Tidal Device Database'!A27 -> 26 | B48: 31 | C48: ='Tidal Device Database'!B27 -> Sabella D15 | D48: ='Tidal Device Database'!C27 -> Horizontal Axis | E48: =IF('Tidal Device Database'!I27="",0,(VLOOKUP('Tidal Device Database'!I27,'Tidal Device Database'!$A$131:$B$135,2,FALSE))) -> 2 | F48: =IF('Tidal Device Database'!J27="",0,(VLOOKUP('Tidal Device Database'!J27,'Tidal Device Database'!$A$137:$B$141,2,FALSE))) -> 3 | G48: =IF('Tidal Device Database'!K27="",0,(VLOOKUP('Tidal Device Database'!K27,'Tidal Device Database'!$A$143:$B$147,2,FALSE))) -> 0 | H48: =IF('Tidal Device Database'!L27="",0,(VLOOKUP('Tidal Device Database'!L27,'Tidal Device Database'!$A$69:$B$73,2,FALSE))) -> 0 | I48: =IF('Tidal Device Database'!M27="",0,(VLOOKUP('Tidal Device Database'!M27,'Tidal Device Database'!$A$75:$B$79,2,FALSE))) -> 0 | J48: =IF('Tidal Device Database'!N27="",0,(VLOOKUP('Tidal Device Database'!N27,'Tidal Device Database'!$A$81:$B$85,2,FALSE))) -> 4 | K48: =IF('Tidal Device Database'!O27="",0,(VLOOKUP('Tidal Device Database'!O27,'Tidal Device Database'!$A$87:$B$91,2,FALSE))) -> 0 | L48: =IF('Tidal Device Database'!P27="",0,(VLOOKUP('Tidal Device Database'!P27,'Tidal Device Database'!$A$93:$B$97,2,FALSE))) -> 0 | M48: =IF('Tidal Device Database'!Q27="",0,(VLOOKUP('Tidal Device Database'!Q27,'Tidal Device Database'!$A$99:$B$103,2,FALSE))) -> 0 | N48: =IF('Tidal Device Database'!R27="",0,(VLOOKUP('Tidal Device Database'!R27,'Tidal Device Database'!$A$115:$B$119,2,FALSE))) -> 0 | O48: =IF('Tidal Device Database'!S27="",0,(VLOOKUP('Tidal Device Database'!S27,'Tidal Device Database'!$A$105:$B$109,2,FALSE))) -> 0 | P48: 31
A49: ='Tidal Device Database'!A28 -> 27 | B49: 116 | C49: ='Tidal Device Database'!B28 -> Shottel Instream Turbine I | D49: ='Tidal Device Database'!C28 -> Horizontal Axis | E49: =IF('Tidal Device Database'!I28="",0,(VLOOKUP('Tidal Device Database'!I28,'Tidal Device Database'!$A$131:$B$135,2,FALSE))) -> 5 | F49: =IF('Tidal Device Database'!J28="",0,(VLOOKUP('Tidal Device Database'!J28,'Tidal Device Database'!$A$137:$B$141,2,FALSE))) -> 5 | G49: =IF('Tidal Device Database'!K28="",0,(VLOOKUP('Tidal Device Database'!K28,'Tidal Device Database'!$A$143:$B$147,2,FALSE))) -> 0 | H49: =IF('Tidal Device Database'!L28="",0,(VLOOKUP('Tidal Device Database'!L28,'Tidal Device Database'!$A$69:$B$73,2,FALSE))) -> 0 | I49: =IF('Tidal Device Database'!M28="",0,(VLOOKUP('Tidal Device Database'!M28,'Tidal Device Database'!$A$75:$B$79,2,FALSE))) -> 4 | J49: =IF('Tidal Device Database'!N28="",0,(VLOOKUP('Tidal Device Database'!N28,'Tidal Device Database'!$A$81:$B$85,2,FALSE))) -> 5 | K49: =IF('Tidal Device Database'!O28="",0,(VLOOKUP('Tidal Device Database'!O28,'Tidal Device Database'!$A$87:$B$91,2,FALSE))) -> 0 | L49: =IF('Tidal Device Database'!P28="",0,(VLOOKUP('Tidal Device Database'!P28,'Tidal Device Database'!$A$93:$B$97,2,FALSE))) -> 0 | M49: =IF('Tidal Device Database'!Q28="",0,(VLOOKUP('Tidal Device Database'!Q28,'Tidal Device Database'!$A$99:$B$103,2,FALSE))) -> 5 | N49: =IF('Tidal Device Database'!R28="",0,(VLOOKUP('Tidal Device Database'!R28,'Tidal Device Database'!$A$115:$B$119,2,FALSE))) -> 5 | O49: =IF('Tidal Device Database'!S28="",0,(VLOOKUP('Tidal Device Database'!S28,'Tidal Device Database'!$A$105:$B$109,2,FALSE))) -> 4 | P49: 116
A50: ='Tidal Device Database'!A29 -> 28 | B50: 106 | C50: ='Tidal Device Database'!B29 -> Shottel Instream Turbine II | D50: ='Tidal Device Database'!C29 -> Horizontal Axis | E50: =IF('Tidal Device Database'!I29="",0,(VLOOKUP('Tidal Device Database'!I29,'Tidal Device Database'!$A$131:$B$135,2,FALSE))) -> 5 | F50: =IF('Tidal Device Database'!J29="",0,(VLOOKUP('Tidal Device Database'!J29,'Tidal Device Database'!$A$137:$B$141,2,FALSE))) -> 5 | G50: =IF('Tidal Device Database'!K29="",0,(VLOOKUP('Tidal Device Database'!K29,'Tidal Device Database'!$A$143:$B$147,2,FALSE))) -> 0 | H50: =IF('Tidal Device Database'!L29="",0,(VLOOKUP('Tidal Device Database'!L29,'Tidal Device Database'!$A$69:$B$73,2,FALSE))) -> 0 | I50: =IF('Tidal Device Database'!M29="",0,(VLOOKUP('Tidal Device Database'!M29,'Tidal Device Database'!$A$75:$B$79,2,FALSE))) -> 4 | J50: =IF('Tidal Device Database'!N29="",0,(VLOOKUP('Tidal Device Database'!N29,'Tidal Device Database'!$A$81:$B$85,2,FALSE))) -> 5 | K50: =IF('Tidal Device Database'!O29="",0,(VLOOKUP('Tidal Device Database'!O29,'Tidal Device Database'!$A$87:$B$91,2,FALSE))) -> 0 | L50: =IF('Tidal Device Database'!P29="",0,(VLOOKUP('Tidal Device Database'!P29,'Tidal Device Database'!$A$93:$B$97,2,FALSE))) -> 0 | M50: =IF('Tidal Device Database'!Q29="",0,(VLOOKUP('Tidal Device Database'!Q29,'Tidal Device Database'!$A$99:$B$103,2,FALSE))) -> 3 | N50: =IF('Tidal Device Database'!R29="",0,(VLOOKUP('Tidal Device Database'!R29,'Tidal Device Database'!$A$115:$B$119,2,FALSE))) -> 4 | O50: =IF('Tidal Device Database'!S29="",0,(VLOOKUP('Tidal Device Database'!S29,'Tidal Device Database'!$A$105:$B$109,2,FALSE))) -> 4 | P50: 106
A51: ='Tidal Device Database'!A30 -> 29 | B51: 104 | C51: ='Tidal Device Database'!B30 -> Shottel Instream Turbine III | D51: ='Tidal Device Database'!C30 -> Horizontal Axis | E51: =IF('Tidal Device Database'!I30="",0,(VLOOKUP('Tidal Device Database'!I30,'Tidal Device Database'!$A$131:$B$135,2,FALSE))) -> 5 | F51: =IF('Tidal Device Database'!J30="",0,(VLOOKUP('Tidal Device Database'!J30,'Tidal Device Database'!$A$137:$B$141,2,FALSE))) -> 5 | G51: =IF('Tidal Device Database'!K30="",0,(VLOOKUP('Tidal Device Database'!K30,'Tidal Device Database'!$A$143:$B$147,2,FALSE))) -> 0 | H51: =IF('Tidal Device Database'!L30="",0,(VLOOKUP('Tidal Device Database'!L30,'Tidal Device Database'!$A$69:$B$73,2,FALSE))) -> 0 | I51: =IF('Tidal Device Database'!M30="",0,(VLOOKUP('Tidal Device Database'!M30,'Tidal Device Database'!$A$75:$B$79,2,FALSE))) -> 4 | J51: =IF('Tidal Device Database'!N30="",0,(VLOOKUP('Tidal Device Database'!N30,'Tidal Device Database'!$A$81:$B$85,2,FALSE))) -> 5 | K51: =IF('Tidal Device Database'!O30="",0,(VLOOKUP('Tidal Device Database'!O30,'Tidal Device Database'!$A$87:$B$91,2,FALSE))) -> 0 | L51: =IF('Tidal Device Database'!P30="",0,(VLOOKUP('Tidal Device Database'!P30,'Tidal Device Database'!$A$93:$B$97,2,FALSE))) -> 0 | M51: =IF('Tidal Device Database'!Q30="",0,(VLOOKUP('Tidal Device Database'!Q30,'Tidal Device Database'!$A$99:$B$103,2,FALSE))) -> 3 | N51: =IF('Tidal Device Database'!R30="",0,(VLOOKUP('Tidal Device Database'!R30,'Tidal Device Database'!$A$115:$B$119,2,FALSE))) -> 3 | O51: =IF('Tidal Device Database'!S30="",0,(VLOOKUP('Tidal Device Database'!S30,'Tidal Device Database'!$A$105:$B$109,2,FALSE))) -> 4 | P51: 104
A52: ='Tidal Device Database'!A31 -> 30 | B52: 61 | C52: ='Tidal Device Database'!B31 -> SeaPower GEM | D52: ='Tidal Device Database'!C31 -> Horizontal Axis | E52: =IF('Tidal Device Database'!I31="",0,(VLOOKUP('Tidal Device Database'!I31,'Tidal Device Database'!$A$131:$B$135,2,FALSE))) -> 0 | F52: =IF('Tidal Device Database'!J31="",0,(VLOOKUP('Tidal Device Database'!J31,'Tidal Device Database'!$A$137:$B$141,2,FALSE))) -> 0 | G52: =IF('Tidal Device Database'!K31="",0,(VLOOKUP('Tidal Device Database'!K31,'Tidal Device Database'!$A$143:$B$147,2,FALSE))) -> 5 | H52: =IF('Tidal Device Database'!L31="",0,(VLOOKUP('Tidal Device Database'!L31,'Tidal Device Database'!$A$69:$B$73,2,FALSE))) -> 0 | I52: =IF('Tidal Device Database'!M31="",0,(VLOOKUP('Tidal Device Database'!M31,'Tidal Device Database'!$A$75:$B$79,2,FALSE))) -> 4 | J52: =IF('Tidal Device Database'!N31="",0,(VLOOKUP('Tidal Device Database'!N31,'Tidal Device Database'!$A$81:$B$85,2,FALSE))) -> 5 | K52: =IF('Tidal Device Database'!O31="",0,(VLOOKUP('Tidal Device Database'!O31,'Tidal Device Database'!$A$87:$B$91,2,FALSE))) -> 0 | L52: =IF('Tidal Device Database'!P31="",0,(VLOOKUP('Tidal Device Database'!P31,'Tidal Device Database'!$A$93:$B$97,2,FALSE))) -> 0 | M52: =IF('Tidal Device Database'!Q31="",0,(VLOOKUP('Tidal Device Database'!Q31,'Tidal Device Database'!$A$99:$B$103,2,FALSE))) -> 0 | N52: =IF('Tidal Device Database'!R31="",0,(VLOOKUP('Tidal Device Database'!R31,'Tidal Device Database'!$A$115:$B$119,2,FALSE))) -> 0 | O52: =IF('Tidal Device Database'!S31="",0,(VLOOKUP('Tidal Device Database'!S31,'Tidal Device Database'!$A$105:$B$109,2,FALSE))) -> 0 | P52: 61
A53: ='Tidal Device Database'!A32 -> 31 | B53: 68 | C53: ='Tidal Device Database'!B32 -> Tydal Energy Pty (1.5) | D53: ='Tidal Device Database'!C32 -> Venturi Rotor | E53: =IF('Tidal Device Database'!I32="",0,(VLOOKUP('Tidal Device Database'!I32,'Tidal Device Database'!$A$131:$B$135,2,FALSE))) -> 5 | F53: =IF('Tidal Device Database'!J32="",0,(VLOOKUP('Tidal Device Database'!J32,'Tidal Device Database'!$A$137:$B$141,2,FALSE))) -> 4 | G53: =IF('Tidal Device Database'!K32="",0,(VLOOKUP('Tidal Device Database'!K32,'Tidal Device Database'!$A$143:$B$147,2,FALSE))) -> 5 | H53: =IF('Tidal Device Database'!L32="",0,(VLOOKUP('Tidal Device Database'!L32,'Tidal Device Database'!$A$69:$B$73,2,FALSE))) -> 0 | I53: =IF('Tidal Device Database'!M32="",0,(VLOOKUP('Tidal Device Database'!M32,'Tidal Device Database'!$A$75:$B$79,2,FALSE))) -> 0 | J53: =IF('Tidal Device Database'!N32="",0,(VLOOKUP('Tidal Device Database'!N32,'Tidal Device Database'!$A$81:$B$85,2,FALSE))) -> 4 | K53: =IF('Tidal Device Database'!O32="",0,(VLOOKUP('Tidal Device Database'!O32,'Tidal Device Database'!$A$87:$B$91,2,FALSE))) -> 0 | L53: =IF('Tidal Device Database'!P32="",0,(VLOOKUP('Tidal Device Database'!P32,'Tidal Device Database'!$A$93:$B$97,2,FALSE))) -> 0 | M53: =IF('Tidal Device Database'!Q32="",0,(VLOOKUP('Tidal Device Database'!Q32,'Tidal Device Database'!$A$99:$B$103,2,FALSE))) -> 0 | N53: =IF('Tidal Device Database'!R32="",0,(VLOOKUP('Tidal Device Database'!R32,'Tidal Device Database'!$A$115:$B$119,2,FALSE))) -> 0 | O53: =IF('Tidal Device Database'!S32="",0,(VLOOKUP('Tidal Device Database'!S32,'Tidal Device Database'!$A$105:$B$109,2,FALSE))) -> 0 | P53: 68
A54: ='Tidal Device Database'!A33 -> 32 | B54: 68 | C54: ='Tidal Device Database'!B33 -> Tydal Energy Pty (2.4) | D54: ='Tidal Device Database'!C33 -> Venturi Rotor | E54: =IF('Tidal Device Database'!I33="",0,(VLOOKUP('Tidal Device Database'!I33,'Tidal Device Database'!$A$131:$B$135,2,FALSE))) -> 5 | F54: =IF('Tidal Device Database'!J33="",0,(VLOOKUP('Tidal Device Database'!J33,'Tidal Device Database'!$A$137:$B$141,2,FALSE))) -> 4 | G54: =IF('Tidal Device Database'!K33="",0,(VLOOKUP('Tidal Device Database'!K33,'Tidal Device Database'!$A$143:$B$147,2,FALSE))) -> 5 | H54: =IF('Tidal Device Database'!L33="",0,(VLOOKUP('Tidal Device Database'!L33,'Tidal Device Database'!$A$69:$B$73,2,FALSE))) -> 0 | I54: =IF('Tidal Device Database'!M33="",0,(VLOOKUP('Tidal Device Database'!M33,'Tidal Device Database'!$A$75:$B$79,2,FALSE))) -> 0 | J54: =IF('Tidal Device Database'!N33="",0,(VLOOKUP('Tidal Device Database'!N33,'Tidal Device Database'!$A$81:$B$85,2,FALSE))) -> 4 | K54: =IF('Tidal Device Database'!O33="",0,(VLOOKUP('Tidal Device Database'!O33,'Tidal Device Database'!$A$87:$B$91,2,FALSE))) -> 0 | L54: =IF('Tidal Device Database'!P33="",0,(VLOOKUP('Tidal Device Database'!P33,'Tidal Device Database'!$A$93:$B$97,2,FALSE))) -> 0 | M54: =IF('Tidal Device Database'!Q33="",0,(VLOOKUP('Tidal Device Database'!Q33,'Tidal Device Database'!$A$99:$B$103,2,FALSE))) -> 0 | N54: =IF('Tidal Device Database'!R33="",0,(VLOOKUP('Tidal Device Database'!R33,'Tidal Device Database'!$A$115:$B$119,2,FALSE))) -> 0 | O54: =IF('Tidal Device Database'!S33="",0,(VLOOKUP('Tidal Device Database'!S33,'Tidal Device Database'!$A$105:$B$109,2,FALSE))) -> 0 | P54: 68
A55: ='Tidal Device Database'!A34 -> 33 | B55: 68 | C55: ='Tidal Device Database'!B34 -> Tydal Energy Pty (5) | D55: ='Tidal Device Database'!C34 -> Venturi Rotor | E55: =IF('Tidal Device Database'!I34="",0,(VLOOKUP('Tidal Device Database'!I34,'Tidal Device Database'!$A$131:$B$135,2,FALSE))) -> 5 | F55: =IF('Tidal Device Database'!J34="",0,(VLOOKUP('Tidal Device Database'!J34,'Tidal Device Database'!$A$137:$B$141,2,FALSE))) -> 4 | G55: =IF('Tidal Device Database'!K34="",0,(VLOOKUP('Tidal Device Database'!K34,'Tidal Device Database'!$A$143:$B$147,2,FALSE))) -> 5 | H55: =IF('Tidal Device Database'!L34="",0,(VLOOKUP('Tidal Device Database'!L34,'Tidal Device Database'!$A$69:$B$73,2,FALSE))) -> 0 | I55: =IF('Tidal Device Database'!M34="",0,(VLOOKUP('Tidal Device Database'!M34,'Tidal Device Database'!$A$75:$B$79,2,FALSE))) -> 0 | J55: =IF('Tidal Device Database'!N34="",0,(VLOOKUP('Tidal Device Database'!N34,'Tidal Device Database'!$A$81:$B$85,2,FALSE))) -> 4 | K55: =IF('Tidal Device Database'!O34="",0,(VLOOKUP('Tidal Device Database'!O34,'Tidal Device Database'!$A$87:$B$91,2,FALSE))) -> 0 | L55: =IF('Tidal Device Database'!P34="",0,(VLOOKUP('Tidal Device Database'!P34,'Tidal Device Database'!$A$93:$B$97,2,FALSE))) -> 0 | M55: =IF('Tidal Device Database'!Q34="",0,(VLOOKUP('Tidal Device Database'!Q34,'Tidal Device Database'!$A$99:$B$103,2,FALSE))) -> 0 | N55: =IF('Tidal Device Database'!R34="",0,(VLOOKUP('Tidal Device Database'!R34,'Tidal Device Database'!$A$115:$B$119,2,FALSE))) -> 0 | O55: =IF('Tidal Device Database'!S34="",0,(VLOOKUP('Tidal Device Database'!S34,'Tidal Device Database'!$A$105:$B$109,2,FALSE))) -> 0 | P55: 68
A56: ='Tidal Device Database'!A35 -> 34 | B56: 125 | C56: ='Tidal Device Database'!B35 -> EVG-005H | D56: ='Tidal Device Database'!C35 -> Vertical Axis | E56: =IF('Tidal Device Database'!I35="",0,(VLOOKUP('Tidal Device Database'!I35,'Tidal Device Database'!$A$131:$B$135,2,FALSE))) -> 5 | F56: =IF('Tidal Device Database'!J35="",0,(VLOOKUP('Tidal Device Database'!J35,'Tidal Device Database'!$A$137:$B$141,2,FALSE))) -> 2 | G56: =IF('Tidal Device Database'!K35="",0,(VLOOKUP('Tidal Device Database'!K35,'Tidal Device Database'!$A$143:$B$147,2,FALSE))) -> 5 | H56: =IF('Tidal Device Database'!L35="",0,(VLOOKUP('Tidal Device Database'!L35,'Tidal Device Database'!$A$69:$B$73,2,FALSE))) -> 5 | I56: =IF('Tidal Device Database'!M35="",0,(VLOOKUP('Tidal Device Database'!M35,'Tidal Device Database'!$A$75:$B$79,2,FALSE))) -> 4 | J56: =IF('Tidal Device Database'!N35="",0,(VLOOKUP('Tidal Device Database'!N35,'Tidal Device Database'!$A$81:$B$85,2,FALSE))) -> 5 | K56: =IF('Tidal Device Database'!O35="",0,(VLOOKUP('Tidal Device Database'!O35,'Tidal Device Database'!$A$87:$B$91,2,FALSE))) -> 0 | L56: =IF('Tidal Device Database'!P35="",0,(VLOOKUP('Tidal Device Database'!P35,'Tidal Device Database'!$A$93:$B$97,2,FALSE))) -> 0 | M56: =IF('Tidal Device Database'!Q35="",0,(VLOOKUP('Tidal Device Database'!Q35,'Tidal Device Database'!$A$99:$B$103,2,FALSE))) -> 3 | N56: =IF('Tidal Device Database'!R35="",0,(VLOOKUP('Tidal Device Database'!R35,'Tidal Device Database'!$A$115:$B$119,2,FALSE))) -> 3 | O56: =IF('Tidal Device Database'!S35="",0,(VLOOKUP('Tidal Device Database'!S35,'Tidal Device Database'!$A$105:$B$109,2,FALSE))) -> 4 | P56: 125
A57: ='Tidal Device Database'!A36 -> 35 | B57: 125 | C57: ='Tidal Device Database'!B36 -> EVG-010H | D57: ='Tidal Device Database'!C36 -> Vertical Axis | E57: =IF('Tidal Device Database'!I36="",0,(VLOOKUP('Tidal Device Database'!I36,'Tidal Device Database'!$A$131:$B$135,2,FALSE))) -> 5 | F57: =IF('Tidal Device Database'!J36="",0,(VLOOKUP('Tidal Device Database'!J36,'Tidal Device Database'!$A$137:$B$141,2,FALSE))) -> 2 | G57: =IF('Tidal Device Database'!K36="",0,(VLOOKUP('Tidal Device Database'!K36,'Tidal Device Database'!$A$143:$B$147,2,FALSE))) -> 5 | H57: =IF('Tidal Device Database'!L36="",0,(VLOOKUP('Tidal Device Database'!L36,'Tidal Device Database'!$A$69:$B$73,2,FALSE))) -> 5 | I57: =IF('Tidal Device Database'!M36="",0,(VLOOKUP('Tidal Device Database'!M36,'Tidal Device Database'!$A$75:$B$79,2,FALSE))) -> 4 | J57: =IF('Tidal Device Database'!N36="",0,(VLOOKUP('Tidal Device Database'!N36,'Tidal Device Database'!$A$81:$B$85,2,FALSE))) -> 5 | K57: =IF('Tidal Device Database'!O36="",0,(VLOOKUP('Tidal Device Database'!O36,'Tidal Device Database'!$A$87:$B$91,2,FALSE))) -> 0 | L57: =IF('Tidal Device Database'!P36="",0,(VLOOKUP('Tidal Device Database'!P36,'Tidal Device Database'!$A$93:$B$97,2,FALSE))) -> 0 | M57: =IF('Tidal Device Database'!Q36="",0,(VLOOKUP('Tidal Device Database'!Q36,'Tidal Device Database'!$A$99:$B$103,2,FALSE))) -> 3 | N57: =IF('Tidal Device Database'!R36="",0,(VLOOKUP('Tidal Device Database'!R36,'Tidal Device Database'!$A$115:$B$119,2,FALSE))) -> 3 | O57: =IF('Tidal Device Database'!S36="",0,(VLOOKUP('Tidal Device Database'!S36,'Tidal Device Database'!$A$105:$B$109,2,FALSE))) -> 4 | P57: 125
A58: ='Tidal Device Database'!A37 -> 36 | B58: 125 | C58: ='Tidal Device Database'!B37 -> EVG-025H | D58: ='Tidal Device Database'!C37 -> Vertical Axis | E58: =IF('Tidal Device Database'!I37="",0,(VLOOKUP('Tidal Device Database'!I37,'Tidal Device Database'!$A$131:$B$135,2,FALSE))) -> 5 | F58: =IF('Tidal Device Database'!J37="",0,(VLOOKUP('Tidal Device Database'!J37,'Tidal Device Database'!$A$137:$B$141,2,FALSE))) -> 2 | G58: =IF('Tidal Device Database'!K37="",0,(VLOOKUP('Tidal Device Database'!K37,'Tidal Device Database'!$A$143:$B$147,2,FALSE))) -> 5 | H58: =IF('Tidal Device Database'!L37="",0,(VLOOKUP('Tidal Device Database'!L37,'Tidal Device Database'!$A$69:$B$73,2,FALSE))) -> 5 | I58: =IF('Tidal Device Database'!M37="",0,(VLOOKUP('Tidal Device Database'!M37,'Tidal Device Database'!$A$75:$B$79,2,FALSE))) -> 4 | J58: =IF('Tidal Device Database'!N37="",0,(VLOOKUP('Tidal Device Database'!N37,'Tidal Device Database'!$A$81:$B$85,2,FALSE))) -> 5 | K58: =IF('Tidal Device Database'!O37="",0,(VLOOKUP('Tidal Device Database'!O37,'Tidal Device Database'!$A$87:$B$91,2,FALSE))) -> 0 | L58: =IF('Tidal Device Database'!P37="",0,(VLOOKUP('Tidal Device Database'!P37,'Tidal Device Database'!$A$93:$B$97,2,FALSE))) -> 0 | M58: =IF('Tidal Device Database'!Q37="",0,(VLOOKUP('Tidal Device Database'!Q37,'Tidal Device Database'!$A$99:$B$103,2,FALSE))) -> 3 | N58: =IF('Tidal Device Database'!R37="",0,(VLOOKUP('Tidal Device Database'!R37,'Tidal Device Database'!$A$115:$B$119,2,FALSE))) -> 3 | O58: =IF('Tidal Device Database'!S37="",0,(VLOOKUP('Tidal Device Database'!S37,'Tidal Device Database'!$A$105:$B$109,2,FALSE))) -> 4 | P58: 125
A59: ='Tidal Device Database'!A38 -> 37 | B59: 125 | C59: ='Tidal Device Database'!B38 -> EVG-050H | D59: ='Tidal Device Database'!C38 -> Vertical Axis | E59: =IF('Tidal Device Database'!I38="",0,(VLOOKUP('Tidal Device Database'!I38,'Tidal Device Database'!$A$131:$B$135,2,FALSE))) -> 5 | F59: =IF('Tidal Device Database'!J38="",0,(VLOOKUP('Tidal Device Database'!J38,'Tidal Device Database'!$A$137:$B$141,2,FALSE))) -> 2 | G59: =IF('Tidal Device Database'!K38="",0,(VLOOKUP('Tidal Device Database'!K38,'Tidal Device Database'!$A$143:$B$147,2,FALSE))) -> 5 | H59: =IF('Tidal Device Database'!L38="",0,(VLOOKUP('Tidal Device Database'!L38,'Tidal Device Database'!$A$69:$B$73,2,FALSE))) -> 5 | I59: =IF('Tidal Device Database'!M38="",0,(VLOOKUP('Tidal Device Database'!M38,'Tidal Device Database'!$A$75:$B$79,2,FALSE))) -> 4 | J59: =IF('Tidal Device Database'!N38="",0,(VLOOKUP('Tidal Device Database'!N38,'Tidal Device Database'!$A$81:$B$85,2,FALSE))) -> 5 | K59: =IF('Tidal Device Database'!O38="",0,(VLOOKUP('Tidal Device Database'!O38,'Tidal Device Database'!$A$87:$B$91,2,FALSE))) -> 0 | L59: =IF('Tidal Device Database'!P38="",0,(VLOOKUP('Tidal Device Database'!P38,'Tidal Device Database'!$A$93:$B$97,2,FALSE))) -> 0 | M59: =IF('Tidal Device Database'!Q38="",0,(VLOOKUP('Tidal Device Database'!Q38,'Tidal Device Database'!$A$99:$B$103,2,FALSE))) -> 3 | N59: =IF('Tidal Device Database'!R38="",0,(VLOOKUP('Tidal Device Database'!R38,'Tidal Device Database'!$A$115:$B$119,2,FALSE))) -> 3 | O59: =IF('Tidal Device Database'!S38="",0,(VLOOKUP('Tidal Device Database'!S38,'Tidal Device Database'!$A$105:$B$109,2,FALSE))) -> 4 | P59: 125
A60: ='Tidal Device Database'!A39 -> 38 | B60: 128 | C60: ='Tidal Device Database'!B39 -> ENC-025L | D60: ='Tidal Device Database'!C39 -> Vertical Axis | E60: =IF('Tidal Device Database'!I39="",0,(VLOOKUP('Tidal Device Database'!I39,'Tidal Device Database'!$A$131:$B$135,2,FALSE))) -> 5 | F60: =IF('Tidal Device Database'!J39="",0,(VLOOKUP('Tidal Device Database'!J39,'Tidal Device Database'!$A$137:$B$141,2,FALSE))) -> 3 | G60: =IF('Tidal Device Database'!K39="",0,(VLOOKUP('Tidal Device Database'!K39,'Tidal Device Database'!$A$143:$B$147,2,FALSE))) -> 5 | H60: =IF('Tidal Device Database'!L39="",0,(VLOOKUP('Tidal Device Database'!L39,'Tidal Device Database'!$A$69:$B$73,2,FALSE))) -> 5 | I60: =IF('Tidal Device Database'!M39="",0,(VLOOKUP('Tidal Device Database'!M39,'Tidal Device Database'!$A$75:$B$79,2,FALSE))) -> 4 | J60: =IF('Tidal Device Database'!N39="",0,(VLOOKUP('Tidal Device Database'!N39,'Tidal Device Database'!$A$81:$B$85,2,FALSE))) -> 5 | K60: =IF('Tidal Device Database'!O39="",0,(VLOOKUP('Tidal Device Database'!O39,'Tidal Device Database'!$A$87:$B$91,2,FALSE))) -> 0 | L60: =IF('Tidal Device Database'!P39="",0,(VLOOKUP('Tidal Device Database'!P39,'Tidal Device Database'!$A$93:$B$97,2,FALSE))) -> 0 | M60: =IF('Tidal Device Database'!Q39="",0,(VLOOKUP('Tidal Device Database'!Q39,'Tidal Device Database'!$A$99:$B$103,2,FALSE))) -> 3 | N60: =IF('Tidal Device Database'!R39="",0,(VLOOKUP('Tidal Device Database'!R39,'Tidal Device Database'!$A$115:$B$119,2,FALSE))) -> 3 | O60: =IF('Tidal Device Database'!S39="",0,(VLOOKUP('Tidal Device Database'!S39,'Tidal Device Database'!$A$105:$B$109,2,FALSE))) -> 4 | P60: 128
A61: ='Tidal Device Database'!A40 -> 39 | B61: 125 | C61: ='Tidal Device Database'!B40 -> ENC-025H | D61: ='Tidal Device Database'!C40 -> Vertical Axis | E61: =IF('Tidal Device Database'!I40="",0,(VLOOKUP('Tidal Device Database'!I40,'Tidal Device Database'!$A$131:$B$135,2,FALSE))) -> 5 | F61: =IF('Tidal Device Database'!J40="",0,(VLOOKUP('Tidal Device Database'!J40,'Tidal Device Database'!$A$137:$B$141,2,FALSE))) -> 2 | G61: =IF('Tidal Device Database'!K40="",0,(VLOOKUP('Tidal Device Database'!K40,'Tidal Device Database'!$A$143:$B$147,2,FALSE))) -> 5 | H61: =IF('Tidal Device Database'!L40="",0,(VLOOKUP('Tidal Device Database'!L40,'Tidal Device Database'!$A$69:$B$73,2,FALSE))) -> 5 | I61: =IF('Tidal Device Database'!M40="",0,(VLOOKUP('Tidal Device Database'!M40,'Tidal Device Database'!$A$75:$B$79,2,FALSE))) -> 4 | J61: =IF('Tidal Device Database'!N40="",0,(VLOOKUP('Tidal Device Database'!N40,'Tidal Device Database'!$A$81:$B$85,2,FALSE))) -> 5 | K61: =IF('Tidal Device Database'!O40="",0,(VLOOKUP('Tidal Device Database'!O40,'Tidal Device Database'!$A$87:$B$91,2,FALSE))) -> 0 | L61: =IF('Tidal Device Database'!P40="",0,(VLOOKUP('Tidal Device Database'!P40,'Tidal Device Database'!$A$93:$B$97,2,FALSE))) -> 0 | M61: =IF('Tidal Device Database'!Q40="",0,(VLOOKUP('Tidal Device Database'!Q40,'Tidal Device Database'!$A$99:$B$103,2,FALSE))) -> 3 | N61: =IF('Tidal Device Database'!R40="",0,(VLOOKUP('Tidal Device Database'!R40,'Tidal Device Database'!$A$115:$B$119,2,FALSE))) -> 3 | O61: =IF('Tidal Device Database'!S40="",0,(VLOOKUP('Tidal Device Database'!S40,'Tidal Device Database'!$A$105:$B$109,2,FALSE))) -> 4 | P61: 125
A62: ='Tidal Device Database'!A41 -> 40 | B62: 117 | C62: ='Tidal Device Database'!B41 -> ENC-125H | D62: ='Tidal Device Database'!C41 -> Vertical Axis | E62: =IF('Tidal Device Database'!I41="",0,(VLOOKUP('Tidal Device Database'!I41,'Tidal Device Database'!$A$131:$B$135,2,FALSE))) -> 4 | F62: =IF('Tidal Device Database'!J41="",0,(VLOOKUP('Tidal Device Database'!J41,'Tidal Device Database'!$A$137:$B$141,2,FALSE))) -> 2 | G62: =IF('Tidal Device Database'!K41="",0,(VLOOKUP('Tidal Device Database'!K41,'Tidal Device Database'!$A$143:$B$147,2,FALSE))) -> 5 | H62: =IF('Tidal Device Database'!L41="",0,(VLOOKUP('Tidal Device Database'!L41,'Tidal Device Database'!$A$69:$B$73,2,FALSE))) -> 5 | I62: =IF('Tidal Device Database'!M41="",0,(VLOOKUP('Tidal Device Database'!M41,'Tidal Device Database'!$A$75:$B$79,2,FALSE))) -> 4 | J62: =IF('Tidal Device Database'!N41="",0,(VLOOKUP('Tidal Device Database'!N41,'Tidal Device Database'!$A$81:$B$85,2,FALSE))) -> 5 | K62: =IF('Tidal Device Database'!O41="",0,(VLOOKUP('Tidal Device Database'!O41,'Tidal Device Database'!$A$87:$B$91,2,FALSE))) -> 0 | L62: =IF('Tidal Device Database'!P41="",0,(VLOOKUP('Tidal Device Database'!P41,'Tidal Device Database'!$A$93:$B$97,2,FALSE))) -> 0 | M62: =IF('Tidal Device Database'!Q41="",0,(VLOOKUP('Tidal Device Database'!Q41,'Tidal Device Database'!$A$99:$B$103,2,FALSE))) -> 3 | N62: =IF('Tidal Device Database'!R41="",0,(VLOOKUP('Tidal Device Database'!R41,'Tidal Device Database'!$A$115:$B$119,2,FALSE))) -> 3 | O62: =IF('Tidal Device Database'!S41="",0,(VLOOKUP('Tidal Device Database'!S41,'Tidal Device Database'!$A$105:$B$109,2,FALSE))) -> 3 | P62: 117
A63: ='Tidal Device Database'!A42 -> 41 | B63: 110 | C63: ='Tidal Device Database'!B42 -> ENC-250H | D63: ='Tidal Device Database'!C42 -> Vertical Axis | E63: =IF('Tidal Device Database'!I42="",0,(VLOOKUP('Tidal Device Database'!I42,'Tidal Device Database'!$A$131:$B$135,2,FALSE))) -> 4 | F63: =IF('Tidal Device Database'!J42="",0,(VLOOKUP('Tidal Device Database'!J42,'Tidal Device Database'!$A$137:$B$141,2,FALSE))) -> 2 | G63: =IF('Tidal Device Database'!K42="",0,(VLOOKUP('Tidal Device Database'!K42,'Tidal Device Database'!$A$143:$B$147,2,FALSE))) -> 4 | H63: =IF('Tidal Device Database'!L42="",0,(VLOOKUP('Tidal Device Database'!L42,'Tidal Device Database'!$A$69:$B$73,2,FALSE))) -> 5 | I63: =IF('Tidal Device Database'!M42="",0,(VLOOKUP('Tidal Device Database'!M42,'Tidal Device Database'!$A$75:$B$79,2,FALSE))) -> 4 | J63: =IF('Tidal Device Database'!N42="",0,(VLOOKUP('Tidal Device Database'!N42,'Tidal Device Database'!$A$81:$B$85,2,FALSE))) -> 5 | K63: =IF('Tidal Device Database'!O42="",0,(VLOOKUP('Tidal Device Database'!O42,'Tidal Device Database'!$A$87:$B$91,2,FALSE))) -> 0 | L63: =IF('Tidal Device Database'!P42="",0,(VLOOKUP('Tidal Device Database'!P42,'Tidal Device Database'!$A$93:$B$97,2,FALSE))) -> 0 | M63: =IF('Tidal Device Database'!Q42="",0,(VLOOKUP('Tidal Device Database'!Q42,'Tidal Device Database'!$A$99:$B$103,2,FALSE))) -> 3 | N63: =IF('Tidal Device Database'!R42="",0,(VLOOKUP('Tidal Device Database'!R42,'Tidal Device Database'!$A$115:$B$119,2,FALSE))) -> 2 | O63: =IF('Tidal Device Database'!S42="",0,(VLOOKUP('Tidal Device Database'!S42,'Tidal Device Database'!$A$105:$B$109,2,FALSE))) -> 3 | P63: 110
A64: ='Tidal Device Database'!A43 -> 42 | B64: 110 | C64: ='Tidal Device Database'!B43 -> EC-OG | D64: ='Tidal Device Database'!C43 -> Vertical Axis | E64: =IF('Tidal Device Database'!I43="",0,(VLOOKUP('Tidal Device Database'!I43,'Tidal Device Database'!$A$131:$B$135,2,FALSE))) -> 0 | F64: =IF('Tidal Device Database'!J43="",0,(VLOOKUP('Tidal Device Database'!J43,'Tidal Device Database'!$A$137:$B$141,2,FALSE))) -> 5 | G64: =IF('Tidal Device Database'!K43="",0,(VLOOKUP('Tidal Device Database'!K43,'Tidal Device Database'!$A$143:$B$147,2,FALSE))) -> 2 | H64: =IF('Tidal Device Database'!L43="",0,(VLOOKUP('Tidal Device Database'!L43,'Tidal Device Database'!$A$69:$B$73,2,FALSE))) -> 4 | I64: =IF('Tidal Device Database'!M43="",0,(VLOOKUP('Tidal Device Database'!M43,'Tidal Device Database'!$A$75:$B$79,2,FALSE))) -> 4 | J64: =IF('Tidal Device Database'!N43="",0,(VLOOKUP('Tidal Device Database'!N43,'Tidal Device Database'!$A$81:$B$85,2,FALSE))) -> 4 | K64: =IF('Tidal Device Database'!O43="",0,(VLOOKUP('Tidal Device Database'!O43,'Tidal Device Database'!$A$87:$B$91,2,FALSE))) -> 5 | L64: =IF('Tidal Device Database'!P43="",0,(VLOOKUP('Tidal Device Database'!P43,'Tidal Device Database'!$A$93:$B$97,2,FALSE))) -> 2 | M64: =IF('Tidal Device Database'!Q43="",0,(VLOOKUP('Tidal Device Database'!Q43,'Tidal Device Database'!$A$99:$B$103,2,FALSE))) -> 3 | N64: =IF('Tidal Device Database'!R43="",0,(VLOOKUP('Tidal Device Database'!R43,'Tidal Device Database'!$A$115:$B$119,2,FALSE))) -> 3 | O64: =IF('Tidal Device Database'!S43="",0,(VLOOKUP('Tidal Device Database'!S43,'Tidal Device Database'!$A$105:$B$109,2,FALSE))) -> 3 | P64: 110
A67: No. | B67: Score | D67: Criteria | E67: Captial Energy Cost | F67: Capital Power Cost | G67: Lifetime Energy Cost | H67: Specific Energy | I67: Specific Power | J67: Energy Density | K67: Power Density | L67: Environmental Impact | M67: Cycle Life | N67: Lifetime | O67: Scalability | P67: Power Regulation | Q67: Technical Maturity | R67: Self Discharge Rate | S67: Efficiency | T67: Score
C68: Name | D68: Type | E68: 2 | F68: 2 | G68: 3 | H68: 1 | I68: 1 | J68: 3 | K68: 3 | L68: 3 | M68: 4 | N68: 4 | O68: 3 | P68: 5 | Q68: 4 | R68: 4 | S68: 3
A69: 1 | B69: =T69 -> 171 | C69: Pumped Hydro | D69: Mechanical Storage | E69: 5 | F69: 3 | G69: 5 | H69: 1 | I69: 1 | J69: 1 | K69: 1 | L69: 2 | M69: 5 | N69: 5 | O69: 3 | P69: 5 | Q69: 5 | R69: 5 | S69: 4 | T69: =SUMPRODUCT($E$68:$S$68,E69:S69) -> 171
A70: 2 | B70: 167 | C70: Compressed Air | D70: Mechanical Storage | E70: 5 | F70: 4 | G70: 5 | H70: 1 | I70: 1 | J70: 1 | K70: 1 | L70: 4 | M70: 5 | N70: 5 | O70: 4 | P70: 5 | Q70: 2 | R70: 5 | S70: 3 | T70: 167
A71: 3 | B71: 135 | C71: Lead Acid Battery | D71: Battery Storage | E71: 4 | F71: 5 | G71: 4 | H71: 1 | I71: 3 | J71: 2 | K71: 4 | L71: 1 | M71: 2 | N71: 3 | O71: 5 | P71: 1 | Q71: 5 | R71: 2 | S71: 4 | T71: 135
A72: 4 | B72: 131 | C72: Nickel Iron | D72: Battery Storage | E72: 3 | F72: 1 | G72: 4 | H72: 2 | I72: 2 | J72: 2 | K72: 2 | L72: 5 | M72: 3 | N72: 5 | O72: 5 | P72: 1 | Q72: 3 | R72: 1 | S72: 4 | T72: 131
A73: 5 | B73: 138 | C73: Nickel Zinc | D73: Battery Storage | E73: 4 | F73: 5 | G73: 4 | H73: 2 | I73: 4 | J73: 3 | K73: 5 | L73: 5 | M73: 1 | N73: 2 | O73: 5 | P73: 1 | Q73: 3 | R73: 1 | S73: 5 | T73: 138
A74: 6 | B74: 127 | C74: Nickel Cadmium | D74: Battery Storage | E74: 2 | F74: 4 | G74: 2 | H74: 2 | I74: 4 | J74: 2 | K74: 3 | L74: 1 | M74: 3 | N74: 4 | O74: 5 | P74: 1 | Q74: 5 | R74: 2 | S74: 3 | T74: 127
A75: 7 | B75: 141 | C75: Lithium Ion | D75: Battery Storage | E75: 2 | F75: 3 | G75: 2 | H75: 3 | I75: 5 | J75: 3 | K75: 5 | L75: 2 | M75: 2 | N75: 4 | O75: 5 | P75: 1 | Q75: 4 | R75: 3 | S75: 5 | T75: 141
A76: 8 | B76: 133 | C76: Zinc Manganese | D76: Battery Storage | E76: 4 | F76: 2 | G76: 2 | H76: 3 | I76: 1 | J76: 4 | K76: 2 | L76: 3 | M76: 1 | N76: 2 | O76: 5 | P76: 1 | Q76: 5 | R76: 5 | S76: 4 | T76: 133
A77: 9 | B77: 128 | C77: Zinc Silver | D77: Battery Storage | E77: 1 | F77: 1 | G77: 1 | H77: 3 | I77: 2 | J77: 4 | K77: 4 | L77: 5 | M77: 1 | N77: 2 | O77: 5 | P77: 1 | Q77: 5 | R77: 4 | S77: 3 | T77: 128
A78: 10 | B78: 147 | C78: Zinc Air | D78: Battery Storage | E78: 4 | F78: 3 | G78: 4 | H78: 4 | I78: 3 | J78: 5 | K78: 3 | L78: 5 | M78: 1 | N78: 3 | O78: 5 | P78: 1 | Q78: 4 | R78: 5 | S78: 1 | T78: 147
A79: 11 | B79: 137 | C79: Vanadium Redox | D79: Flow Battery | E79: 4 | F79: 3 | G79: 3 | H79: 1 | I79: 3 | J79: 1 | K79: 2 | L79: 4 | M79: 4 | N79: 4 | O79: 4 | P79: 1 | Q79: 2 | R79: 5 | S79: 4 | T79: 137
A80: 12 | B80: 112 | C80: Solid Oxide | D80: Fuel Cell | E80: 5 | F80: 2 | G80: 3 | H80: 5 | I80: 2 | J80: 3 | K80: 1 | L80: 4 | M80: 0 | N80: 1 | O80: 5 | P80: 1 | Q80: 2 | R80: 5 | S80: 2 | T80: 112
A84: No. | B84: Score | D84: Criteria | E84: ='Wave Device Database'!H2 -> Distance from Shore | F84: ='Wave Device Database'!I2 -> Visual Impact | G84: ='Wave Device Database'!J2 -> Access Complexity | H84: ='Wave Device Database'!K2 -> Capital Cost | I84: ='Wave Device Database'!L2 -> Technology Readiness Level | J84: ='Wave Device Database'!M2 -> Lifespan | K84: ='Wave Device Database'!N2 -> Efficiency | L84: ='Wave Device Database'!O2 -> Scale (kW) | M84: ='Wave Device Database'!P2 -> Shore Connection | N84: ='Wave Device Database'!Q2 -> Planned Inspection/Maintenance Period | O84: ='Wave Device Database'!R2 -> Primary Attachment | P84: ='Wave Device Database'!S2 -> Installation Complexity | Q84: ='Wave Device Database'!T2 -> Maintenanc Complexity | R84: Score
C85: Name | D85: Type | E85: 1 | F85: 2 | G85: 4 | H85: 3 | I85: 5 | J85: 3 | K85: 3 | L85: 3 | M85: 4 | N85: 3 | O85: 4 | P85: 3 | Q85: 3
A86: 1 | B86: =R86 -> 181 | C86: ='Wave Device Database'!B3 -> Yam Pro Energy | D86: ='Wave Device Database'!C3 -> Shore based | E86: =IF('Wave Device Database'!H3="",0,VLOOKUP('Wave Device Database'!H3,'Wave Device Database'!$B$24:$C$28,2,FALSE)) -> 5 | F86: =IF('Wave Device Database'!I3="",0,VLOOKUP('Wave Device Database'!I3,'Wave Device Database'!$B$30:$C$34,2,FALSE)) -> 2 | G86: =IF('Wave Device Database'!J3="",0,VLOOKUP('Wave Device Database'!J3,'Wave Device Database'!$B$36:$C$40,2,FALSE)) -> 5 | H86: =IF('Wave Device Database'!K3="",0,VLOOKUP('Wave Device Database'!K3,'Wave Device Database'!$B$42:$C$46,2,FALSE)) -> 5 | I86: =IF('Wave Device Database'!L3="",0,VLOOKUP('Wave Device Database'!L3,'Wave Device Database'!$B$48:$C$52,2,FALSE)) -> 5 | J86: =IF('Wave Device Database'!M3="",0,VLOOKUP('Wave Device Database'!M3,'Wave Device Database'!$B$54:$C$58,2,FALSE)) -> 5 | K86: =IF('Wave Device Database'!N3="",0,VLOOKUP('Wave Device Database'!N3,'Wave Device Database'!$B$60:$C$64,2,FALSE)) -> 5 | L86: =IF('Wave Device Database'!O3="",0,VLOOKUP('Wave Device Database'!O3,'Wave Device Database'!$B$66:$C$70,2,FALSE)) -> 5 | M86: =IF('Wave Device Database'!P3="",0,VLOOKUP('Wave Device Database'!P3,'Wave Device Database'!$B$72:$C$76,2,FALSE)) -> 5 | N86: =IF('Wave Device Database'!Q3="",0,VLOOKUP('Wave Device Database'!Q3,'Wave Device Database'!$B$78:$C$82,2,FALSE)) -> 1 | O86: =IF('Wave Device Database'!R3="",0,VLOOKUP('Wave Device Database'!R3,'Wave Device Database'!$B$84:$C$88,2,FALSE)) -> 5 | P86: =IF('Wave Device Database'!S3="",0,VLOOKUP('Wave Device Database'!S3,'Wave Device Database'!$B$90:$C$94,2,FALSE)) -> 5 | Q86: =IF('Wave Device Database'!T3="",0,VLOOKUP('Wave Device Database'!T3,'Wave Device Database'!$B$96:$C$100,2,FALSE)) -> 3 | R86: =SUMPRODUCT($E$85:$Q$85,E86:Q86) -> 181
A87: 2 | B87: =R87 -> 130 | C87: ='Wave Device Database'!B4 -> Wave El Buoy | D87: ='Wave Device Database'!C4 -> Point Absorber | E87: =IF('Wave Device Database'!H4="",0,VLOOKUP('Wave Device Database'!H4,'Wave Device Database'!$B$24:$C$28,2,FALSE)) -> 1 | F87: =IF('Wave Device Database'!I4="",0,VLOOKUP('Wave Device Database'!I4,'Wave Device Database'!$B$30:$C$34,2,FALSE)) -> 3 | G87: =IF('Wave Device Database'!J4="",0,VLOOKUP('Wave Device Database'!J4,'Wave Device Database'!$B$36:$C$40,2,FALSE)) -> 3 | H87: =IF('Wave Device Database'!K4="",0,VLOOKUP('Wave Device Database'!K4,'Wave Device Database'!$B$42:$C$46,2,FALSE)) -> 3 | I87: =IF('Wave Device Database'!L4="",0,VLOOKUP('Wave Device Database'!L4,'Wave Device Database'!$B$48:$C$52,2,FALSE)) -> 5 | J87: =IF('Wave Device Database'!M4="",0,VLOOKUP('Wave Device Database'!M4,'Wave Device Database'!$B$54:$C$58,2,FALSE)) -> 5 | K87: =IF('Wave Device Database'!N4="",0,VLOOKUP('Wave Device Database'!N4,'Wave Device Database'!$B$60:$C$64,2,FALSE)) -> 3 | L87: =IF('Wave Device Database'!O4="",0,VLOOKUP('Wave Device Database'!O4,'Wave Device Database'!$B$66:$C$70,2,FALSE)) -> 3 | M87: =IF('Wave Device Database'!P4="",0,VLOOKUP('Wave Device Database'!P4,'Wave Device Database'!$B$72:$C$76,2,FALSE)) -> 1 | N87: =IF('Wave Device Database'!Q4="",0,VLOOKUP('Wave Device Database'!Q4,'Wave Device Database'!$B$78:$C$82,2,FALSE)) -> 3 | O87: =IF('Wave Device Database'!R4="",0,VLOOKUP('Wave Device Database'!R4,'Wave Device Database'!$B$84:$C$88,2,FALSE)) -> 4 | P87: =IF('Wave Device Database'!S4="",0,VLOOKUP('Wave Device Database'!S4,'Wave Device Database'!$B$90:$C$94,2,FALSE)) -> 2 | Q87: =IF('Wave Device Database'!T4="",0,VLOOKUP('Wave Device Database'!T4,'Wave Device Database'!$B$96:$C$100,2,FALSE)) -> 3 | R87: =SUMPRODUCT($E$85:$Q$85,E87:Q87) -> 130
A88: 3 | B88: =R88 -> 140 | C88: ='Wave Device Database'!B5 -> Rotary Wave | D88: ='Wave Device Database'!C5 -> Attenuator | E88: =IF('Wave Device Database'!H5="",0,VLOOKUP('Wave Device Database'!H5,'Wave Device Database'!$B$24:$C$28,2,FALSE)) -> 2 | F88: =IF('Wave Device Database'!I5="",0,VLOOKUP('Wave Device Database'!I5,'Wave Device Database'!$B$30:$C$34,2,FALSE)) -> 3 | G88: =IF('Wave Device Database'!J5="",0,VLOOKUP('Wave Device Database'!J5,'Wave Device Database'!$B$36:$C$40,2,FALSE)) -> 3 | H88: =IF('Wave Device Database'!K5="",0,VLOOKUP('Wave Device Database'!K5,'Wave Device Database'!$B$42:$C$46,2,FALSE)) -> 2 | I88: =IF('Wave Device Database'!L5="",0,VLOOKUP('Wave Device Database'!L5,'Wave Device Database'!$B$48:$C$52,2,FALSE)) -> 4 | J88: =IF('Wave Device Database'!M5="",0,VLOOKUP('Wave Device Database'!M5,'Wave Device Database'!$B$54:$C$58,2,FALSE)) -> 5 | K88: =IF('Wave Device Database'!N5="",0,VLOOKUP('Wave Device Database'!N5,'Wave Device Database'!$B$60:$C$64,2,FALSE)) -> 5 | L88: =IF('Wave Device Database'!O5="",0,VLOOKUP('Wave Device Database'!O5,'Wave Device Database'!$B$66:$C$70,2,FALSE)) -> 4 | M88: =IF('Wave Device Database'!P5="",0,VLOOKUP('Wave Device Database'!P5,'Wave Device Database'!$B$72:$C$76,2,FALSE)) -> 3 | N88: =IF('Wave Device Database'!Q5="",0,VLOOKUP('Wave Device Database'!Q5,'Wave Device Database'!$B$78:$C$82,2,FALSE)) -> 1 | O88: =IF('Wave Device Database'!R5="",0,VLOOKUP('Wave Device Database'!R5,'Wave Device Database'!$B$84:$C$88,2,FALSE)) -> 4 | P88: =IF('Wave Device Database'!S5="",0,VLOOKUP('Wave Device Database'!S5,'Wave Device Database'!$B$90:$C$94,2,FALSE)) -> 4 | Q88: =IF('Wave Device Database'!T5="",0,VLOOKUP('Wave Device Database'!T5,'Wave Device Database'!$B$96:$C$100,2,FALSE)) -> 3 | R88: 140
A89: 4 | B89: =R89 -> 93 | C89: ='Wave Device Database'!B6 -> Electric Buoy | D89: ='Wave Device Database'!C6 -> Point Absorber | E89: =IF('Wave Device Database'!H6="",0,VLOOKUP('Wave Device Database'!H6,'Wave Device Database'!$B$24:$C$28,2,FALSE)) -> 1 | F89: =IF('Wave Device Database'!I6="",0,VLOOKUP('Wave Device Database'!I6,'Wave Device Database'!$B$30:$C$34,2,FALSE)) -> 2 | G89: =IF('Wave Device Database'!J6="",0,VLOOKUP('Wave Device Database'!J6,'Wave Device Database'!$B$36:$C$40,2,FALSE)) -> 3 | H89: =IF('Wave Device Database'!K6="",0,VLOOKUP('Wave Device Database'!K6,'Wave Device Database'!$B$42:$C$46,2,FALSE)) -> 4 | I89: =IF('Wave Device Database'!L6="",0,VLOOKUP('Wave Device Database'!L6,'Wave Device Database'!$B$48:$C$52,2,FALSE)) -> 1 | J89: =IF('Wave Device Database'!M6="",0,VLOOKUP('Wave Device Database'!M6,'Wave Device Database'!$B$54:$C$58,2,FALSE)) -> 5 | K89: =IF('Wave Device Database'!N6="",0,VLOOKUP('Wave Device Database'!N6,'Wave Device Database'!$B$60:$C$64,2,FALSE)) -> 3 | L89: =IF('Wave Device Database'!O6="",0,VLOOKUP('Wave Device Database'!O6,'Wave Device Database'!$B$66:$C$70,2,FALSE)) -> 1 | M89: =IF('Wave Device Database'!P6="",0,VLOOKUP('Wave Device Database'!P6,'Wave Device Database'!$B$72:$C$76,2,FALSE)) -> 1 | N89: =IF('Wave Device Database'!Q6="",0,VLOOKUP('Wave Device Database'!Q6,'Wave Device Database'!$B$78:$C$82,2,FALSE)) -> 1 | O89: =IF('Wave Device Database'!R6="",0,VLOOKUP('Wave Device Database'!R6,'Wave Device Database'!$B$84:$C$88,2,FALSE)) -> 4 | P89: =IF('Wave Device Database'!S6="",0,VLOOKUP('Wave Device Database'!S6,'Wave Device Database'!$B$90:$C$94,2,FALSE)) -> 2 | Q89: =IF('Wave Device Database'!T6="",0,VLOOKUP('Wave Device Database'!T6,'Wave Device Database'!$B$96:$C$100,2,FALSE)) -> 1 | R89: 93
A90: 5 | B90: =U90 -> 0 | C90: ='Wave Device Database'!B7 -> Wave Dragon | D90: ='Wave Device Database'!C7 -> Overtopping/Terminator Device | E90: =IF('Wave Device Database'!H7="",0,VLOOKUP('Wave Device Database'!H7,'Wave Device Database'!$B$24:$C$28,2,FALSE)) -> 3 | F90: =IF('Wave Device Database'!I7="",0,VLOOKUP('Wave Device Database'!I7,'Wave Device Database'!$B$30:$C$34,2,FALSE)) -> 3 | G90: =IF('Wave Device Database'!J7="",0,VLOOKUP('Wave Device Database'!J7,'Wave Device Database'!$B$36:$C$40,2,FALSE)) -> 3 | H90: =IF('Wave Device Database'!K7="",0,VLOOKUP('Wave Device Database'!K7,'Wave Device Database'!$B$42:$C$46,2,FALSE)) -> 0 | I90: =IF('Wave Device Database'!L7="",0,VLOOKUP('Wave Device Database'!L7,'Wave Device Database'!$B$48:$C$52,2,FALSE)) -> 5 | J90: =IF('Wave Device Database'!M7="",0,VLOOKUP('Wave Device Database'!M7,'Wave Device Database'!$B$54:$C$58,2,FALSE)) -> 4 | K90: =IF('Wave Device Database'!N7="",0,VLOOKUP('Wave Device Database'!N7,'Wave Device Database'!$B$60:$C$64,2,FALSE)) -> 5 | L90: =IF('Wave Device Database'!O7="",0,VLOOKUP('Wave Device Database'!O7,'Wave Device Database'!$B$66:$C$70,2,FALSE)) -> 2 | M90: =IF('Wave Device Database'!P7="",0,VLOOKUP('Wave Device Database'!P7,'Wave Device Database'!$B$72:$C$76,2,FALSE)) -> 2 | N90: =IF('Wave Device Database'!Q7="",0,VLOOKUP('Wave Device Database'!Q7,'Wave Device Database'!$B$78:$C$82,2,FALSE)) -> 0 | O90: =IF('Wave Device Database'!R7="",0,VLOOKUP('Wave Device Database'!R7,'Wave Device Database'!$B$84:$C$88,2,FALSE)) -> 4 | P90: =IF('Wave Device Database'!S7="",0,VLOOKUP('Wave Device Database'!S7,'Wave Device Database'!$B$90:$C$94,2,FALSE)) -> 4 | Q90: =IF('Wave Device Database'!T7="",0,VLOOKUP('Wave Device Database'!T7,'Wave Device Database'!$B$96:$C$100,2,FALSE)) -> 0 | R90: 115
A91: 6 | B91: 0 | C91: ='Wave Device Database'!B8 -> Limpet | D91: ='Wave Device Database'!C8 -> Oscillating Water Column | E91: =IF('Wave Device Database'!H8="",0,VLOOKUP('Wave Device Database'!H8,'Wave Device Database'!$B$24:$C$28,2,FALSE)) -> 5 | F91: =IF('Wave Device Database'!I8="",0,VLOOKUP('Wave Device Database'!I8,'Wave Device Database'!$B$30:$C$34,2,FALSE)) -> 1 | G91: =IF('Wave Device Database'!J8="",0,VLOOKUP('Wave Device Database'!J8,'Wave Device Database'!$B$36:$C$40,2,FALSE)) -> 5 | H91: =IF('Wave Device Database'!K8="",0,VLOOKUP('Wave Device Database'!K8,'Wave Device Database'!$B$42:$C$46,2,FALSE)) -> 0 | I91: =IF('Wave Device Database'!L8="",0,VLOOKUP('Wave Device Database'!L8,'Wave Device Database'!$B$48:$C$52,2,FALSE)) -> 5 | J91: =IF('Wave Device Database'!M8="",0,VLOOKUP('Wave Device Database'!M8,'Wave Device Database'!$B$54:$C$58,2,FALSE)) -> 0 | K91: =IF('Wave Device Database'!N8="",0,VLOOKUP('Wave Device Database'!N8,'Wave Device Database'!$B$60:$C$64,2,FALSE)) -> 1 | L91: =IF('Wave Device Database'!O8="",0,VLOOKUP('Wave Device Database'!O8,'Wave Device Database'!$B$66:$C$70,2,FALSE)) -> 4 | M91: =IF('Wave Device Database'!P8="",0,VLOOKUP('Wave Device Database'!P8,'Wave Device Database'!$B$72:$C$76,2,FALSE)) -> 5 | N91: =IF('Wave Device Database'!Q8="",0,VLOOKUP('Wave Device Database'!Q8,'Wave Device Database'!$B$78:$C$82,2,FALSE)) -> 0 | O91: =IF('Wave Device Database'!R8="",0,VLOOKUP('Wave Device Database'!R8,'Wave Device Database'!$B$84:$C$88,2,FALSE)) -> 5 | P91: =IF('Wave Device Database'!S8="",0,VLOOKUP('Wave Device Database'!S8,'Wave Device Database'!$B$90:$C$94,2,FALSE)) -> 5 | Q91: =IF('Wave Device Database'!T8="",0,VLOOKUP('Wave Device Database'!T8,'Wave Device Database'!$B$96:$C$100,2,FALSE)) -> 0 | R91: 122

Sheet Tidal Stream 1
A1: Tidal Stream Resource
A3: =Input!A45 -> Site Name | B3: =IF(Input!B45<>"",Input!B45,"-") -> [Enter Name] | C3: =Input!C45 -> 0 | I3: Plots:
A4: =Input!A46 -> Peak Flow (Springs) | B4: =IF((AND(Input!B46<>"",Input!B46<>"[Enter Value]")),Input!B46,"0") -> 0 | C4: =Input!C46 -> m/s
A5: =Input!A47 -> Peak Flow (Neaps) | B5: =IF((AND(Input!B47<>"",Input!B47<>"[Enter Value]")),Input!B47,"0") -> 0 | C5: =Input!C47 -> m/s
A6: =Input!A48 -> Lunar Cycle Period | B6: =IF((AND(Input!B48<>"",Input!B48<>"[Enter Value]")),Input!B48,"0") -> 0 | C6: =Input!C48 -> days
A7: =Input!A49 -> Tidal Period | B7: =IF((AND(Input!B49<>"",Input!B49<>"[Enter Value]")),Input!B49,"0") -> 0 | C7: =Input!C49 -> hours
A8: =Input!A50 -> Proximity to Grid Connection | B8: =IF(Input!B50<>"",Input!B50,"-") -> [Select Value]
A9: =Input!A51 -> Average Water Depth | B9: =IF(Input!B51<>"",Input!B51,"-") -> [Select Value]
A10: =Input!A52 -> Seabed Topography | B10: =IF(Input!B52<>"",Input!B52,"-") -> [Select Value]
A11: =Input!A53 -> Accessibility | B11: =IF(Input!B53<>"",Input!B53,"-") -> [Select Value]
A13: Time Step | B13: 0.25 | C13: hours
A14: Period | B14: =B6/2 -> 0 | C14: days
B15: =B14*24 -> 0 | C15: hours
A16: Number of Steps | B16: =B15/B13*2 -> 0 | C16: -
A18: No. | B18: Time | E18: Amplitude | F18: Current | G18: Power | H18: Energy
B19: Hours | C19: Day | D19: Time | E19: m/s | F19: m/s | G19: kW/(m^2) | H19: kWh/(m^2)
A20: 0 | B20: =A20*$B$13 -> 0 | C20: =ROUNDDOWN(A20*$B$1/24,0) -> 0 | D20: =MOD(B20,24)/24 -> 0 | E20: =IF(A20<>"",($B$4+$B$5)/2+($B$5-$B$4)/2*COS(2*PI()/$B$15*B20),"") ->  | F20: =IF(A20<>"",E20*COS(2*PI()/$B$7*B20),"") ->  | G20: =ABS(0.5*1.025*1*(F20^3)) ->  | H20: =G20*$B$13 -> 
A21: =IF(IF(A20<>"",A20+1<=$B$16,0),A20+1,"") ->  | B21: =IF(A21<>"",A21*$B$13,"") ->  | C21: =IF(A21<>"",ROUNDDOWN(A21*$B$13/24,0),"") ->  | D21: =IF(A21<>"",MOD(B21,24)/24,"") ->  | E21: =IF(A21<>"",($B$4+$B$5)/2+($B$5-$B$4)/2*COS(2*PI()/$B$15*B21),"") ->  | F21: =IF(A21<>"",E21*COS(2*PI()/$B$7*B21),"") ->  | G21: =ABS(0.5*1.025*1*(F21^3)) ->  | H21: =G21*$B$13 -> 
A22: =IF(IF(A21<>"",A21+1<=$B$16,0),A21+1,"") ->  | B22: =IF(A22<>"",A22*$B$13,"") ->  | C22: =IF(A22<>"",ROUNDDOWN(A22*$B$13/24,0),"") ->  | D22: =IF(A22<>"",MOD(B22,24)/24,"") ->  | E22: =IF(A22<>"",($B$4+$B$5)/2+($B$5-$B$4)/2*COS(2*PI()/$B$15*B22),"") ->  | F22: =IF(A22<>"",E22*COS(2*PI()/$B$7*B22),"") ->  | G22: =ABS(0.5*1.025*1*(F22^3)) -> 
H85: =G85*$B$13 -> 
A86: =IF(IF(A85<>"",A85+1<=$B$16,0),A85+1,"") ->  | B86: =IF(A86<>"",A86*$B$13,"") ->  | C86: =IF(A86<>"",ROUNDDOWN(A86*$B$13/24,0),"") ->  | D86: =IF(A86<>"",MOD(B86,24)/24,"") ->  | E86: =IF(A86<>"",($B$4+$B$5)/2+($B$5-$B$4)/2*COS(2*PI()/$B$15*B86),"") ->  | F86: =IF(A86<>"",E86*COS(2*PI()/$B$7*B86),"") ->  | G86: =ABS(0.5*1.025*1*(F86^3)) -> 
H149: =G149*$B$13 -> 
A150: =IF(IF(A149<>"",A149+1<=$B$16,0),A149+1,"") ->  | B150: =IF(A150<>"",A150*$B$13,"") ->  | C150: =IF(A150<>"",ROUNDDOWN(A150*$B$13/24,0),"") ->  | D150: =IF(A150<>"",MOD(B150,24)/24,"") ->  | E150: =IF(A150<>"",($B$4+$B$5)/2+($B$5-$B$4)/2*COS(2*PI()/$B$15*B150),"") ->  | F150: =IF(A150<>"",E150*COS(2*PI()/$B$7*B150),"") ->  | G150: =ABS(0.5*1.025*1*(F150^3)) -> 
H213: =G213*$B$13 -> 
A214: =IF(IF(A213<>"",A213+1<=$B$16,0),A213+1,"") ->  | B214: =IF(A214<>"",A214*$B$13,"") ->  | C214: =IF(A214<>"",ROUNDDOWN(A214*$B$13/24,0),"") ->  | D214: =IF(A214<>"",MOD(B214,24)/24,"") ->  | E214: =IF(A214<>"",($B$4+$B$5)/2+($B$5-$B$4)/2*COS(2*PI()/$B$15*B214),"") ->  | F214: =IF(A214<>"",E214*COS(2*PI()/$B$7*B214),"") ->  | G214: =ABS(0.5*1.025*1*(F214^3)) -> 
H277: =G277*$B$13 -> 
A278: =IF(IF(A277<>"",A277+1<=$B$16,0),A277+1,"") ->  | B278: =IF(A278<>"",A278*$B$13,"") ->  | C278: =IF(A278<>"",ROUNDDOWN(A278*$B$13/24,0),"") ->  | D278: =IF(A278<>"",MOD(B278,24)/24,"") ->  | E278: =IF(A278<>"",($B$4+$B$5)/2+($B$5-$B$4)/2*COS(2*PI()/$B$15*B278),"") ->  | F278: =IF(A278<>"",E278*COS(2*PI()/$B$7*B278),"") ->  | G278: =ABS(0.5*1.025*1*(F278^3)) -> 
H341: =G341*$B$13 -> 
A342: =IF(IF(A341<>"",A341+1<=$B$16,0),A341+1,"") ->  | B342: =IF(A342<>"",A342*$B$13,"") ->  | C342: =IF(A342<>"",ROUNDDOWN(A342*$B$13/24,0),"") ->  | D342: =IF(A342<>"",MOD(B342,24)/24,"") ->  | E342: =IF(A342<>"",($B$4+$B$5)/2+($B$5-$B$4)/2*COS(2*PI()/$B$15*B342),"") ->  | F342: =IF(A342<>"",E342*COS(2*PI()/$B$7*B342),"") ->  | G342: =ABS(0.5*1.025*1*(F342^3)) -> 
H405: =G405*$B$13 -> 
A406: =IF(IF(A405<>"",A405+1<=$B$16,0),A405+1,"") ->  | B406: =IF(A406<>"",A406*$B$13,"") ->  | C406: =IF(A406<>"",ROUNDDOWN(A406*$B$13/24,0),"") ->  | D406: =IF(A406<>"",MOD(B406,24)/24,"") ->  | E406: =IF(A406<>"",($B$4+$B$5)/2+($B$5-$B$4)/2*COS(2*PI()/$B$15*B406),"") ->  | F406: =IF(A406<>"",E406*COS(2*PI()/$B$7*B406),"") ->  | G406: =ABS(0.5*1.025*1*(F406^3)) -> 
H469: =G469*$B$13 -> 
A470: =IF(IF(A469<>"",A469+1<=$B$16,0),A469+1,"") ->  | B470: =IF(A470<>"",A470*$B$13,"") ->  | C470: =IF(A470<>"",ROUNDDOWN(A470*$B$13/24,0),"") ->  | D470: =IF(A470<>"",MOD(B470,24)/24,"") ->  | E470: =IF(A470<>"",($B$4+$B$5)/2+($B$5-$B$4)/2*COS(2*PI()/$B$15*B470),"") ->  | F470: =IF(A470<>"",E470*COS(2*PI()/$B$7*B470),"") ->  | G470: =ABS(0.5*1.025*1*(F470^3)) -> 
H533: =G533*$B$13 -> 
A534: =IF(IF(A533<>"",A533+1<=$B$16,0),A533+1,"") ->  | B534: =IF(A534<>"",A534*$B$13,"") ->  | C534: =IF(A534<>"",ROUNDDOWN(A534*$B$13/24,0),"") ->  | D534: =IF(A534<>"",MOD(B534,24)/24,"") ->  | E534: =IF(A534<>"",($B$4+$B$5)/2+($B$5-$B$4)/2*COS(2*PI()/$B$15*B534),"") ->  | F534: =IF(A534<>"",E534*COS(2*PI()/$B$7*B534),"") ->  | G534: =ABS(0.5*1.025*1*(F534^3)) -> 
H597: =G597*$B$13 -> 
A598: =IF(IF(A597<>"",A597+1<=$B$16,0),A597+1,"") ->  | B598: =IF(A598<>"",A598*$B$13,"") ->  | C598: =IF(A598<>"",ROUNDDOWN(A598*$B$13/24,0),"") ->  | D598: =IF(A598<>"",MOD(B598,24)/24,"") ->  | E598: =IF(A598<>"",($B$4+$B$5)/2+($B$5-$B$4)/2*COS(2*PI()/$B$15*B598),"") ->  | F598: =IF(A598<>"",E598*COS(2*PI()/$B$7*B598),"") ->  | G598: =ABS(0.5*1.025*1*(F598^3)) -> 
H661: =G661*$B$13 -> 
A662: =IF(IF(A661<>"",A661+1<=$B$16,0),A661+1,"") ->  | B662: =IF(A662<>"",A662*$B$13,"") ->  | C662: =IF(A662<>"",ROUNDDOWN(A662*$B$13/24,0),"") ->  | D662: =IF(A662<>"",MOD(B662,24)/24,"") ->  | E662: =IF(A662<>"",($B$4+$B$5)/2+($B$5-$B$4)/2*COS(2*PI()/$B$15*B662),"") ->  | F662: =IF(A662<>"",E662*COS(2*PI()/$B$7*B662),"") ->  | G662: =ABS(0.5*1.025*1*(F662^3)) -> 
H725: =G725*$B$13 -> 
A726: =IF(IF(A725<>"",A725+1<=$B$16,0),A725+1,"") ->  | B726: =IF(A726<>"",A726*$B$13,"") ->  | C726: =IF(A726<>"",ROUNDDOWN(A726*$B$13/24,0),"") ->  | D726: =IF(A726<>"",MOD(B726,24)/24,"") ->  | E726: =IF(A726<>"",($B$4+$B$5)/2+($B$5-$B$4)/2*COS(2*PI()/$B$15*B726),"") ->  | F726: =IF(A726<>"",E726*COS(2*PI()/$B$7*B726),"") ->  | G726: =ABS(0.5*1.025*1*(F726^3)) -> 
H789: =G789*$B$13 -> 
A790: =IF(IF(A789<>"",A789+1<=$B$16,0),A789+1,"") ->  | B790: =IF(A790<>"",A790*$B$13,"") ->  | C790: =IF(A790<>"",ROUNDDOWN(A790*$B$13/24,0),"") ->  | D790: =IF(A790<>"",MOD(B790,24)/24,"") ->  | E790: =IF(A790<>"",($B$4+$B$5)/2+($B$5-$B$4)/2*COS(2*PI()/$B$15*B790),"") ->  | F790: =IF(A790<>"",E790*COS(2*PI()/$B$7*B790),"") ->  | G790: =ABS(0.5*1.025*1*(F790^3)) -> 
H853: =G853*$B$13 -> 
A854: =IF(IF(A853<>"",A853+1<=$B$16,0),A853+1,"") ->  | B854: =IF(A854<>"",A854*$B$13,"") ->  | C854: =IF(A854<>"",ROUNDDOWN(A854*$B$13/24,0),"") ->  | D854: =IF(A854<>"",MOD(B854,24)/24,"") ->  | E854: =IF(A854<>"",($B$4+$B$5)/2+($B$5-$B$4)/2*COS(2*PI()/$B$15*B854),"") ->  | F854: =IF(A854<>"",E854*COS(2*PI()/$B$7*B854),"") ->  | G854: =ABS(0.5*1.025*1*(F854^3)) -> 
H917: =G917*$B$13 -> 
A918: =IF(IF(A917<>"",A917+1<=$B$16,0),A917+1,"") ->  | B918: =IF(A918<>"",A918*$B$13,"") ->  | C918: =IF(A918<>"",ROUNDDOWN(A918*$B$13/24,0),"") ->  | D918: =IF(A918<>"",MOD(B918,24)/24,"") ->  | E918: =IF(A918<>"",($B$4+$B$5)/2+($B$5-$B$4)/2*COS(2*PI()/$B$15*B918),"") ->  | F918: =IF(A918<>"",E918*COS(2*PI()/$B$7*B918),"") ->  | G918: =ABS(0.5*1.025*1*(F918^3)) -> 
H981: =G981*$B$13 -> 
A982: =IF(IF(A981<>"",A981+1<=$B$16,0),A981+1,"") ->  | B982: =IF(A982<>"",A982*$B$13,"") ->  | C982: =IF(A982<>"",ROUNDDOWN(A982*$B$13/24,0),"") ->  | D982: =IF(A982<>"",MOD(B982,24)/24,"") ->  | E982: =IF(A982<>"",($B$4+$B$5)/2+($B$5-$B$4)/2*COS(2*PI()/$B$15*B982),"") ->  | F982: =IF(A982<>"",E982*COS(2*PI()/$B$7*B982),"") ->  | G982: =ABS(0.5*1.025*1*(F982^3)) -> 
H1045: =G1045*$B$13 -> 
A1046: =IF(IF(A1045<>"",A1045+1<=$B$16,0),A1045+1,"") ->  | B1046: =IF(A1046<>"",A1046*$B$13,"") ->  | C1046: =IF(A1046<>"",ROUNDDOWN(A1046*$B$13/24,0),"") ->  | D1046: =IF(A1046<>"",MOD(B1046,24)/24,"") ->  | E1046: =IF(A1046<>"",($B$4+$B$5)/2+($B$5-$B$4)/2*COS(2*PI()/$B$15*B1046),"") ->  | F1046: =IF(A1046<>"",E1046*COS(2*PI()/$B$7*B1046),"") ->  | G1046: =ABS(0.5*1.025*1*(F1046^3)) -> 
H1109: =G1109*$B$13 -> 
A1110: =IF(IF(A1109<>"",A1109+1<=$B$16,0),A1109+1,"") ->  | B1110: =IF(A1110<>"",A1110*$B$13,"") ->  | C1110: =IF(A1110<>"",ROUNDDOWN(A1110*$B$13/24,0),"") ->  | D1110: =IF(A1110<>"",MOD(B1110,24)/24,"") ->  | E1110: =IF(A1110<>"",($B$4+$B$5)/2+($B$5-$B$4)/2*COS(2*PI()/$B$15*B1110),"") ->  | F1110: =IF(A1110<>"",E1110*COS(2*PI()/$B$7*B1110),"") ->  | G1110: =ABS(0.5*1.025*1*(F1110^3)) -> 
H1173: =G1173*$B$13 -> 
A1174: =IF(IF(A1173<>"",A1173+1<=$B$16,0),A1173+1,"") ->  | B1174: =IF(A1174<>"",A1174*$B$13,"") ->  | C1174: =IF(A1174<>"",ROUNDDOWN(A1174*$B$13/24,0),"") ->  | D1174: =IF(A1174<>"",MOD(B1174,24)/24,"") ->  | E1174: =IF(A1174<>"",($B$4+$B$5)/2+($B$5-$B$4)/2*COS(2*PI()/$B$15*B1174),"") ->  | F1174: =IF(A1174<>"",E1174*COS(2*PI()/$B$7*B1174),"") ->  | G1174: =ABS(0.5*1.025*1*(F1174^3)) -> 
H1237: =G1237*$B$13 -> 
A1238: =IF(IF(A1237<>"",A1237+1<=$B$16,0),A1237+1,"") ->  | B1238: =IF(A1238<>"",A1238*$B$13,"") ->  | C1238: =IF(A1238<>"",ROUNDDOWN(A1238*$B$13/24,0),"") ->  | D1238: =IF(A1238<>"",MOD(B1238,24)/24,"") ->  | E1238: =IF(A1238<>"",($B$4+$B$5)/2+($B$5-$B$4)/2*COS(2*PI()/$B$15*B1238),"") ->  | F1238: =IF(A1238<>"",E1238*COS(2*PI()/$B$7*B1238),"") ->  | G1238: =ABS(0.5*1.025*1*(F1238^3)) -> 
H1301: =G1301*$B$13 -> 
A1302: =IF(IF(A1301<>"",A1301+1<=$B$16,0),A1301+1,"") ->  | B1302: =IF(A1302<>"",A1302*$B$13,"") ->  | C1302: =IF(A1302<>"",ROUNDDOWN(A1302*$B$13/24,0),"") ->  | D1302: =IF(A1302<>"",MOD(B1302,24)/24,"") ->  | E1302: =IF(A1302<>"",($B$4+$B$5)/2+($B$5-$B$4)/2*COS(2*PI()/$B$15*B1302),"") ->  | F1302: =IF(A1302<>"",E1302*COS(2*PI()/$B$7*B1302),"") ->  | G1302: =ABS(0.5*1.025*1*(F1302^3)) -> 
H1365: =G1365*$B$13 -> 
A1366: =IF(IF(A1365<>"",A1365+1<=$B$16,0),A1365+1,"") ->  | B1366: =IF(A1366<>"",A1366*$B$13,"") ->  | C1366: =IF(A1366<>"",ROUNDDOWN(A1366*$B$13/24,0),"") ->  | D1366: =IF(A1366<>"",MOD(B1366,24)/24,"") ->  | E1366: =IF(A1366<>"",($B$4+$B$5)/2+($B$5-$B$4)/2*COS(2*PI()/$B$15*B1366),"") ->  | F1366: =IF(A1366<>"",E1366*COS(2*PI()/$B$7*B1366),"") ->  | G1366: =ABS(0.5*1.025*1*(F1366^3)) -> 
H1429: =G1429*$B$13 -> 
A1430: =IF(IF(A1429<>"",A1429+1<=$B$16,0),A1429+1,"") ->  | B1430: =IF(A1430<>"",A1430*$B$13,"") ->  | C1430: =IF(A1430<>"",ROUNDDOWN(A1430*$B$13/24,0),"") ->  | D1430: =IF(A1430<>"",MOD(B1430,24)/24,"") ->  | E1430: =IF(A1430<>"",($B$4+$B$5)/2+($B$5-$B$4)/2*COS(2*PI()/$B$15*B1430),"") ->  | F1430: =IF(A1430<>"",E1430*COS(2*PI()/$B$7*B1430),"") ->  | G1430: =ABS(0.5*1.025*1*(F1430^3)) -> 
H1493: =G1493*$B$13 -> 
A1494: =IF(IF(A1493<>"",A1493+1<=$B$16,0),A1493+1,"") ->  | B1494: =IF(A1494<>"",A1494*$B$13,"") ->  | C1494: =IF(A1494<>"",ROUNDDOWN(A1494*$B$13/24,0),"") ->  | D1494: =IF(A1494<>"",MOD(B1494,24)/24,"") ->  | E1494: =IF(A1494<>"",($B$4+$B$5)/2+($B$5-$B$4)/2*COS(2*PI()/$B$15*B1494),"") ->  | F1494: =IF(A1494<>"",E1494*COS(2*PI()/$B$7*B1494),"") ->  | G1494: =ABS(0.5*1.025*1*(F1494^3)) -> 
H1557: =G1557*$B$13 -> 
A1558: =IF(IF(A1557<>"",A1557+1<=$B$16,0),A1557+1,"") ->  | B1558: =IF(A1558<>"",A1558*$B$13,"") ->  | C1558: =IF(A1558<>"",ROUNDDOWN(A1558*$B$13/24,0),"") ->  | D1558: =IF(A1558<>"",MOD(B1558,24)/24,"") ->  | E1558: =IF(A1558<>"",($B$4+$B$5)/2+($B$5-$B$4)/2*COS(2*PI()/$B$15*B1558),"") ->  | F1558: =IF(A1558<>"",E1558*COS(2*PI()/$B$7*B1558),"") ->  | G1558: =ABS(0.5*1.025*1*(F1558^3)) -> 
H1621: =G1621*$B$13 -> 
A1622: =IF(IF(A1621<>"",A1621+1<=$B$16,0),A1621+1,"") ->  | B1622: =IF(A1622<>"",A1622*$B$13,"") ->  | C1622: =IF(A1622<>"",ROUNDDOWN(A1622*$B$13/24,0),"") ->  | D1622: =IF(A1622<>"",MOD(B1622,24)/24,"") ->  | E1622: =IF(A1622<>"",($B$4+$B$5)/2+($B$5-$B$4)/2*COS(2*PI()/$B$15*B1622),"") ->  | F1622: =IF(A1622<>"",E1622*COS(2*PI()/$B$7*B1622),"") ->  | G1622: =ABS(0.5*1.025*1*(F1622^3)) -> 
H1685: =G1685*$B$13 -> 
A1686: =IF(IF(A1685<>"",A1685+1<=$B$16,0),A1685+1,"") ->  | B1686: =IF(A1686<>"",A1686*$B$13,"") ->  | C1686: =IF(A1686<>"",ROUNDDOWN(A1686*$B$13/24,0),"") ->  | D1686: =IF(A1686<>"",MOD(B1686,24)/24,"") ->  | E1686: =IF(A1686<>"",($B$4+$B$5)/2+($B$5-$B$4)/2*COS(2*PI()/$B$15*B1686),"") ->  | F1686: =IF(A1686<>"",E1686*COS(2*PI()/$B$7*B1686),"") ->  | G1686: =ABS(0.5*1.025*1*(F1686^3)) -> 
H1749: =G1749*$B$13 -> 
A1750: =IF(IF(A1749<>"",A1749+1<=$B$16,0),A1749+1,"") ->  | B1750: =IF(A1750<>"",A1750*$B$13,"") ->  | C1750: =IF(A1750<>"",ROUNDDOWN(A1750*$B$13/24,0),"") ->  | D1750: =IF(A1750<>"",MOD(B1750,24)/24,"") ->  | E1750: =IF(A1750<>"",($B$4+$B$5)/2+($B$5-$B$4)/2*COS(2*PI()/$B$15*B1750),"") ->  | F1750: =IF(A1750<>"",E1750*COS(2*PI()/$B$7*B1750),"") ->  | G1750: =ABS(0.5*1.025*1*(F1750^3)) -> 
H1813: =G1813*$B$13 -> 
A1814: =IF(IF(A1813<>"",A1813+1<=$B$16,0),A1813+1,"") ->  | B1814: =IF(A1814<>"",A1814*$B$13,"") ->  | C1814: =IF(A1814<>"",ROUNDDOWN(A1814*$B$13/24,0),"") ->  | D1814: =IF(A1814<>"",MOD(B1814,24)/24,"") ->  | E1814: =IF(A1814<>"",($B$4+$B$5)/2+($B$5-$B$4)/2*COS(2*PI()/$B$15*B1814),"") ->  | F1814: =IF(A1814<>"",E1814*COS(2*PI()/$B$7*B1814),"") ->  | G1814: =ABS(0.5*1.025*1*(F1814^3)) -> 
H1877: =G1877*$B$13 -> 
A1878: =IF(IF(A1877<>"",A1877+1<=$B$16,0),A1877+1,"") ->  | B1878: =IF(A1878<>"",A1878*$B$13,"") ->  | C1878: =IF(A1878<>"",ROUNDDOWN(A1878*$B$13/24,0),"") ->  | D1878: =IF(A1878<>"",MOD(B1878,24)/24,"") ->  | E1878: =IF(A1878<>"",($B$4+$B$5)/2+($B$5-$B$4)/2*COS(2*PI()/$B$15*B1878),"") ->  | F1878: =IF(A1878<>"",E1878*COS(2*PI()/$B$7*B1878),"") ->  | G1878: =ABS(0.5*1.025*1*(F1878^3)) -> 
H1941: =G1941*$B$13 -> 
A1942: =IF(IF(A1941<>"",A1941+1<=$B$16,0),A1941+1,"") ->  | B1942: =IF(A1942<>"",A1942*$B$13,"") ->  | C1942: =IF(A1942<>"",ROUNDDOWN(A1942*$B$13/24,0),"") ->  | D1942: =IF(A1942<>"",MOD(B1942,24)/24,"") ->  | E1942: =IF(A1942<>"",($B$4+$B$5)/2+($B$5-$B$4)/2*COS(2*PI()/$B$15*B1942),"") ->  | F1942: =IF(A1942<>"",E1942*COS(2*PI()/$B$7*B1942),"") ->  | G1942: =ABS(0.5*1.025*1*(F1942^3)) -> 
H2005: =G2005*$B$13 -> 
A2006: =IF(IF(A2005<>"",A2005+1<=$B$16,0),A2005+1,"") ->  | B2006: =IF(A2006<>"",A2006*$B$13,"") ->  | C2006: =IF(A2006<>"",ROUNDDOWN(A2006*$B$13/24,0),"") ->  | D2006: =IF(A2006<>"",MOD(B2006,24)/24,"") ->  | E2006: =IF(A2006<>"",($B$4+$B$5)/2+($B$5-$B$4)/2*COS(2*PI()/$B$15*B2006),"") ->  | F2006: =IF(A2006<>"",E2006*COS(2*PI()/$B$7*B2006),"") ->  | G2006: =ABS(0.5*1.025*1*(F2006^3)) -> 
H2069: =G2069*$B$13 -> 
A2070: =IF(IF(A2069<>"",A2069+1<=$B$16,0),A2069+1,"") ->  | B2070: =IF(A2070<>"",A2070*$B$13,"") ->  | C2070: =IF(A2070<>"",ROUNDDOWN(A2070*$B$13/24,0),"") ->  | D2070: =IF(A2070<>"",MOD(B2070,24)/24,"") ->  | E2070: =IF(A2070<>"",($B$4+$B$5)/2+($B$5-$B$4)/2*COS(2*PI()/$B$15*B2070),"") ->  | F2070: =IF(A2070<>"",E2070*COS(2*PI()/$B$7*B2070),"") ->  | G2070: =ABS(0.5*1.025*1*(F2070^3)) -> 
H2133: =G2133*$B$13 -> 
A2134: =IF(IF(A2133<>"",A2133+1<=$B$16,0),A2133+1,"") ->  | B2134: =IF(A2134<>"",A2134*$B$13,"") ->  | C2134: =IF(A2134<>"",ROUNDDOWN(A2134*$B$13/24,0),"") ->  | D2134: =IF(A2134<>"",MOD(B2134,24)/24,"") ->  | E2134: =IF(A2134<>"",($B$4+$B$5)/2+($B$5-$B$4)/2*COS(2*PI()/$B$15*B2134),"") ->  | F2134: =IF(A2134<>"",E2134*COS(2*PI()/$B$7*B2134),"") ->  | G2134: =ABS(0.5*1.025*1*(F2134^3)) -> 
H2197: =G2197*$B$13 -> 
A2198: =IF(IF(A2197<>"",A2197+1<=$B$16,0),A2197+1,"") ->  | B2198: =IF(A2198<>"",A2198*$B$13,"") ->  | C2198: =IF(A2198<>"",ROUNDDOWN(A2198*$B$13/24,0),"") ->  | D2198: =IF(A2198<>"",MOD(B2198,24)/24,"") ->  | E2198: =IF(A2198<>"",($B$4+$B$5)/2+($B$5-$B$4)/2*COS(2*PI()/$B$15*B2198),"") ->  | F2198: =IF(A2198<>"",E2198*COS(2*PI()/$B$7*B2198),"") ->  | G2198: =ABS(0.5*1.025*1*(F2198^3)) -> 
H2261: =G2261*$B$13 -> 
A2262: =IF(IF(A2261<>"",A2261+1<=$B$16,0),A2261+1,"") ->  | B2262: =IF(A2262<>"",A2262*$B$13,"") ->  | C2262: =IF(A2262<>"",ROUNDDOWN(A2262*$B$13/24,0),"") ->  | D2262: =IF(A2262<>"",MOD(B2262,24)/24,"") ->  | E2262: =IF(A2262<>"",($B$4+$B$5)/2+($B$5-$B$4)/2*COS(2*PI()/$B$15*B2262),"") ->  | F2262: =IF(A2262<>"",E2262*COS(2*PI()/$B$7*B2262),"") ->  | G2262: =ABS(0.5*1.025*1*(F2262^3)) -> 
H2325: =G2325*$B$13 -> 
A2326: =IF(IF(A2325<>"",A2325+1<=$B$16,0),A2325+1,"") ->  | B2326: =IF(A2326<>"",A2326*$B$13,"") ->  | C2326: =IF(A2326<>"",ROUNDDOWN(A2326*$B$13/24,0),"") ->  | D2326: =IF(A2326<>"",MOD(B2326,24)/24,"") ->  | E2326: =IF(A2326<>"",($B$4+$B$5)/2+($B$5-$B$4)/2*COS(2*PI()/$B$15*B2326),"") ->  | F2326: =IF(A2326<>"",E2326*COS(2*PI()/$B$7*B2326),"") ->  | G2326: =ABS(0.5*1.025*1*(F2326^3)) -> 
H2389: =G2389*$B$13 -> 
A2390: =IF(IF(A2389<>"",A2389+1<=$B$16,0),A2389+1,"") ->  | B2390: =IF(A2390<>"",A2390*$B$13,"") ->  | C2390: =IF(A2390<>"",ROUNDDOWN(A2390*$B$13/24,0),"") ->  | D2390: =IF(A2390<>"",MOD(B2390,24)/24,"") ->  | E2390: =IF(A2390<>"",($B$4+$B$5)/2+($B$5-$B$4)/2*COS(2*PI()/$B$15*B2390),"") ->  | F2390: =IF(A2390<>"",E2390*COS(2*PI()/$B$7*B2390),"") ->  | G2390: =ABS(0.5*1.025*1*(F2390^3)) -> 
H2453: =G2453*$B$13 -> 
A2454: =IF(IF(A2453<>"",A2453+1<=$B$16,0),A2453+1,"") ->  | B2454: =IF(A2454<>"",A2454*$B$13,"") ->  | C2454: =IF(A2454<>"",ROUNDDOWN(A2454*$B$13/24,0),"") ->  | D2454: =IF(A2454<>"",MOD(B2454,24)/24,"") ->  | E2454: =IF(A2454<>"",($B$4+$B$5)/2+($B$5-$B$4)/2*COS(2*PI()/$B$15*B2454),"") ->  | F2454: =IF(A2454<>"",E2454*COS(2*PI()/$B$7*B2454),"") ->  | G2454: =ABS(0.5*1.025*1*(F2454^3)) -> 
H2517: =G2517*$B$13 -> 
A2518: =IF(IF(A2517<>"",A2517+1<=$B$16,0),A2517+1,"") ->  | B2518: =IF(A2518<>"",A2518*$B$13,"") ->  | C2518: =IF(A2518<>"",ROUNDDOWN(A2518*$B$13/24,0),"") ->  | D2518: =IF(A2518<>"",MOD(B2518,24)/24,"") ->  | E2518: =IF(A2518<>"",($B$4+$B$5)/2+($B$5-$B$4)/2*COS(2*PI()/$B$15*B2518),"") ->  | F2518: =IF(A2518<>"",E2518*COS(2*PI()/$B$7*B2518),"") ->  | G2518: =ABS(0.5*1.025*1*(F2518^3)) -> 
H2581: =G2581*$B$13 -> 
A2582: =IF(IF(A2581<>"",A2581+1<=$B$16,0),A2581+1,"") ->  | B2582: =IF(A2582<>"",A2582*$B$13,"") ->  | C2582: =IF(A2582<>"",ROUNDDOWN(A2582*$B$13/24,0),"") ->  | D2582: =IF(A2582<>"",MOD(B2582,24)/24,"") ->  | E2582: =IF(A2582<>"",($B$4+$B$5)/2+($B$5-$B$4)/2*COS(2*PI()/$B$15*B2582),"") ->  | F2582: =IF(A2582<>"",E2582*COS(2*PI()/$B$7*B2582),"") ->  | G2582: =ABS(0.5*1.025*1*(F2582^3)) -> 
H2645: =G2645*$B$13 -> 
A2646: =IF(IF(A2645<>"",A2645+1<=$B$16,0),A2645+1,"") ->  | B2646: =IF(A2646<>"",A2646*$B$13,"") ->  | C2646: =IF(A2646<>"",ROUNDDOWN(A2646*$B$13/24,0),"") ->  | D2646: =IF(A2646<>"",MOD(B2646,24)/24,"") ->  | E2646: =IF(A2646<>"",($B$4+$B$5)/2+($B$5-$B$4)/2*COS(2*PI()/$B$15*B2646),"") ->  | F2646: =IF(A2646<>"",E2646*COS(2*PI()/$B$7*B2646),"") ->  | G2646: =ABS(0.5*1.025*1*(F2646^3)) -> 
G2705: =ABS(0.5*1.025*1*(F2705^3)) -> 
H2709: =G2709*$B$13 -> 
A2710: =IF(IF(A2709<>"",A2709+1<=$B$16,0),A2709+1,"") ->  | B2710: =IF(A2710<>"",A2710*$B$13,"") ->  | C2710: =IF(A2710<>"",ROUNDDOWN(A2710*$B$13/24,0),"") ->  | D2710: =IF(A2710<>"",MOD(B2710,24)/24,"") ->  | E2710: =IF(A2710<>"",($B$4+$B$5)/2+($B$5-$B$4)/2*COS(2*PI()/$B$15*B2710),"") ->  | F2710: =IF(A2710<>"",E2710*COS(2*PI()/$B$7*B2710),"") ->  | G2710: =ABS(0.5*1.025*1*(F2710^3)) -> 
G2760: =ABS(0.5*1.025*1*(F2760^3)) -> 
C2769: =IF(A2769<>"",ROUNDDOWN(A2769*$B$13/24,0),"") -> 
A2770: =IF(IF(A2769<>"",A2769+1<=$B$16,0),A2769+1,"") ->  | B2770: =IF(A2770<>"",A2770*$B$13,"") ->  | C2770: =IF(A2770<>"",ROUNDDOWN(A2770*$B$13/24,0),"") ->  | E2770: =IF(A2770<>"",($B$4+$B$5)/2+($B$5-$B$4)/2*COS(2*PI()/$B$15*B2770),"") ->  | F2770: =IF(A2770<>"",E2770*COS(2*PI()/$B$7*B2770),"") -> 
A2771: =IF(IF(A2770<>"",A2770+1<=$B$16,0),A2770+1,"") ->  | B2771: =IF(A2771<>"",A2771*$B$13,"") ->  | C2771: =IF(A2771<>"",ROUNDDOWN(A2771*$B$13/24,0),"") ->  | D2771: =IF(A2771<>"",MOD(B2771,24)/24,"") ->  | E2771: =IF(A2771<>"",($B$4+$B$5)/2+($B$5-$B$4)/2*COS(2*PI()/$B$15*B2771),"") ->  | F2771: =IF(A2771<>"",E2771*COS(2*PI()/$B$7*B2771),"") ->  | G2771: =ABS(0.5*1.025*1*(F2771^3)) -> 
H2773: =G2773*$B$13 -> 
H2779: =G2779*$B$13 -> 
E2780: Total Energy (kWh/m^2) | G2780: - | H2780: =IF(ISERROR(SUM(H20:H2779)),"",SUM(H20:H2779)) ->  | I2780: per lunar cycle
G2781: - | H2781: =IF(ISERROR(H2780*(365/$B$6)),"",(H2780*(365/$B$6))) ->  | I2781: per year
E2782: Average Power (kW/m^2) | G2782: =IF(ISERROR(AVERAGE(G20:G2779)),"",(AVERAGE(G20:G2779))) ->  | H2782: -

Sheet Tidal Stream 2
A1: Tidal Stream Resource
A3: =Input!A45 -> Site Name | B3: =IF(Input!B55<>"",Input!B55,"-") -> [Enter Name] | C3: =Input!C45 -> 0 | I3: Plots:
A4: =Input!A46 -> Peak Flow (Springs) | B4: =IF((AND(Input!B56<>"",Input!B56<>"[Enter Value]")),Input!B56,"0") -> 0 | C4: =Input!C46 -> m/s
A5: =Input!A47 -> Peak Flow (Neaps) | B5: =IF((AND(Input!B57<>"",Input!B57<>"[Enter Value]")),Input!B57,"0") -> 0 | C5: =Input!C47 -> m/s
A6: =Input!A48 -> Lunar Cycle Period | B6: =IF((AND(Input!B58<>"",Input!B58<>"[Enter Value]")),Input!B58,"0") -> 0 | C6: =Input!C48 -> days
A7: =Input!A49 -> Tidal Period | B7: =IF((AND(Input!B59<>"",Input!B59<>"[Enter Value]")),Input!B59,"0") -> 0 | C7: =Input!C49 -> hours
A8: =Input!A50 -> Proximity to Grid Connection | B8: =IF(Input!B60<>"",Input!B60,"-") -> [Select Value]
A9: =Input!A51 -> Average Water Depth | B9: =IF(Input!B61<>"",Input!B61,"-") -> [Select Value]
A10: =Input!A52 -> Seabed Topography | B10: =IF(Input!B62<>"",Input!B62,"-") -> [Select Value]
A11: =Input!A53 -> Accessibility | B11: =IF(Input!B63<>"",Input!B63,"-") -> [Select Value]
A13: Time Step | B13: 0.25 | C13: hours
A14: Period | B14: =B6/2 -> 0 | C14: days
B15: =B14*24 -> 0 | C15: hours
A16: Number of Steps | B16: =B15/B13*2 -> 0 | C16: -
A18: No. | B18: Time | E18: Amplitude | F18: Current | G18: Power | H18: Energy
B19: Hours | C19: Day | D19: Time | E19: m/s | F19: m/s | G19: kW/(m^2) | H19: kWh/(m^2)
A20: 0 | B20: =A20*$B$13 -> 0 | C20: =ROUNDDOWN(A20*$B$1/24,0) -> 0 | D20: =MOD(B20,24)/24 -> 0 | E20: =IF(A20<>"",($B$4+$B$5)/2+($B$5-$B$4)/2*COS(2*PI()/$B$15*B20),"") ->  | F20: =IF(A20<>"",E20*COS(2*PI()/$B$7*B20),"") ->  | G20: =ABS(0.5*1.025*1*(F20^3)) ->  | H20: =G20*$B$13 -> 
A21: =IF(IF(A20<>"",A20+1<=$B$16,0),A20+1,"") ->  | B21: =IF(A21<>"",A21*$B$13,"") ->  | C21: =IF(A21<>"",ROUNDDOWN(A21*$B$13/24,0),"") ->  | D21: =IF(A21<>"",MOD(B21,24)/24,"") ->  | E21: =IF(A21<>"",($B$4+$B$5)/2+($B$5-$B$4)/2*COS(2*PI()/$B$15*B21),"") ->  | F21: =IF(A21<>"",E21*COS(2*PI()/$B$7*B21),"") ->  | G21: =ABS(0.5*1.025*1*(F21^3)) ->  | H21: =G21*$B$13 -> 
A22: =IF(IF(A21<>"",A21+1<=$B$16,0),A21+1,"") ->  | B22: =IF(A22<>"",A22*$B$13,"") ->  | C22: =IF(A22<>"",ROUNDDOWN(A22*$B$13/24,0),"") ->  | E22: =IF(A22<>"",($B$4+$B$5)/2+($B$5-$B$4)/2*COS(2*PI()/$B$15*B22),"") ->  | F22: =IF(A22<>"",E22*COS(2*PI()/$B$7*B22),"") ->  | G22: =ABS(0.5*1.025*1*(F22^3)) -> 
D85: =IF(A85<>"",MOD(B85,24)/24,"") ->  | G85: =ABS(0.5*1.025*1*(F85^3)) ->  | H85: =G85*$B$13 -> 
A86: =IF(IF(A85<>"",A85+1<=$B$16,0),A85+1,"") ->  | B86: =IF(A86<>"",A86*$B$13,"") ->  | C86: =IF(A86<>"",ROUNDDOWN(A86*$B$13/24,0),"") ->  | E86: =IF(A86<>"",($B$4+$B$5)/2+($B$5-$B$4)/2*COS(2*PI()/$B$15*B86),"") ->  | F86: =IF(A86<>"",E86*COS(2*PI()/$B$7*B86),"") -> 
D149: =IF(A149<>"",MOD(B149,24)/24,"") ->  | G149: =ABS(0.5*1.025*1*(F149^3)) ->  | H149: =G149*$B$13 -> 
A150: =IF(IF(A149<>"",A149+1<=$B$16,0),A149+1,"") ->  | B150: =IF(A150<>"",A150*$B$13,"") ->  | C150: =IF(A150<>"",ROUNDDOWN(A150*$B$13/24,0),"") ->  | E150: =IF(A150<>"",($B$4+$B$5)/2+($B$5-$B$4)/2*COS(2*PI()/$B$15*B150),"") ->  | F150: =IF(A150<>"",E150*COS(2*PI()/$B$7*B150),"") -> 
D213: =IF(A213<>"",MOD(B213,24)/24,"") ->  | G213: =ABS(0.5*1.025*1*(F213^3)) ->  | H213: =G213*$B$13 -> 
A214: =IF(IF(A213<>"",A213+1<=$B$16,0),A213+1,"") ->  | B214: =IF(A214<>"",A214*$B$13,"") ->  | C214: =IF(A214<>"",ROUNDDOWN(A214*$B$13/24,0),"") ->  | E214: =IF(A214<>"",($B$4+$B$5)/2+($B$5-$B$4)/2*COS(2*PI()/$B$15*B214),"") ->  | F214: =IF(A214<>"",E214*COS(2*PI()/$B$7*B214),"") -> 
D277: =IF(A277<>"",MOD(B277,24)/24,"") ->  | G277: =ABS(0.5*1.025*1*(F277^3)) ->  | H277: =G277*$B$13 -> 
A278: =IF(IF(A277<>"",A277+1<=$B$16,0),A277+1,"") ->  | B278: =IF(A278<>"",A278*$B$13,"") ->  | C278: =IF(A278<>"",ROUNDDOWN(A278*$B$13/24,0),"") ->  | E278: =IF(A278<>"",($B$4+$B$5)/2+($B$5-$B$4)/2*COS(2*PI()/$B$15*B278),"") ->  | F278: =IF(A278<>"",E278*COS(2*PI()/$B$7*B278),"") -> 
D341: =IF(A341<>"",MOD(B341,24)/24,"") ->  | G341: =ABS(0.5*1.025*1*(F341^3)) ->  | H341: =G341*$B$13 -> 
A342: =IF(IF(A341<>"",A341+1<=$B$16,0),A341+1,"") ->  | B342: =IF(A342<>"",A342*$B$13,"") ->  | C342: =IF(A342<>"",ROUNDDOWN(A342*$B$13/24,0),"") ->  | E342: =IF(A342<>"",($B$4+$B$5)/2+($B$5-$B$4)/2*COS(2*PI()/$B$15*B342),"") ->  | F342: =IF(A342<>"",E342*COS(2*PI()/$B$7*B342),"") -> 
D405: =IF(A405<>"",MOD(B405,24)/24,"") ->  | G405: =ABS(0.5*1.025*1*(F405^3)) ->  | H405: =G405*$B$13 -> 
A406: =IF(IF(A405<>"",A405+1<=$B$16,0),A405+1,"") ->  | B406: =IF(A406<>"",A406*$B$13,"") ->  | C406: =IF(A406<>"",ROUNDDOWN(A406*$B$13/24,0),"") ->  | E406: =IF(A406<>"",($B$4+$B$5)/2+($B$5-$B$4)/2*COS(2*PI()/$B$15*B406),"") ->  | F406: =IF(A406<>"",E406*COS(2*PI()/$B$7*B406),"") -> 
D469: =IF(A469<>"",MOD(B469,24)/24,"") ->  | G469: =ABS(0.5*1.025*1*(F469^3)) ->  | H469: =G469*$B$13 -> 
A470: =IF(IF(A469<>"",A469+1<=$B$16,0),A469+1,"") ->  | B470: =IF(A470<>"",A470*$B$13,"") ->  | C470: =IF(A470<>"",ROUNDDOWN(A470*$B$13/24,0),"") ->  | E470: =IF(A470<>"",($B$4+$B$5)/2+($B$5-$B$4)/2*COS(2*PI()/$B$15*B470),"") ->  | F470: =IF(A470<>"",E470*COS(2*PI()/$B$7*B470),"") -> 
D533: =IF(A533<>"",MOD(B533,24)/24,"") ->  | G533: =ABS(0.5*1.025*1*(F533^3)) ->  | H533: =G533*$B$13 -> 
A534: =IF(IF(A533<>"",A533+1<=$B$16,0),A533+1,"") ->  | B534: =IF(A534<>"",A534*$B$13,"") ->  | C534: =IF(A534<>"",ROUNDDOWN(A534*$B$13/24,0),"") ->  | E534: =IF(A534<>"",($B$4+$B$5)/2+($B$5-$B$4)/2*COS(2*PI()/$B$15*B534),"") ->  | F534: =IF(A534<>"",E534*COS(2*PI()/$B$7*B534),"") -> 
D597: =IF(A597<>"",MOD(B597,24)/24,"") ->  | G597: =ABS(0.5*1.025*1*(F597^3)) ->  | H597: =G597*$B$13 -> 
A598: =IF(IF(A597<>"",A597+1<=$B$16,0),A597+1,"") ->  | B598: =IF(A598<>"",A598*$B$13,"") ->  | C598: =IF(A598<>"",ROUNDDOWN(A598*$B$13/24,0),"") ->  | E598: =IF(A598<>"",($B$4+$B$5)/2+($B$5-$B$4)/2*COS(2*PI()/$B$15*B598),"") ->  | F598: =IF(A598<>"",E598*COS(2*PI()/$B$7*B598),"") -> 
D661: =IF(A661<>"",MOD(B661,24)/24,"") ->  | G661: =ABS(0.5*1.025*1*(F661^3)) ->  | H661: =G661*$B$13 -> 
A662: =IF(IF(A661<>"",A661+1<=$B$16,0),A661+1,"") ->  | B662: =IF(A662<>"",A662*$B$13,"") ->  | C662: =IF(A662<>"",ROUNDDOWN(A662*$B$13/24,0),"") ->  | E662: =IF(A662<>"",($B$4+$B$5)/2+($B$5-$B$4)/2*COS(2*PI()/$B$15*B662),"") ->  | F662: =IF(A662<>"",E662*COS(2*PI()/$B$7*B662),"") -> 
D725: =IF(A725<>"",MOD(B725,24)/24,"") ->  | G725: =ABS(0.5*1.025*1*(F725^3)) ->  | H725: =G725*$B$13 -> 
A726: =IF(IF(A725<>"",A725+1<=$B$16,0),A725+1,"") ->  | B726: =IF(A726<>"",A726*$B$13,"") ->  | C726: =IF(A726<>"",ROUNDDOWN(A726*$B$13/24,0),"") ->  | E726: =IF(A726<>"",($B$4+$B$5)/2+($B$5-$B$4)/2*COS(2*PI()/$B$15*B726),"") ->  | F726: =IF(A726<>"",E726*COS(2*PI()/$B$7*B726),"") -> 
D789: =IF(A789<>"",MOD(B789,24)/24,"") ->  | G789: =ABS(0.5*1.025*1*(F789^3)) ->  | H789: =G789*$B$13 -> 
A790: =IF(IF(A789<>"",A789+1<=$B$16,0),A789+1,"") ->  | B790: =IF(A790<>"",A790*$B$13,"") ->  | C790: =IF(A790<>"",ROUNDDOWN(A790*$B$13/24,0),"") ->  | E790: =IF(A790<>"",($B$4+$B$5)/2+($B$5-$B$4)/2*COS(2*PI()/$B$15*B790),"") ->  | F790: =IF(A790<>"",E790*COS(2*PI()/$B$7*B790),"") -> 
D853: =IF(A853<>"",MOD(B853,24)/24,"") ->  | G853: =ABS(0.5*1.025*1*(F853^3)) ->  | H853: =G853*$B$13 -> 
A854: =IF(IF(A853<>"",A853+1<=$B$16,0),A853+1,"") ->  | B854: =IF(A854<>"",A854*$B$13,"") ->  | C854: =IF(A854<>"",ROUNDDOWN(A854*$B$13/24,0),"") ->  | E854: =IF(A854<>"",($B$4+$B$5)/2+($B$5-$B$4)/2*COS(2*PI()/$B$15*B854),"") ->  | F854: =IF(A854<>"",E854*COS(2*PI()/$B$7*B854),"") -> 
D917: =IF(A917<>"",MOD(B917,24)/24,"") ->  | G917: =ABS(0.5*1.025*1*(F917^3)) ->  | H917: =G917*$B$13 -> 
A918: =IF(IF(A917<>"",A917+1<=$B$16,0),A917+1,"") ->  | B918: =IF(A918<>"",A918*$B$13,"") ->  | C918: =IF(A918<>"",ROUNDDOWN(A918*$B$13/24,0),"") ->  | E918: =IF(A918<>"",($B$4+$B$5)/2+($B$5-$B$4)/2*COS(2*PI()/$B$15*B918),"") ->  | F918: =IF(A918<>"",E918*COS(2*PI()/$B$7*B918),"") -> 
D981: =IF(A981<>"",MOD(B981,24)/24,"") ->  | G981: =ABS(0.5*1.025*1*(F981^3)) ->  | H981: =G981*$B$13 -> 
A982: =IF(IF(A981<>"",A981+1<=$B$16,0),A981+1,"") ->  | B982: =IF(A982<>"",A982*$B$13,"") ->  | C982: =IF(A982<>"",ROUNDDOWN(A982*$B$13/24,0),"") ->  | E982: =IF(A982<>"",($B$4+$B$5)/2+($B$5-$B$4)/2*COS(2*PI()/$B$15*B982),"") ->  | F982: =IF(A982<>"",E982*COS(2*PI()/$B$7*B982),"") -> 
D1045: =IF(A1045<>"",MOD(B1045,24)/24,"") ->  | G1045: =ABS(0.5*1.025*1*(F1045^3)) ->  | H1045: =G1045*$B$13 -> 
A1046: =IF(IF(A1045<>"",A1045+1<=$B$16,0),A1045+1,"") ->  | B1046: =IF(A1046<>"",A1046*$B$13,"") ->  | C1046: =IF(A1046<>"",ROUNDDOWN(A1046*$B$13/24,0),"") ->  | E1046: =IF(A1046<>"",($B$4+$B$5)/2+($B$5-$B$4)/2*COS(2*PI()/$B$15*B1046),"") ->  | F1046: =IF(A1046<>"",E1046*COS(2*PI()/$B$7*B1046),"") -> 
D1109: =IF(A1109<>"",MOD(B1109,24)/24,"") ->  | G1109: =ABS(0.5*1.025*1*(F1109^3)) ->  | H1109: =G1109*$B$13 -> 
A1110: =IF(IF(A1109<>"",A1109+1<=$B$16,0),A1109+1,"") ->  | B1110: =IF(A1110<>"",A1110*$B$13,"") ->  | C1110: =IF(A1110<>"",ROUNDDOWN(A1110*$B$13/24,0),"") ->  | E1110: =IF(A1110<>"",($B$4+$B$5)/2+($B$5-$B$4)/2*COS(2*PI()/$B$15*B1110),"") ->  | F1110: =IF(A1110<>"",E1110*COS(2*PI()/$B$7*B1110),"") -> 
D1173: =IF(A1173<>"",MOD(B1173,24)/24,"") ->  | G1173: =ABS(0.5*1.025*1*(F1173^3)) ->  | H1173: =G1173*$B$13 -> 
A1174: =IF(IF(A1173<>"",A1173+1<=$B$16,0),A1173+1,"") ->  | B1174: =IF(A1174<>"",A1174*$B$13,"") ->  | C1174: =IF(A1174<>"",ROUNDDOWN(A1174*$B$13/24,0),"") ->  | E1174: =IF(A1174<>"",($B$4+$B$5)/2+($B$5-$B$4)/2*COS(2*PI()/$B$15*B1174),"") ->  | F1174: =IF(A1174<>"",E1174*COS(2*PI()/$B$7*B1174),"") -> 
D1237: =IF(A1237<>"",MOD(B1237,24)/24,"") ->  | G1237: =ABS(0.5*1.025*1*(F1237^3)) ->  | H1237: =G1237*$B$13 -> 
A1238: =IF(IF(A1237<>"",A1237+1<=$B$16,0),A1237+1,"") ->  | B1238: =IF(A1238<>"",A1238*$B$13,"") ->  | C1238: =IF(A1238<>"",ROUNDDOWN(A1238*$B$13/24,0),"") ->  | E1238: =IF(A1238<>"",($B$4+$B$5)/2+($B$5-$B$4)/2*COS(2*PI()/$B$15*B1238),"") ->  | F1238: =IF(A1238<>"",E1238*COS(2*PI()/$B$7*B1238),"") -> 
D1301: =IF(A1301<>"",MOD(B1301,24)/24,"") ->  | G1301: =ABS(0.5*1.025*1*(F1301^3)) ->  | H1301: =G1301*$B$13 -> 
A1302: =IF(IF(A1301<>"",A1301+1<=$B$16,0),A1301+1,"") ->  | B1302: =IF(A1302<>"",A1302*$B$13,"") ->  | C1302: =IF(A1302<>"",ROUNDDOWN(A1302*$B$13/24,0),"") ->  | E1302: =IF(A1302<>"",($B$4+$B$5)/2+($B$5-$B$4)/2*COS(2*PI()/$B$15*B1302),"") ->  | F1302: =IF(A1302<>"",E1302*COS(2*PI()/$B$7*B1302),"") -> 
D1365: =IF(A1365<>"",MOD(B1365,24)/24,"") ->  | G1365: =ABS(0.5*1.025*1*(F1365^3)) ->  | H1365: =G1365*$B$13 -> 
A1366: =IF(IF(A1365<>"",A1365+1<=$B$16,0),A1365+1,"") ->  | B1366: =IF(A1366<>"",A1366*$B$13,"") ->  | C1366: =IF(A1366<>"",ROUNDDOWN(A1366*$B$13/24,0),"") ->  | E1366: =IF(A1366<>"",($B$4+$B$5)/2+($B$5-$B$4)/2*COS(2*PI()/$B$15*B1366),"") ->  | F1366: =IF(A1366<>"",E1366*COS(2*PI()/$B$7*B1366),"") -> 
D1429: =IF(A1429<>"",MOD(B1429,24)/24,"") ->  | G1429: =ABS(0.5*1.025*1*(F1429^3)) ->  | H1429: =G1429*$B$13 -> 
A1430: =IF(IF(A1429<>"",A1429+1<=$B$16,0),A1429+1,"") ->  | B1430: =IF(A1430<>"",A1430*$B$13,"") ->  | C1430: =IF(A1430<>"",ROUNDDOWN(A1430*$B$13/24,0),"") ->  | E1430: =IF(A1430<>"",($B$4+$B$5)/2+($B$5-$B$4)/2*COS(2*PI()/$B$15*B1430),"") ->  | F1430: =IF(A1430<>"",E1430*COS(2*PI()/$B$7*B1430),"") -> 
D1493: =IF(A1493<>"",MOD(B1493,24)/24,"") ->  | G1493: =ABS(0.5*1.025*1*(F1493^3)) ->  | H1493: =G1493*$B$13 -> 
A1494: =IF(IF(A1493<>"",A1493+1<=$B$16,0),A1493+1,"") ->  | B1494: =IF(A1494<>"",A1494*$B$13,"") ->  | C1494: =IF(A1494<>"",ROUNDDOWN(A1494*$B$13/24,0),"") ->  | E1494: =IF(A1494<>"",($B$4+$B$5)/2+($B$5-$B$4)/2*COS(2*PI()/$B$15*B1494),"") ->  | F1494: =IF(A1494<>"",E1494*COS(2*PI()/$B$7*B1494),"") -> 
D1557: =IF(A1557<>"",MOD(B1557,24)/24,"") ->  | G1557: =ABS(0.5*1.025*1*(F1557^3)) ->  | H1557: =G1557*$B$13 -> 
A1558: =IF(IF(A1557<>"",A1557+1<=$B$16,0),A1557+1,"") ->  | B1558: =IF(A1558<>"",A1558*$B$13,"") ->  | C1558: =IF(A1558<>"",ROUNDDOWN(A1558*$B$13/24,0),"") ->  | E1558: =IF(A1558<>"",($B$4+$B$5)/2+($B$5-$B$4)/2*COS(2*PI()/$B$15*B1558),"") ->  | F1558: =IF(A1558<>"",E1558*COS(2*PI()/$B$7*B1558),"") -> 
D1621: =IF(A1621<>"",MOD(B1621,24)/24,"") ->  | G1621: =ABS(0.5*1.025*1*(F1621^3)) ->  | H1621: =G1621*$B$13 -> 
A1622: =IF(IF(A1621<>"",A1621+1<=$B$16,0),A1621+1,"") ->  | B1622: =IF(A1622<>"",A1622*$B$13,"") ->  | C1622: =IF(A1622<>"",ROUNDDOWN(A1622*$B$13/24,0),"") ->  | E1622: =IF(A1622<>"",($B$4+$B$5)/2+($B$5-$B$4)/2*COS(2*PI()/$B$15*B1622),"") ->  | F1622: =IF(A1622<>"",E1622*COS(2*PI()/$B$7*B1622),"") -> 
D1685: =IF(A1685<>"",MOD(B1685,24)/24,"") ->  | G1685: =ABS(0.5*1.025*1*(F1685^3)) ->  | H1685: =G1685*$B$13 -> 
A1686: =IF(IF(A1685<>"",A1685+1<=$B$16,0),A1685+1,"") ->  | B1686: =IF(A1686<>"",A1686*$B$13,"") ->  | C1686: =IF(A1686<>"",ROUNDDOWN(A1686*$B$13/24,0),"") ->  | E1686: =IF(A1686<>"",($B$4+$B$5)/2+($B$5-$B$4)/2*COS(2*PI()/$B$15*B1686),"") ->  | F1686: =IF(A1686<>"",E1686*COS(2*PI()/$B$7*B1686),"") -> 
D1749: =IF(A1749<>"",MOD(B1749,24)/24,"") ->  | G1749: =ABS(0.5*1.025*1*(F1749^3)) ->  | H1749: =G1749*$B$13 -> 
A1750: =IF(IF(A1749<>"",A1749+1<=$B$16,0),A1749+1,"") ->  | B1750: =IF(A1750<>"",A1750*$B$13,"") ->  | C1750: =IF(A1750<>"",ROUNDDOWN(A1750*$B$13/24,0),"") ->  | E1750: =IF(A1750<>"",($B$4+$B$5)/2+($B$5-$B$4)/2*COS(2*PI()/$B$15*B1750),"") ->  | F1750: =IF(A1750<>"",E1750*COS(2*PI()/$B$7*B1750),"") -> 
D1813: =IF(A1813<>"",MOD(B1813,24)/24,"") ->  | G1813: =ABS(0.5*1.025*1*(F1813^3)) ->  | H1813: =G1813*$B$13 -> 
A1814: =IF(IF(A1813<>"",A1813+1<=$B$16,0),A1813+1,"") ->  | B1814: =IF(A1814<>"",A1814*$B$13,"") ->  | C1814: =IF(A1814<>"",ROUNDDOWN(A1814*$B$13/24,0),"") ->  | E1814: =IF(A1814<>"",($B$4+$B$5)/2+($B$5-$B$4)/2*COS(2*PI()/$B$15*B1814),"") ->  | F1814: =IF(A1814<>"",E1814*COS(2*PI()/$B$7*B1814),"") -> 
D1877: =IF(A1877<>"",MOD(B1877,24)/24,"") ->  | G1877: =ABS(0.5*1.025*1*(F1877^3)) ->  | H1877: =G1877*$B$13 -> 
A1878: =IF(IF(A1877<>"",A1877+1<=$B$16,0),A1877+1,"") ->  | B1878: =IF(A1878<>"",A1878*$B$13,"") ->  | C1878: =IF(A1878<>"",ROUNDDOWN(A1878*$B$13/24,0),"") ->  | E1878: =IF(A1878<>"",($B$4+$B$5)/2+($B$5-$B$4)/2*COS(2*PI()/$B$15*B1878),"") ->  | F1878: =IF(A1878<>"",E1878*COS(2*PI()/$B$7*B1878),"") -> 
D1941: =IF(A1941<>"",MOD(B1941,24)/24,"") ->  | G1941: =ABS(0.5*1.025*1*(F1941^3)) ->  | H1941: =G1941*$B$13 -> 
A1942: =IF(IF(A1941<>"",A1941+1<=$B$16,0),A1941+1,"") ->  | B1942: =IF(A1942<>"",A1942*$B$13,"") ->  | C1942: =IF(A1942<>"",ROUNDDOWN(A1942*$B$13/24,0),"") ->  | E1942: =IF(A1942<>"",($B$4+$B$5)/2+($B$5-$B$4)/2*COS(2*PI()/$B$15*B1942),"") ->  | F1942: =IF(A1942<>"",E1942*COS(2*PI()/$B$7*B1942),"") -> 
D2005: =IF(A2005<>"",MOD(B2005,24)/24,"") ->  | G2005: =ABS(0.5*1.025*1*(F2005^3)) ->  | H2005: =G2005*$B$13 -> 
A2006: =IF(IF(A2005<>"",A2005+1<=$B$16,0),A2005+1,"") ->  | B2006: =IF(A2006<>"",A2006*$B$13,"") ->  | C2006: =IF(A2006<>"",ROUNDDOWN(A2006*$B$13/24,0),"") ->  | E2006: =IF(A2006<>"",($B$4+$B$5)/2+($B$5-$B$4)/2*COS(2*PI()/$B$15*B2006),"") ->  | F2006: =IF(A2006<>"",E2006*COS(2*PI()/$B$7*B2006),"") -> 
D2069: =IF(A2069<>"",MOD(B2069,24)/24,"") ->  | G2069: =ABS(0.5*1.025*1*(F2069^3)) ->  | H2069: =G2069*$B$13 -> 
A2070: =IF(IF(A2069<>"",A2069+1<=$B$16,0),A2069+1,"") ->  | B2070: =IF(A2070<>"",A2070*$B$13,"") ->  | C2070: =IF(A2070<>"",ROUNDDOWN(A2070*$B$13/24,0),"") ->  | E2070: =IF(A2070<>"",($B$4+$B$5)/2+($B$5-$B$4)/2*COS(2*PI()/$B$15*B2070),"") ->  | F2070: =IF(A2070<>"",E2070*COS(2*PI()/$B$7*B2070),"") -> 
D2133: =IF(A2133<>"",MOD(B2133,24)/24,"") ->  | G2133: =ABS(0.5*1.025*1*(F2133^3)) ->  | H2133: =G2133*$B$13 -> 
A2134: =IF(IF(A2133<>"",A2133+1<=$B$16,0),A2133+1,"") ->  | B2134: =IF(A2134<>"",A2134*$B$13,"") ->  | C2134: =IF(A2134<>"",ROUNDDOWN(A2134*$B$13/24,0),"") ->  | E2134: =IF(A2134<>"",($B$4+$B$5)/2+($B$5-$B$4)/2*COS(2*PI()/$B$15*B2134),"") ->  | F2134: =IF(A2134<>"",E2134*COS(2*PI()/$B$7*B2134),"") -> 
D2197: =IF(A2197<>"",MOD(B2197,24)/24,"") ->  | G2197: =ABS(0.5*1.025*1*(F2197^3)) ->  | H2197: =G2197*$B$13 -> 
A2198: =IF(IF(A2197<>"",A2197+1<=$B$16,0),A2197+1,"") ->  | B2198: =IF(A2198<>"",A2198*$B$13,"") ->  | C2198: =IF(A2198<>"",ROUNDDOWN(A2198*$B$13/24,0),"") ->  | E2198: =IF(A2198<>"",($B$4+$B$5)/2+($B$5-$B$4)/2*COS(2*PI()/$B$15*B2198),"") ->  | F2198: =IF(A2198<>"",E2198*COS(2*PI()/$B$7*B2198),"") -> 
D2261: =IF(A2261<>"",MOD(B2261,24)/24,"") ->  | G2261: =ABS(0.5*1.025*1*(F2261^3)) ->  | H2261: =G2261*$B$13 -> 
A2262: =IF(IF(A2261<>"",A2261+1<=$B$16,0),A2261+1,"") ->  | B2262: =IF(A2262<>"",A2262*$B$13,"") ->  | C2262: =IF(A2262<>"",ROUNDDOWN(A2262*$B$13/24,0),"") ->  | E2262: =IF(A2262<>"",($B$4+$B$5)/2+($B$5-$B$4)/2*COS(2*PI()/$B$15*B2262),"") ->  | F2262: =IF(A2262<>"",E2262*COS(2*PI()/$B$7*B2262),"") -> 
D2325: =IF(A2325<>"",MOD(B2325,24)/24,"") ->  | G2325: =ABS(0.5*1.025*1*(F2325^3)) ->  | H2325: =G2325*$B$13 -> 
A2326: =IF(IF(A2325<>"",A2325+1<=$B$16,0),A2325+1,"") ->  | B2326: =IF(A2326<>"",A2326*$B$13,"") ->  | C2326: =IF(A2326<>"",ROUNDDOWN(A2326*$B$13/24,0),"") ->  | E2326: =IF(A2326<>"",($B$4+$B$5)/2+($B$5-$B$4)/2*COS(2*PI()/$B$15*B2326),"") ->  | F2326: =IF(A2326<>"",E2326*COS(2*PI()/$B$7*B2326),"") -> 
D2389: =IF(A2389<>"",MOD(B2389,24)/24,"") ->  | G2389: =ABS(0.5*1.025*1*(F2389^3)) ->  | H2389: =G2389*$B$13 -> 
A2390: =IF(IF(A2389<>"",A2389+1<=$B$16,0),A2389+1,"") ->  | B2390: =IF(A2390<>"",A2390*$B$13,"") ->  | C2390: =IF(A2390<>"",ROUNDDOWN(A2390*$B$13/24,0),"") ->  | E2390: =IF(A2390<>"",($B$4+$B$5)/2+($B$5-$B$4)/2*COS(2*PI()/$B$15*B2390),"") ->  | F2390: =IF(A2390<>"",E2390*COS(2*PI()/$B$7*B2390),"") -> 
D2453: =IF(A2453<>"",MOD(B2453,24)/24,"") ->  | G2453: =ABS(0.5*1.025*1*(F2453^3)) ->  | H2453: =G2453*$B$13 -> 
A2454: =IF(IF(A2453<>"",A2453+1<=$B$16,0),A2453+1,"") ->  | B2454: =IF(A2454<>"",A2454*$B$13,"") ->  | C2454: =IF(A2454<>"",ROUNDDOWN(A2454*$B$13/24,0),"") ->  | E2454: =IF(A2454<>"",($B$4+$B$5)/2+($B$5-$B$4)/2*COS(2*PI()/$B$15*B2454),"") ->  | F2454: =IF(A2454<>"",E2454*COS(2*PI()/$B$7*B2454),"") -> 
D2517: =IF(A2517<>"",MOD(B2517,24)/24,"") ->  | G2517: =ABS(0.5*1.025*1*(F2517^3)) ->  | H2517: =G2517*$B$13 -> 
A2518: =IF(IF(A2517<>"",A2517+1<=$B$16,0),A2517+1,"") ->  | B2518: =IF(A2518<>"",A2518*$B$13,"") ->  | C2518: =IF(A2518<>"",ROUNDDOWN(A2518*$B$13/24,0),"") ->  | E2518: =IF(A2518<>"",($B$4+$B$5)/2+($B$5-$B$4)/2*COS(2*PI()/$B$15*B2518),"") ->  | F2518: =IF(A2518<>"",E2518*COS(2*PI()/$B$7*B2518),"") -> 
D2581: =IF(A2581<>"",MOD(B2581,24)/24,"") ->  | G2581: =ABS(0.5*1.025*1*(F2581^3)) ->  | H2581: =G2581*$B$13 -> 
A2582: =IF(IF(A2581<>"",A2581+1<=$B$16,0),A2581+1,"") ->  | B2582: =IF(A2582<>"",A2582*$B$13,"") ->  | C2582: =IF(A2582<>"",ROUNDDOWN(A2582*$B$13/24,0),"") ->  | E2582: =IF(A2582<>"",($B$4+$B$5)/2+($B$5-$B$4)/2*COS(2*PI()/$B$15*B2582),"") ->  | F2582: =IF(A2582<>"",E2582*COS(2*PI()/$B$7*B2582),"") -> 
D2645: =IF(A2645<>"",MOD(B2645,24)/24,"") ->  | G2645: =ABS(0.5*1.025*1*(F2645^3)) ->  | H2645: =G2645*$B$13 -> 
A2646: =IF(IF(A2645<>"",A2645+1<=$B$16,0),A2645+1,"") ->  | B2646: =IF(A2646<>"",A2646*$B$13,"") ->  | C2646: =IF(A2646<>"",ROUNDDOWN(A2646*$B$13/24,0),"") ->  | E2646: =IF(A2646<>"",($B$4+$B$5)/2+($B$5-$B$4)/2*COS(2*PI()/$B$15*B2646),"") ->  | F2646: =IF(A2646<>"",E2646*COS(2*PI()/$B$7*B2646),"") -> 
D2709: =IF(A2709<>"",MOD(B2709,24)/24,"") ->  | G2709: =ABS(0.5*1.025*1*(F2709^3)) ->  | H2709: =G2709*$B$13 -> 
A2710: =IF(IF(A2709<>"",A2709+1<=$B$16,0),A2709+1,"") ->  | B2710: =IF(A2710<>"",A2710*$B$13,"") ->  | C2710: =IF(A2710<>"",ROUNDDOWN(A2710*$B$13/24,0),"") ->  | E2710: =IF(A2710<>"",($B$4+$B$5)/2+($B$5-$B$4)/2*COS(2*PI()/$B$15*B2710),"") ->  | F2710: =IF(A2710<>"",E2710*COS(2*PI()/$B$7*B2710),"") -> 
A2770: =IF(IF(A2769<>"",A2769+1<=$B$16,0),A2769+1,"") ->  | B2770: =IF(A2770<>"",A2770*$B$13,"") ->  | C2770: =IF(A2770<>"",ROUNDDOWN(A2770*$B$13/24,0),"") ->  | E2770: =IF(A2770<>"",($B$4+$B$5)/2+($B$5-$B$4)/2*COS(2*PI()/$B$15*B2770),"") ->  | F2770: =IF(A2770<>"",E2770*COS(2*PI()/$B$7*B2770),"") -> 
A2771: =IF(IF(A2770<>"",A2770+1<=$B$16,0),A2770+1,"") ->  | B2771: =IF(A2771<>"",A2771*$B$13,"") ->  | C2771: =IF(A2771<>"",ROUNDDOWN(A2771*$B$13/24,0),"") ->  | E2771: =IF(A2771<>"",($B$4+$B$5)/2+($B$5-$B$4)/2*COS(2*PI()/$B$15*B2771),"") ->  | F2771: =IF(A2771<>"",E2771*COS(2*PI()/$B$7*B2771),"") -> 
D2773: =IF(A2773<>"",MOD(B2773,24)/24,"") ->  | G2773: =ABS(0.5*1.025*1*(F2773^3)) ->  | H2773: =G2773*$B$13 -> 
E2780: Total Energy (kWh/m^2) | G2780: - | H2780: =IF(ISERROR(SUM(H20:H2779)),"",SUM(H20:H2779)) ->  | I2780: per lunar cycle
G2781: - | H2781: =IF(ISERROR(H2780*(365/$B$6)),"",(H2780*(365/$B$6))) ->  | I2781: per year
E2782: Average Power (kW/m^2) | G2782: =IF(ISERROR(AVERAGE(G20:G2779)),"",(AVERAGE(G20:G2779))) ->  | H2782: -

Sheet Tidal Stream 3
A1: Tidal Stream Resource
A3: =Input!A45 -> Site Name | B3: =IF(Input!B65<>"",Input!B65,"-") -> [Enter Name] | C3: =Input!C45 -> 0 | I3: Plots:
A4: =Input!A46 -> Peak Flow (Springs) | B4: =IF((AND(Input!B66<>"",Input!B66<>"[Enter Value]")),Input!B66,"0") -> 0 | C4: =Input!C46 -> m/s
A5: =Input!A47 -> Peak Flow (Neaps) | B5: =IF((AND(Input!B67<>"",Input!B67<>"[Enter Value]")),Input!B67,"0") -> 0 | C5: =Input!C47 -> m/s
A6: =Input!A48 -> Lunar Cycle Period | B6: =IF((AND(Input!B68<>"",Input!B68<>"[Enter Value]")),Input!B68,"0") -> 0 | C6: =Input!C48 -> days
A7: =Input!A49 -> Tidal Period | B7: =IF((AND(Input!B69<>"",Input!B69<>"[Enter Value]")),Input!B69,"0") -> 0 | C7: =Input!C49 -> hours
A8: =Input!A50 -> Proximity to Grid Connection | B8: =IF(Input!B70<>"",Input!B70,"-") -> [Select Value]
A9: =Input!A51 -> Average Water Depth | B9: =IF(Input!B71<>"",Input!B71,"-") -> [Select Value]
A10: =Input!A52 -> Seabed Topography | B10: =IF(Input!B72<>"",Input!B72,"-") -> [Select Value]
A11: =Input!A53 -> Accessibility | B11: =IF(Input!B73<>"",Input!B73,"-") -> [Select Value]
A13: Time Step | B13: 0.25 | C13: hours
A14: Period | B14: =B6/2 -> 0 | C14: days
B15: =B14*24 -> 0 | C15: hours
A16: Number of Steps | B16: =B15/B13*2 -> 0 | C16: -
A18: No. | B18: Time | E18: Amplitude | F18: Current | G18: Power | H18: Energy
B19: Hours | C19: Day | D19: Time | E19: m/s | F19: m/s | G19: kW/(m^2) | H19: kWh/(m^2)
A20: 0 | B20: =A20*$B$13 -> 0 | C20: =ROUNDDOWN(A20*$B$1/24,0) -> 0 | D20: =MOD(B20,24)/24 -> 0 | E20: =IF(A20<>"",($B$4+$B$5)/2+($B$5-$B$4)/2*COS(2*PI()/$B$15*B20),"") ->  | F20: =IF(A20<>"",E20*COS(2*PI()/$B$7*B20),"") ->  | G20: =ABS(0.5*1.025*1*(F20^3)) ->  | H20: =G20*$B$13 -> 
A21: =IF(IF(A20<>"",A20+1<=$B$16,0),A20+1,"") ->  | B21: =IF(A21<>"",A21*$B$13,"") ->  | C21: =IF(A21<>"",ROUNDDOWN(A21*$B$13/24,0),"") ->  | D21: =IF(A21<>"",MOD(B21,24)/24,"") ->  | E21: =IF(A21<>"",($B$4+$B$5)/2+($B$5-$B$4)/2*COS(2*PI()/$B$15*B21),"") ->  | F21: =IF(A21<>"",E21*COS(2*PI()/$B$7*B21),"") ->  | G21: =ABS(0.5*1.025*1*(F21^3)) ->  | H21: =G21*$B$13 -> 
A22: =IF(IF(A21<>"",A21+1<=$B$16,0),A21+1,"") ->  | B22: =IF(A22<>"",A22*$B$13,"") ->  | C22: =IF(A22<>"",ROUNDDOWN(A22*$B$13/24,0),"") ->  | E22: =IF(A22<>"",($B$4+$B$5)/2+($B$5-$B$4)/2*COS(2*PI()/$B$15*B22),"") ->  | F22: =IF(A22<>"",E22*COS(2*PI()/$B$7*B22),"") -> 
D85: =IF(A85<>"",MOD(B85,24)/24,"") ->  | G85: =ABS(0.5*1.025*1*(F85^3)) ->  | H85: =G85*$B$13 -> 
A86: =IF(IF(A85<>"",A85+1<=$B$16,0),A85+1,"") ->  | B86: =IF(A86<>"",A86*$B$13,"") ->  | C86: =IF(A86<>"",ROUNDDOWN(A86*$B$13/24,0),"") ->  | E86: =IF(A86<>"",($B$4+$B$5)/2+($B$5-$B$4)/2*COS(2*PI()/$B$15*B86),"") ->  | F86: =IF(A86<>"",E86*COS(2*PI()/$B$7*B86),"") -> 
D149: =IF(A149<>"",MOD(B149,24)/24,"") ->  | G149: =ABS(0.5*1.025*1*(F149^3)) ->  | H149: =G149*$B$13 -> 
A150: =IF(IF(A149<>"",A149+1<=$B$16,0),A149+1,"") ->  | B150: =IF(A150<>"",A150*$B$13,"") ->  | C150: =IF(A150<>"",ROUNDDOWN(A150*$B$13/24,0),"") ->  | E150: =IF(A150<>"",($B$4+$B$5)/2+($B$5-$B$4)/2*COS(2*PI()/$B$15*B150),"") ->  | F150: =IF(A150<>"",E150*COS(2*PI()/$B$7*B150),"") -> 
D213: =IF(A213<>"",MOD(B213,24)/24,"") ->  | G213: =ABS(0.5*1.025*1*(F213^3)) ->  | H213: =G213*$B$13 -> 
A214: =IF(IF(A213<>"",A213+1<=$B$16,0),A213+1,"") ->  | B214: =IF(A214<>"",A214*$B$13,"") ->  | C214: =IF(A214<>"",ROUNDDOWN(A214*$B$13/24,0),"") ->  | E214: =IF(A214<>"",($B$4+$B$5)/2+($B$5-$B$4)/2*COS(2*PI()/$B$15*B214),"") ->  | F214: =IF(A214<>"",E214*COS(2*PI()/$B$7*B214),"") -> 
D277: =IF(A277<>"",MOD(B277,24)/24,"") ->  | G277: =ABS(0.5*1.025*1*(F277^3)) ->  | H277: =G277*$B$13 -> 
A278: =IF(IF(A277<>"",A277+1<=$B$16,0),A277+1,"") ->  | B278: =IF(A278<>"",A278*$B$13,"") ->  | C278: =IF(A278<>"",ROUNDDOWN(A278*$B$13/24,0),"") ->  | E278: =IF(A278<>"",($B$4+$B$5)/2+($B$5-$B$4)/2*COS(2*PI()/$B$15*B278),"") ->  | F278: =IF(A278<>"",E278*COS(2*PI()/$B$7*B278),"") -> 
D341: =IF(A341<>"",MOD(B341,24)/24,"") ->  | G341: =ABS(0.5*1.025*1*(F341^3)) ->  | H341: =G341*$B$13 -> 
A342: =IF(IF(A341<>"",A341+1<=$B$16,0),A341+1,"") ->  | B342: =IF(A342<>"",A342*$B$13,"") ->  | C342: =IF(A342<>"",ROUNDDOWN(A342*$B$13/24,0),"") ->  | E342: =IF(A342<>"",($B$4+$B$5)/2+($B$5-$B$4)/2*COS(2*PI()/$B$15*B342),"") ->  | F342: =IF(A342<>"",E342*COS(2*PI()/$B$7*B342),"") -> 
D405: =IF(A405<>"",MOD(B405,24)/24,"") ->  | G405: =ABS(0.5*1.025*1*(F405^3)) ->  | H405: =G405*$B$13 -> 
A406: =IF(IF(A405<>"",A405+1<=$B$16,0),A405+1,"") ->  | B406: =IF(A406<>"",A406*$B$13,"") ->  | C406: =IF(A406<>"",ROUNDDOWN(A406*$B$13/24,0),"") ->  | E406: =IF(A406<>"",($B$4+$B$5)/2+($B$5-$B$4)/2*COS(2*PI()/$B$15*B406),"") ->  | F406: =IF(A406<>"",E406*COS(2*PI()/$B$7*B406),"") -> 
D469: =IF(A469<>"",MOD(B469,24)/24,"") ->  | G469: =ABS(0.5*1.025*1*(F469^3)) ->  | H469: =G469*$B$13 -> 
A470: =IF(IF(A469<>"",A469+1<=$B$16,0),A469+1,"") ->  | B470: =IF(A470<>"",A470*$B$13,"") ->  | C470: =IF(A470<>"",ROUNDDOWN(A470*$B$13/24,0),"") ->  | E470: =IF(A470<>"",($B$4+$B$5)/2+($B$5-$B$4)/2*COS(2*PI()/$B$15*B470),"") ->  | F470: =IF(A470<>"",E470*COS(2*PI()/$B$7*B470),"") -> 
D533: =IF(A533<>"",MOD(B533,24)/24,"") ->  | G533: =ABS(0.5*1.025*1*(F533^3)) ->  | H533: =G533*$B$13 -> 
A534: =IF(IF(A533<>"",A533+1<=$B$16,0),A533+1,"") ->  | B534: =IF(A534<>"",A534*$B$13,"") ->  | C534: =IF(A534<>"",ROUNDDOWN(A534*$B$13/24,0),"") ->  | E534: =IF(A534<>"",($B$4+$B$5)/2+($B$5-$B$4)/2*COS(2*PI()/$B$15*B534),"") ->  | F534: =IF(A534<>"",E534*COS(2*PI()/$B$7*B534),"") -> 
D597: =IF(A597<>"",MOD(B597,24)/24,"") ->  | G597: =ABS(0.5*1.025*1*(F597^3)) ->  | H597: =G597*$B$13 -> 
A598: =IF(IF(A597<>"",A597+1<=$B$16,0),A597+1,"") ->  | B598: =IF(A598<>"",A598*$B$13,"") ->  | C598: =IF(A598<>"",ROUNDDOWN(A598*$B$13/24,0),"") ->  | E598: =IF(A598<>"",($B$4+$B$5)/2+($B$5-$B$4)/2*COS(2*PI()/$B$15*B598),"") ->  | F598: =IF(A598<>"",E598*COS(2*PI()/$B$7*B598),"") -> 
D661: =IF(A661<>"",MOD(B661,24)/24,"") ->  | G661: =ABS(0.5*1.025*1*(F661^3)) ->  | H661: =G661*$B$13 -> 
A662: =IF(IF(A661<>"",A661+1<=$B$16,0),A661+1,"") ->  | B662: =IF(A662<>"",A662*$B$13,"") ->  | C662: =IF(A662<>"",ROUNDDOWN(A662*$B$13/24,0),"") ->  | E662: =IF(A662<>"",($B$4+$B$5)/2+($B$5-$B$4)/2*COS(2*PI()/$B$15*B662),"") ->  | F662: =IF(A662<>"",E662*COS(2*PI()/$B$7*B662),"") -> 
D725: =IF(A725<>"",MOD(B725,24)/24,"") ->  | G725: =ABS(0.5*1.025*1*(F725^3)) ->  | H725: =G725*$B$13 -> 
A726: =IF(IF(A725<>"",A725+1<=$B$16,0),A725+1,"") ->  | B726: =IF(A726<>"",A726*$B$13,"") ->  | C726: =IF(A726<>"",ROUNDDOWN(A726*$B$13/24,0),"") ->  | E726: =IF(A726<>"",($B$4+$B$5)/2+($B$5-$B$4)/2*COS(2*PI()/$B$15*B726),"") ->  | F726: =IF(A726<>"",E726*COS(2*PI()/$B$7*B726),"") -> 
D789: =IF(A789<>"",MOD(B789,24)/24,"") ->  | G789: =ABS(0.5*1.025*1*(F789^3)) ->  | H789: =G789*$B$13 -> 
A790: =IF(IF(A789<>"",A789+1<=$B$16,0),A789+1,"") ->  | B790: =IF(A790<>"",A790*$B$13,"") ->  | C790: =IF(A790<>"",ROUNDDOWN(A790*$B$13/24,0),"") ->  | E790: =IF(A790<>"",($B$4+$B$5)/2+($B$5-$B$4)/2*COS(2*PI()/$B$15*B790),"") ->  | F790: =IF(A790<>"",E790*COS(2*PI()/$B$7*B790),"") -> 
D853: =IF(A853<>"",MOD(B853,24)/24,"") ->  | G853: =ABS(0.5*1.025*1*(F853^3)) ->  | H853: =G853*$B$13 -> 
A854: =IF(IF(A853<>"",A853+1<=$B$16,0),A853+1,"") ->  | B854: =IF(A854<>"",A854*$B$13,"") ->  | C854: =IF(A854<>"",ROUNDDOWN(A854*$B$13/24,0),"") ->  | E854: =IF(A854<>"",($B$4+$B$5)/2+($B$5-$B$4)/2*COS(2*PI()/$B$15*B854),"") ->  | F854: =IF(A854<>"",E854*COS(2*PI()/$B$7*B854),"") -> 
D917: =IF(A917<>"",MOD(B917,24)/24,"") ->  | G917: =ABS(0.5*1.025*1*(F917^3)) ->  | H917: =G917*$B$13 -> 
A918: =IF(IF(A917<>"",A917+1<=$B$16,0),A917+1,"") ->  | B918: =IF(A918<>"",A918*$B$13,"") ->  | C918: =IF(A918<>"",ROUNDDOWN(A918*$B$13/24,0),"") ->  | E918: =IF(A918<>"",($B$4+$B$5)/2+($B$5-$B$4)/2*COS(2*PI()/$B$15*B918),"") ->  | F918: =IF(A918<>"",E918*COS(2*PI()/$B$7*B918),"") -> 
D981: =IF(A981<>"",MOD(B981,24)/24,"") ->  | G981: =ABS(0.5*1.025*1*(F981^3)) ->  | H981: =G981*$B$13 -> 
A982: =IF(IF(A981<>"",A981+1<=$B$16,0),A981+1,"") ->  | B982: =IF(A982<>"",A982*$B$13,"") ->  | C982: =IF(A982<>"",ROUNDDOWN(A982*$B$13/24,0),"") ->  | E982: =IF(A982<>"",($B$4+$B$5)/2+($B$5-$B$4)/2*COS(2*PI()/$B$15*B982),"") ->  | F982: =IF(A982<>"",E982*COS(2*PI()/$B$7*B982),"") -> 
D1045: =IF(A1045<>"",MOD(B1045,24)/24,"") ->  | G1045: =ABS(0.5*1.025*1*(F1045^3)) ->  | H1045: =G1045*$B$13 -> 
A1046: =IF(IF(A1045<>"",A1045+1<=$B$16,0),A1045+1,"") ->  | B1046: =IF(A1046<>"",A1046*$B$13,"") ->  | C1046: =IF(A1046<>"",ROUNDDOWN(A1046*$B$13/24,0),"") ->  | E1046: =IF(A1046<>"",($B$4+$B$5)/2+($B$5-$B$4)/2*COS(2*PI()/$B$15*B1046),"") ->  | F1046: =IF(A1046<>"",E1046*COS(2*PI()/$B$7*B1046),"") -> 
D1109: =IF(A1109<>"",MOD(B1109,24)/24,"") ->  | G1109: =ABS(0.5*1.025*1*(F1109^3)) ->  | H1109: =G1109*$B$13 -> 
A1110: =IF(IF(A1109<>"",A1109+1<=$B$16,0),A1109+1,"") ->  | B1110: =IF(A1110<>"",A1110*$B$13,"") ->  | C1110: =IF(A1110<>"",ROUNDDOWN(A1110*$B$13/24,0),"") ->  | E1110: =IF(A1110<>"",($B$4+$B$5)/2+($B$5-$B$4)/2*COS(2*PI()/$B$15*B1110),"") ->  | F1110: =IF(A1110<>"",E1110*COS(2*PI()/$B$7*B1110),"") -> 
D1173: =IF(A1173<>"",MOD(B1173,24)/24,"") ->  | G1173: =ABS(0.5*1.025*1*(F1173^3)) ->  | H1173: =G1173*$B$13 -> 
A1174: =IF(IF(A1173<>"",A1173+1<=$B$16,0),A1173+1,"") ->  | B1174: =IF(A1174<>"",A1174*$B$13,"") ->  | C1174: =IF(A1174<>"",ROUNDDOWN(A1174*$B$13/24,0),"") ->  | E1174: =IF(A1174<>"",($B$4+$B$5)/2+($B$5-$B$4)/2*COS(2*PI()/$B$15*B1174),"") ->  | F1174: =IF(A1174<>"",E1174*COS(2*PI()/$B$7*B1174),"") -> 
D1237: =IF(A1237<>"",MOD(B1237,24)/24,"") ->  | G1237: =ABS(0.5*1.025*1*(F1237^3)) ->  | H1237: =G1237*$B$13 -> 
A1238: =IF(IF(A1237<>"",A1237+1<=$B$16,0),A1237+1,"") ->  | B1238: =IF(A1238<>"",A1238*$B$13,"") ->  | C1238: =IF(A1238<>"",ROUNDDOWN(A1238*$B$13/24,0),"") ->  | E1238: =IF(A1238<>"",($B$4+$B$5)/2+($B$5-$B$4)/2*COS(2*PI()/$B$15*B1238),"") ->  | F1238: =IF(A1238<>"",E1238*COS(2*PI()/$B$7*B1238),"") -> 
D1301: =IF(A1301<>"",MOD(B1301,24)/24,"") ->  | G1301: =ABS(0.5*1.025*1*(F1301^3)) ->  | H1301: =G1301*$B$13 -> 
A1302: =IF(IF(A1301<>"",A1301+1<=$B$16,0),A1301+1,"") ->  | B1302: =IF(A1302<>"",A1302*$B$13,"") ->  | C1302: =IF(A1302<>"",ROUNDDOWN(A1302*$B$13/24,0),"") ->  | E1302: =IF(A1302<>"",($B$4+$B$5)/2+($B$5-$B$4)/2*COS(2*PI()/$B$15*B1302),"") ->  | F1302: =IF(A1302<>"",E1302*COS(2*PI()/$B$7*B1302),"") -> 
D1365: =IF(A1365<>"",MOD(B1365,24)/24,"") ->  | G1365: =ABS(0.5*1.025*1*(F1365^3)) ->  | H1365: =G1365*$B$13 -> 
A1366: =IF(IF(A1365<>"",A1365+1<=$B$16,0),A1365+1,"") ->  | B1366: =IF(A1366<>"",A1366*$B$13,"") ->  | C1366: =IF(A1366<>"",ROUNDDOWN(A1366*$B$13/24,0),"") ->  | E1366: =IF(A1366<>"",($B$4+$B$5)/2+($B$5-$B$4)/2*COS(2*PI()/$B$15*B1366),"") ->  | F1366: =IF(A1366<>"",E1366*COS(2*PI()/$B$7*B1366),"") -> 
D1429: =IF(A1429<>"",MOD(B1429,24)/24,"") ->  | G1429: =ABS(0.5*1.025*1*(F1429^3)) ->  | H1429: =G1429*$B$13 -> 
A1430: =IF(IF(A1429<>"",A1429+1<=$B$16,0),A1429+1,"") ->  | B1430: =IF(A1430<>"",A1430*$B$13,"") ->  | C1430: =IF(A1430<>"",ROUNDDOWN(A1430*$B$13/24,0),"") ->  | E1430: =IF(A1430<>"",($B$4+$B$5)/2+($B$5-$B$4)/2*COS(2*PI()/$B$15*B1430),"") ->  | F1430: =IF(A1430<>"",E1430*COS(2*PI()/$B$7*B1430),"") -> 
D1493: =IF(A1493<>"",MOD(B1493,24)/24,"") ->  | G1493: =ABS(0.5*1.025*1*(F1493^3)) ->  | H1493: =G1493*$B$13 -> 
A1494: =IF(IF(A1493<>"",A1493+1<=$B$16,0),A1493+1,"") ->  | B1494: =IF(A1494<>"",A1494*$B$13,"") ->  | C1494: =IF(A1494<>"",ROUNDDOWN(A1494*$B$13/24,0),"") ->  | E1494: =IF(A1494<>"",($B$4+$B$5)/2+($B$5-$B$4)/2*COS(2*PI()/$B$15*B1494),"") ->  | F1494: =IF(A1494<>"",E1494*COS(2*PI()/$B$7*B1494),"") -> 
D1557: =IF(A1557<>"",MOD(B1557,24)/24,"") ->  | G1557: =ABS(0.5*1.025*1*(F1557^3)) ->  | H1557: =G1557*$B$13 -> 
A1558: =IF(IF(A1557<>"",A1557+1<=$B$16,0),A1557+1,"") ->  | B1558: =IF(A1558<>"",A1558*$B$13,"") ->  | C1558: =IF(A1558<>"",ROUNDDOWN(A1558*$B$13/24,0),"") ->  | E1558: =IF(A1558<>"",($B$4+$B$5)/2+($B$5-$B$4)/2*COS(2*PI()/$B$15*B1558),"") ->  | F1558: =IF(A1558<>"",E1558*COS(2*PI()/$B$7*B1558),"") -> 
D1621: =IF(A1621<>"",MOD(B1621,24)/24,"") ->  | G1621: =ABS(0.5*1.025*1*(F1621^3)) ->  | H1621: =G1621*$B$13 -> 
A1622: =IF(IF(A1621<>"",A1621+1<=$B$16,0),A1621+1,"") ->  | B1622: =IF(A1622<>"",A1622*$B$13,"") ->  | C1622: =IF(A1622<>"",ROUNDDOWN(A1622*$B$13/24,0),"") ->  | E1622: =IF(A1622<>"",($B$4+$B$5)/2+($B$5-$B$4)/2*COS(2*PI()/$B$15*B1622),"") ->  | F1622: =IF(A1622<>"",E1622*COS(2*PI()/$B$7*B1622),"") -> 
D1685: =IF(A1685<>"",MOD(B1685,24)/24,"") ->  | G1685: =ABS(0.5*1.025*1*(F1685^3)) ->  | H1685: =G1685*$B$13 -> 
A1686: =IF(IF(A1685<>"",A1685+1<=$B$16,0),A1685+1,"") ->  | B1686: =IF(A1686<>"",A1686*$B$13,"") ->  | C1686: =IF(A1686<>"",ROUNDDOWN(A1686*$B$13/24,0),"") ->  | E1686: =IF(A1686<>"",($B$4+$B$5)/2+($B$5-$B$4)/2*COS(2*PI()/$B$15*B1686),"") ->  | F1686: =IF(A1686<>"",E1686*COS(2*PI()/$B$7*B1686),"") -> 
D1749: =IF(A1749<>"",MOD(B1749,24)/24,"") ->  | G1749: =ABS(0.5*1.025*1*(F1749^3)) ->  | H1749: =G1749*$B$13 -> 
A1750: =IF(IF(A1749<>"",A1749+1<=$B$16,0),A1749+1,"") ->  | B1750: =IF(A1750<>"",A1750*$B$13,"") ->  | C1750: =IF(A1750<>"",ROUNDDOWN(A1750*$B$13/24,0),"") ->  | E1750: =IF(A1750<>"",($B$4+$B$5)/2+($B$5-$B$4)/2*COS(2*PI()/$B$15*B1750),"") ->  | F1750: =IF(A1750<>"",E1750*COS(2*PI()/$B$7*B1750),"") -> 
D1813: =IF(A1813<>"",MOD(B1813,24)/24,"") ->  | G1813: =ABS(0.5*1.025*1*(F1813^3)) ->  | H1813: =G1813*$B$13 -> 
A1814: =IF(IF(A1813<>"",A1813+1<=$B$16,0),A1813+1,"") ->  | B1814: =IF(A1814<>"",A1814*$B$13,"") ->  | C1814: =IF(A1814<>"",ROUNDDOWN(A1814*$B$13/24,0),"") ->  | E1814: =IF(A1814<>"",($B$4+$B$5)/2+($B$5-$B$4)/2*COS(2*PI()/$B$15*B1814),"") ->  | F1814: =IF(A1814<>"",E1814*COS(2*PI()/$B$7*B1814),"") -> 
D1877: =IF(A1877<>"",MOD(B1877,24)/24,"") ->  | G1877: =ABS(0.5*1.025*1*(F1877^3)) ->  | H1877: =G1877*$B$13 -> 
A1878: =IF(IF(A1877<>"",A1877+1<=$B$16,0),A1877+1,"") ->  | B1878: =IF(A1878<>"",A1878*$B$13,"") ->  | C1878: =IF(A1878<>"",ROUNDDOWN(A1878*$B$13/24,0),"") ->  | E1878: =IF(A1878<>"",($B$4+$B$5)/2+($B$5-$B$4)/2*COS(2*PI()/$B$15*B1878),"") ->  | F1878: =IF(A1878<>"",E1878*COS(2*PI()/$B$7*B1878),"") -> 
D1941: =IF(A1941<>"",MOD(B1941,24)/24,"") ->  | G1941: =ABS(0.5*1.025*1*(F1941^3)) ->  | H1941: =G1941*$B$13 -> 
A1942: =IF(IF(A1941<>"",A1941+1<=$B$16,0),A1941+1,"") ->  | B1942: =IF(A1942<>"",A1942*$B$13,"") ->  | C1942: =IF(A1942<>"",ROUNDDOWN(A1942*$B$13/24,0),"") ->  | E1942: =IF(A1942<>"",($B$4+$B$5)/2+($B$5-$B$4)/2*COS(2*PI()/$B$15*B1942),"") ->  | F1942: =IF(A1942<>"",E1942*COS(2*PI()/$B$7*B1942),"") -> 
D2005: =IF(A2005<>"",MOD(B2005,24)/24,"") ->  | G2005: =ABS(0.5*1.025*1*(F2005^3)) ->  | H2005: =G2005*$B$13 -> 
A2006: =IF(IF(A2005<>"",A2005+1<=$B$16,0),A2005+1,"") ->  | B2006: =IF(A2006<>"",A2006*$B$13,"") ->  | C2006: =IF(A2006<>"",ROUNDDOWN(A2006*$B$13/24,0),"") ->  | E2006: =IF(A2006<>"",($B$4+$B$5)/2+($B$5-$B$4)/2*COS(2*PI()/$B$15*B2006),"") ->  | F2006: =IF(A2006<>"",E2006*COS(2*PI()/$B$7*B2006),"") -> 
D2069: =IF(A2069<>"",MOD(B2069,24)/24,"") ->  | G2069: =ABS(0.5*1.025*1*(F2069^3)) ->  | H2069: =G2069*$B$13 -> 
A2070: =IF(IF(A2069<>"",A2069+1<=$B$16,0),A2069+1,"") ->  | B2070: =IF(A2070<>"",A2070*$B$13,"") ->  | C2070: =IF(A2070<>"",ROUNDDOWN(A2070*$B$13/24,0),"") ->  | E2070: =IF(A2070<>"",($B$4+$B$5)/2+($B$5-$B$4)/2*COS(2*PI()/$B$15*B2070),"") ->  | F2070: =IF(A2070<>"",E2070*COS(2*PI()/$B$7*B2070),"") -> 
D2133: =IF(A2133<>"",MOD(B2133,24)/24,"") ->  | G2133: =ABS(0.5*1.025*1*(F2133^3)) ->  | H2133: =G2133*$B$13 -> 
A2134: =IF(IF(A2133<>"",A2133+1<=$B$16,0),A2133+1,"") ->  | B2134: =IF(A2134<>"",A2134*$B$13,"") ->  | C2134: =IF(A2134<>"",ROUNDDOWN(A2134*$B$13/24,0),"") ->  | E2134: =IF(A2134<>"",($B$4+$B$5)/2+($B$5-$B$4)/2*COS(2*PI()/$B$15*B2134),"") ->  | F2134: =IF(A2134<>"",E2134*COS(2*PI()/$B$7*B2134),"") -> 
D2197: =IF(A2197<>"",MOD(B2197,24)/24,"") ->  | G2197: =ABS(0.5*1.025*1*(F2197^3)) ->  | H2197: =G2197*$B$13 -> 
A2198: =IF(IF(A2197<>"",A2197+1<=$B$16,0),A2197+1,"") ->  | B2198: =IF(A2198<>"",A2198*$B$13,"") ->  | C2198: =IF(A2198<>"",ROUNDDOWN(A2198*$B$13/24,0),"") ->  | E2198: =IF(A2198<>"",($B$4+$B$5)/2+($B$5-$B$4)/2*COS(2*PI()/$B$15*B2198),"") ->  | F2198: =IF(A2198<>"",E2198*COS(2*PI()/$B$7*B2198),"") -> 
D2261: =IF(A2261<>"",MOD(B2261,24)/24,"") ->  | G2261: =ABS(0.5*1.025*1*(F2261^3)) ->  | H2261: =G2261*$B$13 -> 
A2262: =IF(IF(A2261<>"",A2261+1<=$B$16,0),A2261+1,"") ->  | B2262: =IF(A2262<>"",A2262*$B$13,"") ->  | C2262: =IF(A2262<>"",ROUNDDOWN(A2262*$B$13/24,0),"") ->  | E2262: =IF(A2262<>"",($B$4+$B$5)/2+($B$5-$B$4)/2*COS(2*PI()/$B$15*B2262),"") ->  | F2262: =IF(A2262<>"",E2262*COS(2*PI()/$B$7*B2262),"") -> 
D2325: =IF(A2325<>"",MOD(B2325,24)/24,"") ->  | G2325: =ABS(0.5*1.025*1*(F2325^3)) ->  | H2325: =G2325*$B$13 -> 
A2326: =IF(IF(A2325<>"",A2325+1<=$B$16,0),A2325+1,"") ->  | B2326: =IF(A2326<>"",A2326*$B$13,"") ->  | C2326: =IF(A2326<>"",ROUNDDOWN(A2326*$B$13/24,0),"") ->  | E2326: =IF(A2326<>"",($B$4+$B$5)/2+($B$5-$B$4)/2*COS(2*PI()/$B$15*B2326),"") ->  | F2326: =IF(A2326<>"",E2326*COS(2*PI()/$B$7*B2326),"") -> 
D2389: =IF(A2389<>"",MOD(B2389,24)/24,"") ->  | G2389: =ABS(0.5*1.025*1*(F2389^3)) ->  | H2389: =G2389*$B$13 -> 
A2390: =IF(IF(A2389<>"",A2389+1<=$B$16,0),A2389+1,"") ->  | B2390: =IF(A2390<>"",A2390*$B$13,"") ->  | C2390: =IF(A2390<>"",ROUNDDOWN(A2390*$B$13/24,0),"") ->  | E2390: =IF(A2390<>"",($B$4+$B$5)/2+($B$5-$B$4)/2*COS(2*PI()/$B$15*B2390),"") ->  | F2390: =IF(A2390<>"",E2390*COS(2*PI()/$B$7*B2390),"") -> 
D2453: =IF(A2453<>"",MOD(B2453,24)/24,"") ->  | G2453: =ABS(0.5*1.025*1*(F2453^3)) ->  | H2453: =G2453*$B$13 -> 
A2454: =IF(IF(A2453<>"",A2453+1<=$B$16,0),A2453+1,"") ->  | B2454: =IF(A2454<>"",A2454*$B$13,"") ->  | C2454: =IF(A2454<>"",ROUNDDOWN(A2454*$B$13/24,0),"") ->  | E2454: =IF(A2454<>"",($B$4+$B$5)/2+($B$5-$B$4)/2*COS(2*PI()/$B$15*B2454),"") ->  | F2454: =IF(A2454<>"",E2454*COS(2*PI()/$B$7*B2454),"") -> 
D2517: =IF(A2517<>"",MOD(B2517,24)/24,"") ->  | G2517: =ABS(0.5*1.025*1*(F2517^3)) ->  | H2517: =G2517*$B$13 -> 
A2518: =IF(IF(A2517<>"",A2517+1<=$B$16,0),A2517+1,"") ->  | B2518: =IF(A2518<>"",A2518*$B$13,"") ->  | C2518: =IF(A2518<>"",ROUNDDOWN(A2518*$B$13/24,0),"") ->  | E2518: =IF(A2518<>"",($B$4+$B$5)/2+($B$5-$B$4)/2*COS(2*PI()/$B$15*B2518),"") ->  | F2518: =IF(A2518<>"",E2518*COS(2*PI()/$B$7*B2518),"") -> 
D2581: =IF(A2581<>"",MOD(B2581,24)/24,"") ->  | G2581: =ABS(0.5*1.025*1*(F2581^3)) ->  | H2581: =G2581*$B$13 -> 
A2582: =IF(IF(A2581<>"",A2581+1<=$B$16,0),A2581+1,"") ->  | B2582: =IF(A2582<>"",A2582*$B$13,"") ->  | C2582: =IF(A2582<>"",ROUNDDOWN(A2582*$B$13/24,0),"") ->  | E2582: =IF(A2582<>"",($B$4+$B$5)/2+($B$5-$B$4)/2*COS(2*PI()/$B$15*B2582),"") ->  | F2582: =IF(A2582<>"",E2582*COS(2*PI()/$B$7*B2582),"") -> 
D2645: =IF(A2645<>"",MOD(B2645,24)/24,"") ->  | G2645: =ABS(0.5*1.025*1*(F2645^3)) ->  | H2645: =G2645*$B$13 -> 
A2646: =IF(IF(A2645<>"",A2645+1<=$B$16,0),A2645+1,"") ->  | B2646: =IF(A2646<>"",A2646*$B$13,"") ->  | C2646: =IF(A2646<>"",ROUNDDOWN(A2646*$B$13/24,0),"") ->  | E2646: =IF(A2646<>"",($B$4+$B$5)/2+($B$5-$B$4)/2*COS(2*PI()/$B$15*B2646),"") ->  | F2646: =IF(A2646<>"",E2646*COS(2*PI()/$B$7*B2646),"") -> 
D2709: =IF(A2709<>"",MOD(B2709,24)/24,"") ->  | G2709: =ABS(0.5*1.025*1*(F2709^3)) ->  | H2709: =G2709*$B$13 -> 
A2710: =IF(IF(A2709<>"",A2709+1<=$B$16,0),A2709+1,"") ->  | B2710: =IF(A2710<>"",A2710*$B$13,"") ->  | C2710: =IF(A2710<>"",ROUNDDOWN(A2710*$B$13/24,0),"") ->  | E2710: =IF(A2710<>"",($B$4+$B$5)/2+($B$5-$B$4)/2*COS(2*PI()/$B$15*B2710),"") ->  | F2710: =IF(A2710<>"",E2710*COS(2*PI()/$B$7*B2710),"") -> 
A2770: =IF(IF(A2769<>"",A2769+1<=$B$16,0),A2769+1,"") ->  | B2770: =IF(A2770<>"",A2770*$B$13,"") ->  | C2770: =IF(A2770<>"",ROUNDDOWN(A2770*$B$13/24,0),"") ->  | E2770: =IF(A2770<>"",($B$4+$B$5)/2+($B$5-$B$4)/2*COS(2*PI()/$B$15*B2770),"") ->  | F2770: =IF(A2770<>"",E2770*COS(2*PI()/$B$7*B2770),"") -> 
A2771: =IF(IF(A2770<>"",A2770+1<=$B$16,0),A2770+1,"") ->  | B2771: =IF(A2771<>"",A2771*$B$13,"") ->  | C2771: =IF(A2771<>"",ROUNDDOWN(A2771*$B$13/24,0),"") ->  | E2771: =IF(A2771<>"",($B$4+$B$5)/2+($B$5-$B$4)/2*COS(2*PI()/$B$15*B2771),"") ->  | F2771: =IF(A2771<>"",E2771*COS(2*PI()/$B$7*B2771),"") -> 
D2773: =IF(A2773<>"",MOD(B2773,24)/24,"") ->  | G2773: =ABS(0.5*1.025*1*(F2773^3)) ->  | H2773: =G2773*$B$13 -> 
E2780: Total Energy (kWh/m^2) | G2780: - | H2780: =IF(ISERROR(SUM(H20:H2779)),"",SUM(H20:H2779)) ->  | I2780: per lunar cycle
G2781: - | H2781: =IF(ISERROR(H2780*(365/$B$6)),"",(H2780*(365/$B$6))) ->  | I2781: per year
E2782: Average Power (kW/m^2) | G2782: =IF(ISERROR(AVERAGE(G20:G2779)),"",(AVERAGE(G20:G2779))) ->  | H2782: -

Sheet Tidal Stream 4
A1: Tidal Stream Resource
A3: =Input!A45 -> Site Name | B3: =IF(Input!B75<>"",Input!B75,"-") -> [Enter Name] | C3: =Input!C45 -> 0 | I3: Plots:
A4: =Input!A46 -> Peak Flow (Springs) | B4: =IF((AND(Input!B76<>"",Input!B76<>"[Enter Value]")),Input!B76,"0") -> 0 | C4: =Input!C46 -> m/s
A5: =Input!A47 -> Peak Flow (Neaps) | B5: =IF((AND(Input!B77<>"",Input!B77<>"[Enter Value]")),Input!B77,"0") -> 0 | C5: =Input!C47 -> m/s
A6: =Input!A48 -> Lunar Cycle Period | B6: =IF((AND(Input!B78<>"",Input!B78<>"[Enter Value]")),Input!B78,"0") -> 0 | C6: =Input!C48 -> days
A7: =Input!A49 -> Tidal Period | B7: =IF((AND(Input!B79<>"",Input!B79<>"[Enter Value]")),Input!B79,"0") -> 0 | C7: =Input!C49 -> hours
A8: =Input!A50 -> Proximity to Grid Connection | B8: =IF(Input!B80<>"",Input!B80,"-") -> [Select Value]
A9: =Input!A51 -> Average Water Depth | B9: =IF(Input!B81<>"",Input!B81,"-") -> [Select Value]
A10: =Input!A52 -> Seabed Topography | B10: =IF(Input!B82<>"",Input!B82,"-") -> [Select Value]
A11: =Input!A53 -> Accessibility | B11: =IF(Input!B83<>"",Input!B83,"-") -> [Select Value]
A13: Time Step | B13: 0.25 | C13: hours
A14: Period | B14: =B6/2 -> 0 | C14: days
B15: =B14*24 -> 0 | C15: hours
A16: Number of Steps | B16: =B15/B13*2 -> 0 | C16: -
A18: No. | B18: Time | E18: Amplitude | F18: Current | G18: Power | H18: Energy
B19: Hours | C19: Day | D19: Time | E19: m/s | F19: m/s | G19: kW/(m^2) | H19: kWh/(m^2)
A20: 0 | B20: =A20*$B$13 -> 0 | C20: =ROUNDDOWN(A20*$B$1/24,0) -> 0 | D20: =MOD(B20,24)/24 -> 0 | E20: =IF(A20<>"",($B$4+$B$5)/2+($B$5-$B$4)/2*COS(2*PI()/$B$15*B20),"") ->  | F20: =IF(A20<>"",E20*COS(2*PI()/$B$7*B20),"") ->  | G20: =ABS(0.5*1.025*1*(F20^3)) ->  | H20: =G20*$B$13 -> 
A21: =IF(IF(A20<>"",A20+1<=$B$16,0),A20+1,"") ->  | B21: =IF(A21<>"",A21*$B$13,"") ->  | C21: =IF(A21<>"",ROUNDDOWN(A21*$B$13/24,0),"") ->  | D21: =IF(A21<>"",MOD(B21,24)/24,"") ->  | E21: =IF(A21<>"",($B$4+$B$5)/2+($B$5-$B$4)/2*COS(2*PI()/$B$15*B21),"") ->  | F21: =IF(A21<>"",E21*COS(2*PI()/$B$7*B21),"") ->  | G21: =ABS(0.5*1.025*1*(F21^3)) ->  | H21: =G21*$B$13 -> 
A22: =IF(IF(A21<>"",A21+1<=$B$16,0),A21+1,"") ->  | B22: =IF(A22<>"",A22*$B$13,"") ->  | C22: =IF(A22<>"",ROUNDDOWN(A22*$B$13/24,0),"") ->  | E22: =IF(A22<>"",($B$4+$B$5)/2+($B$5-$B$4)/2*COS(2*PI()/$B$15*B22),"") ->  | F22: =IF(A22<>"",E22*COS(2*PI()/$B$7*B22),"") -> 
D85: =IF(A85<>"",MOD(B85,24)/24,"") ->  | G85: =ABS(0.5*1.025*1*(F85^3)) ->  | H85: =G85*$B$13 -> 
A86: =IF(IF(A85<>"",A85+1<=$B$16,0),A85+1,"") ->  | B86: =IF(A86<>"",A86*$B$13,"") ->  | C86: =IF(A86<>"",ROUNDDOWN(A86*$B$13/24,0),"") ->  | E86: =IF(A86<>"",($B$4+$B$5)/2+($B$5-$B$4)/2*COS(2*PI()/$B$15*B86),"") ->  | F86: =IF(A86<>"",E86*COS(2*PI()/$B$7*B86),"") -> 
D149: =IF(A149<>"",MOD(B149,24)/24,"") ->  | G149: =ABS(0.5*1.025*1*(F149^3)) ->  | H149: =G149*$B$13 -> 
A150: =IF(IF(A149<>"",A149+1<=$B$16,0),A149+1,"") ->  | B150: =IF(A150<>"",A150*$B$13,"") ->  | C150: =IF(A150<>"",ROUNDDOWN(A150*$B$13/24,0),"") ->  | E150: =IF(A150<>"",($B$4+$B$5)/2+($B$5-$B$4)/2*COS(2*PI()/$B$15*B150),"") ->  | F150: =IF(A150<>"",E150*COS(2*PI()/$B$7*B150),"") -> 
D213: =IF(A213<>"",MOD(B213,24)/24,"") ->  | G213: =ABS(0.5*1.025*1*(F213^3)) ->  | H213: =G213*$B$13 -> 
A214: =IF(IF(A213<>"",A213+1<=$B$16,0),A213+1,"") ->  | B214: =IF(A214<>"",A214*$B$13,"") ->  | C214: =IF(A214<>"",ROUNDDOWN(A214*$B$13/24,0),"") ->  | E214: =IF(A214<>"",($B$4+$B$5)/2+($B$5-$B$4)/2*COS(2*PI()/$B$15*B214),"") ->  | F214: =IF(A214<>"",E214*COS(2*PI()/$B$7*B214),"") -> 
D277: =IF(A277<>"",MOD(B277,24)/24,"") ->  | G277: =ABS(0.5*1.025*1*(F277^3)) ->  | H277: =G277*$B$13 -> 
A278: =IF(IF(A277<>"",A277+1<=$B$16,0),A277+1,"") ->  | B278: =IF(A278<>"",A278*$B$13,"") ->  | C278: =IF(A278<>"",ROUNDDOWN(A278*$B$13/24,0),"") ->  | E278: =IF(A278<>"",($B$4+$B$5)/2+($B$5-$B$4)/2*COS(2*PI()/$B$15*B278),"") ->  | F278: =IF(A278<>"",E278*COS(2*PI()/$B$7*B278),"") -> 
D341: =IF(A341<>"",MOD(B341,24)/24,"") ->  | G341: =ABS(0.5*1.025*1*(F341^3)) ->  | H341: =G341*$B$13 -> 
A342: =IF(IF(A341<>"",A341+1<=$B$16,0),A341+1,"") ->  | B342: =IF(A342<>"",A342*$B$13,"") ->  | C342: =IF(A342<>"",ROUNDDOWN(A342*$B$13/24,0),"") ->  | E342: =IF(A342<>"",($B$4+$B$5)/2+($B$5-$B$4)/2*COS(2*PI()/$B$15*B342),"") ->  | F342: =IF(A342<>"",E342*COS(2*PI()/$B$7*B342),"") -> 
D405: =IF(A405<>"",MOD(B405,24)/24,"") ->  | G405: =ABS(0.5*1.025*1*(F405^3)) ->  | H405: =G405*$B$13 -> 
A406: =IF(IF(A405<>"",A405+1<=$B$16,0),A405+1,"") ->  | B406: =IF(A406<>"",A406*$B$13,"") ->  | C406: =IF(A406<>"",ROUNDDOWN(A406*$B$13/24,0),"") ->  | E406: =IF(A406<>"",($B$4+$B$5)/2+($B$5-$B$4)/2*COS(2*PI()/$B$15*B406),"") ->  | F406: =IF(A406<>"",E406*COS(2*PI()/$B$7*B406),"") -> 
D469: =IF(A469<>"",MOD(B469,24)/24,"") ->  | G469: =ABS(0.5*1.025*1*(F469^3)) ->  | H469: =G469*$B$13 -> 
A470: =IF(IF(A469<>"",A469+1<=$B$16,0),A469+1,"") ->  | B470: =IF(A470<>"",A470*$B$13,"") ->  | C470: =IF(A470<>"",ROUNDDOWN(A470*$B$13/24,0),"") ->  | E470: =IF(A470<>"",($B$4+$B$5)/2+($B$5-$B$4)/2*COS(2*PI()/$B$15*B470),"") ->  | F470: =IF(A470<>"",E470*COS(2*PI()/$B$7*B470),"") -> 
D533: =IF(A533<>"",MOD(B533,24)/24,"") ->  | G533: =ABS(0.5*1.025*1*(F533^3)) ->  | H533: =G533*$B$13 -> 
A534: =IF(IF(A533<>"",A533+1<=$B$16,0),A533+1,"") ->  | B534: =IF(A534<>"",A534*$B$13,"") ->  | C534: =IF(A534<>"",ROUNDDOWN(A534*$B$13/24,0),"") ->  | E534: =IF(A534<>"",($B$4+$B$5)/2+($B$5-$B$4)/2*COS(2*PI()/$B$15*B534),"") ->  | F534: =IF(A534<>"",E534*COS(2*PI()/$B$7*B534),"") -> 
D597: =IF(A597<>"",MOD(B597,24)/24,"") ->  | G597: =ABS(0.5*1.025*1*(F597^3)) ->  | H597: =G597*$B$13 -> 
A598: =IF(IF(A597<>"",A597+1<=$B$16,0),A597+1,"") ->  | B598: =IF(A598<>"",A598*$B$13,"") ->  | C598: =IF(A598<>"",ROUNDDOWN(A598*$B$13/24,0),"") ->  | E598: =IF(A598<>"",($B$4+$B$5)/2+($B$5-$B$4)/2*COS(2*PI()/$B$15*B598),"") ->  | F598: =IF(A598<>"",E598*COS(2*PI()/$B$7*B598),"") -> 
D661: =IF(A661<>"",MOD(B661,24)/24,"") ->  | G661: =ABS(0.5*1.025*1*(F661^3)) ->  | H661: =G661*$B$13 -> 
A662: =IF(IF(A661<>"",A661+1<=$B$16,0),A661+1,"") ->  | B662: =IF(A662<>"",A662*$B$13,"") ->  | C662: =IF(A662<>"",ROUNDDOWN(A662*$B$13/24,0),"") ->  | E662: =IF(A662<>"",($B$4+$B$5)/2+($B$5-$B$4)/2*COS(2*PI()/$B$15*B662),"") ->  | F662: =IF(A662<>"",E662*COS(2*PI()/$B$7*B662),"") -> 
D725: =IF(A725<>"",MOD(B725,24)/24,"") ->  | G725: =ABS(0.5*1.025*1*(F725^3)) ->  | H725: =G725*$B$13 -> 
A726: =IF(IF(A725<>"",A725+1<=$B$16,0),A725+1,"") ->  | B726: =IF(A726<>"",A726*$B$13,"") ->  | C726: =IF(A726<>"",ROUNDDOWN(A726*$B$13/24,0),"") ->  | E726: =IF(A726<>"",($B$4+$B$5)/2+($B$5-$B$4)/2*COS(2*PI()/$B$15*B726),"") ->  | F726: =IF(A726<>"",E726*COS(2*PI()/$B$7*B726),"") -> 
D789: =IF(A789<>"",MOD(B789,24)/24,"") ->  | G789: =ABS(0.5*1.025*1*(F789^3)) ->  | H789: =G789*$B$13 -> 
A790: =IF(IF(A789<>"",A789+1<=$B$16,0),A789+1,"") ->  | B790: =IF(A790<>"",A790*$B$13,"") ->  | C790: =IF(A790<>"",ROUNDDOWN(A790*$B$13/24,0),"") ->  | E790: =IF(A790<>"",($B$4+$B$5)/2+($B$5-$B$4)/2*COS(2*PI()/$B$15*B790),"") ->  | F790: =IF(A790<>"",E790*COS(2*PI()/$B$7*B790),"") -> 
D853: =IF(A853<>"",MOD(B853,24)/24,"") ->  | G853: =ABS(0.5*1.025*1*(F853^3)) ->  | H853: =G853*$B$13 -> 
A854: =IF(IF(A853<>"",A853+1<=$B$16,0),A853+1,"") ->  | B854: =IF(A854<>"",A854*$B$13,"") ->  | C854: =IF(A854<>"",ROUNDDOWN(A854*$B$13/24,0),"") ->  | E854: =IF(A854<>"",($B$4+$B$5)/2+($B$5-$B$4)/2*COS(2*PI()/$B$15*B854),"") ->  | F854: =IF(A854<>"",E854*COS(2*PI()/$B$7*B854),"") -> 
D917: =IF(A917<>"",MOD(B917,24)/24,"") ->  | G917: =ABS(0.5*1.025*1*(F917^3)) ->  | H917: =G917*$B$13 -> 
A918: =IF(IF(A917<>"",A917+1<=$B$16,0),A917+1,"") ->  | B918: =IF(A918<>"",A918*$B$13,"") ->  | C918: =IF(A918<>"",ROUNDDOWN(A918*$B$13/24,0),"") ->  | E918: =IF(A918<>"",($B$4+$B$5)/2+($B$5-$B$4)/2*COS(2*PI()/$B$15*B918),"") ->  | F918: =IF(A918<>"",E918*COS(2*PI()/$B$7*B918),"") -> 
D981: =IF(A981<>"",MOD(B981,24)/24,"") ->  | G981: =ABS(0.5*1.025*1*(F981^3)) ->  | H981: =G981*$B$13 -> 
A982: =IF(IF(A981<>"",A981+1<=$B$16,0),A981+1,"") ->  | B982: =IF(A982<>"",A982*$B$13,"") ->  | C982: =IF(A982<>"",ROUNDDOWN(A982*$B$13/24,0),"") ->  | E982: =IF(A982<>"",($B$4+$B$5)/2+($B$5-$B$4)/2*COS(2*PI()/$B$15*B982),"") ->  | F982: =IF(A982<>"",E982*COS(2*PI()/$B$7*B982),"") -> 
D1045: =IF(A1045<>"",MOD(B1045,24)/24,"") ->  | G1045: =ABS(0.5*1.025*1*(F1045^3)) ->  | H1045: =G1045*$B$13 -> 
A1046: =IF(IF(A1045<>"",A1045+1<=$B$16,0),A1045+1,"") ->  | B1046: =IF(A1046<>"",A1046*$B$13,"") ->  | C1046: =IF(A1046<>"",ROUNDDOWN(A1046*$B$13/24,0),"") ->  | E1046: =IF(A1046<>"",($B$4+$B$5)/2+($B$5-$B$4)/2*COS(2*PI()/$B$15*B1046),"") ->  | F1046: =IF(A1046<>"",E1046*COS(2*PI()/$B$7*B1046),"") -> 
D1109: =IF(A1109<>"",MOD(B1109,24)/24,"") ->  | G1109: =ABS(0.5*1.025*1*(F1109^3)) ->  | H1109: =G1109*$B$13 -> 
A1110: =IF(IF(A1109<>"",A1109+1<=$B$16,0),A1109+1,"") ->  | B1110: =IF(A1110<>"",A1110*$B$13,"") ->  | C1110: =IF(A1110<>"",ROUNDDOWN(A1110*$B$13/24,0),"") ->  | E1110: =IF(A1110<>"",($B$4+$B$5)/2+($B$5-$B$4)/2*COS(2*PI()/$B$15*B1110),"") ->  | F1110: =IF(A1110<>"",E1110*COS(2*PI()/$B$7*B1110),"") -> 
D1173: =IF(A1173<>"",MOD(B1173,24)/24,"") ->  | G1173: =ABS(0.5*1.025*1*(F1173^3)) ->  | H1173: =G1173*$B$13 -> 
A1174: =IF(IF(A1173<>"",A1173+1<=$B$16,0),A1173+1,"") ->  | B1174: =IF(A1174<>"",A1174*$B$13,"") ->  | C1174: =IF(A1174<>"",ROUNDDOWN(A1174*$B$13/24,0),"") ->  | E1174: =IF(A1174<>"",($B$4+$B$5)/2+($B$5-$B$4)/2*COS(2*PI()/$B$15*B1174),"") ->  | F1174: =IF(A1174<>"",E1174*COS(2*PI()/$B$7*B1174),"") -> 
D1237: =IF(A1237<>"",MOD(B1237,24)/24,"") ->  | G1237: =ABS(0.5*1.025*1*(F1237^3)) ->  | H1237: =G1237*$B$13 -> 
A1238: =IF(IF(A1237<>"",A1237+1<=$B$16,0),A1237+1,"") ->  | B1238: =IF(A1238<>"",A1238*$B$13,"") ->  | C1238: =IF(A1238<>"",ROUNDDOWN(A1238*$B$13/24,0),"") ->  | E1238: =IF(A1238<>"",($B$4+$B$5)/2+($B$5-$B$4)/2*COS(2*PI()/$B$15*B1238),"") ->  | F1238: =IF(A1238<>"",E1238*COS(2*PI()/$B$7*B1238),"") -> 
D1301: =IF(A1301<>"",MOD(B1301,24)/24,"") ->  | G1301: =ABS(0.5*1.025*1*(F1301^3)) ->  | H1301: =G1301*$B$13 -> 
A1302: =IF(IF(A1301<>"",A1301+1<=$B$16,0),A1301+1,"") ->  | B1302: =IF(A1302<>"",A1302*$B$13,"") ->  | C1302: =IF(A1302<>"",ROUNDDOWN(A1302*$B$13/24,0),"") ->  | E1302: =IF(A1302<>"",($B$4+$B$5)/2+($B$5-$B$4)/2*COS(2*PI()/$B$15*B1302),"") ->  | F1302: =IF(A1302<>"",E1302*COS(2*PI()/$B$7*B1302),"") -> 
D1365: =IF(A1365<>"",MOD(B1365,24)/24,"") ->  | G1365: =ABS(0.5*1.025*1*(F1365^3)) ->  | H1365: =G1365*$B$13 -> 
A1366: =IF(IF(A1365<>"",A1365+1<=$B$16,0),A1365+1,"") ->  | B1366: =IF(A1366<>"",A1366*$B$13,"") ->  | C1366: =IF(A1366<>"",ROUNDDOWN(A1366*$B$13/24,0),"") ->  | E1366: =IF(A1366<>"",($B$4+$B$5)/2+($B$5-$B$4)/2*COS(2*PI()/$B$15*B1366),"") ->  | F1366: =IF(A1366<>"",E1366*COS(2*PI()/$B$7*B1366),"") -> 
D1429: =IF(A1429<>"",MOD(B1429,24)/24,"") ->  | G1429: =ABS(0.5*1.025*1*(F1429^3)) ->  | H1429: =G1429*$B$13 -> 
A1430: =IF(IF(A1429<>"",A1429+1<=$B$16,0),A1429+1,"") ->  | B1430: =IF(A1430<>"",A1430*$B$13,"") ->  | C1430: =IF(A1430<>"",ROUNDDOWN(A1430*$B$13/24,0),"") ->  | E1430: =IF(A1430<>"",($B$4+$B$5)/2+($B$5-$B$4)/2*COS(2*PI()/$B$15*B1430),"") ->  | F1430: =IF(A1430<>"",E1430*COS(2*PI()/$B$7*B1430),"") -> 
D1493: =IF(A1493<>"",MOD(B1493,24)/24,"") ->  | G1493: =ABS(0.5*1.025*1*(F1493^3)) ->  | H1493: =G1493*$B$13 -> 
A1494: =IF(IF(A1493<>"",A1493+1<=$B$16,0),A1493+1,"") ->  | B1494: =IF(A1494<>"",A1494*$B$13,"") ->  | C1494: =IF(A1494<>"",ROUNDDOWN(A1494*$B$13/24,0),"") ->  | E1494: =IF(A1494<>"",($B$4+$B$5)/2+($B$5-$B$4)/2*COS(2*PI()/$B$15*B1494),"") ->  | F1494: =IF(A1494<>"",E1494*COS(2*PI()/$B$7*B1494),"") -> 
D1557: =IF(A1557<>"",MOD(B1557,24)/24,"") ->  | G1557: =ABS(0.5*1.025*1*(F1557^3)) ->  | H1557: =G1557*$B$13 -> 
A1558: =IF(IF(A1557<>"",A1557+1<=$B$16,0),A1557+1,"") ->  | B1558: =IF(A1558<>"",A1558*$B$13,"") ->  | C1558: =IF(A1558<>"",ROUNDDOWN(A1558*$B$13/24,0),"") ->  | E1558: =IF(A1558<>"",($B$4+$B$5)/2+($B$5-$B$4)/2*COS(2*PI()/$B$15*B1558),"") ->  | F1558: =IF(A1558<>"",E1558*COS(2*PI()/$B$7*B1558),"") -> 
D1621: =IF(A1621<>"",MOD(B1621,24)/24,"") ->  | G1621: =ABS(0.5*1.025*1*(F1621^3)) ->  | H1621: =G1621*$B$13 -> 
A1622: =IF(IF(A1621<>"",A1621+1<=$B$16,0),A1621+1,"") ->  | B1622: =IF(A1622<>"",A1622*$B$13,"") ->  | C1622: =IF(A1622<>"",ROUNDDOWN(A1622*$B$13/24,0),"") ->  | E1622: =IF(A1622<>"",($B$4+$B$5)/2+($B$5-$B$4)/2*COS(2*PI()/$B$15*B1622),"") ->  | F1622: =IF(A1622<>"",E1622*COS(2*PI()/$B$7*B1622),"") -> 
D1685: =IF(A1685<>"",MOD(B1685,24)/24,"") ->  | G1685: =ABS(0.5*1.025*1*(F1685^3)) ->  | H1685: =G1685*$B$13 -> 
A1686: =IF(IF(A1685<>"",A1685+1<=$B$16,0),A1685+1,"") ->  | B1686: =IF(A1686<>"",A1686*$B$13,"") ->  | C1686: =IF(A1686<>"",ROUNDDOWN(A1686*$B$13/24,0),"") ->  | E1686: =IF(A1686<>"",($B$4+$B$5)/2+($B$5-$B$4)/2*COS(2*PI()/$B$15*B1686),"") ->  | F1686: =IF(A1686<>"",E1686*COS(2*PI()/$B$7*B1686),"") -> 
D1749: =IF(A1749<>"",MOD(B1749,24)/24,"") ->  | G1749: =ABS(0.5*1.025*1*(F1749^3)) ->  | H1749: =G1749*$B$13 -> 
A1750: =IF(IF(A1749<>"",A1749+1<=$B$16,0),A1749+1,"") ->  | B1750: =IF(A1750<>"",A1750*$B$13,"") ->  | C1750: =IF(A1750<>"",ROUNDDOWN(A1750*$B$13/24,0),"") ->  | E1750: =IF(A1750<>"",($B$4+$B$5)/2+($B$5-$B$4)/2*COS(2*PI()/$B$15*B1750),"") ->  | F1750: =IF(A1750<>"",E1750*COS(2*PI()/$B$7*B1750),"") -> 
D1813: =IF(A1813<>"",MOD(B1813,24)/24,"") ->  | G1813: =ABS(0.5*1.025*1*(F1813^3)) ->  | H1813: =G1813*$B$13 -> 
A1814: =IF(IF(A1813<>"",A1813+1<=$B$16,0),A1813+1,"") ->  | B1814: =IF(A1814<>"",A1814*$B$13,"") ->  | C1814: =IF(A1814<>"",ROUNDDOWN(A1814*$B$13/24,0),"") ->  | E1814: =IF(A1814<>"",($B$4+$B$5)/2+($B$5-$B$4)/2*COS(2*PI()/$B$15*B1814),"") ->  | F1814: =IF(A1814<>"",E1814*COS(2*PI()/$B$7*B1814),"") -> 
D1877: =IF(A1877<>"",MOD(B1877,24)/24,"") ->  | G1877: =ABS(0.5*1.025*1*(F1877^3)) ->  | H1877: =G1877*$B$13 -> 
A1878: =IF(IF(A1877<>"",A1877+1<=$B$16,0),A1877+1,"") ->  | B1878: =IF(A1878<>"",A1878*$B$13,"") ->  | C1878: =IF(A1878<>"",ROUNDDOWN(A1878*$B$13/24,0),"") ->  | E1878: =IF(A1878<>"",($B$4+$B$5)/2+($B$5-$B$4)/2*COS(2*PI()/$B$15*B1878),"") ->  | F1878: =IF(A1878<>"",E1878*COS(2*PI()/$B$7*B1878),"") -> 
D1941: =IF(A1941<>"",MOD(B1941,24)/24,"") ->  | G1941: =ABS(0.5*1.025*1*(F1941^3)) ->  | H1941: =G1941*$B$13 -> 
A1942: =IF(IF(A1941<>"",A1941+1<=$B$16,0),A1941+1,"") ->  | B1942: =IF(A1942<>"",A1942*$B$13,"") ->  | C1942: =IF(A1942<>"",ROUNDDOWN(A1942*$B$13/24,0),"") ->  | E1942: =IF(A1942<>"",($B$4+$B$5)/2+($B$5-$B$4)/2*COS(2*PI()/$B$15*B1942),"") ->  | F1942: =IF(A1942<>"",E1942*COS(2*PI()/$B$7*B1942),"") -> 
D2005: =IF(A2005<>"",MOD(B2005,24)/24,"") ->  | G2005: =ABS(0.5*1.025*1*(F2005^3)) ->  | H2005: =G2005*$B$13 -> 
A2006: =IF(IF(A2005<>"",A2005+1<=$B$16,0),A2005+1,"") ->  | B2006: =IF(A2006<>"",A2006*$B$13,"") ->  | C2006: =IF(A2006<>"",ROUNDDOWN(A2006*$B$13/24,0),"") ->  | E2006: =IF(A2006<>"",($B$4+$B$5)/2+($B$5-$B$4)/2*COS(2*PI()/$B$15*B2006),"") ->  | F2006: =IF(A2006<>"",E2006*COS(2*PI()/$B$7*B2006),"") -> 
D2069: =IF(A2069<>"",MOD(B2069,24)/24,"") ->  | G2069: =ABS(0.5*1.025*1*(F2069^3)) ->  | H2069: =G2069*$B$13 -> 
A2070: =IF(IF(A2069<>"",A2069+1<=$B$16,0),A2069+1,"") ->  | B2070: =IF(A2070<>"",A2070*$B$13,"") ->  | C2070: =IF(A2070<>"",ROUNDDOWN(A2070*$B$13/24,0),"") ->  | E2070: =IF(A2070<>"",($B$4+$B$5)/2+($B$5-$B$4)/2*COS(2*PI()/$B$15*B2070),"") ->  | F2070: =IF(A2070<>"",E2070*COS(2*PI()/$B$7*B2070),"") -> 
D2133: =IF(A2133<>"",MOD(B2133,24)/24,"") ->  | G2133: =ABS(0.5*1.025*1*(F2133^3)) ->  | H2133: =G2133*$B$13 -> 
A2134: =IF(IF(A2133<>"",A2133+1<=$B$16,0),A2133+1,"") ->  | B2134: =IF(A2134<>"",A2134*$B$13,"") ->  | C2134: =IF(A2134<>"",ROUNDDOWN(A2134*$B$13/24,0),"") ->  | E2134: =IF(A2134<>"",($B$4+$B$5)/2+($B$5-$B$4)/2*COS(2*PI()/$B$15*B2134),"") ->  | F2134: =IF(A2134<>"",E2134*COS(2*PI()/$B$7*B2134),"") -> 
D2197: =IF(A2197<>"",MOD(B2197,24)/24,"") ->  | G2197: =ABS(0.5*1.025*1*(F2197^3)) ->  | H2197: =G2197*$B$13 -> 
A2198: =IF(IF(A2197<>"",A2197+1<=$B$16,0),A2197+1,"") ->  | B2198: =IF(A2198<>"",A2198*$B$13,"") ->  | C2198: =IF(A2198<>"",ROUNDDOWN(A2198*$B$13/24,0),"") ->  | E2198: =IF(A2198<>"",($B$4+$B$5)/2+($B$5-$B$4)/2*COS(2*PI()/$B$15*B2198),"") ->  | F2198: =IF(A2198<>"",E2198*COS(2*PI()/$B$7*B2198),"") -> 
D2261: =IF(A2261<>"",MOD(B2261,24)/24,"") ->  | G2261: =ABS(0.5*1.025*1*(F2261^3)) ->  | H2261: =G2261*$B$13 -> 
A2262: =IF(IF(A2261<>"",A2261+1<=$B$16,0),A2261+1,"") ->  | B2262: =IF(A2262<>"",A2262*$B$13,"") ->  | C2262: =IF(A2262<>"",ROUNDDOWN(A2262*$B$13/24,0),"") ->  | E2262: =IF(A2262<>"",($B$4+$B$5)/2+($B$5-$B$4)/2*COS(2*PI()/$B$15*B2262),"") ->  | F2262: =IF(A2262<>"",E2262*COS(2*PI()/$B$7*B2262),"") -> 
D2325: =IF(A2325<>"",MOD(B2325,24)/24,"") ->  | G2325: =ABS(0.5*1.025*1*(F2325^3)) ->  | H2325: =G2325*$B$13 -> 
A2326: =IF(IF(A2325<>"",A2325+1<=$B$16,0),A2325+1,"") ->  | B2326: =IF(A2326<>"",A2326*$B$13,"") ->  | C2326: =IF(A2326<>"",ROUNDDOWN(A2326*$B$13/24,0),"") ->  | E2326: =IF(A2326<>"",($B$4+$B$5)/2+($B$5-$B$4)/2*COS(2*PI()/$B$15*B2326),"") ->  | F2326: =IF(A2326<>"",E2326*COS(2*PI()/$B$7*B2326),"") -> 
D2389: =IF(A2389<>"",MOD(B2389,24)/24,"") ->  | G2389: =ABS(0.5*1.025*1*(F2389^3)) ->  | H2389: =G2389*$B$13 -> 
A2390: =IF(IF(A2389<>"",A2389+1<=$B$16,0),A2389+1,"") ->  | B2390: =IF(A2390<>"",A2390*$B$13,"") ->  | C2390: =IF(A2390<>"",ROUNDDOWN(A2390*$B$13/24,0),"") ->  | E2390: =IF(A2390<>"",($B$4+$B$5)/2+($B$5-$B$4)/2*COS(2*PI()/$B$15*B2390),"") ->  | F2390: =IF(A2390<>"",E2390*COS(2*PI()/$B$7*B2390),"") -> 
D2453: =IF(A2453<>"",MOD(B2453,24)/24,"") ->  | G2453: =ABS(0.5*1.025*1*(F2453^3)) ->  | H2453: =G2453*$B$13 -> 
A2454: =IF(IF(A2453<>"",A2453+1<=$B$16,0),A2453+1,"") ->  | B2454: =IF(A2454<>"",A2454*$B$13,"") ->  | C2454: =IF(A2454<>"",ROUNDDOWN(A2454*$B$13/24,0),"") ->  | E2454: =IF(A2454<>"",($B$4+$B$5)/2+($B$5-$B$4)/2*COS(2*PI()/$B$15*B2454),"") ->  | F2454: =IF(A2454<>"",E2454*COS(2*PI()/$B$7*B2454),"") -> 
D2517: =IF(A2517<>"",MOD(B2517,24)/24,"") ->  | G2517: =ABS(0.5*1.025*1*(F2517^3)) ->  | H2517: =G2517*$B$13 -> 
A2518: =IF(IF(A2517<>"",A2517+1<=$B$16,0),A2517+1,"") ->  | B2518: =IF(A2518<>"",A2518*$B$13,"") ->  | C2518: =IF(A2518<>"",ROUNDDOWN(A2518*$B$13/24,0),"") ->  | E2518: =IF(A2518<>"",($B$4+$B$5)/2+($B$5-$B$4)/2*COS(2*PI()/$B$15*B2518),"") ->  | F2518: =IF(A2518<>"",E2518*COS(2*PI()/$B$7*B2518),"") -> 
D2581: =IF(A2581<>"",MOD(B2581,24)/24,"") ->  | G2581: =ABS(0.5*1.025*1*(F2581^3)) ->  | H2581: =G2581*$B$13 -> 
A2582: =IF(IF(A2581<>"",A2581+1<=$B$16,0),A2581+1,"") ->  | B2582: =IF(A2582<>"",A2582*$B$13,"") ->  | C2582: =IF(A2582<>"",ROUNDDOWN(A2582*$B$13/24,0),"") ->  | E2582: =IF(A2582<>"",($B$4+$B$5)/2+($B$5-$B$4)/2*COS(2*PI()/$B$15*B2582),"") ->  | F2582: =IF(A2582<>"",E2582*COS(2*PI()/$B$7*B2582),"") -> 
D2645: =IF(A2645<>"",MOD(B2645,24)/24,"") ->  | G2645: =ABS(0.5*1.025*1*(F2645^3)) ->  | H2645: =G2645*$B$13 -> 
A2646: =IF(IF(A2645<>"",A2645+1<=$B$16,0),A2645+1,"") ->  | B2646: =IF(A2646<>"",A2646*$B$13,"") ->  | C2646: =IF(A2646<>"",ROUNDDOWN(A2646*$B$13/24,0),"") ->  | E2646: =IF(A2646<>"",($B$4+$B$5)/2+($B$5-$B$4)/2*COS(2*PI()/$B$15*B2646),"") ->  | F2646: =IF(A2646<>"",E2646*COS(2*PI()/$B$7*B2646),"") -> 
D2709: =IF(A2709<>"",MOD(B2709,24)/24,"") ->  | G2709: =ABS(0.5*1.025*1*(F2709^3)) ->  | H2709: =G2709*$B$13 -> 
A2710: =IF(IF(A2709<>"",A2709+1<=$B$16,0),A2709+1,"") ->  | B2710: =IF(A2710<>"",A2710*$B$13,"") ->  | C2710: =IF(A2710<>"",ROUNDDOWN(A2710*$B$13/24,0),"") ->  | E2710: =IF(A2710<>"",($B$4+$B$5)/2+($B$5-$B$4)/2*COS(2*PI()/$B$15*B2710),"") ->  | F2710: =IF(A2710<>"",E2710*COS(2*PI()/$B$7*B2710),"") -> 
A2770: =IF(IF(A2769<>"",A2769+1<=$B$16,0),A2769+1,"") ->  | B2770: =IF(A2770<>"",A2770*$B$13,"") ->  | C2770: =IF(A2770<>"",ROUNDDOWN(A2770*$B$13/24,0),"") ->  | E2770: =IF(A2770<>"",($B$4+$B$5)/2+($B$5-$B$4)/2*COS(2*PI()/$B$15*B2770),"") ->  | F2770: =IF(A2770<>"",E2770*COS(2*PI()/$B$7*B2770),"") -> 
A2771: =IF(IF(A2770<>"",A2770+1<=$B$16,0),A2770+1,"") ->  | B2771: =IF(A2771<>"",A2771*$B$13,"") ->  | C2771: =IF(A2771<>"",ROUNDDOWN(A2771*$B$13/24,0),"") ->  | E2771: =IF(A2771<>"",($B$4+$B$5)/2+($B$5-$B$4)/2*COS(2*PI()/$B$15*B2771),"") ->  | F2771: =IF(A2771<>"",E2771*COS(2*PI()/$B$7*B2771),"") -> 
D2773: =IF(A2773<>"",MOD(B2773,24)/24,"") ->  | G2773: =ABS(0.5*1.025*1*(F2773^3)) ->  | H2773: =G2773*$B$13 -> 
E2780: Total Energy (kWh/m^2) | G2780: - | H2780: =IF(ISERROR(SUM(H20:H2779)),"",SUM(H20:H2779)) ->  | I2780: per lunar cycle
G2781: - | H2781: =IF(ISERROR(H2780*(365/$B$6)),"",(H2780*(365/$B$6))) ->  | I2781: per year
E2782: Average Power (kW/m^2) | G2782: =IF(ISERROR(AVERAGE(G20:G2779)),"",(AVERAGE(G20:G2779))) ->  | H2782: -

Sheet Tidal Stream 5
A1: Tidal Stream Resource
A3: =Input!A45 -> Site Name | B3: =IF(Input!B85<>"",Input!B85,"-") -> [Enter Name] | C3: =Input!C45 -> 0 | I3: Plots:
A4: =Input!A46 -> Peak Flow (Springs) | B4: =IF((AND(Input!B86<>"",Input!B86<>"[Enter Value]")),Input!B86,"0") -> 0 | C4: =Input!C46 -> m/s
A5: =Input!A47 -> Peak Flow (Neaps) | B5: =IF((AND(Input!B87<>"",Input!B87<>"[Enter Value]")),Input!B87,"0") -> 0 | C5: =Input!C47 -> m/s
A6: =Input!A48 -> Lunar Cycle Period | B6: =IF((AND(Input!B88<>"",Input!B88<>"[Enter Value]")),Input!B88,"0") -> 0 | C6: =Input!C48 -> days
A7: =Input!A49 -> Tidal Period | B7: =IF((AND(Input!B89<>"",Input!B89<>"[Enter Value]")),Input!B89,"0") -> 0 | C7: =Input!C49 -> hours
A8: =Input!A50 -> Proximity to Grid Connection | B8: =IF(Input!B90<>"",Input!B90,"-") -> [Select Value]
A9: =Input!A51 -> Average Water Depth | B9: =IF(Input!B91<>"",Input!B91,"-") -> [Select Value]
A10: =Input!A52 -> Seabed Topography | B10: =IF(Input!B92<>"",Input!B92,"-") -> [Select Value]
A11: =Input!A53 -> Accessibility | B11: =IF(Input!B93<>"",Input!B93,"-") -> [Select Value]
A13: Time Step | B13: 0.25 | C13: hours
A14: Period | B14: =B6/2 -> 0 | C14: days
B15: =B14*24 -> 0 | C15: hours
A16: Number of Steps | B16: =B15/B13*2 -> 0 | C16: -
A18: No. | B18: Time | E18: Amplitude | F18: Current | G18: Power | H18: Energy
B19: Hours | C19: Day | D19: Time | E19: m/s | F19: m/s | G19: kW/(m^2) | H19: kWh/(m^2)
A20: 0 | B20: =A20*$B$13 -> 0 | C20: =ROUNDDOWN(A20*$B$1/24,0) -> 0 | D20: =MOD(B20,24)/24 -> 0 | E20: =IF(A20<>"",($B$4+$B$5)/2+($B$5-$B$4)/2*COS(2*PI()/$B$15*B20),"") ->  | F20: =IF(A20<>"",E20*COS(2*PI()/$B$7*B20),"") ->  | G20: =ABS(0.5*1.025*1*(F20^3)) ->  | H20: =G20*$B$13 -> 
A21: =IF(IF(A20<>"",A20+1<=$B$16,0),A20+1,"") ->  | B21: =IF(A21<>"",A21*$B$13,"") ->  | C21: =IF(A21<>"",ROUNDDOWN(A21*$B$13/24,0),"") ->  | D21: =IF(A21<>"",MOD(B21,24)/24,"") ->  | E21: =IF(A21<>"",($B$4+$B$5)/2+($B$5-$B$4)/2*COS(2*PI()/$B$15*B21),"") ->  | F21: =IF(A21<>"",E21*COS(2*PI()/$B$7*B21),"") ->  | G21: =ABS(0.5*1.025*1*(F21^3)) ->  | H21: =G21*$B$13 -> 
A22: =IF(IF(A21<>"",A21+1<=$B$16,0),A21+1,"") ->  | B22: =IF(A22<>"",A22*$B$13,"") ->  | C22: =IF(A22<>"",ROUNDDOWN(A22*$B$13/24,0),"") ->  | E22: =IF(A22<>"",($B$4+$B$5)/2+($B$5-$B$4)/2*COS(2*PI()/$B$15*B22),"") ->  | F22: =IF(A22<>"",E22*COS(2*PI()/$B$7*B22),"") -> 
D85: =IF(A85<>"",MOD(B85,24)/24,"") ->  | G85: =ABS(0.5*1.025*1*(F85^3)) ->  | H85: =G85*$B$13 -> 
A86: =IF(IF(A85<>"",A85+1<=$B$16,0),A85+1,"") ->  | B86: =IF(A86<>"",A86*$B$13,"") ->  | C86: =IF(A86<>"",ROUNDDOWN(A86*$B$13/24,0),"") ->  | E86: =IF(A86<>"",($B$4+$B$5)/2+($B$5-$B$4)/2*COS(2*PI()/$B$15*B86),"") ->  | F86: =IF(A86<>"",E86*COS(2*PI()/$B$7*B86),"") -> 
D149: =IF(A149<>"",MOD(B149,24)/24,"") ->  | G149: =ABS(0.5*1.025*1*(F149^3)) ->  | H149: =G149*$B$13 -> 
A150: =IF(IF(A149<>"",A149+1<=$B$16,0),A149+1,"") ->  | B150: =IF(A150<>"",A150*$B$13,"") ->  | C150: =IF(A150<>"",ROUNDDOWN(A150*$B$13/24,0),"") ->  | E150: =IF(A150<>"",($B$4+$B$5)/2+($B$5-$B$4)/2*COS(2*PI()/$B$15*B150),"") ->  | F150: =IF(A150<>"",E150*COS(2*PI()/$B$7*B150),"") -> 
D213: =IF(A213<>"",MOD(B213,24)/24,"") ->  | G213: =ABS(0.5*1.025*1*(F213^3)) ->  | H213: =G213*$B$13 -> 
A214: =IF(IF(A213<>"",A213+1<=$B$16,0),A213+1,"") ->  | B214: =IF(A214<>"",A214*$B$13,"") ->  | C214: =IF(A214<>"",ROUNDDOWN(A214*$B$13/24,0),"") ->  | E214: =IF(A214<>"",($B$4+$B$5)/2+($B$5-$B$4)/2*COS(2*PI()/$B$15*B214),"") ->  | F214: =IF(A214<>"",E214*COS(2*PI()/$B$7*B214),"") -> 
D277: =IF(A277<>"",MOD(B277,24)/24,"") ->  | G277: =ABS(0.5*1.025*1*(F277^3)) ->  | H277: =G277*$B$13 -> 
A278: =IF(IF(A277<>"",A277+1<=$B$16,0),A277+1,"") ->  | B278: =IF(A278<>"",A278*$B$13,"") ->  | C278: =IF(A278<>"",ROUNDDOWN(A278*$B$13/24,0),"") ->  | E278: =IF(A278<>"",($B$4+$B$5)/2+($B$5-$B$4)/2*COS(2*PI()/$B$15*B278),"") ->  | F278: =IF(A278<>"",E278*COS(2*PI()/$B$7*B278),"") -> 
D341: =IF(A341<>"",MOD(B341,24)/24,"") ->  | G341: =ABS(0.5*1.025*1*(F341^3)) ->  | H341: =G341*$B$13 -> 
A342: =IF(IF(A341<>"",A341+1<=$B$16,0),A341+1,"") ->  | B342: =IF(A342<>"",A342*$B$13,"") ->  | C342: =IF(A342<>"",ROUNDDOWN(A342*$B$13/24,0),"") ->  | E342: =IF(A342<>"",($B$4+$B$5)/2+($B$5-$B$4)/2*COS(2*PI()/$B$15*B342),"") ->  | F342: =IF(A342<>"",E342*COS(2*PI()/$B$7*B342),"") -> 
D405: =IF(A405<>"",MOD(B405,24)/24,"") ->  | G405: =ABS(0.5*1.025*1*(F405^3)) ->  | H405: =G405*$B$13 -> 
A406: =IF(IF(A405<>"",A405+1<=$B$16,0),A405+1,"") ->  | B406: =IF(A406<>"",A406*$B$13,"") ->  | C406: =IF(A406<>"",ROUNDDOWN(A406*$B$13/24,0),"") ->  | E406: =IF(A406<>"",($B$4+$B$5)/2+($B$5-$B$4)/2*COS(2*PI()/$B$15*B406),"") ->  | F406: =IF(A406<>"",E406*COS(2*PI()/$B$7*B406),"") -> 
D469: =IF(A469<>"",MOD(B469,24)/24,"") ->  | G469: =ABS(0.5*1.025*1*(F469^3)) ->  | H469: =G469*$B$13 -> 
A470: =IF(IF(A469<>"",A469+1<=$B$16,0),A469+1,"") ->  | B470: =IF(A470<>"",A470*$B$13,"") ->  | C470: =IF(A470<>"",ROUNDDOWN(A470*$B$13/24,0),"") ->  | E470: =IF(A470<>"",($B$4+$B$5)/2+($B$5-$B$4)/2*COS(2*PI()/$B$15*B470),"") ->  | F470: =IF(A470<>"",E470*COS(2*PI()/$B$7*B470),"") -> 
D533: =IF(A533<>"",MOD(B533,24)/24,"") ->  | G533: =ABS(0.5*1.025*1*(F533^3)) ->  | H533: =G533*$B$13 -> 
A534: =IF(IF(A533<>"",A533+1<=$B$16,0),A533+1,"") ->  | B534: =IF(A534<>"",A534*$B$13,"") ->  | C534: =IF(A534<>"",ROUNDDOWN(A534*$B$13/24,0),"") ->  | E534: =IF(A534<>"",($B$4+$B$5)/2+($B$5-$B$4)/2*COS(2*PI()/$B$15*B534),"") ->  | F534: =IF(A534<>"",E534*COS(2*PI()/$B$7*B534),"") -> 
D597: =IF(A597<>"",MOD(B597,24)/24,"") ->  | G597: =ABS(0.5*1.025*1*(F597^3)) ->  | H597: =G597*$B$13 -> 
A598: =IF(IF(A597<>"",A597+1<=$B$16,0),A597+1,"") ->  | B598: =IF(A598<>"",A598*$B$13,"") ->  | C598: =IF(A598<>"",ROUNDDOWN(A598*$B$13/24,0),"") ->  | E598: =IF(A598<>"",($B$4+$B$5)/2+($B$5-$B$4)/2*COS(2*PI()/$B$15*B598),"") ->  | F598: =IF(A598<>"",E598*COS(2*PI()/$B$7*B598),"") -> 
D661: =IF(A661<>"",MOD(B661,24)/24,"") ->  | G661: =ABS(0.5*1.025*1*(F661^3)) ->  | H661: =G661*$B$13 -> 
A662: =IF(IF(A661<>"",A661+1<=$B$16,0),A661+1,"") ->  | B662: =IF(A662<>"",A662*$B$13,"") ->  | C662: =IF(A662<>"",ROUNDDOWN(A662*$B$13/24,0),"") ->  | E662: =IF(A662<>"",($B$4+$B$5)/2+($B$5-$B$4)/2*COS(2*PI()/$B$15*B662),"") ->  | F662: =IF(A662<>"",E662*COS(2*PI()/$B$7*B662),"") -> 
D725: =IF(A725<>"",MOD(B725,24)/24,"") ->  | G725: =ABS(0.5*1.025*1*(F725^3)) ->  | H725: =G725*$B$13 -> 
A726: =IF(IF(A725<>"",A725+1<=$B$16,0),A725+1,"") ->  | B726: =IF(A726<>"",A726*$B$13,"") ->  | C726: =IF(A726<>"",ROUNDDOWN(A726*$B$13/24,0),"") ->  | E726: =IF(A726<>"",($B$4+$B$5)/2+($B$5-$B$4)/2*COS(2*PI()/$B$15*B726),"") ->  | F726: =IF(A726<>"",E726*COS(2*PI()/$B$7*B726),"") -> 
D789: =IF(A789<>"",MOD(B789,24)/24,"") ->  | G789: =ABS(0.5*1.025*1*(F789^3)) ->  | H789: =G789*$B$13 -> 
A790: =IF(IF(A789<>"",A789+1<=$B$16,0),A789+1,"") ->  | B790: =IF(A790<>"",A790*$B$13,"") ->  | C790: =IF(A790<>"",ROUNDDOWN(A790*$B$13/24,0),"") ->  | E790: =IF(A790<>"",($B$4+$B$5)/2+($B$5-$B$4)/2*COS(2*PI()/$B$15*B790),"") ->  | F790: =IF(A790<>"",E790*COS(2*PI()/$B$7*B790),"") -> 
D853: =IF(A853<>"",MOD(B853,24)/24,"") ->  | G853: =ABS(0.5*1.025*1*(F853^3)) ->  | H853: =G853*$B$13 -> 
A854: =IF(IF(A853<>"",A853+1<=$B$16,0),A853+1,"") ->  | B854: =IF(A854<>"",A854*$B$13,"") ->  | C854: =IF(A854<>"",ROUNDDOWN(A854*$B$13/24,0),"") ->  | E854: =IF(A854<>"",($B$4+$B$5)/2+($B$5-$B$4)/2*COS(2*PI()/$B$15*B854),"") ->  | F854: =IF(A854<>"",E854*COS(2*PI()/$B$7*B854),"") -> 
D917: =IF(A917<>"",MOD(B917,24)/24,"") ->  | G917: =ABS(0.5*1.025*1*(F917^3)) ->  | H917: =G917*$B$13 -> 
A918: =IF(IF(A917<>"",A917+1<=$B$16,0),A917+1,"") ->  | B918: =IF(A918<>"",A918*$B$13,"") ->  | C918: =IF(A918<>"",ROUNDDOWN(A918*$B$13/24,0),"") ->  | E918: =IF(A918<>"",($B$4+$B$5)/2+($B$5-$B$4)/2*COS(2*PI()/$B$15*B918),"") ->  | F918: =IF(A918<>"",E918*COS(2*PI()/$B$7*B918),"") -> 
D981: =IF(A981<>"",MOD(B981,24)/24,"") ->  | G981: =ABS(0.5*1.025*1*(F981^3)) ->  | H981: =G981*$B$13 -> 
A982: =IF(IF(A981<>"",A981+1<=$B$16,0),A981+1,"") ->  | B982: =IF(A982<>"",A982*$B$13,"") ->  | C982: =IF(A982<>"",ROUNDDOWN(A982*$B$13/24,0),"") ->  | E982: =IF(A982<>"",($B$4+$B$5)/2+($B$5-$B$4)/2*COS(2*PI()/$B$15*B982),"") ->  | F982: =IF(A982<>"",E982*COS(2*PI()/$B$7*B982),"") -> 
D1045: =IF(A1045<>"",MOD(B1045,24)/24,"") ->  | G1045: =ABS(0.5*1.025*1*(F1045^3)) ->  | H1045: =G1045*$B$13 -> 
A1046: =IF(IF(A1045<>"",A1045+1<=$B$16,0),A1045+1,"") ->  | B1046: =IF(A1046<>"",A1046*$B$13,"") ->  | C1046: =IF(A1046<>"",ROUNDDOWN(A1046*$B$13/24,0),"") ->  | E1046: =IF(A1046<>"",($B$4+$B$5)/2+($B$5-$B$4)/2*COS(2*PI()/$B$15*B1046),"") ->  | F1046: =IF(A1046<>"",E1046*COS(2*PI()/$B$7*B1046),"") -> 
D1109: =IF(A1109<>"",MOD(B1109,24)/24,"") ->  | G1109: =ABS(0.5*1.025*1*(F1109^3)) ->  | H1109: =G1109*$B$13 -> 
A1110: =IF(IF(A1109<>"",A1109+1<=$B$16,0),A1109+1,"") ->  | B1110: =IF(A1110<>"",A1110*$B$13,"") ->  | C1110: =IF(A1110<>"",ROUNDDOWN(A1110*$B$13/24,0),"") ->  | E1110: =IF(A1110<>"",($B$4+$B$5)/2+($B$5-$B$4)/2*COS(2*PI()/$B$15*B1110),"") ->  | F1110: =IF(A1110<>"",E1110*COS(2*PI()/$B$7*B1110),"") -> 
D1173: =IF(A1173<>"",MOD(B1173,24)/24,"") ->  | G1173: =ABS(0.5*1.025*1*(F1173^3)) ->  | H1173: =G1173*$B$13 -> 
A1174: =IF(IF(A1173<>"",A1173+1<=$B$16,0),A1173+1,"") ->  | B1174: =IF(A1174<>"",A1174*$B$13,"") ->  | C1174: =IF(A1174<>"",ROUNDDOWN(A1174*$B$13/24,0),"") ->  | E1174: =IF(A1174<>"",($B$4+$B$5)/2+($B$5-$B$4)/2*COS(2*PI()/$B$15*B1174),"") ->  | F1174: =IF(A1174<>"",E1174*COS(2*PI()/$B$7*B1174),"") -> 
D1237: =IF(A1237<>"",MOD(B1237,24)/24,"") ->  | G1237: =ABS(0.5*1.025*1*(F1237^3)) ->  | H1237: =G1237*$B$13 -> 
A1238: =IF(IF(A1237<>"",A1237+1<=$B$16,0),A1237+1,"") ->  | B1238: =IF(A1238<>"",A1238*$B$13,"") ->  | C1238: =IF(A1238<>"",ROUNDDOWN(A1238*$B$13/24,0),"") ->  | E1238: =IF(A1238<>"",($B$4+$B$5)/2+($B$5-$B$4)/2*COS(2*PI()/$B$15*B1238),"") ->  | F1238: =IF(A1238<>"",E1238*COS(2*PI()/$B$7*B1238),"") -> 
D1301: =IF(A1301<>"",MOD(B1301,24)/24,"") ->  | G1301: =ABS(0.5*1.025*1*(F1301^3)) ->  | H1301: =G1301*$B$13 -> 
A1302: =IF(IF(A1301<>"",A1301+1<=$B$16,0),A1301+1,"") ->  | B1302: =IF(A1302<>"",A1302*$B$13,"") ->  | C1302: =IF(A1302<>"",ROUNDDOWN(A1302*$B$13/24,0),"") ->  | E1302: =IF(A1302<>"",($B$4+$B$5)/2+($B$5-$B$4)/2*COS(2*PI()/$B$15*B1302),"") ->  | F1302: =IF(A1302<>"",E1302*COS(2*PI()/$B$7*B1302),"") -> 
D1365: =IF(A1365<>"",MOD(B1365,24)/24,"") ->  | G1365: =ABS(0.5*1.025*1*(F1365^3)) ->  | H1365: =G1365*$B$13 -> 
A1366: =IF(IF(A1365<>"",A1365+1<=$B$16,0),A1365+1,"") ->  | B1366: =IF(A1366<>"",A1366*$B$13,"") ->  | C1366: =IF(A1366<>"",ROUNDDOWN(A1366*$B$13/24,0),"") ->  | E1366: =IF(A1366<>"",($B$4+$B$5)/2+($B$5-$B$4)/2*COS(2*PI()/$B$15*B1366),"") ->  | F1366: =IF(A1366<>"",E1366*COS(2*PI()/$B$7*B1366),"") -> 
D1429: =IF(A1429<>"",MOD(B1429,24)/24,"") ->  | G1429: =ABS(0.5*1.025*1*(F1429^3)) ->  | H1429: =G1429*$B$13 -> 
A1430: =IF(IF(A1429<>"",A1429+1<=$B$16,0),A1429+1,"") ->  | B1430: =IF(A1430<>"",A1430*$B$13,"") ->  | C1430: =IF(A1430<>"",ROUNDDOWN(A1430*$B$13/24,0),"") ->  | E1430: =IF(A1430<>"",($B$4+$B$5)/2+($B$5-$B$4)/2*COS(2*PI()/$B$15*B1430),"") ->  | F1430: =IF(A1430<>"",E1430*COS(2*PI()/$B$7*B1430),"") -> 
D1493: =IF(A1493<>"",MOD(B1493,24)/24,"") ->  | G1493: =ABS(0.5*1.025*1*(F1493^3)) ->  | H1493: =G1493*$B$13 -> 
A1494: =IF(IF(A1493<>"",A1493+1<=$B$16,0),A1493+1,"") ->  | B1494: =IF(A1494<>"",A1494*$B$13,"") ->  | C1494: =IF(A1494<>"",ROUNDDOWN(A1494*$B$13/24,0),"") ->  | E1494: =IF(A1494<>"",($B$4+$B$5)/2+($B$5-$B$4)/2*COS(2*PI()/$B$15*B1494),"") ->  | F1494: =IF(A1494<>"",E1494*COS(2*PI()/$B$7*B1494),"") -> 
D1557: =IF(A1557<>"",MOD(B1557,24)/24,"") ->  | G1557: =ABS(0.5*1.025*1*(F1557^3)) ->  | H1557: =G1557*$B$13 -> 
A1558: =IF(IF(A1557<>"",A1557+1<=$B$16,0),A1557+1,"") ->  | B1558: =IF(A1558<>"",A1558*$B$13,"") ->  | C1558: =IF(A1558<>"",ROUNDDOWN(A1558*$B$13/24,0),"") ->  | E1558: =IF(A1558<>"",($B$4+$B$5)/2+($B$5-$B$4)/2*COS(2*PI()/$B$15*B1558),"") ->  | F1558: =IF(A1558<>"",E1558*COS(2*PI()/$B$7*B1558),"") -> 
D1621: =IF(A1621<>"",MOD(B1621,24)/24,"") ->  | G1621: =ABS(0.5*1.025*1*(F1621^3)) ->  | H1621: =G1621*$B$13 -> 
A1622: =IF(IF(A1621<>"",A1621+1<=$B$16,0),A1621+1,"") ->  | B1622: =IF(A1622<>"",A1622*$B$13,"") ->  | C1622: =IF(A1622<>"",ROUNDDOWN(A1622*$B$13/24,0),"") ->  | E1622: =IF(A1622<>"",($B$4+$B$5)/2+($B$5-$B$4)/2*COS(2*PI()/$B$15*B1622),"") ->  | F1622: =IF(A1622<>"",E1622*COS(2*PI()/$B$7*B1622),"") -> 
D1685: =IF(A1685<>"",MOD(B1685,24)/24,"") ->  | G1685: =ABS(0.5*1.025*1*(F1685^3)) ->  | H1685: =G1685*$B$13 -> 
A1686: =IF(IF(A1685<>"",A1685+1<=$B$16,0),A1685+1,"") ->  | B1686: =IF(A1686<>"",A1686*$B$13,"") ->  | C1686: =IF(A1686<>"",ROUNDDOWN(A1686*$B$13/24,0),"") ->  | E1686: =IF(A1686<>"",($B$4+$B$5)/2+($B$5-$B$4)/2*COS(2*PI()/$B$15*B1686),"") ->  | F1686: =IF(A1686<>"",E1686*COS(2*PI()/$B$7*B1686),"") -> 
D1749: =IF(A1749<>"",MOD(B1749,24)/24,"") ->  | G1749: =ABS(0.5*1.025*1*(F1749^3)) ->  | H1749: =G1749*$B$13 -> 
A1750: =IF(IF(A1749<>"",A1749+1<=$B$16,0),A1749+1,"") ->  | B1750: =IF(A1750<>"",A1750*$B$13,"") ->  | C1750: =IF(A1750<>"",ROUNDDOWN(A1750*$B$13/24,0),"") ->  | E1750: =IF(A1750<>"",($B$4+$B$5)/2+($B$5-$B$4)/2*COS(2*PI()/$B$15*B1750),"") ->  | F1750: =IF(A1750<>"",E1750*COS(2*PI()/$B$7*B1750),"") -> 
D1813: =IF(A1813<>"",MOD(B1813,24)/24,"") ->  | G1813: =ABS(0.5*1.025*1*(F1813^3)) ->  | H1813: =G1813*$B$13 -> 
A1814: =IF(IF(A1813<>"",A1813+1<=$B$16,0),A1813+1,"") ->  | B1814: =IF(A1814<>"",A1814*$B$13,"") ->  | C1814: =IF(A1814<>"",ROUNDDOWN(A1814*$B$13/24,0),"") ->  | E1814: =IF(A1814<>"",($B$4+$B$5)/2+($B$5-$B$4)/2*COS(2*PI()/$B$15*B1814),"") ->  | F1814: =IF(A1814<>"",E1814*COS(2*PI()/$B$7*B1814),"") -> 
D1877: =IF(A1877<>"",MOD(B1877,24)/24,"") ->  | G1877: =ABS(0.5*1.025*1*(F1877^3)) ->  | H1877: =G1877*$B$13 -> 
A1878: =IF(IF(A1877<>"",A1877+1<=$B$16,0),A1877+1,"") ->  | B1878: =IF(A1878<>"",A1878*$B$13,"") ->  | C1878: =IF(A1878<>"",ROUNDDOWN(A1878*$B$13/24,0),"") ->  | E1878: =IF(A1878<>"",($B$4+$B$5)/2+($B$5-$B$4)/2*COS(2*PI()/$B$15*B1878),"") ->  | F1878: =IF(A1878<>"",E1878*COS(2*PI()/$B$7*B1878),"") -> 
D1941: =IF(A1941<>"",MOD(B1941,24)/24,"") ->  | G1941: =ABS(0.5*1.025*1*(F1941^3)) ->  | H1941: =G1941*$B$13 -> 
A1942: =IF(IF(A1941<>"",A1941+1<=$B$16,0),A1941+1,"") ->  | B1942: =IF(A1942<>"",A1942*$B$13,"") ->  | C1942: =IF(A1942<>"",ROUNDDOWN(A1942*$B$13/24,0),"") ->  | E1942: =IF(A1942<>"",($B$4+$B$5)/2+($B$5-$B$4)/2*COS(2*PI()/$B$15*B1942),"") ->  | F1942: =IF(A1942<>"",E1942*COS(2*PI()/$B$7*B1942),"") -> 
D2005: =IF(A2005<>"",MOD(B2005,24)/24,"") ->  | G2005: =ABS(0.5*1.025*1*(F2005^3)) ->  | H2005: =G2005*$B$13 -> 
A2006: =IF(IF(A2005<>"",A2005+1<=$B$16,0),A2005+1,"") ->  | B2006: =IF(A2006<>"",A2006*$B$13,"") ->  | C2006: =IF(A2006<>"",ROUNDDOWN(A2006*$B$13/24,0),"") ->  | E2006: =IF(A2006<>"",($B$4+$B$5)/2+($B$5-$B$4)/2*COS(2*PI()/$B$15*B2006),"") ->  | F2006: =IF(A2006<>"",E2006*COS(2*PI()/$B$7*B2006),"") -> 
D2069: =IF(A2069<>"",MOD(B2069,24)/24,"") ->  | G2069: =ABS(0.5*1.025*1*(F2069^3)) ->  | H2069: =G2069*$B$13 -> 
A2070: =IF(IF(A2069<>"",A2069+1<=$B$16,0),A2069+1,"") ->  | B2070: =IF(A2070<>"",A2070*$B$13,"") ->  | C2070: =IF(A2070<>"",ROUNDDOWN(A2070*$B$13/24,0),"") ->  | E2070: =IF(A2070<>"",($B$4+$B$5)/2+($B$5-$B$4)/2*COS(2*PI()/$B$15*B2070),"") ->  | F2070: =IF(A2070<>"",E2070*COS(2*PI()/$B$7*B2070),"") -> 
D2133: =IF(A2133<>"",MOD(B2133,24)/24,"") ->  | G2133: =ABS(0.5*1.025*1*(F2133^3)) ->  | H2133: =G2133*$B$13 -> 
A2134: =IF(IF(A2133<>"",A2133+1<=$B$16,0),A2133+1,"") ->  | B2134: =IF(A2134<>"",A2134*$B$13,"") ->  | C2134: =IF(A2134<>"",ROUNDDOWN(A2134*$B$13/24,0),"") ->  | E2134: =IF(A2134<>"",($B$4+$B$5)/2+($B$5-$B$4)/2*COS(2*PI()/$B$15*B2134),"") ->  | F2134: =IF(A2134<>"",E2134*COS(2*PI()/$B$7*B2134),"") -> 
D2197: =IF(A2197<>"",MOD(B2197,24)/24,"") ->  | G2197: =ABS(0.5*1.025*1*(F2197^3)) ->  | H2197: =G2197*$B$13 -> 
A2198: =IF(IF(A2197<>"",A2197+1<=$B$16,0),A2197+1,"") ->  | B2198: =IF(A2198<>"",A2198*$B$13,"") ->  | C2198: =IF(A2198<>"",ROUNDDOWN(A2198*$B$13/24,0),"") ->  | E2198: =IF(A2198<>"",($B$4+$B$5)/2+($B$5-$B$4)/2*COS(2*PI()/$B$15*B2198),"") ->  | F2198: =IF(A2198<>"",E2198*COS(2*PI()/$B$7*B2198),"") -> 
D2261: =IF(A2261<>"",MOD(B2261,24)/24,"") ->  | G2261: =ABS(0.5*1.025*1*(F2261^3)) ->  | H2261: =G2261*$B$13 -> 
A2262: =IF(IF(A2261<>"",A2261+1<=$B$16,0),A2261+1,"") ->  | B2262: =IF(A2262<>"",A2262*$B$13,"") ->  | C2262: =IF(A2262<>"",ROUNDDOWN(A2262*$B$13/24,0),"") ->  | E2262: =IF(A2262<>"",($B$4+$B$5)/2+($B$5-$B$4)/2*COS(2*PI()/$B$15*B2262),"") ->  | F2262: =IF(A2262<>"",E2262*COS(2*PI()/$B$7*B2262),"") -> 
D2325: =IF(A2325<>"",MOD(B2325,24)/24,"") ->  | G2325: =ABS(0.5*1.025*1*(F2325^3)) ->  | H2325: =G2325*$B$13 -> 
A2326: =IF(IF(A2325<>"",A2325+1<=$B$16,0),A2325+1,"") ->  | B2326: =IF(A2326<>"",A2326*$B$13,"") ->  | C2326: =IF(A2326<>"",ROUNDDOWN(A2326*$B$13/24,0),"") ->  | E2326: =IF(A2326<>"",($B$4+$B$5)/2+($B$5-$B$4)/2*COS(2*PI()/$B$15*B2326),"") ->  | F2326: =IF(A2326<>"",E2326*COS(2*PI()/$B$7*B2326),"") -> 
D2389: =IF(A2389<>"",MOD(B2389,24)/24,"") ->  | G2389: =ABS(0.5*1.025*1*(F2389^3)) ->  | H2389: =G2389*$B$13 -> 
A2390: =IF(IF(A2389<>"",A2389+1<=$B$16,0),A2389+1,"") ->  | B2390: =IF(A2390<>"",A2390*$B$13,"") ->  | C2390: =IF(A2390<>"",ROUNDDOWN(A2390*$B$13/24,0),"") ->  | E2390: =IF(A2390<>"",($B$4+$B$5)/2+($B$5-$B$4)/2*COS(2*PI()/$B$15*B2390),"") ->  | F2390: =IF(A2390<>"",E2390*COS(2*PI()/$B$7*B2390),"") -> 
D2453: =IF(A2453<>"",MOD(B2453,24)/24,"") ->  | G2453: =ABS(0.5*1.025*1*(F2453^3)) ->  | H2453: =G2453*$B$13 -> 
A2454: =IF(IF(A2453<>"",A2453+1<=$B$16,0),A2453+1,"") ->  | B2454: =IF(A2454<>"",A2454*$B$13,"") ->  | C2454: =IF(A2454<>"",ROUNDDOWN(A2454*$B$13/24,0),"") ->  | E2454: =IF(A2454<>"",($B$4+$B$5)/2+($B$5-$B$4)/2*COS(2*PI()/$B$15*B2454),"") ->  | F2454: =IF(A2454<>"",E2454*COS(2*PI()/$B$7*B2454),"") -> 
D2517: =IF(A2517<>"",MOD(B2517,24)/24,"") ->  | G2517: =ABS(0.5*1.025*1*(F2517^3)) ->  | H2517: =G2517*$B$13 -> 
A2518: =IF(IF(A2517<>"",A2517+1<=$B$16,0),A2517+1,"") ->  | B2518: =IF(A2518<>"",A2518*$B$13,"") ->  | C2518: =IF(A2518<>"",ROUNDDOWN(A2518*$B$13/24,0),"") ->  | E2518: =IF(A2518<>"",($B$4+$B$5)/2+($B$5-$B$4)/2*COS(2*PI()/$B$15*B2518),"") ->  | F2518: =IF(A2518<>"",E2518*COS(2*PI()/$B$7*B2518),"") -> 
D2581: =IF(A2581<>"",MOD(B2581,24)/24,"") ->  | G2581: =ABS(0.5*1.025*1*(F2581^3)) ->  | H2581: =G2581*$B$13 -> 
A2582: =IF(IF(A2581<>"",A2581+1<=$B$16,0),A2581+1,"") ->  | B2582: =IF(A2582<>"",A2582*$B$13,"") ->  | C2582: =IF(A2582<>"",ROUNDDOWN(A2582*$B$13/24,0),"") ->  | E2582: =IF(A2582<>"",($B$4+$B$5)/2+($B$5-$B$4)/2*COS(2*PI()/$B$15*B2582),"") ->  | F2582: =IF(A2582<>"",E2582*COS(2*PI()/$B$7*B2582),"") -> 
D2645: =IF(A2645<>"",MOD(B2645,24)/24,"") ->  | G2645: =ABS(0.5*1.025*1*(F2645^3)) ->  | H2645: =G2645*$B$13 -> 
A2646: =IF(IF(A2645<>"",A2645+1<=$B$16,0),A2645+1,"") ->  | B2646: =IF(A2646<>"",A2646*$B$13,"") ->  | C2646: =IF(A2646<>"",ROUNDDOWN(A2646*$B$13/24,0),"") ->  | E2646: =IF(A2646<>"",($B$4+$B$5)/2+($B$5-$B$4)/2*COS(2*PI()/$B$15*B2646),"") ->  | F2646: =IF(A2646<>"",E2646*COS(2*PI()/$B$7*B2646),"") -> 
D2709: =IF(A2709<>"",MOD(B2709,24)/24,"") ->  | G2709: =ABS(0.5*1.025*1*(F2709^3)) ->  | H2709: =G2709*$B$13 -> 
A2710: =IF(IF(A2709<>"",A2709+1<=$B$16,0),A2709+1,"") ->  | B2710: =IF(A2710<>"",A2710*$B$13,"") ->  | C2710: =IF(A2710<>"",ROUNDDOWN(A2710*$B$13/24,0),"") ->  | E2710: =IF(A2710<>"",($B$4+$B$5)/2+($B$5-$B$4)/2*COS(2*PI()/$B$15*B2710),"") ->  | F2710: =IF(A2710<>"",E2710*COS(2*PI()/$B$7*B2710),"") -> 
A2770: =IF(IF(A2769<>"",A2769+1<=$B$16,0),A2769+1,"") ->  | B2770: =IF(A2770<>"",A2770*$B$13,"") ->  | C2770: =IF(A2770<>"",ROUNDDOWN(A2770*$B$13/24,0),"") ->  | E2770: =IF(A2770<>"",($B$4+$B$5)/2+($B$5-$B$4)/2*COS(2*PI()/$B$15*B2770),"") ->  | F2770: =IF(A2770<>"",E2770*COS(2*PI()/$B$7*B2770),"") -> 
A2771: =IF(IF(A2770<>"",A2770+1<=$B$16,0),A2770+1,"") ->  | B2771: =IF(A2771<>"",A2771*$B$13,"") ->  | C2771: =IF(A2771<>"",ROUNDDOWN(A2771*$B$13/24,0),"") ->  | E2771: =IF(A2771<>"",($B$4+$B$5)/2+($B$5-$B$4)/2*COS(2*PI()/$B$15*B2771),"") ->  | F2771: =IF(A2771<>"",E2771*COS(2*PI()/$B$7*B2771),"") -> 
D2773: =IF(A2773<>"",MOD(B2773,24)/24,"") ->  | G2773: =ABS(0.5*1.025*1*(F2773^3)) ->  | H2773: =G2773*$B$13 -> 
E2780: Total Energy (kWh/m^2) | G2780: - | H2780: =IF(ISERROR(SUM(H20:H2779)),"",SUM(H20:H2779)) ->  | I2780: per lunar cycle
G2781: - | H2781: =IF(ISERROR(H2780*(365/$B$6)),"",(H2780*(365/$B$6))) ->  | I2781: per year
E2782: Average Power (kW/m^2) | G2782: =IF(ISERROR(AVERAGE(G20:G2779)),"",(AVERAGE(G20:G2779))) ->  | H2782: -

Sheet Tidal Barrage 1
A1: Tidal Barrage Resource
A3: =Input!E45 -> Site Name | B3: =Input!F45 -> [Enter Name] | C3: =Input!G45 -> 0
A4: =Input!E46 -> Max Tidal Range | B4: =Input!F46 -> [Enter Value] | C4: =Input!G46 -> m
A5: =Input!E47 -> Mean Tidal Range | B5: =Input!F47 -> [Enter Value] | C5: =Input!G47 -> m
A6: =Input!E48 -> Lunar Cycle Period | B6: =Input!F48 -> [Enter Value] | C6: =Input!G48 -> days
A7: =Input!E49 -> Proposed Lagoon Surface Area | B7: =Input!F49 -> [Enter Value] | C7: =Input!G49 -> m^2
A8: =Input!E50 -> Proximity to Grid Connection | B8: =Input!F50 -> [Select Value]
A9: =Input!E51 -> Average Water Depth | B9: =Input!F51 -> [Select Value] | C9: =Input!G51 -> 0
A10: =Input!E52 -> Seabed Topography | B10: =Input!F52 -> [Select Value] | C10: =Input!G52 -> 0
A11: =Input!E53 -> Accessibility | B11: =Input!F53 -> [Select Value] | C11: =Input!G53 -> 0
A13: Gravitational Acceleration | B13: 9.81 | C13: m/s^2
A14: Specific Denisty of SeaWater | B14: 1025 | C14: kg/m^3
A15: Tidal Volume | B15: =B5*B7 ->  | C15: m^3
A16: Tidal Mass | B16: =B15*B14 ->  | C16: kg/m^3
A18: Potential Energy at High Tide | B18: =0.5*B7*B14*B13*(B5^2) ->  | C18: J
A19: Total Potential per day | B19: =2*B18 ->  | C19: J
A21: Daily Power Generation Potential | B21: =(B19/(60*60*24))/1000 ->  | C21: kW
A22: Assumed Efficiency | B22: 0.3
A23: Actual Power Generation | B23: =B21*B22 ->  | C23: kW
A24: Daily Energy | B24: =B23*24 ->  | C24: kWh
A26: Available Energy (MWh) | B26: =IF(ISERROR(B24*B6/1000),"",(B24*B6/1000)) ->  | C26: per lunar cycle
B27: =IF(ISERROR(365*B24/1000),"",(365*B24/1000)) ->  | C27: per year
B31: =24*B21 -> 
H151: =MIN(H41:H144) -> 0

Sheet Tidal Barrage 2
A1: Tidal Barrage Resource
A3: =Input!E45 -> Site Name | B3: =Input!F55 -> [Enter Name] | C3: =Input!G45 -> 0
A4: =Input!E46 -> Max Tidal Range | B4: =Input!F56 -> [Enter Value] | C4: =Input!G46 -> m
A5: =Input!E47 -> Mean Tidal Range | B5: =Input!F57 -> [Enter Value] | C5: =Input!G47 -> m
A6: =Input!E48 -> Lunar Cycle Period | B6: =Input!F58 -> [Enter Value] | C6: =Input!G48 -> days
A7: =Input!E49 -> Proposed Lagoon Surface Area | B7: =Input!F59 -> [Enter Value] | C7: =Input!G49 -> m^2
A8: =Input!E50 -> Proximity to Grid Connection | B8: =Input!F60 -> [Select Value]
A9: =Input!E51 -> Average Water Depth | B9: =Input!F61 -> [Select Value] | C9: =Input!G51 -> 0
A10: =Input!E52 -> Seabed Topography | B10: =Input!F62 -> [Select Value] | C10: =Input!G52 -> 0
A11: =Input!E53 -> Accessibility | B11: =Input!F63 -> [Select Value] | C11: =Input!G53 -> 0
A13: Gravitational Acceleration | B13: 9.81 | C13: m/s^2
A14: Specific Denisty of SeaWater | B14: 1025 | C14: kg/m^3
A15: Tidal Volume | B15: =B5*B7 ->  | C15: m^3
A16: Tidal Mass | B16: =B15*B14 ->  | C16: kg/m^3
A18: Potential Energy at High Tide | B18: =0.5*B7*B14*B13*(B5^2) ->  | C18: J
A19: Total Potential per day | B19: =2*B18 ->  | C19: J
A21: Daily Power Generation Potential | B21: =(B19/(60*60*24))/1000 ->  | C21: kW
A22: Assumed Efficiency | B22: 0.3
A23: Actual Power Generation | B23: =B21*B22 ->  | C23: kW
A24: Daily Energy | B24: =B23*24 ->  | C24: kWh
A26: Output (kWh) | B26: =IF(ISERROR(B24*B6/1000),"",(B24*B6/1000)) ->  | C26: per lunar cycle
B27: =IF(ISERROR(365*B24/1000),"",(365*B24/1000)) ->  | C27: per year
H151: =MIN(H41:H144) -> 0

Sheet Tidal Barrage 3
A1: Tidal Barrage Resource
A3: =Input!E45 -> Site Name | B3: =Input!F65 -> [Enter Name] | C3: =Input!G45 -> 0
A4: =Input!E46 -> Max Tidal Range | B4: =Input!F66 -> [Enter Value] | C4: =Input!G46 -> m
A5: =Input!E47 -> Mean Tidal Range | B5: =Input!F67 -> [Enter Value] | C5: =Input!G47 -> m
A6: =Input!E48 -> Lunar Cycle Period | B6: =Input!F68 -> [Enter Value] | C6: =Input!G48 -> days
A7: =Input!E49 -> Proposed Lagoon Surface Area | B7: =Input!F69 -> [Enter Value] | C7: =Input!G49 -> m^2
A8: =Input!E50 -> Proximity to Grid Connection | B8: =Input!F70 -> [Select Value]
A9: =Input!E51 -> Average Water Depth | B9: =Input!F71 -> [Select Value] | C9: =Input!G51 -> 0
A10: =Input!E52 -> Seabed Topography | B10: =Input!F72 -> [Select Value] | C10: =Input!G52 -> 0
A11: =Input!E53 -> Accessibility | B11: =Input!F73 -> [Select Value] | C11: =Input!G53 -> 0
A13: Gravitational Acceleration | B13: 9.81 | C13: m/s^2
A14: Specific Denisty of SeaWater | B14: 1025 | C14: kg/m^3
A15: Tidal Volume | B15: =B5*B7 ->  | C15: m^3
A16: Tidal Mass | B16: =B15*B14 ->  | C16: kg/m^3
A18: Potential Energy at High Tide | B18: =0.5*B7*B14*B13*(B5^2) ->  | C18: J
A19: Total Potential per day | B19: =2*B18 ->  | C19: J
A21: Daily Power Generation Potential | B21: =(B19/(60*60*24))/1000 ->  | C21: kW | D21: =24*B21 -> 
A22: Assumed Efficiency | B22: 0.3
A23: Actual Power Generation | B23: =B21*B22 ->  | C23: kW
A24: Daily Energy | B24: =B23*24 ->  | C24: kWh
A26: Output (kWh) | B26: =IF(ISERROR(B24*B6/1000),"",(B24*B6/1000)) ->  | C26: per lunar cycle
B27: =IF(ISERROR(365*B24/1000),"",(365*B24/1000)) ->  | C27: per year
H151: =MIN(H41:H144) -> 0

Sheet Tidal Barrage 4
A1: Tidal Barrage Resource
A3: =Input!E45 -> Site Name | B3: =Input!F75 -> [Enter Name] | C3: =Input!G45 -> 0
A4: =Input!E46 -> Max Tidal Range | B4: =Input!F76 -> [Enter Value] | C4: =Input!G46 -> m
A5: =Input!E47 -> Mean Tidal Range | B5: =Input!F77 -> [Enter Value] | C5: =Input!G47 -> m
A6: =Input!E48 -> Lunar Cycle Period | B6: =Input!F78 -> [Enter Value] | C6: =Input!G48 -> days
A7: =Input!E49 -> Proposed Lagoon Surface Area | B7: =Input!F79 -> [Enter Value] | C7: =Input!G49 -> m^2
A8: =Input!E50 -> Proximity to Grid Connection | B8: =Input!F80 -> [Select Value]
A9: =Input!E51 -> Average Water Depth | B9: =Input!F81 -> [Select Value] | C9: =Input!G51 -> 0
A10: =Input!E52 -> Seabed Topography | B10: =Input!F82 -> [Select Value] | C10: =Input!G52 -> 0
A11: =Input!E53 -> Accessibility | B11: =Input!F83 -> [Select Value] | C11: =Input!G53 -> 0
A13: Gravitational Acceleration | B13: 9.81 | C13: m/s^2
A14: Specific Denisty of SeaWater | B14: 1025 | C14: kg/m^3
A15: Tidal Volume | B15: =B5*B7 ->  | C15: m^3
A16: Tidal Mass | B16: =B15*B14 ->  | C16: kg/m^3
A18: Potential Energy at High Tide | B18: =0.5*B7*B14*B13*(B5^2) ->  | C18: J
A19: Total Potential per day | B19: =2*B18 ->  | C19: J
A21: Daily Power Generation Potential | B21: =(B19/(60*60*24))/1000 ->  | C21: kW
A22: Assumed Efficiency | B22: 0.3
A23: Actual Power Generation | B23: =B21*B22 ->  | C23: kW
A24: Daily Energy | B24: =B23*24 ->  | C24: kWh
A26: Output (kWh) | B26: =IF(ISERROR(B24*B6/1000),"",(B24*B6/1000)) ->  | C26: per lunar cycle
B27: =IF(ISERROR(365*B24/1000),"",(365*B24/1000)) ->  | C27: per year
H151: =MIN(H41:H144) -> 0

Sheet Tidal Barrage 5
A1: Tidal Barrage Resource
A3: =Input!E45 -> Site Name | B3: =Input!F85 -> [Enter Name] | C3: =Input!G45 -> 0
A4: =Input!E46 -> Max Tidal Range | B4: =Input!F86 -> [Enter Value] | C4: =Input!G46 -> m
A5: =Input!E47 -> Mean Tidal Range | B5: =Input!F87 -> [Enter Value] | C5: =Input!G47 -> m
A6: =Input!E48 -> Lunar Cycle Period | B6: =Input!F88 -> [Enter Value] | C6: =Input!G48 -> days
A7: =Input!E49 -> Proposed Lagoon Surface Area | B7: =Input!F89 -> [Enter Value] | C7: =Input!G49 -> m^2
A8: =Input!E50 -> Proximity to Grid Connection | B8: =Input!F90 -> [Select Value]
A9: =Input!E51 -> Average Water Depth | B9: =Input!F91 -> [Select Value] | C9: =Input!G51 -> 0
A10: =Input!E52 -> Seabed Topography | B10: =Input!F92 -> [Select Value] | C10: =Input!G52 -> 0
A11: =Input!E53 -> Accessibility | B11: =Input!F93 -> [Select Value] | C11: =Input!G53 -> 0
A13: Gravitational Acceleration | B13: 9.81 | C13: m/s^2
A14: Specific Denisty of SeaWater | B14: 1025 | C14: kg/m^3
A15: Tidal Volume | B15: =B5*B7 ->  | C15: m^3
A16: Tidal Mass | B16: =B15*B14 ->  | C16: kg/m^3
A18: Potential Energy at High Tide | B18: =0.5*B7*B14*B13*(B5^2) ->  | C18: J
A19: Total Potential per day | B19: =2*B18 ->  | C19: J
A21: Daily Power Generation Potential | B21: =(B19/(60*60*24))/1000 ->  | C21: kW
A22: Assumed Efficiency | B22: 0.3
A23: Actual Power Generation | B23: =B21*B22 ->  | C23: kW
A24: Daily Energy | B24: =B23*24 ->  | C24: kWh
A26: Output (kWh) | B26: =IF(ISERROR(B24*B6/1000),"",(B24*B6/1000)) ->  | C26: per lunar cycle
B27: =IF(ISERROR(365*B24/1000),"",(365*B24/1000)) ->  | C27: per year
H151: =MIN(H41:H144) -> 0

Sheet Wave 1
A1: Wave Resource
A3: =Input!I45 -> Site Name | B3: =Input!J45 -> [Enter Name]
A4: =Input!I46 -> Position Relevant to Island | B4: =Input!J46 -> [Select Value]
A5: =Input!I47 -> Relevant Ocean Wave Area | B5: =Input!J47 -> [Select Area]
A6: =Input!I48 -> Average Wave Height | B6: =Input!J48 -> [Enter Value]
A7: =Input!I49 -> Proximity to Grid Connection | B7: =Input!J49 -> [Select Value]
A8: =Input!I50 -> Average Water Depth | B8: =Input!J50 -> [Select Value]
A9: =Input!I51 -> Seabed Topography | B9: =Input!J51 -> [Select Value]
A10: =Input!I52 -> Accessibility | B10: =Input!J52 -> [Select Value]
A12: Relavant Wave Power (kW/m) | B12: =IF(B8<>"[Select Value]",(IF(B8="> 20m", BE63,BE37)),0) -> 0
A14: Transitional Waters Calculation ( | B14: >20m
A16: Wave Velocity C | B16: (m/s) | C16: =(C17/C18) -> 5.462857143 | D16: 6.988888889 | E16: 8.310909091 | F16: 9.289230769 | G16: 9.965333333 | H16: 10.43647059 | I16: 10.77157895 | J16: 11.01619048 | K16: 11.20173913 | L16: 11.3448 | M16: 11.45555556
A17: Wave Length (λ) | B17: (m) | C17: 19.12 | D17: 31.45 | E17: 45.71 | F17: 60.38 | G17: 74.74 | H17: 88.71 | I17: 102.33 | J17: 115.67 | K17: 128.82 | L17: 141.81 | M17: 154.65
A18: Wave Period (T) | B18: (s) | C18: 3.5 | D18: 4.5 | E18: 5.5 | F18: 6.5 | G18: 7.5 | H18: 8.5 | I18: 9.5 | J18: 10.5 | K18: 11.5 | L18: 12.5 | M18: 13.5
R19: North Sea Area 10 | AE19: North Sea Area 10 | AS19: North Sea Area 10
A20: Energy | B20: Wave Height (Hs) | C20: Power | N20: Total Power | R20: Number of Occurences | AE20: Percentage of Occurences | AS20: Annual Power (W/m) | BE20: Total Power
A21: (J) | B21: (m) | C21: (W/m) | N21: (W/m) | R21: Hs T | S21: 3.5 | T21: 4.5 | U21: 5.5 | V21: 6.5 | W21: 7.5 | X21: 8.5 | Y21: 9.5 | Z21: 10.5 | AA21: 11.5 | AB21: 12.5 | AC21: 13.5 | AE21: Hs T | AF21: 3.5 | AG21: 4.5 | AH21: 5.5 | AI21: 6.5 | AJ21: 7.5 | AK21: 8.5 | AL21: 9.5 | AM21: 10.5 | AN21: 11.5 | AO21: 12.5 | AP21: 13.5 | AQ21: Availability | AS21: Hs T | AT21: 3.5 | AU21: 4.5 | AV21: 5.5 | AW21: 6.5 | AX21: 7.5 | AY21: 8.5 | AZ21: 9.5 | BA21: 10.5 | BB21: 11.5 | BC21: 12.5 | BD21: 13.5 | BE21: (W/m)
A22: =(1025*9.81*B22^2)/8 -> 314.2265625 | B22: 0.5 | C22: =$A22*($C$16) -> 1716.574821 | D22: =$A22*(D16) -> 2196.094531 | E22: =A22*($E$16) -> 2611.508395 | F22: =$A22*($F$16) -> 2918.923053 | G22: =$A22*($G$16) -> 3131.372437 | H22: =$A22*($H$16) -> 3279.416278 | I22: 0 | J22: 0 | K22: 0 | L22: 0 | M22: 0 | N22: =SUM(C22:M22) -> 15853.88952 | R22: 0.5 | S22: =IF($B$4="SW",'Wave Areas'!P115,(IF($B$4="N",'Wave Areas'!B78,(IF($B$4="NE",'Wave Areas'!P79,(IF($B$4="E",'Wave Areas'!B96,(IF($B$4="SE",'Wave Areas'!P97,(IF($B$4="S",'Wave Areas'!B114,(IF($B$4="W",'Wave Areas'!B132,(IF($B$4="NW",'Wave Areas'!P133,0))))))))))))))) -> 0 | T22: =IF($B$4="SW",'Wave Areas'!Q115,(IF($B$4="N",'Wave Areas'!C78,(IF($B$4="NE",'Wave Areas'!Q79,(IF($B$4="E",'Wave Areas'!C96,(IF($B$4="SE",'Wave Areas'!Q97,(IF($B$4="S",'Wave Areas'!C114,(IF($B$4="W",'Wave Areas'!C132,(IF($B$4="NW",'Wave Areas'!Q133,0))))))))))))))) -> 0 | U22: =IF($B$4="SW",'Wave Areas'!R115,(IF($B$4="N",'Wave Areas'!D78,(IF($B$4="NE",'Wave Areas'!R79,(IF($B$4="E",'Wave Areas'!D96,(IF($B$4="SE",'Wave Areas'!R97,(IF($B$4="S",'Wave Areas'!D114,(IF($B$4="W",'Wave Areas'!D132,(IF($B$4="NW",'Wave Areas'!R133,0))))))))))))))) -> 0 | V22: =IF($B$4="SW",'Wave Areas'!S115,(IF($B$4="N",'Wave Areas'!E78,(IF($B$4="NE",'Wave Areas'!S79,(IF($B$4="E",'Wave Areas'!E96,(IF($B$4="SE",'Wave Areas'!S97,(IF($B$4="S",'Wave Areas'!E114,(IF($B$4="W",'Wave Areas'!E132,(IF($B$4="NW",'Wave Areas'!S133,0))))))))))))))) -> 0 | W22: =IF($B$4="SW",'Wave Areas'!T115,(IF($B$4="N",'Wave Areas'!F78,(IF($B$4="NE",'Wave Areas'!T79,(IF($B$4="E",'Wave Areas'!F96,(IF($B$4="SE",'Wave Areas'!T97,(IF($B$4="S",'Wave Areas'!F114,(IF($B$4="W",'Wave Areas'!F132,(IF($B$4="NW",'Wave Areas'!T133,0))))))))))))))) -> 0 | X22: =IF($B$4="SW",'Wave Areas'!U115,(IF($B$4="N",'Wave Areas'!G78,(IF($B$4="NE",'Wave Areas'!U79,(IF($B$4="E",'Wave Areas'!G96,(IF($B$4="SE",'Wave Areas'!U97,(IF($B$4="S",'Wave Areas'!G114,(IF($B$4="W",'Wave Areas'!G132,(IF($B$4="NW",'Wave Areas'!U133,0))))))))))))))) -> 0 | Y22: =IF($B$4="SW",'Wave Areas'!V115,(IF($B$4="N",'Wave Areas'!H78,(IF($B$4="NE",'Wave Areas'!V79,(IF($B$4="E",'Wave Areas'!H96,(IF($B$4="SE",'Wave Areas'!V97,(IF($B$4="S",'Wave Areas'!H114,(IF($B$4="W",'Wave Areas'!H132,(IF($B$4="NW",'Wave Areas'!V133,0))))))))))))))) -> 0 | Z22: =IF($B$4="SW",'Wave Areas'!W115,(IF($B$4="N",'Wave Areas'!I78,(IF($B$4="NE",'Wave Areas'!W79,(IF($B$4="E",'Wave Areas'!I96,(IF($B$4="SE",'Wave Areas'!W97,(IF($B$4="S",'Wave Areas'!I114,(IF($B$4="W",'Wave Areas'!I132,(IF($B$4="NW",'Wave Areas'!W133,0))))))))))))))) -> 0 | AA22: =IF($B$4="SW",'Wave Areas'!X115,(IF($B$4="N",'Wave Areas'!J78,(IF($B$4="NE",'Wave Areas'!X79,(IF($B$4="E",'Wave Areas'!J96,(IF($B$4="SE",'Wave Areas'!X97,(IF($B$4="S",'Wave Areas'!J114,(IF($B$4="W",'Wave Areas'!J132,(IF($B$4="NW",'Wave Areas'!X133,0))))))))))))))) -> 0 | AB22: =IF($B$4="SW",'Wave Areas'!Y115,(IF($B$4="N",'Wave Areas'!K78,(IF($B$4="NE",'Wave Areas'!Y79,(IF($B$4="E",'Wave Areas'!K96,(IF($B$4="SE",'Wave Areas'!Y97,(IF($B$4="S",'Wave Areas'!K114,(IF($B$4="W",'Wave Areas'!K132,(IF($B$4="NW",'Wave Areas'!Y133,0))))))))))))))) -> 0 | AC22: =IF($B$4="SW",'Wave Areas'!Z115,(IF($B$4="N",'Wave Areas'!L78,(IF($B$4="NE",'Wave Areas'!Z79,(IF($B$4="E",'Wave Areas'!L96,(IF($B$4="SE",'Wave Areas'!Z97,(IF($B$4="S",'Wave Areas'!L114,(IF($B$4="W",'Wave Areas'!L132,(IF($B$4="NW",'Wave Areas'!Z133,0))))))))))))))) -> 0 | AE22: 0.5 | AF22: =S22/($AC$33) ->  | AG22: =T22/($AC$33) ->  | AQ22: =SUM(AF22:AP22) ->  | AS22: 0.5 | AT22: =C22*AF22 ->  | AZ22: =AM22/1004 ->  | BA22: =AN22/1004 ->  | BB22: =AO22/1004 ->  | BC22: =AP22/1004 ->  | BD22: =AQ20/1004 -> 0 | BE22: =SUM(AT22:BD22) -> 
A23: 2828.039062 | B23: 1.5 | C23: =$A23*($C$16) -> 15449.17339 | D23: =A23*($D$16) -> 19764.85078 | E23: 23503.57555 | F23: =$A23*($F$16) -> 26270.30748 | G23: 28182.35194 | H23: 29514.7465 | I23: =$A23*($I$16) -> 30462.44603 | J23: =$A23*($J$16) -> 31154.21699 | K23: 0 | L23: 0 | M23: 0 | N23: 204301.6687 | R23: 1.5 | S23: =IF($B$4="SW",'Wave Areas'!P116,(IF($B$4="N",'Wave Areas'!B79,(IF($B$4="NE",'Wave Areas'!P80,(IF($B$4="E",'Wave Areas'!B97,(IF($B$4="SE",'Wave Areas'!P98,(IF($B$4="S",'Wave Areas'!B115,(IF($B$4="W",'Wave Areas'!B133,(IF($B$4="NW",'Wave Areas'!P134,0))))))))))))))) -> 0 | T23: =IF($B$4="SW",'Wave Areas'!Q116,(IF($B$4="N",'Wave Areas'!C79,(IF($B$4="NE",'Wave Areas'!Q80,(IF($B$4="E",'Wave Areas'!C97,(IF($B$4="SE",'Wave Areas'!Q98,(IF($B$4="S",'Wave Areas'!C115,(IF($B$4="W",'Wave Areas'!C133,(IF($B$4="NW",'Wave Areas'!Q134,0))))))))))))))) -> 0 | U23: =IF($B$4="SW",'Wave Areas'!R116,(IF($B$4="N",'Wave Areas'!D79,(IF($B$4="NE",'Wave Areas'!R80,(IF($B$4="E",'Wave Areas'!D97,(IF($B$4="SE",'Wave Areas'!R98,(IF($B$4="S",'Wave Areas'!D115,(IF($B$4="W",'Wave Areas'!D133,(IF($B$4="NW",'Wave Areas'!R134,0))))))))))))))) -> 0 | V23: =IF($B$4="SW",'Wave Areas'!S116,(IF($B$4="N",'Wave Areas'!E79,(IF($B$4="NE",'Wave Areas'!S80,(IF($B$4="E",'Wave Areas'!E97,(IF($B$4="SE",'Wave Areas'!S98,(IF($B$4="S",'Wave Areas'!E115,(IF($B$4="W",'Wave Areas'!E133,(IF($B$4="NW",'Wave Areas'!S134,0))))))))))))))) -> 0 | W23: =IF($B$4="SW",'Wave Areas'!T116,(IF($B$4="N",'Wave Areas'!F79,(IF($B$4="NE",'Wave Areas'!T80,(IF($B$4="E",'Wave Areas'!F97,(IF($B$4="SE",'Wave Areas'!T98,(IF($B$4="S",'Wave Areas'!F115,(IF($B$4="W",'Wave Areas'!F133,(IF($B$4="NW",'Wave Areas'!T134,0))))))))))))))) -> 0 | X23: =IF($B$4="SW",'Wave Areas'!U116,(IF($B$4="N",'Wave Areas'!G79,(IF($B$4="NE",'Wave Areas'!U80,(IF($B$4="E",'Wave Areas'!G97,(IF($B$4="SE",'Wave Areas'!U98,(IF($B$4="S",'Wave Areas'!G115,(IF($B$4="W",'Wave Areas'!G133,(IF($B$4="NW",'Wave Areas'!U134,0))))))))))))))) -> 0 | Y23: =IF($B$4="SW",'Wave Areas'!V116,(IF($B$4="N",'Wave Areas'!H79,(IF($B$4="NE",'Wave Areas'!V80,(IF($B$4="E",'Wave Areas'!H97,(IF($B$4="SE",'Wave Areas'!V98,(IF($B$4="S",'Wave Areas'!H115,(IF($B$4="W",'Wave Areas'!H133,(IF($B$4="NW",'Wave Areas'!V134,0))))))))))))))) -> 0 | Z23: =IF($B$4="SW",'Wave Areas'!W116,(IF($B$4="N",'Wave Areas'!I79,(IF($B$4="NE",'Wave Areas'!W80,(IF($B$4="E",'Wave Areas'!I97,(IF($B$4="SE",'Wave Areas'!W98,(IF($B$4="S",'Wave Areas'!I115,(IF($B$4="W",'Wave Areas'!I133,(IF($B$4="NW",'Wave Areas'!W134,0))))))))))))))) -> 0 | AA23: =IF($B$4="SW",'Wave Areas'!X116,(IF($B$4="N",'Wave Areas'!J79,(IF($B$4="NE",'Wave Areas'!X80,(IF($B$4="E",'Wave Areas'!J97,(IF($B$4="SE",'Wave Areas'!X98,(IF($B$4="S",'Wave Areas'!J115,(IF($B$4="W",'Wave Areas'!J133,(IF($B$4="NW",'Wave Areas'!X134,0))))))))))))))) -> 0 | AB23: =IF($B$4="SW",'Wave Areas'!Y116,(IF($B$4="N",'Wave Areas'!K79,(IF($B$4="NE",'Wave Areas'!Y80,(IF($B$4="E",'Wave Areas'!K97,(IF($B$4="SE",'Wave Areas'!Y98,(IF($B$4="S",'Wave Areas'!K115,(IF($B$4="W",'Wave Areas'!K133,(IF($B$4="NW",'Wave Areas'!Y134,0))))))))))))))) -> 0 | AC23: =IF($B$4="SW",'Wave Areas'!Z116,(IF($B$4="N",'Wave Areas'!L79,(IF($B$4="NE",'Wave Areas'!Z80,(IF($B$4="E",'Wave Areas'!L97,(IF($B$4="SE",'Wave Areas'!Z98,(IF($B$4="S",'Wave Areas'!L115,(IF($B$4="W",'Wave Areas'!L133,(IF($B$4="NW",'Wave Areas'!Z134,0))))))))))))))) -> 0 | AE23: 1.5 | AF23: =S23/($AC$33) ->  | AG23: =T23/($AC$33) ->  | AH23: =U23/($AC$33) ->  | AI23: =V23/($AC$33) ->  | AJ23: =W23/($AC$33) ->  | AK23: =X23/($AC$33) ->  | AL23: =Y23/($AC$33) ->  | AM23: =Z23/($AC$33) ->  | AN23: =AA23/($AC$33) ->  | AO23: =AB23/($AC$33) ->  | AP23: =AC23/($AC$33) ->  | AQ23: =SUM(AF23:AP23) ->  | AS23: 1.5 | AZ23: =I23*AL23 ->  | BB23: =AO23/1004 ->  | BC23: =AP23/1004 ->  | BD23: =AQ22/1004 -> 
A24: 7855.664062 | B24: 2.5 | C24: 0 | D24: =A24*($D$16) -> 54902.36328 | E24: 65287.70987 | F24: =$A24*($F$16) -> 72973.07632 | G24: 78284.31094 | H24: 81985.40694 | I24: 84617.90563 | J24: 86539.49163 | K24: 0 | L24: 0 | M24: 0 | N24: 524590.2646 | R24: 2.5 | S24: =IF($B$4="SW",'Wave Areas'!P117,(IF($B$4="N",'Wave Areas'!B80,(IF($B$4="NE",'Wave Areas'!P81,(IF($B$4="E",'Wave Areas'!B98,(IF($B$4="SE",'Wave Areas'!P99,(IF($B$4="S",'Wave Areas'!B116,(IF($B$4="W",'Wave Areas'!B134,(IF($B$4="NW",'Wave Areas'!P135,0))))))))))))))) -> 0 | T24: =IF($B$4="SW",'Wave Areas'!Q117,(IF($B$4="N",'Wave Areas'!C80,(IF($B$4="NE",'Wave Areas'!Q81,(IF($B$4="E",'Wave Areas'!C98,(IF($B$4="SE",'Wave Areas'!Q99,(IF($B$4="S",'Wave Areas'!C116,(IF($B$4="W",'Wave Areas'!C134,(IF($B$4="NW",'Wave Areas'!Q135,0))))))))))))))) -> 0 | U24: =IF($B$4="SW",'Wave Areas'!R117,(IF($B$4="N",'Wave Areas'!D80,(IF($B$4="NE",'Wave Areas'!R81,(IF($B$4="E",'Wave Areas'!D98,(IF($B$4="SE",'Wave Areas'!R99,(IF($B$4="S",'Wave Areas'!D116,(IF($B$4="W",'Wave Areas'!D134,(IF($B$4="NW",'Wave Areas'!R135,0))))))))))))))) -> 0 | V24: =IF($B$4="SW",'Wave Areas'!S117,(IF($B$4="N",'Wave Areas'!E80,(IF($B$4="NE",'Wave Areas'!S81,(IF($B$4="E",'Wave Areas'!E98,(IF($B$4="SE",'Wave Areas'!S99,(IF($B$4="S",'Wave Areas'!E116,(IF($B$4="W",'Wave Areas'!E134,(IF($B$4="NW",'Wave Areas'!S135,0))))))))))))))) -> 0 | W24: =IF($B$4="SW",'Wave Areas'!T117,(IF($B$4="N",'Wave Areas'!F80,(IF($B$4="NE",'Wave Areas'!T81,(IF($B$4="E",'Wave Areas'!F98,(IF($B$4="SE",'Wave Areas'!T99,(IF($B$4="S",'Wave Areas'!F116,(IF($B$4="W",'Wave Areas'!F134,(IF($B$4="NW",'Wave Areas'!T135,0))))))))))))))) -> 0 | X24: =IF($B$4="SW",'Wave Areas'!U117,(IF($B$4="N",'Wave Areas'!G80,(IF($B$4="NE",'Wave Areas'!U81,(IF($B$4="E",'Wave Areas'!G98,(IF($B$4="SE",'Wave Areas'!U99,(IF($B$4="S",'Wave Areas'!G116,(IF($B$4="W",'Wave Areas'!G134,(IF($B$4="NW",'Wave Areas'!U135,0))))))))))))))) -> 0 | Y24: =IF($B$4="SW",'Wave Areas'!V117,(IF($B$4="N",'Wave Areas'!H80,(IF($B$4="NE",'Wave Areas'!V81,(IF($B$4="E",'Wave Areas'!H98,(IF($B$4="SE",'Wave Areas'!V99,(IF($B$4="S",'Wave Areas'!H116,(IF($B$4="W",'Wave Areas'!H134,(IF($B$4="NW",'Wave Areas'!V135,0))))))))))))))) -> 0 | Z24: =IF($B$4="SW",'Wave Areas'!W117,(IF($B$4="N",'Wave Areas'!I80,(IF($B$4="NE",'Wave Areas'!W81,(IF($B$4="E",'Wave Areas'!I98,(IF($B$4="SE",'Wave Areas'!W99,(IF($B$4="S",'Wave Areas'!I116,(IF($B$4="W",'Wave Areas'!I134,(IF($B$4="NW",'Wave Areas'!W135,0))))))))))))))) -> 0 | AA24: =IF($B$4="SW",'Wave Areas'!X117,(IF($B$4="N",'Wave Areas'!J80,(IF($B$4="NE",'Wave Areas'!X81,(IF($B$4="E",'Wave Areas'!J98,(IF($B$4="SE",'Wave Areas'!X99,(IF($B$4="S",'Wave Areas'!J116,(IF($B$4="W",'Wave Areas'!J134,(IF($B$4="NW",'Wave Areas'!X135,0))))))))))))))) -> 0 | AB24: =IF($B$4="SW",'Wave Areas'!Y117,(IF($B$4="N",'Wave Areas'!K80,(IF($B$4="NE",'Wave Areas'!Y81,(IF($B$4="E",'Wave Areas'!K98,(IF($B$4="SE",'Wave Areas'!Y99,(IF($B$4="S",'Wave Areas'!K116,(IF($B$4="W",'Wave Areas'!K134,(IF($B$4="NW",'Wave Areas'!Y135,0))))))))))))))) -> 0 | AC24: =IF($B$4="SW",'Wave Areas'!Z117,(IF($B$4="N",'Wave Areas'!L80,(IF($B$4="NE",'Wave Areas'!Z81,(IF($B$4="E",'Wave Areas'!L98,(IF($B$4="SE",'Wave Areas'!Z99,(IF($B$4="S",'Wave Areas'!L116,(IF($B$4="W",'Wave Areas'!L134,(IF($B$4="NW",'Wave Areas'!Z135,0))))))))))))))) -> 0 | AE24: 2.5 | AG24: =T24/($AC$33) ->  | AH24: =U24/($AC$33) ->  | AS24: 2.5 | AT24: =AG24/1004 ->  | AU24: =D24*AG24 ->  | AV24: =E24*AH24 -> 
A25: 15397.10156 | B25: 3.5 | C25: 0 | D25: =A25*($D$16) -> 107608.632 | E25: 127963.9113 | F25: =$A25*($F$16) -> 143027.2296 | G25: 153437.2494 | H25: 160691.3976 | I25: 165851.095 | J25: 169617.4036 | K25: 0 | L25: 0 | M25: 0 | N25: 1028196.919 | R25: 3.5 | S25: =IF($B$4="SW",'Wave Areas'!P118,(IF($B$4="N",'Wave Areas'!B81,(IF($B$4="NE",'Wave Areas'!P82,(IF($B$4="E",'Wave Areas'!B99,(IF($B$4="SE",'Wave Areas'!P100,(IF($B$4="S",'Wave Areas'!B117,(IF($B$4="W",'Wave Areas'!B135,(IF($B$4="NW",'Wave Areas'!P136,0))))))))))))))) -> 0 | T25: =IF($B$4="SW",'Wave Areas'!Q118,(IF($B$4="N",'Wave Areas'!C81,(IF($B$4="NE",'Wave Areas'!Q82,(IF($B$4="E",'Wave Areas'!C99,(IF($B$4="SE",'Wave Areas'!Q100,(IF($B$4="S",'Wave Areas'!C117,(IF($B$4="W",'Wave Areas'!C135,(IF($B$4="NW",'Wave Areas'!Q136,0))))))))))))))) -> 0 | U25: =IF($B$4="SW",'Wave Areas'!R118,(IF($B$4="N",'Wave Areas'!D81,(IF($B$4="NE",'Wave Areas'!R82,(IF($B$4="E",'Wave Areas'!D99,(IF($B$4="SE",'Wave Areas'!R100,(IF($B$4="S",'Wave Areas'!D117,(IF($B$4="W",'Wave Areas'!D135,(IF($B$4="NW",'Wave Areas'!R136,0))))))))))))))) -> 0 | V25: =IF($B$4="SW",'Wave Areas'!S118,(IF($B$4="N",'Wave Areas'!E81,(IF($B$4="NE",'Wave Areas'!S82,(IF($B$4="E",'Wave Areas'!E99,(IF($B$4="SE",'Wave Areas'!S100,(IF($B$4="S",'Wave Areas'!E117,(IF($B$4="W",'Wave Areas'!E135,(IF($B$4="NW",'Wave Areas'!S136,0))))))))))))))) -> 0 | W25: =IF($B$4="SW",'Wave Areas'!T118,(IF($B$4="N",'Wave Areas'!F81,(IF($B$4="NE",'Wave Areas'!T82,(IF($B$4="E",'Wave Areas'!F99,(IF($B$4="SE",'Wave Areas'!T100,(IF($B$4="S",'Wave Areas'!F117,(IF($B$4="W",'Wave Areas'!F135,(IF($B$4="NW",'Wave Areas'!T136,0))))))))))))))) -> 0 | X25: =IF($B$4="SW",'Wave Areas'!U118,(IF($B$4="N",'Wave Areas'!G81,(IF($B$4="NE",'Wave Areas'!U82,(IF($B$4="E",'Wave Areas'!G99,(IF($B$4="SE",'Wave Areas'!U100,(IF($B$4="S",'Wave Areas'!G117,(IF($B$4="W",'Wave Areas'!G135,(IF($B$4="NW",'Wave Areas'!U136,0))))))))))))))) -> 0 | Y25: =IF($B$4="SW",'Wave Areas'!V118,(IF($B$4="N",'Wave Areas'!H81,(IF($B$4="NE",'Wave Areas'!V82,(IF($B$4="E",'Wave Areas'!H99,(IF($B$4="SE",'Wave Areas'!V100,(IF($B$4="S",'Wave Areas'!H117,(IF($B$4="W",'Wave Areas'!H135,(IF($B$4="NW",'Wave Areas'!V136,0))))))))))))))) -> 0 | Z25: =IF($B$4="SW",'Wave Areas'!W118,(IF($B$4="N",'Wave Areas'!I81,(IF($B$4="NE",'Wave Areas'!W82,(IF($B$4="E",'Wave Areas'!I99,(IF($B$4="SE",'Wave Areas'!W100,(IF($B$4="S",'Wave Areas'!I117,(IF($B$4="W",'Wave Areas'!I135,(IF($B$4="NW",'Wave Areas'!W136,0))))))))))))))) -> 0 | AA25: =IF($B$4="SW",'Wave Areas'!X118,(IF($B$4="N",'Wave Areas'!J81,(IF($B$4="NE",'Wave Areas'!X82,(IF($B$4="E",'Wave Areas'!J99,(IF($B$4="SE",'Wave Areas'!X100,(IF($B$4="S",'Wave Areas'!J117,(IF($B$4="W",'Wave Areas'!J135,(IF($B$4="NW",'Wave Areas'!X136,0))))))))))))))) -> 0 | AB25: =IF($B$4="SW",'Wave Areas'!Y118,(IF($B$4="N",'Wave Areas'!K81,(IF($B$4="NE",'Wave Areas'!Y82,(IF($B$4="E",'Wave Areas'!K99,(IF($B$4="SE",'Wave Areas'!Y100,(IF($B$4="S",'Wave Areas'!K117,(IF($B$4="W",'Wave Areas'!K135,(IF($B$4="NW",'Wave Areas'!Y136,0))))))))))))))) -> 0 | AC25: =IF($B$4="SW",'Wave Areas'!Z118,(IF($B$4="N",'Wave Areas'!L81,(IF($B$4="NE",'Wave Areas'!Z82,(IF($B$4="E",'Wave Areas'!L99,(IF($B$4="SE",'Wave Areas'!Z100,(IF($B$4="S",'Wave Areas'!L117,(IF($B$4="W",'Wave Areas'!L135,(IF($B$4="NW",'Wave Areas'!Z136,0))))))))))))))) -> 0 | AE25: 3.5 | AS25: 3.5 | BE25: =SUM(AT25:BD25) -> 
A26: 25452.35156 | B26: 4.5 | C26: 0 | D26: =A26*($D$16) -> 177883.657 | E26: 211532.18 | F26: =$A26*($F$16/2) -> 118216.3836 | G26: 253641.1674 | H26: 265632.7185 | I26: 274162.0143 | J26: 280387.9529 | K26: 0 | L26: 0 | M26: 0 | N26: 1581456.074 | R26: 4.5 | S26: =IF($B$4="SW",'Wave Areas'!P119,(IF($B$4="N",'Wave Areas'!B82,(IF($B$4="NE",'Wave Areas'!P83,(IF($B$4="E",'Wave Areas'!B100,(IF($B$4="SE",'Wave Areas'!P101,(IF($B$4="S",'Wave Areas'!B118,(IF($B$4="W",'Wave Areas'!B136,(IF($B$4="NW",'Wave Areas'!P137,0))))))))))))))) -> 0 | T26: =IF($B$4="SW",'Wave Areas'!Q119,(IF($B$4="N",'Wave Areas'!C82,(IF($B$4="NE",'Wave Areas'!Q83,(IF($B$4="E",'Wave Areas'!C100,(IF($B$4="SE",'Wave Areas'!Q101,(IF($B$4="S",'Wave Areas'!C118,(IF($B$4="W",'Wave Areas'!C136,(IF($B$4="NW",'Wave Areas'!Q137,0))))))))))))))) -> 0 | U26: =IF($B$4="SW",'Wave Areas'!R119,(IF($B$4="N",'Wave Areas'!D82,(IF($B$4="NE",'Wave Areas'!R83,(IF($B$4="E",'Wave Areas'!D100,(IF($B$4="SE",'Wave Areas'!R101,(IF($B$4="S",'Wave Areas'!D118,(IF($B$4="W",'Wave Areas'!D136,(IF($B$4="NW",'Wave Areas'!R137,0))))))))))))))) -> 0 | V26: =IF($B$4="SW",'Wave Areas'!S119,(IF($B$4="N",'Wave Areas'!E82,(IF($B$4="NE",'Wave Areas'!S83,(IF($B$4="E",'Wave Areas'!E100,(IF($B$4="SE",'Wave Areas'!S101,(IF($B$4="S",'Wave Areas'!E118,(IF($B$4="W",'Wave Areas'!E136,(IF($B$4="NW",'Wave Areas'!S137,0))))))))))))))) -> 0 | W26: =IF($B$4="SW",'Wave Areas'!T119,(IF($B$4="N",'Wave Areas'!F82,(IF($B$4="NE",'Wave Areas'!T83,(IF($B$4="E",'Wave Areas'!F100,(IF($B$4="SE",'Wave Areas'!T101,(IF($B$4="S",'Wave Areas'!F118,(IF($B$4="W",'Wave Areas'!F136,(IF($B$4="NW",'Wave Areas'!T137,0))))))))))))))) -> 0 | X26: =IF($B$4="SW",'Wave Areas'!U119,(IF($B$4="N",'Wave Areas'!G82,(IF($B$4="NE",'Wave Areas'!U83,(IF($B$4="E",'Wave Areas'!G100,(IF($B$4="SE",'Wave Areas'!U101,(IF($B$4="S",'Wave Areas'!G118,(IF($B$4="W",'Wave Areas'!G136,(IF($B$4="NW",'Wave Areas'!U137,0))))))))))))))) -> 0 | Y26: =IF($B$4="SW",'Wave Areas'!V119,(IF($B$4="N",'Wave Areas'!H82,(IF($B$4="NE",'Wave Areas'!V83,(IF($B$4="E",'Wave Areas'!H100,(IF($B$4="SE",'Wave Areas'!V101,(IF($B$4="S",'Wave Areas'!H118,(IF($B$4="W",'Wave Areas'!H136,(IF($B$4="NW",'Wave Areas'!V137,0))))))))))))))) -> 0 | Z26: =IF($B$4="SW",'Wave Areas'!W119,(IF($B$4="N",'Wave Areas'!I82,(IF($B$4="NE",'Wave Areas'!W83,(IF($B$4="E",'Wave Areas'!I100,(IF($B$4="SE",'Wave Areas'!W101,(IF($B$4="S",'Wave Areas'!I118,(IF($B$4="W",'Wave Areas'!I136,(IF($B$4="NW",'Wave Areas'!W137,0))))))))))))))) -> 0 | AA26: =IF($B$4="SW",'Wave Areas'!X119,(IF($B$4="N",'Wave Areas'!J82,(IF($B$4="NE",'Wave Areas'!X83,(IF($B$4="E",'Wave Areas'!J100,(IF($B$4="SE",'Wave Areas'!X101,(IF($B$4="S",'Wave Areas'!J118,(IF($B$4="W",'Wave Areas'!J136,(IF($B$4="NW",'Wave Areas'!X137,0))))))))))))))) -> 0 | AB26: =IF($B$4="SW",'Wave Areas'!Y119,(IF($B$4="N",'Wave Areas'!K82,(IF($B$4="NE",'Wave Areas'!Y83,(IF($B$4="E",'Wave Areas'!K100,(IF($B$4="SE",'Wave Areas'!Y101,(IF($B$4="S",'Wave Areas'!K118,(IF($B$4="W",'Wave Areas'!K136,(IF($B$4="NW",'Wave Areas'!Y137,0))))))))))))))) -> 0 | AC26: =IF($B$4="SW",'Wave Areas'!Z119,(IF($B$4="N",'Wave Areas'!L82,(IF($B$4="NE",'Wave Areas'!Z83,(IF($B$4="E",'Wave Areas'!L100,(IF($B$4="SE",'Wave Areas'!Z101,(IF($B$4="S",'Wave Areas'!L118,(IF($B$4="W",'Wave Areas'!L136,(IF($B$4="NW",'Wave Areas'!Z137,0))))))))))))))) -> 0 | AE26: 4.5 | AS26: 4.5
A27: 38021.41406 | B27: 5.5 | C27: 0 | D27: 0 | E27: 315992.5158 | F27: =$A27*($F$16) -> 353189.6894 | G27: 378896.0649 | H27: 396809.3696 | I27: 409550.6633 | J27: 418851.1395 | K27: 0 | L27: 0 | M27: 0 | N27: 2273289.442 | R27: 5.5 | S27: =IF($B$4="SW",'Wave Areas'!P120,(IF($B$4="N",'Wave Areas'!B83,(IF($B$4="NE",'Wave Areas'!P84,(IF($B$4="E",'Wave Areas'!B101,(IF($B$4="SE",'Wave Areas'!P102,(IF($B$4="S",'Wave Areas'!B119,(IF($B$4="W",'Wave Areas'!B137,(IF($B$4="NW",'Wave Areas'!P138,0))))))))))))))) -> 0 | T27: =IF($B$4="SW",'Wave Areas'!Q120,(IF($B$4="N",'Wave Areas'!C83,(IF($B$4="NE",'Wave Areas'!Q84,(IF($B$4="E",'Wave Areas'!C101,(IF($B$4="SE",'Wave Areas'!Q102,(IF($B$4="S",'Wave Areas'!C119,(IF($B$4="W",'Wave Areas'!C137,(IF($B$4="NW",'Wave Areas'!Q138,0))))))))))))))) -> 0 | U27: =IF($B$4="SW",'Wave Areas'!R120,(IF($B$4="N",'Wave Areas'!D83,(IF($B$4="NE",'Wave Areas'!R84,(IF($B$4="E",'Wave Areas'!D101,(IF($B$4="SE",'Wave Areas'!R102,(IF($B$4="S",'Wave Areas'!D119,(IF($B$4="W",'Wave Areas'!D137,(IF($B$4="NW",'Wave Areas'!R138,0))))))))))))))) -> 0 | V27: =IF($B$4="SW",'Wave Areas'!S120,(IF($B$4="N",'Wave Areas'!E83,(IF($B$4="NE",'Wave Areas'!S84,(IF($B$4="E",'Wave Areas'!E101,(IF($B$4="SE",'Wave Areas'!S102,(IF($B$4="S",'Wave Areas'!E119,(IF($B$4="W",'Wave Areas'!E137,(IF($B$4="NW",'Wave Areas'!S138,0))))))))))))))) -> 0 | W27: =IF($B$4="SW",'Wave Areas'!T120,(IF($B$4="N",'Wave Areas'!F83,(IF($B$4="NE",'Wave Areas'!T84,(IF($B$4="E",'Wave Areas'!F101,(IF($B$4="SE",'Wave Areas'!T102,(IF($B$4="S",'Wave Areas'!F119,(IF($B$4="W",'Wave Areas'!F137,(IF($B$4="NW",'Wave Areas'!T138,0))))))))))))))) -> 0 | X27: =IF($B$4="SW",'Wave Areas'!U120,(IF($B$4="N",'Wave Areas'!G83,(IF($B$4="NE",'Wave Areas'!U84,(IF($B$4="E",'Wave Areas'!G101,(IF($B$4="SE",'Wave Areas'!U102,(IF($B$4="S",'Wave Areas'!G119,(IF($B$4="W",'Wave Areas'!G137,(IF($B$4="NW",'Wave Areas'!U138,0))))))))))))))) -> 0 | Y27: =IF($B$4="SW",'Wave Areas'!V120,(IF($B$4="N",'Wave Areas'!H83,(IF($B$4="NE",'Wave Areas'!V84,(IF($B$4="E",'Wave Areas'!H101,(IF($B$4="SE",'Wave Areas'!V102,(IF($B$4="S",'Wave Areas'!H119,(IF($B$4="W",'Wave Areas'!H137,(IF($B$4="NW",'Wave Areas'!V138,0))))))))))))))) -> 0 | Z27: =IF($B$4="SW",'Wave Areas'!W120,(IF($B$4="N",'Wave Areas'!I83,(IF($B$4="NE",'Wave Areas'!W84,(IF($B$4="E",'Wave Areas'!I101,(IF($B$4="SE",'Wave Areas'!W102,(IF($B$4="S",'Wave Areas'!I119,(IF($B$4="W",'Wave Areas'!I137,(IF($B$4="NW",'Wave Areas'!W138,0))))))))))))))) -> 0 | AA27: =IF($B$4="SW",'Wave Areas'!X120,(IF($B$4="N",'Wave Areas'!J83,(IF($B$4="NE",'Wave Areas'!X84,(IF($B$4="E",'Wave Areas'!J101,(IF($B$4="SE",'Wave Areas'!X102,(IF($B$4="S",'Wave Areas'!J119,(IF($B$4="W",'Wave Areas'!J137,(IF($B$4="NW",'Wave Areas'!X138,0))))))))))))))) -> 0 | AB27: =IF($B$4="SW",'Wave Areas'!Y120,(IF($B$4="N",'Wave Areas'!K83,(IF($B$4="NE",'Wave Areas'!Y84,(IF($B$4="E",'Wave Areas'!K101,(IF($B$4="SE",'Wave Areas'!Y102,(IF($B$4="S",'Wave Areas'!K119,(IF($B$4="W",'Wave Areas'!K137,(IF($B$4="NW",'Wave Areas'!Y138,0))))))))))))))) -> 0 | AC27: =IF($B$4="SW",'Wave Areas'!Z120,(IF($B$4="N",'Wave Areas'!L83,(IF($B$4="NE",'Wave Areas'!Z84,(IF($B$4="E",'Wave Areas'!L101,(IF($B$4="SE",'Wave Areas'!Z102,(IF($B$4="S",'Wave Areas'!L119,(IF($B$4="W",'Wave Areas'!L137,(IF($B$4="NW",'Wave Areas'!Z138,0))))))))))))))) -> 0 | AE27: 5.5 | AS27: 5.5 | AU27: =AH27/1004 ->  | AV27: =E27*AH27 -> 
A28: 53104.28906 | B28: 6.5 | C28: 0 | D28: 0 | E28: 441344.9187 | F28: =$A28*($F$16/2) -> 246648.998 | G28: 529201.9419 | H28: 554221.3509 | I28: 572017.0421 | J28: 585006.9634 | K28: 0 | L28: 0 | M28: 0 | N28: 2928441.215 | R28: 6.5 | S28: =IF($B$4="SW",'Wave Areas'!P121,(IF($B$4="N",'Wave Areas'!B84,(IF($B$4="NE",'Wave Areas'!P85,(IF($B$4="E",'Wave Areas'!B102,(IF($B$4="SE",'Wave Areas'!P103,(IF($B$4="S",'Wave Areas'!B120,(IF($B$4="W",'Wave Areas'!B138,(IF($B$4="NW",'Wave Areas'!P139,0))))))))))))))) -> 0 | T28: =IF($B$4="SW",'Wave Areas'!Q121,(IF($B$4="N",'Wave Areas'!C84,(IF($B$4="NE",'Wave Areas'!Q85,(IF($B$4="E",'Wave Areas'!C102,(IF($B$4="SE",'Wave Areas'!Q103,(IF($B$4="S",'Wave Areas'!C120,(IF($B$4="W",'Wave Areas'!C138,(IF($B$4="NW",'Wave Areas'!Q139,0))))))))))))))) -> 0 | U28: =IF($B$4="SW",'Wave Areas'!R121,(IF($B$4="N",'Wave Areas'!D84,(IF($B$4="NE",'Wave Areas'!R85,(IF($B$4="E",'Wave Areas'!D102,(IF($B$4="SE",'Wave Areas'!R103,(IF($B$4="S",'Wave Areas'!D120,(IF($B$4="W",'Wave Areas'!D138,(IF($B$4="NW",'Wave Areas'!R139,0))))))))))))))) -> 0 | V28: =IF($B$4="SW",'Wave Areas'!S121,(IF($B$4="N",'Wave Areas'!E84,(IF($B$4="NE",'Wave Areas'!S85,(IF($B$4="E",'Wave Areas'!E102,(IF($B$4="SE",'Wave Areas'!S103,(IF($B$4="S",'Wave Areas'!E120,(IF($B$4="W",'Wave Areas'!E138,(IF($B$4="NW",'Wave Areas'!S139,0))))))))))))))) -> 0 | W28: =IF($B$4="SW",'Wave Areas'!T121,(IF($B$4="N",'Wave Areas'!F84,(IF($B$4="NE",'Wave Areas'!T85,(IF($B$4="E",'Wave Areas'!F102,(IF($B$4="SE",'Wave Areas'!T103,(IF($B$4="S",'Wave Areas'!F120,(IF($B$4="W",'Wave Areas'!F138,(IF($B$4="NW",'Wave Areas'!T139,0))))))))))))))) -> 0 | X28: =IF($B$4="SW",'Wave Areas'!U121,(IF($B$4="N",'Wave Areas'!G84,(IF($B$4="NE",'Wave Areas'!U85,(IF($B$4="E",'Wave Areas'!G102,(IF($B$4="SE",'Wave Areas'!U103,(IF($B$4="S",'Wave Areas'!G120,(IF($B$4="W",'Wave Areas'!G138,(IF($B$4="NW",'Wave Areas'!U139,0))))))))))))))) -> 0 | Y28: =IF($B$4="SW",'Wave Areas'!V121,(IF($B$4="N",'Wave Areas'!H84,(IF($B$4="NE",'Wave Areas'!V85,(IF($B$4="E",'Wave Areas'!H102,(IF($B$4="SE",'Wave Areas'!V103,(IF($B$4="S",'Wave Areas'!H120,(IF($B$4="W",'Wave Areas'!H138,(IF($B$4="NW",'Wave Areas'!V139,0))))))))))))))) -> 0 | Z28: =IF($B$4="SW",'Wave Areas'!W121,(IF($B$4="N",'Wave Areas'!I84,(IF($B$4="NE",'Wave Areas'!W85,(IF($B$4="E",'Wave Areas'!I102,(IF($B$4="SE",'Wave Areas'!W103,(IF($B$4="S",'Wave Areas'!I120,(IF($B$4="W",'Wave Areas'!I138,(IF($B$4="NW",'Wave Areas'!W139,0))))))))))))))) -> 0 | AA28: =IF($B$4="SW",'Wave Areas'!X121,(IF($B$4="N",'Wave Areas'!J84,(IF($B$4="NE",'Wave Areas'!X85,(IF($B$4="E",'Wave Areas'!J102,(IF($B$4="SE",'Wave Areas'!X103,(IF($B$4="S",'Wave Areas'!J120,(IF($B$4="W",'Wave Areas'!J138,(IF($B$4="NW",'Wave Areas'!X139,0))))))))))))))) -> 0 | AB28: =IF($B$4="SW",'Wave Areas'!Y121,(IF($B$4="N",'Wave Areas'!K84,(IF($B$4="NE",'Wave Areas'!Y85,(IF($B$4="E",'Wave Areas'!K102,(IF($B$4="SE",'Wave Areas'!Y103,(IF($B$4="S",'Wave Areas'!K120,(IF($B$4="W",'Wave Areas'!K138,(IF($B$4="NW",'Wave Areas'!Y139,0))))))))))))))) -> 0 | AC28: =IF($B$4="SW",'Wave Areas'!Z121,(IF($B$4="N",'Wave Areas'!L84,(IF($B$4="NE",'Wave Areas'!Z85,(IF($B$4="E",'Wave Areas'!L102,(IF($B$4="SE",'Wave Areas'!Z103,(IF($B$4="S",'Wave Areas'!L120,(IF($B$4="W",'Wave Areas'!L138,(IF($B$4="NW",'Wave Areas'!Z139,0))))))))))))))) -> 0 | AE28: 6.5 | AS28: 6.5
A29: 70700.97656 | B29: 7.5 | C29: 0 | D29: 0 | E29: 0 | F29: =$A29*($F$16) -> 656757.6869 | G29: 704558.7984 | H29: 737868.6625 | I29: 761561.1507 | J29: 0 | K29: 0 | L29: 0 | M29: 0 | N29: 2860746.298 | R29: 7.5 | S29: =IF($B$4="SW",'Wave Areas'!P122,(IF($B$4="N",'Wave Areas'!B85,(IF($B$4="NE",'Wave Areas'!P86,(IF($B$4="E",'Wave Areas'!B103,(IF($B$4="SE",'Wave Areas'!P104,(IF($B$4="S",'Wave Areas'!B121,(IF($B$4="W",'Wave Areas'!B139,(IF($B$4="NW",'Wave Areas'!P140,0))))))))))))))) -> 0 | T29: =IF($B$4="SW",'Wave Areas'!Q122,(IF($B$4="N",'Wave Areas'!C85,(IF($B$4="NE",'Wave Areas'!Q86,(IF($B$4="E",'Wave Areas'!C103,(IF($B$4="SE",'Wave Areas'!Q104,(IF($B$4="S",'Wave Areas'!C121,(IF($B$4="W",'Wave Areas'!C139,(IF($B$4="NW",'Wave Areas'!Q140,0))))))))))))))) -> 0 | U29: =IF($B$4="SW",'Wave Areas'!R122,(IF($B$4="N",'Wave Areas'!D85,(IF($B$4="NE",'Wave Areas'!R86,(IF($B$4="E",'Wave Areas'!D103,(IF($B$4="SE",'Wave Areas'!R104,(IF($B$4="S",'Wave Areas'!D121,(IF($B$4="W",'Wave Areas'!D139,(IF($B$4="NW",'Wave Areas'!R140,0))))))))))))))) -> 0 | V29: =IF($B$4="SW",'Wave Areas'!S122,(IF($B$4="N",'Wave Areas'!E85,(IF($B$4="NE",'Wave Areas'!S86,(IF($B$4="E",'Wave Areas'!E103,(IF($B$4="SE",'Wave Areas'!S104,(IF($B$4="S",'Wave Areas'!E121,(IF($B$4="W",'Wave Areas'!E139,(IF($B$4="NW",'Wave Areas'!S140,0))))))))))))))) -> 0 | W29: =IF($B$4="SW",'Wave Areas'!T122,(IF($B$4="N",'Wave Areas'!F85,(IF($B$4="NE",'Wave Areas'!T86,(IF($B$4="E",'Wave Areas'!F103,(IF($B$4="SE",'Wave Areas'!T104,(IF($B$4="S",'Wave Areas'!F121,(IF($B$4="W",'Wave Areas'!F139,(IF($B$4="NW",'Wave Areas'!T140,0))))))))))))))) -> 0 | X29: =IF($B$4="SW",'Wave Areas'!U122,(IF($B$4="N",'Wave Areas'!G85,(IF($B$4="NE",'Wave Areas'!U86,(IF($B$4="E",'Wave Areas'!G103,(IF($B$4="SE",'Wave Areas'!U104,(IF($B$4="S",'Wave Areas'!G121,(IF($B$4="W",'Wave Areas'!G139,(IF($B$4="NW",'Wave Areas'!U140,0))))))))))))))) -> 0 | Y29: =IF($B$4="SW",'Wave Areas'!V122,(IF($B$4="N",'Wave Areas'!H85,(IF($B$4="NE",'Wave Areas'!V86,(IF($B$4="E",'Wave Areas'!H103,(IF($B$4="SE",'Wave Areas'!V104,(IF($B$4="S",'Wave Areas'!H121,(IF($B$4="W",'Wave Areas'!H139,(IF($B$4="NW",'Wave Areas'!V140,0))))))))))))))) -> 0 | Z29: =IF($B$4="SW",'Wave Areas'!W122,(IF($B$4="N",'Wave Areas'!I85,(IF($B$4="NE",'Wave Areas'!W86,(IF($B$4="E",'Wave Areas'!I103,(IF($B$4="SE",'Wave Areas'!W104,(IF($B$4="S",'Wave Areas'!I121,(IF($B$4="W",'Wave Areas'!I139,(IF($B$4="NW",'Wave Areas'!W140,0))))))))))))))) -> 0 | AA29: =IF($B$4="SW",'Wave Areas'!X122,(IF($B$4="N",'Wave Areas'!J85,(IF($B$4="NE",'Wave Areas'!X86,(IF($B$4="E",'Wave Areas'!J103,(IF($B$4="SE",'Wave Areas'!X104,(IF($B$4="S",'Wave Areas'!J121,(IF($B$4="W",'Wave Areas'!J139,(IF($B$4="NW",'Wave Areas'!X140,0))))))))))))))) -> 0 | AB29: =IF($B$4="SW",'Wave Areas'!Y122,(IF($B$4="N",'Wave Areas'!K85,(IF($B$4="NE",'Wave Areas'!Y86,(IF($B$4="E",'Wave Areas'!K103,(IF($B$4="SE",'Wave Areas'!Y104,(IF($B$4="S",'Wave Areas'!K121,(IF($B$4="W",'Wave Areas'!K139,(IF($B$4="NW",'Wave Areas'!Y140,0))))))))))))))) -> 0 | AC29: =IF($B$4="SW",'Wave Areas'!Z122,(IF($B$4="N",'Wave Areas'!L85,(IF($B$4="NE",'Wave Areas'!Z86,(IF($B$4="E",'Wave Areas'!L103,(IF($B$4="SE",'Wave Areas'!Z104,(IF($B$4="S",'Wave Areas'!L121,(IF($B$4="W",'Wave Areas'!L139,(IF($B$4="NW",'Wave Areas'!Z140,0))))))))))))))) -> 0 | AE29: 7.5 | AS29: 7.5 | AV29: =AI29/1004 ->  | AW29: =F29*AI29 ->  | BA29: =AN29/1004 -> 
A30: 90811.47656 | B30: 8.5 | C30: 0 | D30: 0 | E30: 0 | F30: =$A30*($F$16) -> 843568.7623 | G30: 904966.6344 | H30: 947751.3042 | I30: 978182.9891 | J30: 0 | K30: 0 | L30: 0 | M30: 0 | N30: 3674469.69 | R30: 8.5 | S30: =IF($B$4="SW",'Wave Areas'!P123,(IF($B$4="N",'Wave Areas'!B86,(IF($B$4="NE",'Wave Areas'!P87,(IF($B$4="E",'Wave Areas'!B104,(IF($B$4="SE",'Wave Areas'!P105,(IF($B$4="S",'Wave Areas'!B122,(IF($B$4="W",'Wave Areas'!B140,(IF($B$4="NW",'Wave Areas'!P141,0))))))))))))))) -> 0 | T30: =IF($B$4="SW",'Wave Areas'!Q123,(IF($B$4="N",'Wave Areas'!C86,(IF($B$4="NE",'Wave Areas'!Q87,(IF($B$4="E",'Wave Areas'!C104,(IF($B$4="SE",'Wave Areas'!Q105,(IF($B$4="S",'Wave Areas'!C122,(IF($B$4="W",'Wave Areas'!C140,(IF($B$4="NW",'Wave Areas'!Q141,0))))))))))))))) -> 0 | U30: =IF($B$4="SW",'Wave Areas'!R123,(IF($B$4="N",'Wave Areas'!D86,(IF($B$4="NE",'Wave Areas'!R87,(IF($B$4="E",'Wave Areas'!D104,(IF($B$4="SE",'Wave Areas'!R105,(IF($B$4="S",'Wave Areas'!D122,(IF($B$4="W",'Wave Areas'!D140,(IF($B$4="NW",'Wave Areas'!R141,0))))))))))))))) -> 0 | V30: =IF($B$4="SW",'Wave Areas'!S123,(IF($B$4="N",'Wave Areas'!E86,(IF($B$4="NE",'Wave Areas'!S87,(IF($B$4="E",'Wave Areas'!E104,(IF($B$4="SE",'Wave Areas'!S105,(IF($B$4="S",'Wave Areas'!E122,(IF($B$4="W",'Wave Areas'!E140,(IF($B$4="NW",'Wave Areas'!S141,0))))))))))))))) -> 0 | W30: =IF($B$4="SW",'Wave Areas'!T123,(IF($B$4="N",'Wave Areas'!F86,(IF($B$4="NE",'Wave Areas'!T87,(IF($B$4="E",'Wave Areas'!F104,(IF($B$4="SE",'Wave Areas'!T105,(IF($B$4="S",'Wave Areas'!F122,(IF($B$4="W",'Wave Areas'!F140,(IF($B$4="NW",'Wave Areas'!T141,0))))))))))))))) -> 0 | X30: =IF($B$4="SW",'Wave Areas'!U123,(IF($B$4="N",'Wave Areas'!G86,(IF($B$4="NE",'Wave Areas'!U87,(IF($B$4="E",'Wave Areas'!G104,(IF($B$4="SE",'Wave Areas'!U105,(IF($B$4="S",'Wave Areas'!G122,(IF($B$4="W",'Wave Areas'!G140,(IF($B$4="NW",'Wave Areas'!U141,0))))))))))))))) -> 0 | Y30: =IF($B$4="SW",'Wave Areas'!V123,(IF($B$4="N",'Wave Areas'!H86,(IF($B$4="NE",'Wave Areas'!V87,(IF($B$4="E",'Wave Areas'!H104,(IF($B$4="SE",'Wave Areas'!V105,(IF($B$4="S",'Wave Areas'!H122,(IF($B$4="W",'Wave Areas'!H140,(IF($B$4="NW",'Wave Areas'!V141,0))))))))))))))) -> 0 | Z30: =IF($B$4="SW",'Wave Areas'!W123,(IF($B$4="N",'Wave Areas'!I86,(IF($B$4="NE",'Wave Areas'!W87,(IF($B$4="E",'Wave Areas'!I104,(IF($B$4="SE",'Wave Areas'!W105,(IF($B$4="S",'Wave Areas'!I122,(IF($B$4="W",'Wave Areas'!I140,(IF($B$4="NW",'Wave Areas'!W141,0))))))))))))))) -> 0 | AA30: =IF($B$4="SW",'Wave Areas'!X123,(IF($B$4="N",'Wave Areas'!J86,(IF($B$4="NE",'Wave Areas'!X87,(IF($B$4="E",'Wave Areas'!J104,(IF($B$4="SE",'Wave Areas'!X105,(IF($B$4="S",'Wave Areas'!J122,(IF($B$4="W",'Wave Areas'!J140,(IF($B$4="NW",'Wave Areas'!X141,0))))))))))))))) -> 0 | AB30: =IF($B$4="SW",'Wave Areas'!Y123,(IF($B$4="N",'Wave Areas'!K86,(IF($B$4="NE",'Wave Areas'!Y87,(IF($B$4="E",'Wave Areas'!K104,(IF($B$4="SE",'Wave Areas'!Y105,(IF($B$4="S",'Wave Areas'!K122,(IF($B$4="W",'Wave Areas'!K140,(IF($B$4="NW",'Wave Areas'!Y141,0))))))))))))))) -> 0 | AC30: =IF($B$4="SW",'Wave Areas'!Z123,(IF($B$4="N",'Wave Areas'!L86,(IF($B$4="NE",'Wave Areas'!Z87,(IF($B$4="E",'Wave Areas'!L104,(IF($B$4="SE",'Wave Areas'!Z105,(IF($B$4="S",'Wave Areas'!L122,(IF($B$4="W",'Wave Areas'!L140,(IF($B$4="NW",'Wave Areas'!Z141,0))))))))))))))) -> 0 | AE30: 8.5 | AS30: 8.5 | AV30: =AI30/1004 ->  | BA30: =AN30/1004 -> 
A31: 113435.7891 | B31: 9.5 | C31: 0 | D31: 0 | E31: 0 | F31: 0 | G31: 1130425.45 | H31: 1183869.276 | I31: 0 | J31: 0 | K31: 0 | L31: 0 | M31: 0 | N31: 2314294.726 | R31: 9.5 | S31: =IF($B$4="SW",'Wave Areas'!P124,(IF($B$4="N",'Wave Areas'!B87,(IF($B$4="NE",'Wave Areas'!P88,(IF($B$4="E",'Wave Areas'!B105,(IF($B$4="SE",'Wave Areas'!P106,(IF($B$4="S",'Wave Areas'!B123,(IF($B$4="W",'Wave Areas'!B141,(IF($B$4="NW",'Wave Areas'!P142,0))))))))))))))) -> 0 | T31: =IF($B$4="SW",'Wave Areas'!Q124,(IF($B$4="N",'Wave Areas'!C87,(IF($B$4="NE",'Wave Areas'!Q88,(IF($B$4="E",'Wave Areas'!C105,(IF($B$4="SE",'Wave Areas'!Q106,(IF($B$4="S",'Wave Areas'!C123,(IF($B$4="W",'Wave Areas'!C141,(IF($B$4="NW",'Wave Areas'!Q142,0))))))))))))))) -> 0 | U31: =IF($B$4="SW",'Wave Areas'!R124,(IF($B$4="N",'Wave Areas'!D87,(IF($B$4="NE",'Wave Areas'!R88,(IF($B$4="E",'Wave Areas'!D105,(IF($B$4="SE",'Wave Areas'!R106,(IF($B$4="S",'Wave Areas'!D123,(IF($B$4="W",'Wave Areas'!D141,(IF($B$4="NW",'Wave Areas'!R142,0))))))))))))))) -> 0 | V31: =IF($B$4="SW",'Wave Areas'!S124,(IF($B$4="N",'Wave Areas'!E87,(IF($B$4="NE",'Wave Areas'!S88,(IF($B$4="E",'Wave Areas'!E105,(IF($B$4="SE",'Wave Areas'!S106,(IF($B$4="S",'Wave Areas'!E123,(IF($B$4="W",'Wave Areas'!E141,(IF($B$4="NW",'Wave Areas'!S142,0))))))))))))))) -> 0 | W31: =IF($B$4="SW",'Wave Areas'!T124,(IF($B$4="N",'Wave Areas'!F87,(IF($B$4="NE",'Wave Areas'!T88,(IF($B$4="E",'Wave Areas'!F105,(IF($B$4="SE",'Wave Areas'!T106,(IF($B$4="S",'Wave Areas'!F123,(IF($B$4="W",'Wave Areas'!F141,(IF($B$4="NW",'Wave Areas'!T142,0))))))))))))))) -> 0 | X31: =IF($B$4="SW",'Wave Areas'!U124,(IF($B$4="N",'Wave Areas'!G87,(IF($B$4="NE",'Wave Areas'!U88,(IF($B$4="E",'Wave Areas'!G105,(IF($B$4="SE",'Wave Areas'!U106,(IF($B$4="S",'Wave Areas'!G123,(IF($B$4="W",'Wave Areas'!G141,(IF($B$4="NW",'Wave Areas'!U142,0))))))))))))))) -> 0 | Y31: =IF($B$4="SW",'Wave Areas'!V124,(IF($B$4="N",'Wave Areas'!H87,(IF($B$4="NE",'Wave Areas'!V88,(IF($B$4="E",'Wave Areas'!H105,(IF($B$4="SE",'Wave Areas'!V106,(IF($B$4="S",'Wave Areas'!H123,(IF($B$4="W",'Wave Areas'!H141,(IF($B$4="NW",'Wave Areas'!V142,0))))))))))))))) -> 0 | Z31: =IF($B$4="SW",'Wave Areas'!W124,(IF($B$4="N",'Wave Areas'!I87,(IF($B$4="NE",'Wave Areas'!W88,(IF($B$4="E",'Wave Areas'!I105,(IF($B$4="SE",'Wave Areas'!W106,(IF($B$4="S",'Wave Areas'!I123,(IF($B$4="W",'Wave Areas'!I141,(IF($B$4="NW",'Wave Areas'!W142,0))))))))))))))) -> 0 | AA31: =IF($B$4="SW",'Wave Areas'!X124,(IF($B$4="N",'Wave Areas'!J87,(IF($B$4="NE",'Wave Areas'!X88,(IF($B$4="E",'Wave Areas'!J105,(IF($B$4="SE",'Wave Areas'!X106,(IF($B$4="S",'Wave Areas'!J123,(IF($B$4="W",'Wave Areas'!J141,(IF($B$4="NW",'Wave Areas'!X142,0))))))))))))))) -> 0 | AB31: =IF($B$4="SW",'Wave Areas'!Y124,(IF($B$4="N",'Wave Areas'!K87,(IF($B$4="NE",'Wave Areas'!Y88,(IF($B$4="E",'Wave Areas'!K105,(IF($B$4="SE",'Wave Areas'!Y106,(IF($B$4="S",'Wave Areas'!K123,(IF($B$4="W",'Wave Areas'!K141,(IF($B$4="NW",'Wave Areas'!Y142,0))))))))))))))) -> 0 | AC31: =IF($B$4="SW",'Wave Areas'!Z124,(IF($B$4="N",'Wave Areas'!L87,(IF($B$4="NE",'Wave Areas'!Z88,(IF($B$4="E",'Wave Areas'!L105,(IF($B$4="SE",'Wave Areas'!Z106,(IF($B$4="S",'Wave Areas'!L123,(IF($B$4="W",'Wave Areas'!L141,(IF($B$4="NW",'Wave Areas'!Z142,0))))))))))))))) -> 0 | AE31: 9.5 | AS31: 9.5 | AV31: =AI31/1004 ->  | AW31: =AJ31/1004 ->  | AX31: =G31*AJ31 ->  | AY31: =H31*AK31 ->  | AZ31: =AM31/1004 ->  | BA31: =AN31/1004 -> 
A32: 138573.9141 | B32: 10.5 | C32: 0 | D32: 0 | E32: 0 | F32: 0 | G32: 0 | H32: 0 | I32: 0 | J32: 0 | K32: 0 | L32: 0 | M32: 0 | N32: 0 | R32: 10.5 | S32: =IF($B$4="SW",'Wave Areas'!P125,(IF($B$4="N",'Wave Areas'!B88,(IF($B$4="NE",'Wave Areas'!P89,(IF($B$4="E",'Wave Areas'!B106,(IF($B$4="SE",'Wave Areas'!P107,(IF($B$4="S",'Wave Areas'!B124,(IF($B$4="W",'Wave Areas'!B142,(IF($B$4="NW",'Wave Areas'!P143,0))))))))))))))) -> 0 | T32: =IF($B$4="SW",'Wave Areas'!Q125,(IF($B$4="N",'Wave Areas'!C88,(IF($B$4="NE",'Wave Areas'!Q89,(IF($B$4="E",'Wave Areas'!C106,(IF($B$4="SE",'Wave Areas'!Q107,(IF($B$4="S",'Wave Areas'!C124,(IF($B$4="W",'Wave Areas'!C142,(IF($B$4="NW",'Wave Areas'!Q143,0))))))))))))))) -> 0 | U32: =IF($B$4="SW",'Wave Areas'!R125,(IF($B$4="N",'Wave Areas'!D88,(IF($B$4="NE",'Wave Areas'!R89,(IF($B$4="E",'Wave Areas'!D106,(IF($B$4="SE",'Wave Areas'!R107,(IF($B$4="S",'Wave Areas'!D124,(IF($B$4="W",'Wave Areas'!D142,(IF($B$4="NW",'Wave Areas'!R143,0))))))))))))))) -> 0 | V32: =IF($B$4="SW",'Wave Areas'!S125,(IF($B$4="N",'Wave Areas'!E88,(IF($B$4="NE",'Wave Areas'!S89,(IF($B$4="E",'Wave Areas'!E106,(IF($B$4="SE",'Wave Areas'!S107,(IF($B$4="S",'Wave Areas'!E124,(IF($B$4="W",'Wave Areas'!E142,(IF($B$4="NW",'Wave Areas'!S143,0))))))))))))))) -> 0 | W32: =IF($B$4="SW",'Wave Areas'!T125,(IF($B$4="N",'Wave Areas'!F88,(IF($B$4="NE",'Wave Areas'!T89,(IF($B$4="E",'Wave Areas'!F106,(IF($B$4="SE",'Wave Areas'!T107,(IF($B$4="S",'Wave Areas'!F124,(IF($B$4="W",'Wave Areas'!F142,(IF($B$4="NW",'Wave Areas'!T143,0))))))))))))))) -> 0 | X32: =IF($B$4="SW",'Wave Areas'!U125,(IF($B$4="N",'Wave Areas'!G88,(IF($B$4="NE",'Wave Areas'!U89,(IF($B$4="E",'Wave Areas'!G106,(IF($B$4="SE",'Wave Areas'!U107,(IF($B$4="S",'Wave Areas'!G124,(IF($B$4="W",'Wave Areas'!G142,(IF($B$4="NW",'Wave Areas'!U143,0))))))))))))))) -> 0 | Y32: =IF($B$4="SW",'Wave Areas'!V125,(IF($B$4="N",'Wave Areas'!H88,(IF($B$4="NE",'Wave Areas'!V89,(IF($B$4="E",'Wave Areas'!H106,(IF($B$4="SE",'Wave Areas'!V107,(IF($B$4="S",'Wave Areas'!H124,(IF($B$4="W",'Wave Areas'!H142,(IF($B$4="NW",'Wave Areas'!V143,0))))))))))))))) -> 0 | Z32: =IF($B$4="SW",'Wave Areas'!W125,(IF($B$4="N",'Wave Areas'!I88,(IF($B$4="NE",'Wave Areas'!W89,(IF($B$4="E",'Wave Areas'!I106,(IF($B$4="SE",'Wave Areas'!W107,(IF($B$4="S",'Wave Areas'!I124,(IF($B$4="W",'Wave Areas'!I142,(IF($B$4="NW",'Wave Areas'!W143,0))))))))))))))) -> 0 | AA32: =IF($B$4="SW",'Wave Areas'!X125,(IF($B$4="N",'Wave Areas'!J88,(IF($B$4="NE",'Wave Areas'!X89,(IF($B$4="E",'Wave Areas'!J106,(IF($B$4="SE",'Wave Areas'!X107,(IF($B$4="S",'Wave Areas'!J124,(IF($B$4="W",'Wave Areas'!J142,(IF($B$4="NW",'Wave Areas'!X143,0))))))))))))))) -> 0 | AB32: =IF($B$4="SW",'Wave Areas'!Y125,(IF($B$4="N",'Wave Areas'!K88,(IF($B$4="NE",'Wave Areas'!Y89,(IF($B$4="E",'Wave Areas'!K106,(IF($B$4="SE",'Wave Areas'!Y107,(IF($B$4="S",'Wave Areas'!K124,(IF($B$4="W",'Wave Areas'!K142,(IF($B$4="NW",'Wave Areas'!Y143,0))))))))))))))) -> 0 | AC32: =IF($B$4="SW",'Wave Areas'!Z125,(IF($B$4="N",'Wave Areas'!L88,(IF($B$4="NE",'Wave Areas'!Z89,(IF($B$4="E",'Wave Areas'!L106,(IF($B$4="SE",'Wave Areas'!Z107,(IF($B$4="S",'Wave Areas'!L124,(IF($B$4="W",'Wave Areas'!L142,(IF($B$4="NW",'Wave Areas'!Z143,0))))))))))))))) -> 0 | AE32: 10.5 | AF32: =S32/($AC$33) ->  | AS32: 10.5 | AV32: =AI32/1004 ->  | AW32: =AJ32/1004 ->  | AX32: =AK32/1004 ->  | AY32: =AL32/1004 ->  | AZ32: =AM32/1004 ->  | BA32: =AN32/1004 -> 
A33: Sub Totals | C33: =SUM(C22:C32) -> 17165.74821 | D33: 362355.5977 | E33: 1188236.32 | F33: 2463571.057 | G33: 4164725.342 | H33: 4361623.649 | I33: 3276405.306 | J33: 1571557.168 | K33: 0 | L33: 0 | M33: 0 | N33: =SUM(N22:N31) -> 17405640.19 | O33: Total | R33: Total Occurences | AC33: =SUM(S22:AC32) -> 0 | AS33: Sub Totals | AT33: =SUM(AT22:AT32) ->  | BE33: =SUM(BE22:BE31) ->  | BF33: Total
BE35: Min | BF35: Max
BB36: Relevant Wave Heights | BE36: =IF((AND($B$6>AS22,$B$6<AS23)),AS22,(IF((AND($B$6>AS23,$B$6<AS24)),AS23,(IF((AND($B$6>AS24,$B$6<AS25)),AS24,(IF((AND($B$6>AS25,$B$6<AS26)),AS25,(IF((AND($B$6>AS26,$B$6<AS27)),AS26,(IF((AND($B$6>AS27,$B$6<AS28)),AS27,(IF((AND($B$6>AS28,$B$6<AS29)),AS28,(IF((AND($B$6>AS29,$B$6<AS30)),AS29,(IF((AND($B$6>AS30,$B$6<AS31)),AS30,(IF((AND($B$6>AS31,$B$6<AS32)),AS31,(IF($B$6>AS32,AS32,""))))))))))))))))))))) -> 10.5 | BF36: =IF((AND($B$6>AS22,$B$6<AS23)),AS23,(IF((AND($B$6>AS23,$B$6<AS24)),AS24,(IF((AND($B$6>AS24,$B$6<AS25)),AS25,(IF((AND($B$6>AS25,$B$6<AS26)),AS26,(IF((AND($B$6>AS26,$B$6<AS27)),AS27,(IF((AND($B$6>AS27,$B$6<AS28)),AS28,(IF((AND($B$6>AS28,$B$6<AS29)),AS29,(IF((AND($B$6>AS29,$B$6<AS30)),AS30,(IF((AND($B$6>AS30,$B$6<AS31)),AS31,(IF((AND($B$6>AS31,$B$6<AS32)),AS32,(IF($B$6>AS32,AS32,""))))))))))))))))))))) -> 10.5
BB37: Relevant Power (kW/m) | BE37: =(((($B$6-BE36)*((VLOOKUP(BF36,AS22:BE32,13,FALSE))-(VLOOKUP(BE36,AS22:BE32,13,FALSE))))/(BF36-BE36))+(VLOOKUP(BE36,AS22:BE32,13,FALSE)))*0.001 -> 
A39: Deep
A41: Wave Velocity C | B41: (m/s) | C41: =(C42/C43) -> 5.034457478 | D41: 6.4728739 | E41: 7.911290323 | F41: 9.349706745 | G41: 10.78812317 | H41: 12.22653959 | I41: 13.66495601 | J41: 15.10337243 | K41: 16.54178886 | L41: 17.98020528 | M41: 19.4186217
A42: Wave Length (λ) | B42: (m) | C42: =(9.81/(2*3.41))*C43^2 -> 17.62060117 | D42: 29.12793255 | E42: 43.51209677 | F42: 60.77309384 | G42: 80.91092375 | H42: 103.9255865 | I42: 129.8170821 | J42: 158.5854106 | K42: 190.2305718 | L42: 224.752566 | M42: 262.151393
A43: Wave Period (T) | B43: (s) | C43: 3.5 | D43: 4.5 | E43: 5.5 | F43: 6.5 | G43: 7.5 | H43: 8.5 | I43: 9.5 | J43: 10.5 | K43: 11.5 | L43: 12.5 | M43: 13.5
A45: Energy | B45: Wave Height (Hs) | C45: Power | N45: Total Power | R45: North Sea Area 10 | AE45: North Sea Area 10 | AS45: North Sea Area 10
A46: (J) | B46: (m) | C46: (W/m) | N46: (W/m) | R46: Number of Occurences | AE46: Percentage of Occurences | AS46: Annual Power (W/m) | BE46: Total Power
A47: =(1025*9.81*B47^2)/8 -> 314.2265625 | B47: 0.5 | C47: =$A47*($C$41)/2 -> 790.9801337 | D47: =$A47*($D$41)/2 -> 1016.974458 | E47: =$A47*($E$41)/2 -> 1242.968782 | F47: =$A47*($F$41)/2 -> 1468.963105 | G47: =$A47*($G$41)/2 -> 1694.957429 | H47: =$A47*($H$41)/2 -> 1920.951753 | I47: 0 | J47: 0 | K47: 0 | L47: 0 | M47: 0 | N47: =SUM(C47:M47) -> 8135.795661 | R47: Hs T | S47: 3.5 | T47: 4.5 | U47: 5.5 | V47: 6.5 | W47: 7.5 | X47: 8.5 | Y47: 9.5 | Z47: 10.5 | AA47: 11.5 | AB47: 12.5 | AC47: 13.5 | AE47: Hs T | AF47: 3.5 | AG47: 4.5 | AH47: 5.5 | AI47: 6.5 | AJ47: 7.5 | AK47: 8.5 | AL47: 9.5 | AM47: 10.5 | AN47: 11.5 | AO47: 12.5 | AP47: 13.5 | AQ47: Availability | AS47: Hs T | AT47: 3.5 | AU47: 4.5 | AV47: 5.5 | AW47: 6.5 | AX47: 7.5 | AY47: 8.5 | AZ47: 9.5 | BA47: 10.5 | BB47: 11.5 | BC47: 12.5 | BD47: 13.5 | BE47: (W/m)
A48: 2828.039062 | B48: 1.5 | C48: =$B48*($C$16/2) -> 4.097142857 | D48: =$A48*($D$41)/2 -> 9152.770118 | E48: 11186.71903 | F48: 13220.66795 | G48: 15254.61686 | H48: =$A48*($G$41)/2 -> 15254.61686 | I48: =$A48*($I$41)/2 -> 19322.51469 | J48: =$A48*($J$41)/2 -> 21356.46361 | K48: 0 | L48: 0 | M48: 0 | N48: 104752.4663 | R48: 0.5 | S48: =IF($B$4="SW",'Wave Areas'!P115,(IF($B$4="N",'Wave Areas'!B78,(IF($B$4="NE",'Wave Areas'!P79,(IF($B$4="E",'Wave Areas'!B96,(IF($B$4="SE",'Wave Areas'!P97,(IF($B$4="S",'Wave Areas'!B114,(IF($B$4="W",'Wave Areas'!B132,(IF($B$4="NW",'Wave Areas'!P133,0))))))))))))))) -> 0 | T48: =IF($B$4="SW",'Wave Areas'!Q115,(IF($B$4="N",'Wave Areas'!C78,(IF($B$4="NE",'Wave Areas'!Q79,(IF($B$4="E",'Wave Areas'!C96,(IF($B$4="SE",'Wave Areas'!Q97,(IF($B$4="S",'Wave Areas'!C114,(IF($B$4="W",'Wave Areas'!C132,(IF($B$4="NW",'Wave Areas'!Q133,0))))))))))))))) -> 0 | U48: =IF($B$4="SW",'Wave Areas'!R115,(IF($B$4="N",'Wave Areas'!D78,(IF($B$4="NE",'Wave Areas'!R79,(IF($B$4="E",'Wave Areas'!D96,(IF($B$4="SE",'Wave Areas'!R97,(IF($B$4="S",'Wave Areas'!D114,(IF($B$4="W",'Wave Areas'!D132,(IF($B$4="NW",'Wave Areas'!R133,0))))))))))))))) -> 0 | V48: =IF($B$4="SW",'Wave Areas'!S115,(IF($B$4="N",'Wave Areas'!E78,(IF($B$4="NE",'Wave Areas'!S79,(IF($B$4="E",'Wave Areas'!E96,(IF($B$4="SE",'Wave Areas'!S97,(IF($B$4="S",'Wave Areas'!E114,(IF($B$4="W",'Wave Areas'!E132,(IF($B$4="NW",'Wave Areas'!S133,0))))))))))))))) -> 0 | W48: =IF($B$4="SW",'Wave Areas'!T115,(IF($B$4="N",'Wave Areas'!F78,(IF($B$4="NE",'Wave Areas'!T79,(IF($B$4="E",'Wave Areas'!F96,(IF($B$4="SE",'Wave Areas'!T97,(IF($B$4="S",'Wave Areas'!F114,(IF($B$4="W",'Wave Areas'!F132,(IF($B$4="NW",'Wave Areas'!T133,0))))))))))))))) -> 0 | X48: =IF($B$4="SW",'Wave Areas'!U115,(IF($B$4="N",'Wave Areas'!G78,(IF($B$4="NE",'Wave Areas'!U79,(IF($B$4="E",'Wave Areas'!G96,(IF($B$4="SE",'Wave Areas'!U97,(IF($B$4="S",'Wave Areas'!G114,(IF($B$4="W",'Wave Areas'!G132,(IF($B$4="NW",'Wave Areas'!U133,0))))))))))))))) -> 0 | Y48: =IF($B$4="SW",'Wave Areas'!V115,(IF($B$4="N",'Wave Areas'!H78,(IF($B$4="NE",'Wave Areas'!V79,(IF($B$4="E",'Wave Areas'!H96,(IF($B$4="SE",'Wave Areas'!V97,(IF($B$4="S",'Wave Areas'!H114,(IF($B$4="W",'Wave Areas'!H132,(IF($B$4="NW",'Wave Areas'!V133,0))))))))))))))) -> 0 | Z48: =IF($B$4="SW",'Wave Areas'!W115,(IF($B$4="N",'Wave Areas'!I78,(IF($B$4="NE",'Wave Areas'!W79,(IF($B$4="E",'Wave Areas'!I96,(IF($B$4="SE",'Wave Areas'!W97,(IF($B$4="S",'Wave Areas'!I114,(IF($B$4="W",'Wave Areas'!I132,(IF($B$4="NW",'Wave Areas'!W133,0))))))))))))))) -> 0 | AA48: =IF($B$4="SW",'Wave Areas'!X115,(IF($B$4="N",'Wave Areas'!J78,(IF($B$4="NE",'Wave Areas'!X79,(IF($B$4="E",'Wave Areas'!J96,(IF($B$4="SE",'Wave Areas'!X97,(IF($B$4="S",'Wave Areas'!J114,(IF($B$4="W",'Wave Areas'!J132,(IF($B$4="NW",'Wave Areas'!X133,0))))))))))))))) -> 0 | AB48: =IF($B$4="SW",'Wave Areas'!Y115,(IF($B$4="N",'Wave Areas'!K78,(IF($B$4="NE",'Wave Areas'!Y79,(IF($B$4="E",'Wave Areas'!K96,(IF($B$4="SE",'Wave Areas'!Y97,(IF($B$4="S",'Wave Areas'!K114,(IF($B$4="W",'Wave Areas'!K132,(IF($B$4="NW",'Wave Areas'!Y133,0))))))))))))))) -> 0 | AC48: =IF($B$4="SW",'Wave Areas'!Z115,(IF($B$4="N",'Wave Areas'!L78,(IF($B$4="NE",'Wave Areas'!Z79,(IF($B$4="E",'Wave Areas'!L96,(IF($B$4="SE",'Wave Areas'!Z97,(IF($B$4="S",'Wave Areas'!L114,(IF($B$4="W",'Wave Areas'!L132,(IF($B$4="NW",'Wave Areas'!Z133,0))))))))))))))) -> 0 | AE48: 0.5 | AF48: =S48/$AC$59 ->  | AG48: =T48/$AC$59 ->  | AQ48: =SUM(AF48:AP48) ->  | AS48: 0.5 | AT48: =C47*AF48 ->  | AZ48: =AM48/1004 ->  | BA48: =AN48/1004 ->  | BB48: =AO48/1004 ->  | BC48: =AP48/1004 ->  | BD48: =AQ44/1004 -> 0 | BE48: =SUM(AT48:BD48) -> 
A49: 7855.664062 | B49: 2.5 | C49: 0 | D49: =$A49*($D$41)/2 -> 25424.36144 | E49: 31074.21954 | F49: 36724.07764 | G49: 42373.93573 | H49: =$A49*($H$41)/2 -> 48023.79383 | I49: 53673.65193 | J49: 59323.51003 | K49: 0 | L49: 0 | M49: 0 | N49: 296617.5501 | R49: 1.5 | S49: =IF($B$4="SW",'Wave Areas'!P116,(IF($B$4="N",'Wave Areas'!B79,(IF($B$4="NE",'Wave Areas'!P80,(IF($B$4="E",'Wave Areas'!B97,(IF($B$4="SE",'Wave Areas'!P98,(IF($B$4="S",'Wave Areas'!B115,(IF($B$4="W",'Wave Areas'!B133,(IF($B$4="NW",'Wave Areas'!P134,0))))))))))))))) -> 0 | T49: =IF($B$4="SW",'Wave Areas'!Q116,(IF($B$4="N",'Wave Areas'!C79,(IF($B$4="NE",'Wave Areas'!Q80,(IF($B$4="E",'Wave Areas'!C97,(IF($B$4="SE",'Wave Areas'!Q98,(IF($B$4="S",'Wave Areas'!C115,(IF($B$4="W",'Wave Areas'!C133,(IF($B$4="NW",'Wave Areas'!Q134,0))))))))))))))) -> 0 | U49: =IF($B$4="SW",'Wave Areas'!R116,(IF($B$4="N",'Wave Areas'!D79,(IF($B$4="NE",'Wave Areas'!R80,(IF($B$4="E",'Wave Areas'!D97,(IF($B$4="SE",'Wave Areas'!R98,(IF($B$4="S",'Wave Areas'!D115,(IF($B$4="W",'Wave Areas'!D133,(IF($B$4="NW",'Wave Areas'!R134,0))))))))))))))) -> 0 | V49: =IF($B$4="SW",'Wave Areas'!S116,(IF($B$4="N",'Wave Areas'!E79,(IF($B$4="NE",'Wave Areas'!S80,(IF($B$4="E",'Wave Areas'!E97,(IF($B$4="SE",'Wave Areas'!S98,(IF($B$4="S",'Wave Areas'!E115,(IF($B$4="W",'Wave Areas'!E133,(IF($B$4="NW",'Wave Areas'!S134,0))))))))))))))) -> 0 | W49: =IF($B$4="SW",'Wave Areas'!T116,(IF($B$4="N",'Wave Areas'!F79,(IF($B$4="NE",'Wave Areas'!T80,(IF($B$4="E",'Wave Areas'!F97,(IF($B$4="SE",'Wave Areas'!T98,(IF($B$4="S",'Wave Areas'!F115,(IF($B$4="W",'Wave Areas'!F133,(IF($B$4="NW",'Wave Areas'!T134,0))))))))))))))) -> 0 | X49: =IF($B$4="SW",'Wave Areas'!U116,(IF($B$4="N",'Wave Areas'!G79,(IF($B$4="NE",'Wave Areas'!U80,(IF($B$4="E",'Wave Areas'!G97,(IF($B$4="SE",'Wave Areas'!U98,(IF($B$4="S",'Wave Areas'!G115,(IF($B$4="W",'Wave Areas'!G133,(IF($B$4="NW",'Wave Areas'!U134,0))))))))))))))) -> 0 | Y49: =IF($B$4="SW",'Wave Areas'!V116,(IF($B$4="N",'Wave Areas'!H79,(IF($B$4="NE",'Wave Areas'!V80,(IF($B$4="E",'Wave Areas'!H97,(IF($B$4="SE",'Wave Areas'!V98,(IF($B$4="S",'Wave Areas'!H115,(IF($B$4="W",'Wave Areas'!H133,(IF($B$4="NW",'Wave Areas'!V134,0))))))))))))))) -> 0 | Z49: =IF($B$4="SW",'Wave Areas'!W116,(IF($B$4="N",'Wave Areas'!I79,(IF($B$4="NE",'Wave Areas'!W80,(IF($B$4="E",'Wave Areas'!I97,(IF($B$4="SE",'Wave Areas'!W98,(IF($B$4="S",'Wave Areas'!I115,(IF($B$4="W",'Wave Areas'!I133,(IF($B$4="NW",'Wave Areas'!W134,0))))))))))))))) -> 0 | AA49: =IF($B$4="SW",'Wave Areas'!X116,(IF($B$4="N",'Wave Areas'!J79,(IF($B$4="NE",'Wave Areas'!X80,(IF($B$4="E",'Wave Areas'!J97,(IF($B$4="SE",'Wave Areas'!X98,(IF($B$4="S",'Wave Areas'!J115,(IF($B$4="W",'Wave Areas'!J133,(IF($B$4="NW",'Wave Areas'!X134,0))))))))))))))) -> 0 | AB49: =IF($B$4="SW",'Wave Areas'!Y116,(IF($B$4="N",'Wave Areas'!K79,(IF($B$4="NE",'Wave Areas'!Y80,(IF($B$4="E",'Wave Areas'!K97,(IF($B$4="SE",'Wave Areas'!Y98,(IF($B$4="S",'Wave Areas'!K115,(IF($B$4="W",'Wave Areas'!K133,(IF($B$4="NW",'Wave Areas'!Y134,0))))))))))))))) -> 0 | AC49: =IF($B$4="SW",'Wave Areas'!Z116,(IF($B$4="N",'Wave Areas'!L79,(IF($B$4="NE",'Wave Areas'!Z80,(IF($B$4="E",'Wave Areas'!L97,(IF($B$4="SE",'Wave Areas'!Z98,(IF($B$4="S",'Wave Areas'!L115,(IF($B$4="W",'Wave Areas'!L133,(IF($B$4="NW",'Wave Areas'!Z134,0))))))))))))))) -> 0 | AE49: 1.5 | AF49: =S49/$AC$59 ->  | AG49: =T49/$AC$59 ->  | AH49: =U49/$AC$59 ->  | AI49: =V49/$AC$59 ->  | AJ49: =W49/$AC$59 ->  | AK49: =X49/$AC$59 ->  | AL49: =Y49/$AC$59 ->  | AM49: =Z49/$AC$59 ->  | AN49: =AA49/$AC$59 ->  | AO49: =AB49/$AC$59 ->  | AP49: =AC49/$AC$59 ->  | AQ49: =SUM(AF49:AP49) ->  | AS49: 1.5 | AZ49: =I48*AL49 ->  | BB49: =AO49/1004 ->  | BC49: =AP49/1004 ->  | BD49: =AQ46/1004 -> 0
A50: 15397.10156 | B50: 3.5 | C50: 0 | D50: =$A50*($D$41)/2 -> 49831.74842 | E50: 60905.47029 | F50: 71979.19217 | G50: 83052.91404 | H50: 94126.63591 | I50: 105200.3578 | J50: 116274.0797 | K50: 0 | L50: 0 | M50: 0 | N50: 581370.3983 | R50: 2.5 | S50: =IF($B$4="SW",'Wave Areas'!P117,(IF($B$4="N",'Wave Areas'!B80,(IF($B$4="NE",'Wave Areas'!P81,(IF($B$4="E",'Wave Areas'!B98,(IF($B$4="SE",'Wave Areas'!P99,(IF($B$4="S",'Wave Areas'!B116,(IF($B$4="W",'Wave Areas'!B134,(IF($B$4="NW",'Wave Areas'!P135,0))))))))))))))) -> 0 | T50: =IF($B$4="SW",'Wave Areas'!Q117,(IF($B$4="N",'Wave Areas'!C80,(IF($B$4="NE",'Wave Areas'!Q81,(IF($B$4="E",'Wave Areas'!C98,(IF($B$4="SE",'Wave Areas'!Q99,(IF($B$4="S",'Wave Areas'!C116,(IF($B$4="W",'Wave Areas'!C134,(IF($B$4="NW",'Wave Areas'!Q135,0))))))))))))))) -> 0 | U50: =IF($B$4="SW",'Wave Areas'!R117,(IF($B$4="N",'Wave Areas'!D80,(IF($B$4="NE",'Wave Areas'!R81,(IF($B$4="E",'Wave Areas'!D98,(IF($B$4="SE",'Wave Areas'!R99,(IF($B$4="S",'Wave Areas'!D116,(IF($B$4="W",'Wave Areas'!D134,(IF($B$4="NW",'Wave Areas'!R135,0))))))))))))))) -> 0 | V50: =IF($B$4="SW",'Wave Areas'!S117,(IF($B$4="N",'Wave Areas'!E80,(IF($B$4="NE",'Wave Areas'!S81,(IF($B$4="E",'Wave Areas'!E98,(IF($B$4="SE",'Wave Areas'!S99,(IF($B$4="S",'Wave Areas'!E116,(IF($B$4="W",'Wave Areas'!E134,(IF($B$4="NW",'Wave Areas'!S135,0))))))))))))))) -> 0 | W50: =IF($B$4="SW",'Wave Areas'!T117,(IF($B$4="N",'Wave Areas'!F80,(IF($B$4="NE",'Wave Areas'!T81,(IF($B$4="E",'Wave Areas'!F98,(IF($B$4="SE",'Wave Areas'!T99,(IF($B$4="S",'Wave Areas'!F116,(IF($B$4="W",'Wave Areas'!F134,(IF($B$4="NW",'Wave Areas'!T135,0))))))))))))))) -> 0 | X50: =IF($B$4="SW",'Wave Areas'!U117,(IF($B$4="N",'Wave Areas'!G80,(IF($B$4="NE",'Wave Areas'!U81,(IF($B$4="E",'Wave Areas'!G98,(IF($B$4="SE",'Wave Areas'!U99,(IF($B$4="S",'Wave Areas'!G116,(IF($B$4="W",'Wave Areas'!G134,(IF($B$4="NW",'Wave Areas'!U135,0))))))))))))))) -> 0 | Y50: =IF($B$4="SW",'Wave Areas'!V117,(IF($B$4="N",'Wave Areas'!H80,(IF($B$4="NE",'Wave Areas'!V81,(IF($B$4="E",'Wave Areas'!H98,(IF($B$4="SE",'Wave Areas'!V99,(IF($B$4="S",'Wave Areas'!H116,(IF($B$4="W",'Wave Areas'!H134,(IF($B$4="NW",'Wave Areas'!V135,0))))))))))))))) -> 0 | Z50: =IF($B$4="SW",'Wave Areas'!W117,(IF($B$4="N",'Wave Areas'!I80,(IF($B$4="NE",'Wave Areas'!W81,(IF($B$4="E",'Wave Areas'!I98,(IF($B$4="SE",'Wave Areas'!W99,(IF($B$4="S",'Wave Areas'!I116,(IF($B$4="W",'Wave Areas'!I134,(IF($B$4="NW",'Wave Areas'!W135,0))))))))))))))) -> 0 | AA50: =IF($B$4="SW",'Wave Areas'!X117,(IF($B$4="N",'Wave Areas'!J80,(IF($B$4="NE",'Wave Areas'!X81,(IF($B$4="E",'Wave Areas'!J98,(IF($B$4="SE",'Wave Areas'!X99,(IF($B$4="S",'Wave Areas'!J116,(IF($B$4="W",'Wave Areas'!J134,(IF($B$4="NW",'Wave Areas'!X135,0))))))))))))))) -> 0 | AB50: =IF($B$4="SW",'Wave Areas'!Y117,(IF($B$4="N",'Wave Areas'!K80,(IF($B$4="NE",'Wave Areas'!Y81,(IF($B$4="E",'Wave Areas'!K98,(IF($B$4="SE",'Wave Areas'!Y99,(IF($B$4="S",'Wave Areas'!K116,(IF($B$4="W",'Wave Areas'!K134,(IF($B$4="NW",'Wave Areas'!Y135,0))))))))))))))) -> 0 | AC50: =IF($B$4="SW",'Wave Areas'!Z117,(IF($B$4="N",'Wave Areas'!L80,(IF($B$4="NE",'Wave Areas'!Z81,(IF($B$4="E",'Wave Areas'!L98,(IF($B$4="SE",'Wave Areas'!Z99,(IF($B$4="S",'Wave Areas'!L116,(IF($B$4="W",'Wave Areas'!L134,(IF($B$4="NW",'Wave Areas'!Z135,0))))))))))))))) -> 0 | AE50: 2.5 | AS50: 2.5 | AT50: =AG50/1004 ->  | AU50: =D49*AG50 ->  | BD50: =AQ48/1004 -> 
A51: 25452.35156 | B51: 4.5 | C51: 0 | D51: =$A51*($D$41)/2 -> 82374.93106 | E51: 100680.4713 | F51: 118986.0115 | G51: 137291.5518 | H51: 155597.092 | I51: 173902.6322 | J51: 192208.1725 | K51: 0 | L51: 0 | M51: 0 | N51: 961040.8624 | R51: 3.5 | S51: =IF($B$4="SW",'Wave Areas'!P118,(IF($B$4="N",'Wave Areas'!B81,(IF($B$4="NE",'Wave Areas'!P82,(IF($B$4="E",'Wave Areas'!B99,(IF($B$4="SE",'Wave Areas'!P100,(IF($B$4="S",'Wave Areas'!B117,(IF($B$4="W",'Wave Areas'!B135,(IF($B$4="NW",'Wave Areas'!P136,0))))))))))))))) -> 0 | T51: =IF($B$4="SW",'Wave Areas'!Q118,(IF($B$4="N",'Wave Areas'!C81,(IF($B$4="NE",'Wave Areas'!Q82,(IF($B$4="E",'Wave Areas'!C99,(IF($B$4="SE",'Wave Areas'!Q100,(IF($B$4="S",'Wave Areas'!C117,(IF($B$4="W",'Wave Areas'!C135,(IF($B$4="NW",'Wave Areas'!Q136,0))))))))))))))) -> 0 | U51: =IF($B$4="SW",'Wave Areas'!R118,(IF($B$4="N",'Wave Areas'!D81,(IF($B$4="NE",'Wave Areas'!R82,(IF($B$4="E",'Wave Areas'!D99,(IF($B$4="SE",'Wave Areas'!R100,(IF($B$4="S",'Wave Areas'!D117,(IF($B$4="W",'Wave Areas'!D135,(IF($B$4="NW",'Wave Areas'!R136,0))))))))))))))) -> 0 | V51: =IF($B$4="SW",'Wave Areas'!S118,(IF($B$4="N",'Wave Areas'!E81,(IF($B$4="NE",'Wave Areas'!S82,(IF($B$4="E",'Wave Areas'!E99,(IF($B$4="SE",'Wave Areas'!S100,(IF($B$4="S",'Wave Areas'!E117,(IF($B$4="W",'Wave Areas'!E135,(IF($B$4="NW",'Wave Areas'!S136,0))))))))))))))) -> 0 | W51: =IF($B$4="SW",'Wave Areas'!T118,(IF($B$4="N",'Wave Areas'!F81,(IF($B$4="NE",'Wave Areas'!T82,(IF($B$4="E",'Wave Areas'!F99,(IF($B$4="SE",'Wave Areas'!T100,(IF($B$4="S",'Wave Areas'!F117,(IF($B$4="W",'Wave Areas'!F135,(IF($B$4="NW",'Wave Areas'!T136,0))))))))))))))) -> 0 | X51: =IF($B$4="SW",'Wave Areas'!U118,(IF($B$4="N",'Wave Areas'!G81,(IF($B$4="NE",'Wave Areas'!U82,(IF($B$4="E",'Wave Areas'!G99,(IF($B$4="SE",'Wave Areas'!U100,(IF($B$4="S",'Wave Areas'!G117,(IF($B$4="W",'Wave Areas'!G135,(IF($B$4="NW",'Wave Areas'!U136,0))))))))))))))) -> 0 | Y51: =IF($B$4="SW",'Wave Areas'!V118,(IF($B$4="N",'Wave Areas'!H81,(IF($B$4="NE",'Wave Areas'!V82,(IF($B$4="E",'Wave Areas'!H99,(IF($B$4="SE",'Wave Areas'!V100,(IF($B$4="S",'Wave Areas'!H117,(IF($B$4="W",'Wave Areas'!H135,(IF($B$4="NW",'Wave Areas'!V136,0))))))))))))))) -> 0 | Z51: =IF($B$4="SW",'Wave Areas'!W118,(IF($B$4="N",'Wave Areas'!I81,(IF($B$4="NE",'Wave Areas'!W82,(IF($B$4="E",'Wave Areas'!I99,(IF($B$4="SE",'Wave Areas'!W100,(IF($B$4="S",'Wave Areas'!I117,(IF($B$4="W",'Wave Areas'!I135,(IF($B$4="NW",'Wave Areas'!W136,0))))))))))))))) -> 0 | AA51: =IF($B$4="SW",'Wave Areas'!X118,(IF($B$4="N",'Wave Areas'!J81,(IF($B$4="NE",'Wave Areas'!X82,(IF($B$4="E",'Wave Areas'!J99,(IF($B$4="SE",'Wave Areas'!X100,(IF($B$4="S",'Wave Areas'!J117,(IF($B$4="W",'Wave Areas'!J135,(IF($B$4="NW",'Wave Areas'!X136,0))))))))))))))) -> 0 | AB51: =IF($B$4="SW",'Wave Areas'!Y118,(IF($B$4="N",'Wave Areas'!K81,(IF($B$4="NE",'Wave Areas'!Y82,(IF($B$4="E",'Wave Areas'!K99,(IF($B$4="SE",'Wave Areas'!Y100,(IF($B$4="S",'Wave Areas'!K117,(IF($B$4="W",'Wave Areas'!K135,(IF($B$4="NW",'Wave Areas'!Y136,0))))))))))))))) -> 0 | AC51: =IF($B$4="SW",'Wave Areas'!Z118,(IF($B$4="N",'Wave Areas'!L81,(IF($B$4="NE",'Wave Areas'!Z82,(IF($B$4="E",'Wave Areas'!L99,(IF($B$4="SE",'Wave Areas'!Z100,(IF($B$4="S",'Wave Areas'!L117,(IF($B$4="W",'Wave Areas'!L135,(IF($B$4="NW",'Wave Areas'!Z136,0))))))))))))))) -> 0 | AE51: 3.5 | AS51: 3.5
